Workbook

Sheet PI vs x
A1: Measurement | B1: Hall
A2: Type | B2: Off-axis
A4: Project | B4: ='10 x=-2'!B5 -> 504314
A5: PS serial no | B5: ='10 x=-2'!B7 -> 2410091
A7: Measurement date | B7: =LEFT('10 x=-2'!B4,10) -> 01-08-2024
C11: Nominal gap [mm] | D11: Encoder [counts] | E11: Encoder [mm] | F11: PI [T^2mm^3] | G11: x [mm] | H11: Encoder value at 10 mm gap:
B12: ='PI vs x'!$C$12 & "mm gap" -> 10mm gap | C12: ='10 x=-2'!B48 -> 10 | D12: ='10 x=-2'!$B$50 -> 19.9648 | E12: =D12-$H$12+10 -> 9.99995 | F12: ='10 x=-2'!$K$3 -> 10608.40855 | G12: -2 | H12: 19.96485
C13: =C12 -> 10 | D13: ='10 x=-1'!$B$50 -> 19.9648 | E13: =D13-$H$12+10 -> 9.99995 | F13: ='10 x=-1'!$K$3 -> 10614.15644 | G13: -1
C14: =C13 -> 10 | D14: ='10 x=0'!$B$50 -> 19.9648 | E14: 9.99995 | F14: ='10 x=0'!$K$3 -> 10617.52899 | G14: 0
C15: 10 | D15: ='10 x=1'!$B$50 -> 19.9648 | E15: 9.99995 | F15: ='10 x=1'!$K$3 -> 10616.62514 | G15: 1
C16: 10 | D16: ='10 x=2'!$B$50 -> 19.9648 | E16: 9.99995 | F16: ='10 x=2'!$K$3 -> 10612.5912 | G16: 2
B17: ='PI vs x'!$C$17 & "mm gap" -> 30mm gap | C17: ='30 x=-2'!B48 -> 30 | D17: ='30 x=-2'!$B$50 -> 39.9654 | E17: 30.00055 | F17: ='30 x=-2'!$K$3 -> 2464.650806 | G17: =G12 -> -2
C18: 30 | D18: ='30 x=-1'!$B$50 -> 39.9654 | E18: 30.00055 | F18: ='30 x=-1'!$K$3 -> 2468.170233 | G18: =G13 -> -1
C19: 30 | D19: ='30 x=0'!$B$50 -> 39.9654 | E19: 30.00055 | F19: ='30 x=0'!$K$3 -> 2468.818818 | G19: 0
C20: 30 | D20: ='30 x=1'!$B$50 -> 39.9654 | E20: 30.00055 | F20: ='30 x=1'!$K$3 -> 2466.140818 | G20: 1
C21: 30 | D21: ='30 x=2'!$B$50 -> 39.9654 | E21: 30.00055 | F21: ='30 x=2'!$K$3 -> 2461.255107 | G21: 2

Sheet 10 x=-2
A1: =IF('DF raw data'!A1="","",'DF raw data'!A1) -> Number of header lines | B1: =IF('DF raw data'!B1="","",'DF raw data'!B1) -> 54 | C1: =IF('DF raw data'!C1="","",'DF raw data'!C1) ->  | D1: =IF('DF raw data'!D1="","",'DF raw data'!D1) ->  | F1: T_coeff | G1: -0.00073 | H1: /degC | J1: IBy total | K1: =J1262*1000 -> -3.506040056 | L1: muTm | M1: =L1262*1000 -> -80.47664487 | R1: DF ref | S1: 1
A2: =IF('DF raw data'!A2="","",'DF raw data'!A2) -> Measured by | B2: =IF('DF raw data'!B2="","",'DF raw data'!B2) -> Danfysik | C2: =IF('DF raw data'!C2="","",'DF raw data'!C2) ->  | D2: =IF('DF raw data'!D2="","",'DF raw data'!D2) ->  | F2: Tcorr | G2: 20 | H2: degC | J2: JBy total | K2: =K1262 -> -1.961715614 | L2: muTm^2 | M2: =M1262 -> -19.95950839
A3: =IF('DF raw data'!A3="","",'DF raw data'!A3) -> Operator | B3: =IF('DF raw data'!B3="","",'DF raw data'!B3) -> PMHA | C3: =IF('DF raw data'!C3="","",'DF raw data'!C3) ->  | D3: =IF('DF raw data'!D3="","",'DF raw data'!D3) ->  | F3: Step | G3: =A63-A62 -> 0.5 | H3: mm | J3: PI total | K3: =N1262 -> 10608.40855 | L3: T^2mm^3
A4: =IF('DF raw data'!A4="","",'DF raw data'!A4) -> Data-time | B4: =IF('DF raw data'!B4="","",'DF raw data'!B4) -> 01-08-2024, 10:56:08 | C4: =IF('DF raw data'!C4="","",'DF raw data'!C4) ->  | D4: =IF('DF raw data'!D4="","",'DF raw data'!D4) -> 
A5: =IF('DF raw data'!A5="","",'DF raw data'!A5) -> Project | B5: =IF('DF raw data'!B5="","",'DF raw data'!B5) -> 504314 | C5: =IF('DF raw data'!C5="","",'DF raw data'!C5) ->  | D5: =IF('DF raw data'!D5="","",'DF raw data'!D5) -> 
A6: =IF('DF raw data'!A6="","",'DF raw data'!A6) -> Magnet type | B6: =IF('DF raw data'!B6="","",'DF raw data'!B6) -> Dipole | C6: =IF('DF raw data'!C6="","",'DF raw data'!C6) ->  | D6: =IF('DF raw data'!D6="","",'DF raw data'!D6) -> 
A7: =IF('DF raw data'!A7="","",'DF raw data'!A7) -> Magnet nr. | B7: =IF('DF raw data'!B7="","",'DF raw data'!B7) -> 2410091 | C7: =IF('DF raw data'!C7="","",'DF raw data'!C7) ->  | D7: =IF('DF raw data'!D7="","",'DF raw data'!D7) -> 
A8: =IF('DF raw data'!A8="","",'DF raw data'!A8) -> Meas. number | B8: =IF('DF raw data'!B8="","",'DF raw data'!B8) -> 166 | C8: =IF('DF raw data'!C8="","",'DF raw data'!C8) ->  | D8: =IF('DF raw data'!D8="","",'DF raw data'!D8) -> 
A9: =IF('DF raw data'!A9="","",'DF raw data'!A9) -> Add. info | B9: =IF('DF raw data'!B9="","",'DF raw data'!B9) -> X-alignment scan 1) | C9: =IF('DF raw data'!C9="","",'DF raw data'!C9) ->  | D9: =IF('DF raw data'!D9="","",'DF raw data'!D9) -> 
A10: =IF('DF raw data'!A10="","",'DF raw data'!A10) -> Device | B10: =IF('DF raw data'!B10="","",'DF raw data'!B10) -> (HAL) HALL-PROBE | C10: =IF('DF raw data'!C10="","",'DF raw data'!C10) ->  | D10: =IF('DF raw data'!D10="","",'DF raw data'!D10) -> 
A11: =IF('DF raw data'!A11="","",'DF raw data'!A11) -> Goal | B11: =IF('DF raw data'!B11="","",'DF raw data'!B11) -> (AXI) AXis Integral (Line, EFB) | C11: =IF('DF raw data'!C11="","",'DF raw data'!C11) ->  | D11: =IF('DF raw data'!D11="","",'DF raw data'!D11) -> 
A12: =IF('DF raw data'!A12="","",'DF raw data'!A12) -> Power supply mode | B12: =IF('DF raw data'!B12="","",'DF raw data'!B12) -> (PM) Permanent Magnet (no MPS in use) | C12: =IF('DF raw data'!C12="","",'DF raw data'!C12) ->  | D12: =IF('DF raw data'!D12="","",'DF raw data'!D12) -> 
A13: =IF('DF raw data'!A13="","",'DF raw data'!A13) -> Data format | B13: =IF('DF raw data'!B13="","",'DF raw data'!B13) -> Raw data text file | C13: =IF('DF raw data'!C13="","",'DF raw data'!C13) ->  | D13: =IF('DF raw data'!D13="","",'DF raw data'!D13) -> 
A14: =IF('DF raw data'!A14="","",'DF raw data'!A14) -> Direction of the pos. x-axis | B14: =IF('DF raw data'!B14="","",'DF raw data'!B14) -> See test program | C14: =IF('DF raw data'!C14="","",'DF raw data'!C14) ->  | D14: =IF('DF raw data'!D14="","",'DF raw data'!D14) -> 
A15: =IF('DF raw data'!A15="","",'DF raw data'!A15) -> Direction of the pos. y-axis | B15: =IF('DF raw data'!B15="","",'DF raw data'!B15) -> Vertical up | C15: =IF('DF raw data'!C15="","",'DF raw data'!C15) ->  | D15: =IF('DF raw data'!D15="","",'DF raw data'!D15) -> 
A16: =IF('DF raw data'!A16="","",'DF raw data'!A16) -> Direction of the pos. z-axis | B16: =IF('DF raw data'!B16="","",'DF raw data'!B16) -> See test program | C16: =IF('DF raw data'!C16="","",'DF raw data'!C16) ->  | D16: =IF('DF raw data'!D16="","",'DF raw data'!D16) -> 
A17: =IF('DF raw data'!A17="","",'DF raw data'!A17) -> Mapper type | B17: =IF('DF raw data'!B17="","",'DF raw data'!B17) -> Precision Hall Mapper | C17: =IF('DF raw data'!C17="","",'DF raw data'!C17) ->  | D17: =IF('DF raw data'!D17="","",'DF raw data'!D17) -> 
A18: =IF('DF raw data'!A18="","",'DF raw data'!A18) -> Mapper Danfysik Reg. Number | B18: =IF('DF raw data'!B18="","",'DF raw data'!B18) -> 2033-D (mapper 1) | C18: =IF('DF raw data'!C18="","",'DF raw data'!C18) ->  | D18: =IF('DF raw data'!D18="","",'DF raw data'!D18) -> 
A19: =IF('DF raw data'!A19="","",'DF raw data'!A19) -> Measurement consept | B19: =IF('DF raw data'!B19="","",'DF raw data'!B19) -> Square line grid | C19: =IF('DF raw data'!C19="","",'DF raw data'!C19) ->  | D19: =IF('DF raw data'!D19="","",'DF raw data'!D19) -> 
A20: =IF('DF raw data'!A20="","",'DF raw data'!A20) -> Mode | B20: =IF('DF raw data'!B20="","",'DF raw data'!B20) -> On-the-fly measurement | C20: =IF('DF raw data'!C20="","",'DF raw data'!C20) ->  | D20: =IF('DF raw data'!D20="","",'DF raw data'!D20) -> 
A21: =IF('DF raw data'!A21="","",'DF raw data'!A21) ->  | B21: =IF('DF raw data'!B21="","",'DF raw data'!B21) ->  | C21: =IF('DF raw data'!C21="","",'DF raw data'!C21) ->  | D21: =IF('DF raw data'!D21="","",'DF raw data'!D21) -> 
A22: =IF('DF raw data'!A22="","",'DF raw data'!A22) -> Probe Name | B22: =IF('DF raw data'!B22="","",'DF raw data'!B22) -> ID12_By | C22: =IF('DF raw data'!C22="","",'DF raw data'!C22) ->  | D22: =IF('DF raw data'!D22="","",'DF raw data'!D22) -> 
A23: =IF('DF raw data'!A23="","",'DF raw data'!A23) -> Probe Type | B23: =IF('DF raw data'!B23="","",'DF raw data'!B23) -> DF_ID_3D_Bxyz | C23: =IF('DF raw data'!C23="","",'DF raw data'!C23) ->  | D23: =IF('DF raw data'!D23="","",'DF raw data'!D23) -> 
A24: =IF('DF raw data'!A24="","",'DF raw data'!A24) -> Probe Danfysik Reg. Number | B24: =IF('DF raw data'!B24="","",'DF raw data'!B24) -> 2277 | C24: =IF('DF raw data'!C24="","",'DF raw data'!C24) ->  | D24: =IF('DF raw data'!D24="","",'DF raw data'!D24) -> 
A25: =IF('DF raw data'!A25="","",'DF raw data'!A25) -> Probe Axis | B25: =IF('DF raw data'!B25="","",'DF raw data'!B25) -> By | C25: =IF('DF raw data'!C25="","",'DF raw data'!C25) ->  | D25: =IF('DF raw data'!D25="","",'DF raw data'!D25) -> 
A26: =IF('DF raw data'!A26="","",'DF raw data'!A26) -> Probe Current Supply | B26: =IF('DF raw data'!B26="","",'DF raw data'!B26) -> 1825-D | C26: =IF('DF raw data'!C26="","",'DF raw data'!C26) ->  | D26: =IF('DF raw data'!D26="","",'DF raw data'!D26) -> 
A27: =IF('DF raw data'!A27="","",'DF raw data'!A27) -> Probe Gain Correction | B27: =IF('DF raw data'!B27="","",'DF raw data'!B27) -> 0.99613 | C27: =IF('DF raw data'!C27="","",'DF raw data'!C27) ->  | D27: =IF('DF raw data'!D27="","",'DF raw data'!D27) -> 
A28: =IF('DF raw data'!A28="","",'DF raw data'!A28) -> Probe Offset Correction | B28: =IF('DF raw data'!B28="","",'DF raw data'!B28) -> 0.0027562 | C28: =IF('DF raw data'!C28="","",'DF raw data'!C28) ->  | D28: =IF('DF raw data'!D28="","",'DF raw data'!D28) -> 
A29: =IF('DF raw data'!A29="","",'DF raw data'!A29) -> DVM Number | B29: =IF('DF raw data'!B29="","",'DF raw data'!B29) -> 2 | C29: =IF('DF raw data'!C29="","",'DF raw data'!C29) ->  | D29: =IF('DF raw data'!D29="","",'DF raw data'!D29) -> 
A30: =IF('DF raw data'!A30="","",'DF raw data'!A30) -> DVM Type | B30: =IF('DF raw data'!B30="","",'DF raw data'!B30) -> K2701 | C30: =IF('DF raw data'!C30="","",'DF raw data'!C30) ->  | D30: =IF('DF raw data'!D30="","",'DF raw data'!D30) -> 
A31: =IF('DF raw data'!A31="","",'DF raw data'!A31) -> DVM Danfysik Reg. Number | B31: =IF('DF raw data'!B31="","",'DF raw data'!B31) -> 1743-D | C31: =IF('DF raw data'!C31="","",'DF raw data'!C31) ->  | D31: =IF('DF raw data'!D31="","",'DF raw data'!D31) -> 
A32: =IF('DF raw data'!A32="","",'DF raw data'!A32) -> Probe Name | B32: =IF('DF raw data'!B32="","",'DF raw data'!B32) -> ID12_Bx | C32: =IF('DF raw data'!C32="","",'DF raw data'!C32) ->  | D32: =IF('DF raw data'!D32="","",'DF raw data'!D32) -> 
A33: =IF('DF raw data'!A33="","",'DF raw data'!A33) -> Probe Type | B33: =IF('DF raw data'!B33="","",'DF raw data'!B33) -> DF_ID_3D_Bxyz | C33: =IF('DF raw data'!C33="","",'DF raw data'!C33) ->  | D33: =IF('DF raw data'!D33="","",'DF raw data'!D33) -> 
A34: =IF('DF raw data'!A34="","",'DF raw data'!A34) -> Probe Danfysik Reg. Number | B34: =IF('DF raw data'!B34="","",'DF raw data'!B34) -> 2277 | C34: =IF('DF raw data'!C34="","",'DF raw data'!C34) ->  | D34: =IF('DF raw data'!D34="","",'DF raw data'!D34) -> 
A35: =IF('DF raw data'!A35="","",'DF raw data'!A35) -> Probe Axis | B35: =IF('DF raw data'!B35="","",'DF raw data'!B35) -> Bx | C35: =IF('DF raw data'!C35="","",'DF raw data'!C35) ->  | D35: =IF('DF raw data'!D35="","",'DF raw data'!D35) -> 
A36: =IF('DF raw data'!A36="","",'DF raw data'!A36) -> Probe Current Supply | B36: =IF('DF raw data'!B36="","",'DF raw data'!B36) -> 1825-D | C36: =IF('DF raw data'!C36="","",'DF raw data'!C36) ->  | D36: =IF('DF raw data'!D36="","",'DF raw data'!D36) -> 
A37: =IF('DF raw data'!A37="","",'DF raw data'!A37) -> Probe Gain Correction | B37: =IF('DF raw data'!B37="","",'DF raw data'!B37) -> 1 | C37: =IF('DF raw data'!C37="","",'DF raw data'!C37) ->  | D37: =IF('DF raw data'!D37="","",'DF raw data'!D37) -> 
A38: =IF('DF raw data'!A38="","",'DF raw data'!A38) -> Probe Offset Correction | B38: =IF('DF raw data'!B38="","",'DF raw data'!B38) -> -0.17564 | C38: =IF('DF raw data'!C38="","",'DF raw data'!C38) ->  | D38: =IF('DF raw data'!D38="","",'DF raw data'!D38) -> 
A39: =IF('DF raw data'!A39="","",'DF raw data'!A39) -> DVM Number | B39: =IF('DF raw data'!B39="","",'DF raw data'!B39) -> 3 | C39: =IF('DF raw data'!C39="","",'DF raw data'!C39) ->  | D39: =IF('DF raw data'!D39="","",'DF raw data'!D39) -> 
A40: =IF('DF raw data'!A40="","",'DF raw data'!A40) -> DVM Type | B40: =IF('DF raw data'!B40="","",'DF raw data'!B40) -> K2701 | C40: =IF('DF raw data'!C40="","",'DF raw data'!C40) ->  | D40: =IF('DF raw data'!D40="","",'DF raw data'!D40) -> 
A41: =IF('DF raw data'!A41="","",'DF raw data'!A41) -> DVM Danfysik Reg. Number | B41: =IF('DF raw data'!B41="","",'DF raw data'!B41) -> 1744-D | C41: =IF('DF raw data'!C41="","",'DF raw data'!C41) ->  | D41: =IF('DF raw data'!D41="","",'DF raw data'!D41) -> 
A42: =IF('DF raw data'!A42="","",'DF raw data'!A42) -> Probe Name | B42: =IF('DF raw data'!B42="","",'DF raw data'!B42) -> ID12_Bz | C42: =IF('DF raw data'!C42="","",'DF raw data'!C42) ->  | D42: =IF('DF raw data'!D42="","",'DF raw data'!D42) -> 
A43: =IF('DF raw data'!A43="","",'DF raw data'!A43) -> Probe Type | B43: =IF('DF raw data'!B43="","",'DF raw data'!B43) -> DF_ID_3D_Bxyz | C43: =IF('DF raw data'!C43="","",'DF raw data'!C43) ->  | D43: =IF('DF raw data'!D43="","",'DF raw data'!D43) -> 
A44: =IF('DF raw data'!A44="","",'DF raw data'!A44) -> Probe Danfysik Reg. Number | B44: =IF('DF raw data'!B44="","",'DF raw data'!B44) -> 2277 | C44: =IF('DF raw data'!C44="","",'DF raw data'!C44) ->  | D44: =IF('DF raw data'!D44="","",'DF raw data'!D44) -> 
A45: =IF('DF raw data'!A45="","",'DF raw data'!A45) -> Probe Axis | B45: =IF('DF raw data'!B45="","",'DF raw data'!B45) -> Bz | C45: =IF('DF raw data'!C45="","",'DF raw data'!C45) ->  | D45: =IF('DF raw data'!D45="","",'DF raw data'!D45) -> 
A46: =IF('DF raw data'!A46="","",'DF raw data'!A46) -> Probe Current Supply | B46: =IF('DF raw data'!B46="","",'DF raw data'!B46) -> 1825-D | C46: =IF('DF raw data'!C46="","",'DF raw data'!C46) ->  | D46: =IF('DF raw data'!D46="","",'DF raw data'!D46) -> 
A47: =IF('DF raw data'!A47="","",'DF raw data'!A47) -> Probe Gain Correction | B47: =IF('DF raw data'!B47="","",'DF raw data'!B47) -> 1 | C47: =IF('DF raw data'!C47="","",'DF raw data'!C47) ->  | D47: =IF('DF raw data'!D47="","",'DF raw data'!D47) -> 
A48: =IF('DF raw data'!A53="","",'DF raw data'!A53) -> PS-Gap: | B48: =IF('DF raw data'!B53="","",'DF raw data'!B53) -> 10 | C48: =IF('DF raw data'!C53="","",'DF raw data'!C53) ->  | D48: =IF('DF raw data'!D53="","",'DF raw data'!D53) -> 
A49: =IF('DF raw data'!A54="","",'DF raw data'!A54) -> PS-Temperature: | B49: =IF('DF raw data'!B54="","",'DF raw data'!B54) -> 27 | C49: =IF('DF raw data'!C54="","",'DF raw data'!C54) ->  | D49: =IF('DF raw data'!D54="","",'DF raw data'!D54) -> 
A50: =IF('DF raw data'!A55="","",'DF raw data'!A55) -> PS-Encoder: | B50: =IF('DF raw data'!B55="","",'DF raw data'!B55) -> 19.9648 | C50: =IF('DF raw data'!C55="","",'DF raw data'!C55) ->  | D50: =IF('DF raw data'!D55="","",'DF raw data'!D55) -> 
A51: =IF('DF raw data'!A56="","",'DF raw data'!A56) ->  | B51: =IF('DF raw data'!B56="","",'DF raw data'!B56) ->  | C51: =IF('DF raw data'!C56="","",'DF raw data'!C56) ->  | D51: =IF('DF raw data'!D56="","",'DF raw data'!D56) -> 
A52: =IF('DF raw data'!A57="","",'DF raw data'!A57) -> Monitor-Index | B52: =IF('DF raw data'!B57="","",'DF raw data'!B57) -> [1,1,4] | C52: =IF('DF raw data'!C57="","",'DF raw data'!C57) ->  | D52: =IF('DF raw data'!D57="","",'DF raw data'!D57) -> 
A53: =IF('DF raw data'!A58="","",'DF raw data'!A58) ->  | B53: =IF('DF raw data'!B58="","",'DF raw data'!B58) ->  | C53: =IF('DF raw data'!C58="","",'DF raw data'!C58) ->  | D53: =IF('DF raw data'!D58="","",'DF raw data'!D58) -> 
A54: =IF('DF raw data'!A59="","",'DF raw data'!A59) -> Time [s] | B54: =IF('DF raw data'!B59="","",'DF raw data'!B59) -> Y [mm] | C54: =IF('DF raw data'!C59="","",'DF raw data'!C59) -> X [mm] | D54: =IF('DF raw data'!D59="","",'DF raw data'!D59) -> Nominal current [A]
A55: =IF('DF raw data'!A60="","",'DF raw data'!A60) ->  | B55: =IF('DF raw data'!B60="","",'DF raw data'!B60) ->  | C55: =IF('DF raw data'!C60="","",'DF raw data'!C60) ->  | D55: =IF('DF raw data'!D60="","",'DF raw data'!D60) -> 
A56: =IF('DF raw data'!A61="","",'DF raw data'!A61) -> 216.5 | B56: =IF('DF raw data'!B61="","",'DF raw data'!B61) -> 31.16 | C56: =IF('DF raw data'!C61="","",'DF raw data'!C61) -> 299.8 | D56: =IF('DF raw data'!D61="","",'DF raw data'!D61) -> 0
A57: =IF('DF raw data'!A62="","",'DF raw data'!A62) ->  | B57: =IF('DF raw data'!B62="","",'DF raw data'!B62) ->  | C57: =IF('DF raw data'!C62="","",'DF raw data'!C62) ->  | D57: =IF('DF raw data'!D62="","",'DF raw data'!D62) -> 
A58: =IF('DF raw data'!A63="","",'DF raw data'!A63) -> Measurement-Index | B58: =IF('DF raw data'!B63="","",'DF raw data'!B63) -> [1,1,1201,2] | C58: =IF('DF raw data'!C63="","",'DF raw data'!C63) ->  | D58: =IF('DF raw data'!D63="","",'DF raw data'!D63) -> 
A59: =IF('DF raw data'!A64="","",'DF raw data'!A64) ->  | B59: =IF('DF raw data'!B64="","",'DF raw data'!B64) ->  | C59: =IF('DF raw data'!C64="","",'DF raw data'!C64) ->  | D59: =IF('DF raw data'!D64="","",'DF raw data'!D64) -> 
A60: =IF('DF raw data'!A65="","",'DF raw data'!A65) -> Z [mm] | B60: =IF('DF raw data'!B65="","",'DF raw data'!B65) -> By [T] | C60: =IF('DF raw data'!C65="","",'DF raw data'!C65) -> Bx [T] | D60: =IF('DF raw data'!D65="","",'DF raw data'!D65) -> Bz [T] | F60: By_corr | G60: Bx_corr | H60: Bz_corr | J60: Iy | K60: Jy | L60: Ix | M60: Jx | N60: PI
A62: =IF('DF raw data'!A67="","",'DF raw data'!A67) -> -300 | B62: =IF('DF raw data'!B67="","",'DF raw data'!B67) -> -3.72224e-05 | C62: =IF('DF raw data'!C67="","",'DF raw data'!C67) -> -5.93381e-05 | D62: =IF('DF raw data'!D67="","",'DF raw data'!D67) -> -3.18026e-05 | F62: =(1-$G$1*($B$49))*B62 -> -3.79560535e-05 | G62: =(1-$G$1*($B$49-$G$2))*C62 -> -5.964131769e-05 | H62: =(1-$G$1*($B$49-$G$2))*D62 -> -3.196511129e-05 | J62: =F62*$G$3 -> -1.897802675e-05 | K62: =J62*$G$3 -> -9.489013376e-06 | L62: =G62*$G$3 -> -2.982065885e-05 | M62: =L62*$G$3 -> -1.491032942e-05 | N62: =(J62^2+L62^2)*$G$3 -> 6.247185967e-10
A63: =IF('DF raw data'!A68="","",'DF raw data'!A68) -> -299.5 | B63: =IF('DF raw data'!B68="","",'DF raw data'!B68) -> -3.08742e-05 | C63: =IF('DF raw data'!C68="","",'DF raw data'!C68) -> -5.85314e-05 | D63: =IF('DF raw data'!D68="","",'DF raw data'!D68) -> -3.22791e-05 | F63: =(1-$G$1*($B$49-$G$2))*B63 -> -3.103196716e-05 | G63: =(1-$G$1*($B$49-$G$2))*C63 -> -5.883049545e-05 | H63: -3.24440462e-05 | J63: =F63*$G$3+J62 -> -3.449401033e-05 | K63: =J63*$G$3+K62 -> -2.673601854e-05 | L63: =G63*$G$3+L62 -> -5.923590657e-05 | M63: =L63*$G$3+M62 -> -4.452828271e-05 | N63: =(J63^2+L63^2)*$G$3+N62 -> 2.974083285e-09
A64: =IF('DF raw data'!A69="","",'DF raw data'!A69) -> -299 | B64: =IF('DF raw data'!B69="","",'DF raw data'!B69) -> -2.67058e-05 | C64: =IF('DF raw data'!C69="","",'DF raw data'!C69) -> -6.80496e-05 | D64: =IF('DF raw data'!D69="","",'DF raw data'!D69) -> -3.3034e-05 | F64: =(1-$G$1*($B$49-$G$2))*B64 -> -2.684226664e-05 | G64: -6.839733346e-05 | H64: -3.320280374e-05 | J64: =F64*$G$3+J63 -> -4.791514365e-05 | K64: =J64*$G$3+K63 -> -5.069359037e-05 | L64: =G64*$G$3+L63 -> -9.34345733e-05 | M64: =L64*$G$3+M63 -> -9.124556936e-05 | N64: =(J64^2+L64^2)*$G$3+N63 -> 8.487023524e-09
A65: =IF('DF raw data'!A70="","",'DF raw data'!A70) -> -298.5 | B65: =IF('DF raw data'!B70="","",'DF raw data'!B70) -> -3.54262e-05 | C65: =IF('DF raw data'!C70="","",'DF raw data'!C70) -> -6.74055e-05 | D65: =IF('DF raw data'!D70="","",'DF raw data'!D70) -> -3.3248e-05 | F65: -3.560722788e-05 | G65: -6.774994211e-05 | H65: -3.341789728e-05 | J65: -6.571875759e-05 | K65: -8.355296916e-05 | L65: -0.0001273095444 | M65: -0.0001549003415 | N65: 1.875036112e-08
A66: =IF('DF raw data'!A71="","",'DF raw data'!A71) -> -298 | B66: =IF('DF raw data'!B71="","",'DF raw data'!B71) -> -2.70905e-05 | C66: =IF('DF raw data'!C71="","",'DF raw data'!C71) -> -6.07495e-05 | D66: =IF('DF raw data'!D71="","",'DF raw data'!D71) -> -3.31676e-05 | F66: -2.722893246e-05 | G66: -6.105992994e-05 | H66: -3.333708644e-05 | J66: -7.933322382e-05 | K66: -0.0001232195811 | L66: -0.0001578395093 | M66: -0.0002338200962 | N66: 3.435389667e-08
A67: =IF('DF raw data'!A72="","",'DF raw data'!A72) -> -297.5 | B67: =IF('DF raw data'!B72="","",'DF raw data'!B72) -> -2.92707e-05 | C67: =IF('DF raw data'!C72="","",'DF raw data'!C72) -> -5.68429e-05 | D67: =IF('DF raw data'!D72="","",'DF raw data'!D72) -> -3.28866e-05 | F67: -2.942027328e-05 | G67: -5.713336722e-05 | H67: -3.305465053e-05 | J67: -9.404336046e-05 | K67: -0.0001702412613 | L67: -0.0001864061929 | M67: -0.0003270231927 | N67: 5.614960787e-08
A68: =IF('DF raw data'!A73="","",'DF raw data'!A73) -> -297 | B68: =IF('DF raw data'!B73="","",'DF raw data'!B73) -> -3.36312e-05 | C68: =IF('DF raw data'!C73="","",'DF raw data'!C73) -> -5.27096e-05 | D68: =IF('DF raw data'!D73="","",'DF raw data'!D73) -> -3.27201e-05 | F68: -3.380305543e-05 | G68: -5.297894606e-05 | H68: -3.288729971e-05 | J68: -0.0001109448882 | K68: -0.0002257137054 | L68: -0.000212895666 | M68: -0.0004334710256 | N68: 8.496627427e-08
A69: =IF('DF raw data'!A74="","",'DF raw data'!A74) -> -296.5 | B69: =IF('DF raw data'!B74="","",'DF raw data'!B74) -> -1.5292e-05 | C69: =IF('DF raw data'!C74="","",'DF raw data'!C74) -> -5.27535e-05 | D69: =IF('DF raw data'!D74="","",'DF raw data'!D74) -> -3.3543e-05 | F69: -1.537014212e-05 | G69: -5.302307038e-05 | H69: -3.371440473e-05 | J69: -0.0001186299592 | K69: -0.000285028685 | L69: -0.0002394072012 | M69: -0.0005531746262 | N69: 1.206607119e-07
A70: =IF('DF raw data'!A75="","",'DF raw data'!A75) -> -296 | B70: =IF('DF raw data'!B75="","",'DF raw data'!B75) -> -2.86285e-05 | C70: =IF('DF raw data'!C75="","",'DF raw data'!C75) -> -6.21634e-05 | D70: =IF('DF raw data'!D75="","",'DF raw data'!D75) -> -3.44955e-05 | F70: -2.877479163e-05 | G70: -6.248105497e-05 | H70: -3.467177201e-05 | J70: -0.0001330173551 | K70: -0.0003515373625 | L70: -0.0002706477286 | M70: -0.0006884984905 | N70: 1.661326168e-07
A71: =IF('DF raw data'!A76="","",'DF raw data'!A76) -> -295.5 | B71: =IF('DF raw data'!B76="","",'DF raw data'!B76) -> -3.80546e-05 | C71: =IF('DF raw data'!C76="","",'DF raw data'!C76) -> -6.24059e-05 | D71: =IF('DF raw data'!D76="","",'DF raw data'!D76) -> -3.42423e-05 | F71: -3.824905901e-05 | G71: -6.272479415e-05 | H71: -3.441727815e-05 | J71: -0.0001521418846 | K71: -0.0004276083048 | L71: -0.0003020101257 | M71: -0.0008395035534 | N71: 2.233112513e-07
A72: =IF('DF raw data'!A77="","",'DF raw data'!A77) -> -295 | B72: =IF('DF raw data'!B77="","",'DF raw data'!B77) -> -3.19638e-05 | C72: =IF('DF raw data'!C77="","",'DF raw data'!C77) -> -5.69563e-05 | D72: =IF('DF raw data'!D77="","",'DF raw data'!D77) -> -3.32285e-05 | F72: -3.212713502e-05 | G72: -5.724734669e-05 | H72: -3.339829764e-05 | J72: -0.0001682054521 | K72: -0.0005117110308 | L72: -0.0003306337991 | M72: -0.001004820453 | N72: 2.921171429e-07
A73: =IF('DF raw data'!A78="","",'DF raw data'!A78) -> -294.5 | B73: =IF('DF raw data'!B78="","",'DF raw data'!B78) -> -3.59397e-05 | C73: =IF('DF raw data'!C78="","",'DF raw data'!C78) -> -4.99526e-05 | D73: =IF('DF raw data'!D78="","",'DF raw data'!D78) -> -3.24497e-05 | F73: -3.612335187e-05 | G73: -5.020785779e-05 | H73: -3.261551797e-05 | J73: -0.000186267128 | K73: -0.0006048445948 | L73: -0.000355737728 | M73: -0.001182689317 | N73: 3.727395299e-07
A74: =IF('DF raw data'!A79="","",'DF raw data'!A79) -> -294 | B74: =IF('DF raw data'!B79="","",'DF raw data'!B79) -> -2.59369e-05 | C74: =IF('DF raw data'!C79="","",'DF raw data'!C79) -> -5.32855e-05 | D74: =IF('DF raw data'!D79="","",'DF raw data'!D79) -> -3.23319e-05 | F74: -2.606943756e-05 | G74: -5.35577889e-05 | H74: -3.249711601e-05 | J74: -0.0001993018468 | K74: -0.0007044955182 | L74: -0.0003825166224 | M74: -0.001373947628 | N74: 4.657596262e-07
A75: =IF('DF raw data'!A80="","",'DF raw data'!A80) -> -293.5 | B75: =IF('DF raw data'!B80="","",'DF raw data'!B80) -> -2.55517e-05 | C75: =IF('DF raw data'!C80="","",'DF raw data'!C80) -> -5.68564e-05 | D75: =IF('DF raw data'!D80="","",'DF raw data'!D80) -> -3.29776e-05 | F75: -2.568226919e-05 | G75: -5.71469362e-05 | H75: -3.314611554e-05 | J75: -0.0002121429814 | K75: -0.0008105670089 | L75: -0.0004110900905 | M75: -0.001579492673 | N75: 5.727594797e-07
A76: =IF('DF raw data'!A81="","",'DF raw data'!A81) -> -293 | B76: =IF('DF raw data'!B81="","",'DF raw data'!B81) -> -2.15114e-05 | C76: =IF('DF raw data'!C81="","",'DF raw data'!C81) -> -6.22293e-05 | D76: =IF('DF raw data'!D81="","",'DF raw data'!D81) -> -3.40494e-05 | F76: -2.162132325e-05 | G76: -6.254729172e-05 | H76: -3.422339243e-05 | J76: -0.000222953643 | K76: -0.0009220438304 | L76: -0.0004423637364 | M76: -0.001800674542 | N76: 6.954564808e-07
A77: =IF('DF raw data'!A82="","",'DF raw data'!A82) -> -292.5 | B77: =IF('DF raw data'!B82="","",'DF raw data'!B82) -> -2.97188e-05 | C77: =IF('DF raw data'!C82="","",'DF raw data'!C82) -> -5.16021e-05 | D77: =IF('DF raw data'!D82="","",'DF raw data'!D82) -> -3.42186e-05 | F77: -2.987066307e-05 | G77: -5.186578673e-05 | H77: -3.439345705e-05 | J77: -0.0002378889745 | K77: -0.001040988318 | L77: -0.0004682966297 | M77: -0.002034822856 | N77: 8.334029296e-07
A78: =IF('DF raw data'!A83="","",'DF raw data'!A83) -> -292 | B78: =IF('DF raw data'!B83="","",'DF raw data'!B83) -> -4.09407e-05 | C78: =IF('DF raw data'!C83="","",'DF raw data'!C83) -> -5.02154e-05 | D78: =IF('DF raw data'!D83="","",'DF raw data'!D83) -> -3.3227e-05 | F78: -4.114990698e-05 | G78: -5.047200069e-05 | H78: -3.339678997e-05 | J78: -0.000258463928 | K78: -0.001170220282 | L78: -0.0004935326301 | M78: -0.002281589171 | N78: 9.885919591e-07
A79: =IF('DF raw data'!A84="","",'DF raw data'!A84) -> -291.5 | B79: =IF('DF raw data'!B84="","",'DF raw data'!B84) -> -2.23485e-05 | C79: =IF('DF raw data'!C84="","",'DF raw data'!C84) -> -5.41146e-05 | D79: =IF('DF raw data'!D84="","",'DF raw data'!D84) -> -2.87392e-05 | F79: -2.246270084e-05 | G79: -5.439112561e-05 | H79: -2.888605731e-05 | J79: -0.0002696952784 | K79: -0.001305067921 | L79: -0.0005207281929 | M79: -0.002541953268 | N79: 1.160538656e-06
A80: =IF('DF raw data'!A85="","",'DF raw data'!A85) -> -291 | B80: =IF('DF raw data'!B85="","",'DF raw data'!B85) -> -2.82442e-05 | C80: =IF('DF raw data'!C85="","",'DF raw data'!C85) -> -4.5706e-05 | D80: =IF('DF raw data'!D85="","",'DF raw data'!D85) -> -3.38297e-05 | F80: -2.838852786e-05 | G80: -4.593955766e-05 | H80: -3.400256977e-05 | J80: -0.0002838895424 | K80: -0.001447012692 | L80: -0.0005436979717 | M80: -0.002813802254 | N80: 1.348639035e-06
A81: =IF('DF raw data'!A86="","",'DF raw data'!A86) -> -290.5 | B81: =IF('DF raw data'!B86="","",'DF raw data'!B86) -> -2.70184e-05 | C81: =IF('DF raw data'!C86="","",'DF raw data'!C86) -> -4.40884e-05 | D81: =IF('DF raw data'!D86="","",'DF raw data'!D86) -> -4.56699e-05 | F81: -2.715646402e-05 | G81: -4.431369172e-05 | H81: -4.590327319e-05 | J81: -0.0002974677744 | K81: -0.001595746579 | L81: -0.0005658548176 | M81: -0.003096729663 | N81: 1.55297841e-06
A82: =IF('DF raw data'!A87="","",'DF raw data'!A87) -> -290 | B82: =IF('DF raw data'!B87="","",'DF raw data'!B87) -> -2.46443e-05 | C82: =IF('DF raw data'!C87="","",'DF raw data'!C87) -> -4.00858e-05 | D82: =IF('DF raw data'!D87="","",'DF raw data'!D87) -> -4.8105e-05 | F82: -2.477023237e-05 | G82: -4.029063844e-05 | H82: -4.835081655e-05 | J82: -0.0003098528906 | K82: -0.001750673025 | L82: -0.0005860001368 | M82: -0.003389729731 | N82: 1.772680897e-06
A83: =IF('DF raw data'!A88="","",'DF raw data'!A88) -> -289.5 | B83: =IF('DF raw data'!B88="","",'DF raw data'!B88) -> -2.35587e-05 | C83: =IF('DF raw data'!C88="","",'DF raw data'!C88) -> -4.76792e-05 | D83: =IF('DF raw data'!D88="","",'DF raw data'!D88) -> -4.10869e-05 | F83: -2.367908496e-05 | G83: -4.792284071e-05 | H83: -4.129685406e-05 | J83: -0.000321692433 | K83: -0.001911519241 | L83: -0.0006099615572 | M83: -0.00369471051 | N83: 2.010450459e-06
A84: =IF('DF raw data'!A89="","",'DF raw data'!A89) -> -289 | B84: =IF('DF raw data'!B89="","",'DF raw data'!B89) -> -3.22778e-05 | C84: =IF('DF raw data'!C89="","",'DF raw data'!C89) -> -5.81761e-05 | D84: =IF('DF raw data'!D89="","",'DF raw data'!D89) -> -4.3185e-05 | F84: -3.244273956e-05 | G84: -5.847337987e-05 | H84: -4.340567535e-05 | J84: -0.0003379138028 | K84: -0.002080476143 | L84: -0.0006391982471 | M84: -0.004014309633 | N84: 2.271830527e-06
A85: =IF('DF raw data'!A90="","",'DF raw data'!A90) -> -288.5 | B85: =IF('DF raw data'!B90="","",'DF raw data'!B90) -> -2.74067e-05 | C85: =IF('DF raw data'!C90="","",'DF raw data'!C90) -> -5.17043e-05 | D85: =IF('DF raw data'!D90="","",'DF raw data'!D90) -> -4.00805e-05 | F85: -2.754674824e-05 | G85: -5.196850897e-05 | H85: -4.028531135e-05 | J85: -0.0003516871769 | K85: -0.002256319731 | L85: -0.0006651825016 | M85: -0.004346900884 | N85: 2.554906343e-06
A86: =IF('DF raw data'!A91="","",'DF raw data'!A91) -> -288 | B86: =IF('DF raw data'!B91="","",'DF raw data'!B91) -> -3.43959e-05 | C86: =IF('DF raw data'!C91="","",'DF raw data'!C91) -> -5.43416e-05 | D86: =IF('DF raw data'!D91="","",'DF raw data'!D91) -> -3.99702e-05 | F86: -3.457166305e-05 | G86: -5.461928558e-05 | H86: -4.017444772e-05 | J86: -0.0003689730085 | K86: -0.002440806235 | L86: -0.0006924921444 | M86: -0.004693146956 | N86: 2.862749568e-06
A87: =IF('DF raw data'!A92="","",'DF raw data'!A92) -> -287.5 | B87: =IF('DF raw data'!B92="","",'DF raw data'!B92) -> -2.73401e-05 | C87: =IF('DF raw data'!C92="","",'DF raw data'!C92) -> -5.75363e-05 | D87: =IF('DF raw data'!D92="","",'DF raw data'!D92) -> -4.37122e-05 | F87: -2.747980791e-05 | G87: -5.783031049e-05 | H87: -4.393556934e-05 | J87: -0.0003827129124 | K87: -0.002632162691 | L87: -0.0007214072996 | M87: -0.005053850606 | N87: 3.196198401e-06
A88: =IF('DF raw data'!A93="","",'DF raw data'!A93) -> -287 | B88: =IF('DF raw data'!B93="","",'DF raw data'!B93) -> -2.65737e-05 | C88: =IF('DF raw data'!C93="","",'DF raw data'!C93) -> -6.17209e-05 | D88: =IF('DF raw data'!D93="","",'DF raw data'!D93) -> -3.9024e-05 | F88: -2.670949161e-05 | G88: -6.20362938e-05 | H88: -3.922341264e-05 | J88: -0.0003960676582 | K88: -0.002830196521 | L88: -0.0007524254465 | M88: -0.005430063329 | N88: 3.557705222e-06
A89: =IF('DF raw data'!A94="","",'DF raw data'!A94) -> -286.5 | B89: =IF('DF raw data'!B94="","",'DF raw data'!B94) -> -3.93382e-05 | C89: =IF('DF raw data'!C94="","",'DF raw data'!C94) -> -5.04895e-05 | D89: =IF('DF raw data'!D94="","",'DF raw data'!D94) -> -3.23572e-05 | F89: -3.95392182e-05 | G89: -5.074750134e-05 | H89: -3.252254529e-05 | J89: -0.0004158372673 | K89: -0.003038115154 | L89: -0.0007777991972 | M89: -0.005818962928 | N89: 3.946651334e-06
A90: =IF('DF raw data'!A95="","",'DF raw data'!A95) -> -286 | B90: =IF('DF raw data'!B95="","",'DF raw data'!B95) -> -2.85576e-05 | C90: =IF('DF raw data'!C95="","",'DF raw data'!C95) -> -4.59823e-05 | D90: =IF('DF raw data'!D95="","",'DF raw data'!D95) -> -4.51684e-05 | F90: -2.870352934e-05 | G90: -4.621726955e-05 | H90: -4.539921052e-05 | J90: -0.000430189032 | K90: -0.00325320967 | L90: -0.000800907832 | M90: -0.006219416844 | N90: 4.359909313e-06
A91: =IF('DF raw data'!A96="","",'DF raw data'!A96) -> -285.5 | B91: =IF('DF raw data'!B96="","",'DF raw data'!B96) -> -2.22115e-05 | C91: =IF('DF raw data'!C96="","",'DF raw data'!C96) -> -5.8041e-05 | D91: =IF('DF raw data'!D96="","",'DF raw data'!D96) -> -4.22847e-05 | F91: -2.232500076e-05 | G91: -5.833758951e-05 | H91: -4.250077482e-05 | J91: -0.0004413515324 | K91: -0.003473885436 | L91: -0.0008300766267 | M91: -0.006634455157 | N91: 4.801818504e-06
A92: =IF('DF raw data'!A97="","",'DF raw data'!A97) -> -285 | B92: =IF('DF raw data'!B97="","",'DF raw data'!B97) -> -3.39446e-05 | C92: =IF('DF raw data'!C97="","",'DF raw data'!C97) -> -6.26808e-05 | D92: =IF('DF raw data'!D97="","",'DF raw data'!D97) -> -4.35559e-05 | F92: -3.411805691e-05 | G92: -6.300109889e-05 | H92: -4.377847065e-05 | J92: -0.0004584105608 | K92: -0.003703090717 | L92: -0.0008615771762 | M92: -0.007065243745 | N92: 5.27804624e-06
A93: =IF('DF raw data'!A98="","",'DF raw data'!A98) -> -284.5 | B93: =IF('DF raw data'!B98="","",'DF raw data'!B98) -> -2.86209e-05 | C93: =IF('DF raw data'!C98="","",'DF raw data'!C98) -> -5.47649e-05 | D93: =IF('DF raw data'!D98="","",'DF raw data'!D98) -> -4.62325e-05 | F93: -2.87671528e-05 | G93: -5.504474864e-05 | H93: -4.646874807e-05 | J93: -0.0004727941372 | K93: -0.003939487785 | L93: -0.0008890995505 | M93: -0.00750979352 | N93: 5.785062394e-06
A94: =IF('DF raw data'!A99="","",'DF raw data'!A99) -> -284 | B94: =IF('DF raw data'!B99="","",'DF raw data'!B99) -> -2.47824e-05 | C94: =IF('DF raw data'!C99="","",'DF raw data'!C99) -> -5.60086e-05 | D94: =IF('DF raw data'!D99="","",'DF raw data'!D99) -> -3.27778e-05 | F94: -2.490903806e-05 | G94: -5.629480395e-05 | H94: -3.294529456e-05 | J94: -0.0004852486563 | K94: -0.004182112114 | L94: -0.0009172469525 | M94: -0.007968416997 | N94: 6.323466509e-06
A95: =IF('DF raw data'!A100="","",'DF raw data'!A100) -> -283.5 | B95: =IF('DF raw data'!B100="","",'DF raw data'!B100) -> -2.97135e-05 | C95: =IF('DF raw data'!C100="","",'DF raw data'!C100) -> -6.02338e-05 | D95: =IF('DF raw data'!D100="","",'DF raw data'!D100) -> -4.24697e-05 | F95: -2.986533598e-05 | G95: -6.054159472e-05 | H95: -4.268672017e-05 | J95: -0.0005001813243 | K95: -0.004432202776 | L95: -0.0009475177498 | M95: -0.008442175871 | N95: 6.897452131e-06
A96: =IF('DF raw data'!A101="","",'DF raw data'!A101) -> -283 | B96: =IF('DF raw data'!B101="","",'DF raw data'!B101) -> -2.22719e-05 | C96: =IF('DF raw data'!C101="","",'DF raw data'!C101) -> -6.21333e-05 | D96: =IF('DF raw data'!D101="","",'DF raw data'!D101) -> -4.78778e-05 | F96: -2.238570941e-05 | G96: -6.245080116e-05 | H96: -4.812245556e-05 | J96: -0.000511374179 | K96: -0.004687889865 | L96: -0.0009787431504 | M96: -0.008931547447 | N96: 7.507172983e-06
A97: =IF('DF raw data'!A102="","",'DF raw data'!A102) -> -282.5 | B97: =IF('DF raw data'!B102="","",'DF raw data'!B102) -> -3.10537e-05 | C97: =IF('DF raw data'!C102="","",'DF raw data'!C102) -> -6.15196e-05 | D97: =IF('DF raw data'!D102="","",'DF raw data'!D102) -> -5.22723e-05 | F97: -3.121238441e-05 | G97: -6.183396516e-05 | H97: -5.253941145e-05 | J97: -0.0005269803712 | K97: -0.004951380051 | L97: -0.001009660133 | M97: -0.009436377513 | N97: 8.155733931e-06
A98: =IF('DF raw data'!A103="","",'DF raw data'!A103) -> -282 | B98: =IF('DF raw data'!B103="","",'DF raw data'!B103) -> -3.89462e-05 | C98: =IF('DF raw data'!C103="","",'DF raw data'!C103) -> -5.933e-05 | D98: =IF('DF raw data'!D103="","",'DF raw data'!D103) -> -4.35732e-05 | F98: -3.914521508e-05 | G98: -5.96331763e-05 | H98: -4.379585905e-05 | J98: -0.0005465529787 | K98: -0.00522465654 | L98: -0.001039476721 | M98: -0.009956115874 | N98: 8.845349937e-06
A99: =IF('DF raw data'!A104="","",'DF raw data'!A104) -> -281.5 | B99: =IF('DF raw data'!B104="","",'DF raw data'!B104) -> -2.61189e-05 | C99: =IF('DF raw data'!C104="","",'DF raw data'!C104) -> -6.6489e-05 | D99: =IF('DF raw data'!D104="","",'DF raw data'!D104) -> -4.80988e-05 | F99: -2.625236758e-05 | G99: -6.682875879e-05 | H99: -4.834458487e-05 | J99: -0.0005596791625 | K99: -0.005504496121 | L99: -0.001072891101 | M99: -0.01049256142 | N99: 9.577517976e-06
A100: =IF('DF raw data'!A105="","",'DF raw data'!A105) -> -281 | B100: =IF('DF raw data'!B105="","",'DF raw data'!B105) -> -2.17602e-05 | C100: =IF('DF raw data'!C105="","",'DF raw data'!C105) -> -6.96438e-05 | D100: =IF('DF raw data'!D105="","",'DF raw data'!D105) -> -4.59482e-05 | F100: -2.187139462e-05 | G100: -6.999967982e-05 | H100: -4.61829953e-05 | J100: -0.0005706148598 | K100: -0.005789803551 | L100: -0.00110789094 | M100: -0.01104650689 | N100: 1.03540298e-05
A101: =IF('DF raw data'!A106="","",'DF raw data'!A106) -> -280.5 | B101: =IF('DF raw data'!B106="","",'DF raw data'!B106) -> -2.83048e-05 | C101: =IF('DF raw data'!C106="","",'DF raw data'!C106) -> -6.09828e-05 | D101: =IF('DF raw data'!D106="","",'DF raw data'!D106) -> -3.94873e-05 | F101: -2.844943753e-05 | G101: -6.129442211e-05 | H101: -3.96890801e-05 | J101: -0.0005848395786 | K101: -0.006082223341 | L101: -0.001138538151 | M101: -0.01161577597 | N101: 1.117318303e-05
A102: =IF('DF raw data'!A107="","",'DF raw data'!A107) -> -280 | B102: =IF('DF raw data'!B107="","",'DF raw data'!B107) -> -3.36305e-05 | C102: =IF('DF raw data'!C107="","",'DF raw data'!C107) -> -5.64024e-05 | D102: =IF('DF raw data'!D107="","",'DF raw data'!D107) -> -3.38647e-05 | F102: -3.380235186e-05 | G102: -5.669061626e-05 | H102: -3.403774862e-05 | J102: -0.0006017407545 | K102: -0.006383093718 | L102: -0.00116688346 | M102: -0.0121992177 | N102: 1.20350375e-05
A103: =IF('DF raw data'!A108="","",'DF raw data'!A108) -> -279.5 | B103: =IF('DF raw data'!B108="","",'DF raw data'!B108) -> -3.37639e-05 | C103: =IF('DF raw data'!C108="","",'DF raw data'!C108) -> -5.67223e-05 | D103: =IF('DF raw data'!D108="","",'DF raw data'!D108) -> -2.58503e-05 | F103: -3.393643353e-05 | G103: -5.701215095e-05 | H103: -2.598239503e-05 | J103: -0.0006187089713 | K103: -0.006692448203 | L103: -0.001195389535 | M103: -0.01279691247 | N103: 1.294091597e-05
A104: =IF('DF raw data'!A109="","",'DF raw data'!A109) -> -279 | B104: =IF('DF raw data'!B109="","",'DF raw data'!B109) -> -3.84366e-05 | C104: =IF('DF raw data'!C109="","",'DF raw data'!C109) -> -5.34839e-05 | D104: =IF('DF raw data'!D109="","",'DF raw data'!D109) -> -3.83218e-05 | F104: -3.863301103e-05 | G104: -5.375720273e-05 | H104: -3.85176244e-05 | J104: -0.0006380254768 | K104: -0.007011460942 | L104: -0.001222268136 | M104: -0.01340804654 | N104: 1.389142392e-05
A105: =IF('DF raw data'!A110="","",'DF raw data'!A110) -> -278.5 | B105: =IF('DF raw data'!B110="","",'DF raw data'!B110) -> -3.01636e-05 | C105: =IF('DF raw data'!C110="","",'DF raw data'!C110) -> -4.9246e-05 | D105: =IF('DF raw data'!D110="","",'DF raw data'!D110) -> -4.03154e-05 | F105: -3.0317736e-05 | G105: -4.949764706e-05 | H105: -4.052141169e-05 | J105: -0.0006531843448 | K105: -0.007338053114 | L105: -0.00124701696 | M105: -0.01403155502 | N105: 1.488227447e-05
A106: =IF('DF raw data'!A111="","",'DF raw data'!A111) -> -278 | B106: =IF('DF raw data'!B111="","",'DF raw data'!B111) -> -4.1576e-05 | C106: =IF('DF raw data'!C111="","",'DF raw data'!C111) -> -4.90788e-05 | D106: =IF('DF raw data'!D111="","",'DF raw data'!D111) -> -4.2412e-05 | F106: -4.178845336e-05 | G106: -4.932959267e-05 | H106: -4.262872532e-05 | J106: -0.0006740785715 | K106: -0.0076750924 | L106: -0.001271681756 | M106: -0.01466739589 | N106: 1.591805267e-05
A107: =IF('DF raw data'!A112="","",'DF raw data'!A112) -> -277.5 | B107: =IF('DF raw data'!B112="","",'DF raw data'!B112) -> -2.53539e-05 | C107: =IF('DF raw data'!C112="","",'DF raw data'!C112) -> -5.0144e-05 | D107: =IF('DF raw data'!D112="","",'DF raw data'!D112) -> -4.11801e-05 | F107: -2.548345843e-05 | G107: -5.040023584e-05 | H107: -4.139053031e-05 | J107: -0.0006868203007 | K107: -0.00801850255 | L107: -0.001296881874 | M107: -0.01531583683 | N107: 1.699486503e-05
A108: =IF('DF raw data'!A113="","",'DF raw data'!A113) -> -277 | B108: =IF('DF raw data'!B113="","",'DF raw data'!B113) -> -1.02171e-05 | C108: =IF('DF raw data'!C113="","",'DF raw data'!C113) -> -5.5485e-05 | D108: =IF('DF raw data'!D113="","",'DF raw data'!D113) -> -4.80457e-05 | F108: -1.026930938e-05 | G108: -5.576852835e-05 | H108: -4.829121353e-05 | J108: -0.0006919549554 | K108: -0.008364480028 | L108: -0.001324766138 | M108: -0.0159782199 | N108: 1.811176852e-05
A109: =IF('DF raw data'!A114="","",'DF raw data'!A114) -> -276.5 | B109: =IF('DF raw data'!B114="","",'DF raw data'!B114) -> -3.42675e-05 | C109: =IF('DF raw data'!C114="","",'DF raw data'!C114) -> -5.33767e-05 | D109: =IF('DF raw data'!D114="","",'DF raw data'!D114) -> -4.03132e-05 | F109: -3.444260692e-05 | G109: -5.364945494e-05 | H109: -4.051920045e-05 | J109: -0.0007091762588 | K109: -0.008719068157 | L109: -0.001351590866 | M109: -0.01665401533 | N109: 1.927663294e-05
A110: =IF('DF raw data'!A115="","",'DF raw data'!A115) -> -276 | B110: =IF('DF raw data'!B115="","",'DF raw data'!B115) -> -2.8301e-05 | C110: =IF('DF raw data'!C115="","",'DF raw data'!C115) -> -4.97654e-05 | D110: =IF('DF raw data'!D115="","",'DF raw data'!D115) -> -4.53851e-05 | F110: -2.844561811e-05 | G110: -5.001970119e-05 | H110: -4.561701786e-05 | J110: -0.0007233990679 | K110: -0.009080767691 | L110: -0.001376600716 | M110: -0.01734231569 | N110: 2.048580081e-05
A111: =IF('DF raw data'!A116="","",'DF raw data'!A116) -> -275.5 | B111: =IF('DF raw data'!B116="","",'DF raw data'!B116) -> -2.90137e-05 | C111: =IF('DF raw data'!C116="","",'DF raw data'!C116) -> -5.17156e-05 | D111: =IF('DF raw data'!D116="","",'DF raw data'!D116) -> -3.37115e-05 | F111: -2.916196001e-05 | G111: -5.197986672e-05 | H111: -3.388376576e-05 | J111: -0.0007379800479 | K111: -0.009449757715 | L111: -0.00140259065 | M111: -0.01804361102 | N111: 2.174173835e-05
A112: =IF('DF raw data'!A117="","",'DF raw data'!A117) -> -275 | B112: =IF('DF raw data'!B117="","",'DF raw data'!B117) -> -3.46514e-05 | C112: =IF('DF raw data'!C117="","",'DF raw data'!C117) -> -6.50748e-05 | D112: =IF('DF raw data'!D117="","",'DF raw data'!D117) -> -4.15984e-05 | F112: -3.482846865e-05 | G112: -6.540733223e-05 | H112: -4.181096782e-05 | J112: -0.0007553942822 | K112: -0.009827454856 | L112: -0.001435294316 | M112: -0.01876125817 | N112: 2.30570835e-05
A113: =IF('DF raw data'!A118="","",'DF raw data'!A118) -> -274.5 | B113: =IF('DF raw data'!B118="","",'DF raw data'!B118) -> -2.95244e-05 | C113: =IF('DF raw data'!C118="","",'DF raw data'!C118) -> -6.14134e-05 | D113: =IF('DF raw data'!D118="","",'DF raw data'!D118) -> -3.71857e-05 | F113: -2.967526968e-05 | G113: -6.172722247e-05 | H113: -3.737571893e-05 | J113: -0.000770231917 | K113: -0.01021257081 | L113: -0.001466157927 | M113: -0.01949433714 | N113: 2.442852164e-05
A114: =IF('DF raw data'!A119="","",'DF raw data'!A119) -> -274 | B114: =IF('DF raw data'!B119="","",'DF raw data'!B119) -> -2.88753e-05 | C114: =IF('DF raw data'!C119="","",'DF raw data'!C119) -> -6.4648e-05 | D114: =IF('DF raw data'!D119="","",'DF raw data'!D119) -> -4.93483e-05 | F114: -2.902285278e-05 | G114: -6.497835128e-05 | H114: -4.960046981e-05 | J114: -0.0007847433434 | K114: -0.01060494249 | L114: -0.001498647103 | M114: -0.02024366069 | N114: 2.585940426e-05
A115: =IF('DF raw data'!A120="","",'DF raw data'!A120) -> -273.5 | B115: =IF('DF raw data'!B120="","",'DF raw data'!B120) -> -2.5105e-05 | C115: =IF('DF raw data'!C120="","",'DF raw data'!C120) -> -6.55323e-05 | D115: =IF('DF raw data'!D120="","",'DF raw data'!D120) -> -2.95534e-05 | F115: -2.523328655e-05 | G115: -6.586717005e-05 | H115: -2.970441787e-05 | J115: -0.0007973599867 | K115: -0.01100362248 | L115: -0.001531580688 | M115: -0.02100945103 | N115: 2.735016544e-05
A116: =IF('DF raw data'!A121="","",'DF raw data'!A121) -> -273 | B116: =IF('DF raw data'!B121="","",'DF raw data'!B121) -> -2.56783e-05 | C116: =IF('DF raw data'!C121="","",'DF raw data'!C121) -> -5.88152e-05 | D116: =IF('DF raw data'!D121="","",'DF raw data'!D121) -> -3.55747e-05 | F116: -2.580951611e-05 | G116: -5.911574567e-05 | H116: -3.575648672e-05 | J116: -0.0008102647448 | K116: -0.01140875485 | L116: -0.001561138561 | M116: -0.02179002031 | N116: 2.889700672e-05
A117: =IF('DF raw data'!A122="","",'DF raw data'!A122) -> -272.5 | B117: =IF('DF raw data'!B122="","",'DF raw data'!B122) -> -2.52254e-05 | C117: =IF('DF raw data'!C122="","",'DF raw data'!C122) -> -5.80608e-05 | D117: =IF('DF raw data'!D122="","",'DF raw data'!D122) -> -4.1605e-05 | F117: -2.535430179e-05 | G117: -5.835749069e-05 | H117: -4.181760155e-05 | J117: -0.0008229418957 | K117: -0.0118202258 | L117: -0.001590317306 | M117: -0.02258517897 | N117: 3.050017797e-05
A118: =IF('DF raw data'!A123="","",'DF raw data'!A123) -> -272 | B118: =IF('DF raw data'!B123="","",'DF raw data'!B123) -> -3.12529e-05 | C118: =IF('DF raw data'!C123="","",'DF raw data'!C123) -> -5.20652e-05 | D118: =IF('DF raw data'!D123="","",'DF raw data'!D123) -> -4.15541e-05 | F118: -3.141260232e-05 | G118: -5.233125317e-05 | H118: -4.176644145e-05 | J118: -0.0008386481968 | K118: -0.0122395499 | L118: -0.001616482933 | M118: -0.02339342043 | N118: 3.21583519e-05
A119: =IF('DF raw data'!A124="","",'DF raw data'!A124) -> -271.5 | B119: =IF('DF raw data'!B124="","",'DF raw data'!B124) -> -2.07405e-05 | C119: =IF('DF raw data'!C124="","",'DF raw data'!C124) -> -4.80952e-05 | D119: =IF('DF raw data'!D124="","",'DF raw data'!D124) -> -3.63167e-05 | F119: -2.084648395e-05 | G119: -4.834096647e-05 | H119: -3.650227834e-05 | J119: -0.0008490714388 | K119: -0.01266408562 | L119: -0.001640653416 | M119: -0.02421374714 | N119: 3.386468487e-05
A120: =IF('DF raw data'!A125="","",'DF raw data'!A125) -> -271 | B120: =IF('DF raw data'!B125="","",'DF raw data'!B125) -> -3.0677e-05 | C120: =IF('DF raw data'!C125="","",'DF raw data'!C125) -> -5.15748e-05 | D120: =IF('DF raw data'!D125="","",'DF raw data'!D125) -> -3.95675e-05 | F120: -3.083375947e-05 | G120: -5.183834723e-05 | H120: -3.976968992e-05 | J120: -0.0008644883185 | K120: -0.01309632978 | L120: -0.001666572589 | M120: -0.02504703344 | N120: 3.5627087e-05
A121: =IF('DF raw data'!A126="","",'DF raw data'!A126) -> -270.5 | B121: =IF('DF raw data'!B126="","",'DF raw data'!B126) -> -2.86887e-05 | C121: =IF('DF raw data'!C126="","",'DF raw data'!C126) -> -6.48092e-05 | D121: =IF('DF raw data'!D126="","",'DF raw data'!D126) -> -4.08026e-05 | F121: -2.883529926e-05 | G121: -6.514037501e-05 | H121: -4.101110129e-05 | J121: -0.0008789059682 | K121: -0.01353578276 | L121: -0.001699142777 | M121: -0.02589660482 | N121: 3.745686794e-05
A122: =IF('DF raw data'!A127="","",'DF raw data'!A127) -> -270 | B122: =IF('DF raw data'!B127="","",'DF raw data'!B127) -> -2.84952e-05 | C122: =IF('DF raw data'!C127="","",'DF raw data'!C127) -> -6.29917e-05 | D122: =IF('DF raw data'!D127="","",'DF raw data'!D127) -> -4.22834e-05 | F122: -2.864081047e-05 | G122: -6.331358759e-05 | H122: -4.249946817e-05 | J122: -0.0008932263734 | K122: -0.01398239595 | L122: -0.001730799571 | M122: -0.02676200461 | N122: 3.935362819e-05
A123: =IF('DF raw data'!A128="","",'DF raw data'!A128) -> -269.5 | B123: =IF('DF raw data'!B128="","",'DF raw data'!B128) -> -3.60628e-05 | C123: =IF('DF raw data'!C128="","",'DF raw data'!C128) -> -5.79391e-05 | D123: =IF('DF raw data'!D128="","",'DF raw data'!D128) -> -4.03187e-05 | F123: -3.624708091e-05 | G123: -5.82351688e-05 | H123: -4.052472856e-05 | J123: -0.0009113499139 | K123: -0.0144380709 | L123: -0.001759917155 | M123: -0.02764196319 | N123: 4.131756172e-05
A124: =IF('DF raw data'!A129="","",'DF raw data'!A129) -> -269 | B124: =IF('DF raw data'!B129="","",'DF raw data'!B129) -> -3.24154e-05 | C124: =IF('DF raw data'!C129="","",'DF raw data'!C129) -> -5.13409e-05 | D124: =IF('DF raw data'!D129="","",'DF raw data'!D129) -> -2.86795e-05 | F124: -3.258104269e-05 | G124: -5.1603252e-05 | H124: -2.882605224e-05 | J124: -0.0009276404352 | K124: -0.01490189112 | L124: -0.001785718781 | M124: -0.02853482258 | N124: 4.334221589e-05
A125: =IF('DF raw data'!A130="","",'DF raw data'!A130) -> -268.5 | B125: =IF('DF raw data'!B130="","",'DF raw data'!B130) -> -3.02271e-05 | C125: =IF('DF raw data'!C130="","",'DF raw data'!C130) -> -4.91632e-05 | D125: =IF('DF raw data'!D130="","",'DF raw data'!D130) -> -4.14224e-05 | F125: -3.038156048e-05 | G125: -4.941442395e-05 | H125: -4.163406846e-05 | J125: -0.0009428312154 | K125: -0.01537330673 | L125: -0.001810425993 | M125: -0.02944003557 | N125: 4.542550238e-05
A126: =IF('DF raw data'!A131="","",'DF raw data'!A131) -> -268 | B126: =IF('DF raw data'!B131="","",'DF raw data'!B131) -> -3.58719e-05 | C126: =IF('DF raw data'!C131="","",'DF raw data'!C131) -> -5.21656e-05 | D126: =IF('DF raw data'!D131="","",'DF raw data'!D131) -> -3.82451e-05 | F126: -3.605520541e-05 | G126: -5.243216622e-05 | H126: -3.844053246e-05 | J126: -0.0009608588181 | K126: -0.01585373614 | L126: -0.001836642076 | M126: -0.03035835661 | N126: 4.757375427e-05
A127: =IF('DF raw data'!A132="","",'DF raw data'!A132) -> -267.5 | B127: =IF('DF raw data'!B132="","",'DF raw data'!B132) -> -2.89464e-05 | C127: =IF('DF raw data'!C132="","",'DF raw data'!C132) -> -5.44694e-05 | D127: =IF('DF raw data'!D132="","",'DF raw data'!D132) -> -3.88603e-05 | F127: -2.90943161e-05 | G127: -5.474773863e-05 | H127: -3.905887613e-05 | J127: -0.0009754059762 | K127: -0.01634143913 | L127: -0.001864015946 | M127: -0.03129036458 | N127: 4.97867404e-05
A128: =IF('DF raw data'!A133="","",'DF raw data'!A133) -> -267 | B128: =IF('DF raw data'!B133="","",'DF raw data'!B133) -> -2.30449e-05 | C128: =IF('DF raw data'!C133="","",'DF raw data'!C133) -> -5.6451e-05 | D128: =IF('DF raw data'!D133="","",'DF raw data'!D133) -> -4.23867e-05 | F128: =(1-$G$1*($B$49-$G$2))*B128 -> -2.316265944e-05 | G128: -5.673946461e-05 | H128: -4.260329604e-05 | J128: =F128*$G$3+J127 -> -0.0009869873059 | K128: =J128*$G$3+K127 -> -0.01683493278 | L128: =G128*$G$3+L127 -> -0.001892385678 | M128: =L128*$G$3+M127 -> -0.03223655742 | N128: =(J128^2+L128^2)*$G$3+N127 -> 5.206437415e-05
A129: =IF('DF raw data'!A134="","",'DF raw data'!A134) -> -266.5 | B129: =IF('DF raw data'!B134="","",'DF raw data'!B134) -> -2.81151e-05 | C129: =IF('DF raw data'!C134="","",'DF raw data'!C134) -> -6.10943e-05 | D129: =IF('DF raw data'!D134="","",'DF raw data'!D134) -> -3.51268e-05 | F129: -2.825876816e-05 | G129: -6.140649187e-05 | H129: -3.530629795e-05 | J129: -0.00100111669 | K129: -0.01733549113 | L129: -0.001923088924 | M129: -0.03319810189 | N129: 5.441462697e-05
A130: =IF('DF raw data'!A135="","",'DF raw data'!A135) -> -266 | B130: =IF('DF raw data'!B135="","",'DF raw data'!B135) -> -2.72185e-05 | C130: =IF('DF raw data'!C135="","",'DF raw data'!C135) -> -6.27579e-05 | D130: =IF('DF raw data'!D135="","",'DF raw data'!D135) -> -3.34768e-05 | F130: -2.735758653e-05 | G130: -6.307859287e-05 | H130: -3.364786645e-05 | J130: -0.001014795483 | K130: -0.01784288887 | L130: -0.00195462822 | M130: -0.034175416 | N130: 5.683981765e-05
A131: =IF('DF raw data'!A136="","",'DF raw data'!A136) -> -265.5 | B131: =IF('DF raw data'!B136="","",'DF raw data'!B136) -> -1.86848e-05 | C131: =IF('DF raw data'!C136="","",'DF raw data'!C136) -> -5.83606e-05 | D131: =IF('DF raw data'!D136="","",'DF raw data'!D136) -> -4.23493e-05 | F131: -1.878027933e-05 | G131: -5.865882267e-05 | H131: -4.256570492e-05 | J131: -0.001024185623 | K131: -0.01835498168 | L131: -0.001983957632 | M131: -0.03516739481 | N131: 5.933233968e-05
A132: =IF('DF raw data'!A137="","",'DF raw data'!A137) -> -265 | B132: =IF('DF raw data'!B137="","",'DF raw data'!B137) -> -3.10628e-05 | C132: =IF('DF raw data'!C137="","",'DF raw data'!C137) -> -5.82855e-05 | D132: =IF('DF raw data'!D137="","",'DF raw data'!D137) -> -3.83591e-05 | F132: -3.122153091e-05 | G132: -5.858333891e-05 | H132: -3.8555115e-05 | J132: -0.001039796388 | K132: -0.01887487987 | L132: -0.002013249301 | M132: -0.03617401946 | N132: 6.189951432e-05
A133: =IF('DF raw data'!A138="","",'DF raw data'!A138) -> -264.5 | B133: =IF('DF raw data'!B138="","",'DF raw data'!B138) -> -3.49748e-05 | C133: =IF('DF raw data'!C138="","",'DF raw data'!C138) -> -5.98397e-05 | D133: =IF('DF raw data'!D138="","",'DF raw data'!D138) -> -3.70109e-05 | F133: -3.515352123e-05 | G133: -6.014548087e-05 | H133: -3.72000257e-05 | J133: -0.001057373149 | K133: -0.01940356645 | L133: -0.002043322041 | M133: -0.03719568048 | N133: 6.454611579e-05
A134: =IF('DF raw data'!A139="","",'DF raw data'!A139) -> -264 | B134: =IF('DF raw data'!B139="","",'DF raw data'!B139) -> -3.6196e-05 | C134: =IF('DF raw data'!C139="","",'DF raw data'!C139) -> -5.86458e-05 | D134: =IF('DF raw data'!D139="","",'DF raw data'!D139) -> -3.27985e-05 | F134: -3.638096156e-05 | G134: -5.894548004e-05 | H134: -3.296610034e-05 | J134: -0.00107556363 | K134: -0.01994134826 | L134: -0.002072794781 | M134: -0.03823207787 | N134: 6.727277346e-05
A135: =IF('DF raw data'!A140="","",'DF raw data'!A140) -> -263.5 | B135: =IF('DF raw data'!B140="","",'DF raw data'!B140) -> -2.72197e-05 | C135: =IF('DF raw data'!C140="","",'DF raw data'!C140) -> -6.40585e-05 | D135: =IF('DF raw data'!D140="","",'DF raw data'!D140) -> -3.16923e-05 | F135: -2.735879267e-05 | G135: -6.438583893e-05 | H135: -3.185424765e-05 | J135: -0.001089243026 | K135: -0.02048596978 | L135: -0.002104987701 | M135: -0.03928457172 | N135: 7.008148525e-05
A136: =IF('DF raw data'!A141="","",'DF raw data'!A141) -> -263 | B136: =IF('DF raw data'!B141="","",'DF raw data'!B141) -> -2.6314e-05 | C136: =IF('DF raw data'!C141="","",'DF raw data'!C141) -> -6.05707e-05 | D136: =IF('DF raw data'!D141="","",'DF raw data'!D141) -> -4.40169e-05 | F136: -2.644846454e-05 | G136: -6.088021628e-05 | H136: -4.424182636e-05 | J136: -0.001102467258 | K136: -0.0210372034 | L136: -0.002135427809 | M136: -0.04035228563 | N136: 7.296922824e-05
A137: =IF('DF raw data'!A142="","",'DF raw data'!A142) -> -262.5 | B137: =IF('DF raw data'!B142="","",'DF raw data'!B142) -> -2.18946e-05 | C137: =IF('DF raw data'!C142="","",'DF raw data'!C142) -> -5.14644e-05 | D137: =IF('DF raw data'!D142="","",'DF raw data'!D142) -> -3.6476e-05 | F137: -2.200648141e-05 | G137: -5.172738308e-05 | H137: -3.666239236e-05 | J137: -0.001113470499 | K137: -0.02159393865 | L137: -0.002161291501 | M137: -0.04143293138 | N137: 7.5924727e-05
A138: =IF('DF raw data'!A143="","",'DF raw data'!A143) -> -262 | B138: =IF('DF raw data'!B143="","",'DF raw data'!B143) -> -2.67706e-05 | C138: =IF('DF raw data'!C143="","",'DF raw data'!C143) -> -4.84178e-05 | D138: =IF('DF raw data'!D143="","",'DF raw data'!D143) -> -3.23379e-05 | F138: -2.690739777e-05 | G138: -4.866521496e-05 | H138: -3.250314667e-05 | J138: -0.001126924198 | K138: -0.02215740075 | L138: -0.002185624108 | M138: -0.04252574343 | N138: 7.894818244e-05
A139: =IF('DF raw data'!A144="","",'DF raw data'!A144) -> -261.5 | B139: =IF('DF raw data'!B144="","",'DF raw data'!B144) -> -3.57454e-05 | C139: =IF('DF raw data'!C144="","",'DF raw data'!C144) -> -5.71711e-05 | D139: =IF('DF raw data'!D144="","",'DF raw data'!D144) -> -3.56814e-05 | F139: -3.592805899e-05 | G139: -5.746324432e-05 | H139: -3.586373195e-05 | J139: -0.001144888227 | K139: -0.02272984487 | L139: -0.00221435573 | M139: -0.0436329213 | N139: 8.205525262e-05
A140: =IF('DF raw data'!A145="","",'DF raw data'!A145) -> -261 | B140: =IF('DF raw data'!B145="","",'DF raw data'!B145) -> -2.22122e-05 | C140: =IF('DF raw data'!C145="","",'DF raw data'!C145) -> -5.8758e-05 | D140: =IF('DF raw data'!D145="","",'DF raw data'!D145) -> -4.13152e-05 | F140: -2.232570434e-05 | G140: -5.905825338e-05 | H140: -4.152632067e-05 | J140: -0.00115605108 | K140: -0.02330787041 | L140: -0.002243884857 | M140: -0.04475486373 | N140: 8.524098929e-05
A141: =IF('DF raw data'!A146="","",'DF raw data'!A146) -> -260.5 | B141: =IF('DF raw data'!B146="","",'DF raw data'!B146) -> -2.72789e-05 | C141: =IF('DF raw data'!C146="","",'DF raw data'!C146) -> -5.94362e-05 | D141: =IF('DF raw data'!D146="","",'DF raw data'!D146) -> -3.94647e-05 | F141: -2.741829518e-05 | G141: -5.973991898e-05 | H141: -3.966636462e-05 | J141: -0.001169760227 | K141: -0.02389275052 | L141: -0.002273754816 | M141: -0.04589174113 | N141: 8.851013927e-05
A142: =IF('DF raw data'!A147="","",'DF raw data'!A147) -> -260 | B142: =IF('DF raw data'!B147="","",'DF raw data'!B147) -> -2.89463e-05 | C142: =IF('DF raw data'!C147="","",'DF raw data'!C147) -> -6.06111e-05 | D142: =IF('DF raw data'!D147="","",'DF raw data'!D147) -> -3.90284e-05 | F142: -2.909421559e-05 | G142: -6.092082272e-05 | H142: -3.922783512e-05 | J142: -0.001184307335 | K142: -0.02448490419 | L142: -0.002304215228 | M142: -0.04704384875 | N142: 9.186613511e-05
A143: =IF('DF raw data'!A148="","",'DF raw data'!A148) -> -259.5 | B143: =IF('DF raw data'!B148="","",'DF raw data'!B148) -> -1.51519e-05 | C143: =IF('DF raw data'!C148="","",'DF raw data'!C148) -> -6.01661e-05 | D143: =IF('DF raw data'!D148="","",'DF raw data'!D148) -> -5.18681e-05 | F143: -1.522932621e-05 | G143: -6.047354877e-05 | H143: -5.213314599e-05 | J143: -0.001191921998 | K143: -0.02508086519 | L143: -0.002334452002 | M143: -0.04821107475 | N143: 9.530130721e-05
A144: =IF('DF raw data'!A149="","",'DF raw data'!A149) -> -259 | B144: =IF('DF raw data'!B149="","",'DF raw data'!B149) -> -2.87497e-05 | C144: =IF('DF raw data'!C149="","",'DF raw data'!C149) -> -5.24931e-05 | D144: =IF('DF raw data'!D149="","",'DF raw data'!D149) -> -4.53579e-05 | F144: -2.889661097e-05 | G144: -5.276133974e-05 | H144: -4.558967887e-05 | J144: -0.001206370304 | K144: -0.02568405034 | L144: -0.002360832672 | M144: -0.04939149109 | N144: 9.881573732e-05
A145: =IF('DF raw data'!A150="","",'DF raw data'!A150) -> -258.5 | B145: =IF('DF raw data'!B150="","",'DF raw data'!B150) -> -3.60011e-05 | C145: =IF('DF raw data'!C150="","",'DF raw data'!C150) -> -5.51756e-05 | D145: =IF('DF raw data'!D150="","",'DF raw data'!D150) -> -3.69201e-05 | F145: -3.618506562e-05 | G145: -5.545754732e-05 | H145: -3.710876171e-05 | J145: -0.001224462836 | K145: -0.02629628176 | L145: -0.002388561446 | M145: -0.05058577181 | N145: 0.0001024180048
A146: =IF('DF raw data'!A151="","",'DF raw data'!A151) -> -258 | B146: =IF('DF raw data'!B151="","",'DF raw data'!B151) -> -3.21486e-05 | C146: =IF('DF raw data'!C151="","",'DF raw data'!C151) -> -6.61186e-05 | D146: =IF('DF raw data'!D151="","",'DF raw data'!D151) -> -4.47709e-05 | F146: -3.231287935e-05 | G146: -6.645646605e-05 | H146: -4.49996793e-05 | J146: -0.001240619276 | K146: -0.02691659139 | L146: -0.002421789679 | M146: -0.05179666665 | N146: 0.0001061201055
A147: =IF('DF raw data'!A152="","",'DF raw data'!A152) -> -257.5 | B147: =IF('DF raw data'!B152="","",'DF raw data'!B152) -> -4.27243e-05 | C147: =IF('DF raw data'!C152="","",'DF raw data'!C152) -> -7.21742e-05 | D147: =IF('DF raw data'!D152="","",'DF raw data'!D152) -> -5.14173e-05 | F147: -4.294262117e-05 | G147: -7.254301016e-05 | H147: -5.16800424e-05 | J147: -0.001262090587 | K147: -0.02754763669 | L147: -0.002458061184 | M147: -0.05302569724 | N147: 0.0001099375743
A148: =IF('DF raw data'!A153="","",'DF raw data'!A153) -> -257 | B148: =IF('DF raw data'!B153="","",'DF raw data'!B153) -> -3.75374e-05 | C148: =IF('DF raw data'!C153="","",'DF raw data'!C153) -> -7.27817e-05 | D148: =IF('DF raw data'!D153="","",'DF raw data'!D153) -> -4.08204e-05 | F148: -3.772921611e-05 | G148: -7.315361449e-05 | H148: -4.102899224e-05 | J148: -0.001280955195 | K148: -0.02818811429 | L148: -0.002494637991 | M148: -0.05427301624 | N148: 0.0001138696067
A149: =IF('DF raw data'!A154="","",'DF raw data'!A154) -> -256.5 | B149: =IF('DF raw data'!B154="","",'DF raw data'!B154) -> -3.78019e-05 | C149: =IF('DF raw data'!C154="","",'DF raw data'!C154) -> -6.42037e-05 | D149: =IF('DF raw data'!D154="","",'DF raw data'!D154) -> -2.85062e-05 | F149: -3.799506771e-05 | G149: -6.453178091e-05 | H149: -2.865186668e-05 | J149: -0.001299952729 | K149: -0.02883809065 | L149: -0.002526903882 | M149: -0.05553646818 | N149: 0.0001179071669
A150: =IF('DF raw data'!A155="","",'DF raw data'!A155) -> -256 | B150: =IF('DF raw data'!B155="","",'DF raw data'!B155) -> -2.77944e-05 | C150: =IF('DF raw data'!C155="","",'DF raw data'!C155) -> -6.53696e-05 | D150: =IF('DF raw data'!D155="","",'DF raw data'!D155) -> -3.56441e-05 | F150: -2.793642938e-05 | G150: -6.570363866e-05 | H150: -3.582624135e-05 | J150: -0.001313920943 | K150: -0.02949505112 | L150: -0.002559755701 | M150: -0.05681634603 | N150: 0.0001220465356
A151: =IF('DF raw data'!A156="","",'DF raw data'!A156) -> -255.5 | B151: =IF('DF raw data'!B156="","",'DF raw data'!B156) -> -3.34922e-05 | C151: =IF('DF raw data'!C156="","",'DF raw data'!C156) -> -6.39676e-05 | D151: =IF('DF raw data'!D156="","",'DF raw data'!D156) -> -4.93935e-05 | F151: -3.366334514e-05 | G151: -6.429447444e-05 | H151: -4.964590078e-05 | J151: -0.001330752616 | K151: -0.03016042743 | L151: -0.002591902938 | M151: -0.0581122975 | N151: 0.0001262909673
A152: =IF('DF raw data'!A157="","",'DF raw data'!A157) -> -255 | B152: =IF('DF raw data'!B157="","",'DF raw data'!B157) -> -3.45293e-05 | C152: =IF('DF raw data'!C157="","",'DF raw data'!C157) -> -5.92018e-05 | D152: =IF('DF raw data'!D157="","",'DF raw data'!D157) -> -3.21052e-05 | F152: -3.470574472e-05 | G152: -5.95043212e-05 | H152: -3.226925757e-05 | J152: -0.001348105488 | K152: -0.03083448017 | L152: -0.002621655099 | M152: -0.05942312505 | N152: 0.0001306361992
A153: =IF('DF raw data'!A158="","",'DF raw data'!A158) -> -254.5 | B153: =IF('DF raw data'!B158="","",'DF raw data'!B158) -> -3.7863e-05 | C153: =IF('DF raw data'!C158="","",'DF raw data'!C158) -> -6.13161e-05 | D153: =IF('DF raw data'!D158="","",'DF raw data'!D158) -> -3.29227e-05 | F153: -3.805647993e-05 | G153: -6.162942527e-05 | H153: -3.3090935e-05 | J153: -0.001367133728 | K153: -0.03151804704 | L153: -0.002652469811 | M153: -0.06074935995 | N153: 0.0001350885246
A154: =IF('DF raw data'!A159="","",'DF raw data'!A159) -> -254 | B154: =IF('DF raw data'!B159="","",'DF raw data'!B159) -> -3.42079e-05 | C154: =IF('DF raw data'!C159="","",'DF raw data'!C159) -> -6.40069e-05 | D154: =IF('DF raw data'!D159="","",'DF raw data'!D159) -> -3.31147e-05 | F154: -3.438270237e-05 | G154: -6.433397526e-05 | H154: -3.328391612e-05 | J154: -0.001384325079 | K154: -0.03221020958 | L154: -0.002684636799 | M154: -0.06209167835 | N154: 0.0001396503399
A155: =IF('DF raw data'!A160="","",'DF raw data'!A160) -> -253.5 | B155: =IF('DF raw data'!B160="","",'DF raw data'!B160) -> -2.41367e-05 | C155: =IF('DF raw data'!C160="","",'DF raw data'!C160) -> -6.39698e-05 | D155: =IF('DF raw data'!D160="","",'DF raw data'!D160) -> -3.98319e-05 | F155: -2.426003854e-05 | G155: -6.429668568e-05 | H155: -4.003544101e-05 | J155: -0.001396455099 | K155: -0.03290843713 | L155: -0.002716785142 | M155: -0.06345007092 | N155: 0.0001443158441
A156: =IF('DF raw data'!A161="","",'DF raw data'!A161) -> -253 | B156: =IF('DF raw data'!B161="","",'DF raw data'!B161) -> -3.34348e-05 | C156: =IF('DF raw data'!C161="","",'DF raw data'!C161) -> -6.38889e-05 | D156: =IF('DF raw data'!D161="","",'DF raw data'!D161) -> -3.88006e-05 | F156: -3.360565183e-05 | G156: -6.421537228e-05 | H156: -3.899887107e-05 | J156: -0.001413257925 | K156: -0.03361506609 | L156: -0.002748892828 | M156: -0.06482451734 | N156: 0.000149092699
A157: =IF('DF raw data'!A162="","",'DF raw data'!A162) -> -252.5 | B157: =IF('DF raw data'!B162="","",'DF raw data'!B162) -> -3.16468e-05 | C157: =IF('DF raw data'!C162="","",'DF raw data'!C162) -> -6.3829e-05 | D157: =IF('DF raw data'!D162="","",'DF raw data'!D162) -> -2.74934e-05 | F157: -3.180851515e-05 | G157: -6.415516619e-05 | H157: -2.763389127e-05 | J157: -0.001429162182 | K157: -0.03432964718 | L157: -0.002780970411 | M157: -0.06621500254 | N157: 0.0001539808495
A158: =IF('DF raw data'!A163="","",'DF raw data'!A163) -> -252 | B158: =IF('DF raw data'!B163="","",'DF raw data'!B163) -> -2.86252e-05 | C158: =IF('DF raw data'!C163="","",'DF raw data'!C163) -> -6.38626e-05 | D158: =IF('DF raw data'!D163="","",'DF raw data'!D163) -> -3.9609e-05 | F158: -2.877147477e-05 | G158: -6.418893789e-05 | H158: -3.981140199e-05 | J158: -0.00144354792 | K158: -0.03505142114 | L158: -0.00281306488 | M158: -0.06762153498 | N158: 0.0001589794318
A159: =IF('DF raw data'!A164="","",'DF raw data'!A164) -> -251.5 | B159: =IF('DF raw data'!B164="","",'DF raw data'!B164) -> -4.34348e-05 | C159: =IF('DF raw data'!C164="","",'DF raw data'!C164) -> -6.3109e-05 | D159: =IF('DF raw data'!D164="","",'DF raw data'!D164) -> -4.32983e-05 | F159: -4.365675183e-05 | G159: -6.343148699e-05 | H159: -4.351955431e-05 | J159: -0.001465376295 | K159: -0.03578410929 | L159: -0.002844780623 | M159: -0.06904392529 | N159: 0.000164099484
A160: =IF('DF raw data'!A165="","",'DF raw data'!A165) -> -251 | B160: =IF('DF raw data'!B165="","",'DF raw data'!B165) -> -4.10664e-05 | C160: =IF('DF raw data'!C165="","",'DF raw data'!C165) -> -6.42769e-05 | D160: =IF('DF raw data'!D165="","",'DF raw data'!D165) -> -3.72528e-05 | F160: -4.12762493e-05 | G160: -6.460535496e-05 | H160: -3.744316181e-05 | J160: -0.00148601442 | K160: -0.0365271165 | L160: -0.002877083301 | M160: -0.07048246694 | N160: 0.0001693424076
A161: =IF('DF raw data'!A166="","",'DF raw data'!A166) -> -250.5 | B161: =IF('DF raw data'!B166="","",'DF raw data'!B166) -> -3.34361e-05 | C161: =IF('DF raw data'!C166="","",'DF raw data'!C166) -> -6.95003e-05 | D161: =IF('DF raw data'!D166="","",'DF raw data'!D166) -> -3.67751e-05 | F161: -3.360695847e-05 | G161: -6.985544653e-05 | H161: -3.696302076e-05 | J161: -0.001502817899 | K161: -0.03727852545 | L161: -0.002912011024 | M161: -0.07193847245 | N161: 0.0001747115425
A162: =IF('DF raw data'!A167="","",'DF raw data'!A167) -> -250 | B162: =IF('DF raw data'!B167="","",'DF raw data'!B167) -> -1.80446e-05 | C162: =IF('DF raw data'!C167="","",'DF raw data'!C167) -> -6.69301e-05 | D162: =IF('DF raw data'!D167="","",'DF raw data'!D167) -> -4.08999e-05 | F162: -1.813680791e-05 | G162: -6.727211281e-05 | H162: -4.110889849e-05 | J162: -0.001511886303 | K162: -0.0380344686 | L162: -0.002945647081 | M162: -0.073411296 | N162: 0.000180192861
A163: =IF('DF raw data'!A168="","",'DF raw data'!A168) -> -249.5 | B163: =IF('DF raw data'!B168="","",'DF raw data'!B168) -> -1.8425e-05 | C163: =IF('DF raw data'!C168="","",'DF raw data'!C168) -> -5.98828e-05 | D163: =IF('DF raw data'!D168="","",'DF raw data'!D168) -> -4.75431e-05 | F163: -1.851915175e-05 | G163: -6.018880111e-05 | H163: -4.778604524e-05 | J163: -0.001521145879 | K163: -0.03879504154 | L163: -0.002975741481 | M163: -0.07489916674 | N163: 0.0001857773221
A164: =IF('DF raw data'!A169="","",'DF raw data'!A169) -> -249 | B164: =IF('DF raw data'!B169="","",'DF raw data'!B169) -> -2.71433e-05 | C164: =IF('DF raw data'!C169="","",'DF raw data'!C169) -> -6.37086e-05 | D164: =IF('DF raw data'!D169="","",'DF raw data'!D169) -> -5.09221e-05 | F164: -2.728200226e-05 | G164: -6.403415095e-05 | H164: -5.118231193e-05 | J164: -0.00153478688 | K164: -0.03956243498 | L164: -0.003007758557 | M164: -0.07640304601 | N164: 0.0001914784132
A165: =IF('DF raw data'!A170="","",'DF raw data'!A170) -> -248.5 | B165: =IF('DF raw data'!B170="","",'DF raw data'!B170) -> -3.68917e-05 | C165: =IF('DF raw data'!C170="","",'DF raw data'!C170) -> -6.16738e-05 | D165: =IF('DF raw data'!D170="","",'DF raw data'!D170) -> -4.78077e-05 | F165: -3.708021659e-05 | G165: -6.198895312e-05 | H165: -4.805199735e-05 | J165: -0.001553326989 | K165: -0.04033909847 | L165: -0.003038753033 | M165: -0.07792242253 | N165: 0.0001973018356
A166: =IF('DF raw data'!A171="","",'DF raw data'!A171) -> -248 | B166: =IF('DF raw data'!B171="","",'DF raw data'!B171) -> -3.57424e-05 | C166: =IF('DF raw data'!C171="","",'DF raw data'!C171) -> -6.34801e-05 | D166: =IF('DF raw data'!D171="","",'DF raw data'!D171) -> -4.03711e-05 | F166: -3.592504366e-05 | G166: -6.380448331e-05 | H166: -4.057739632e-05 | J166: -0.00157128951 | K166: -0.04112474323 | L166: -0.003070655275 | M166: -0.07945775017 | N166: 0.0002032507728
A167: =IF('DF raw data'!A172="","",'DF raw data'!A172) -> -247.5 | B167: =IF('DF raw data'!B172="","",'DF raw data'!B172) -> -2.90159e-05 | C167: =IF('DF raw data'!C172="","",'DF raw data'!C172) -> -6.21536e-05 | D167: =IF('DF raw data'!D172="","",'DF raw data'!D172) -> -3.04049e-05 | F167: -2.916417125e-05 | G167: -6.24712049e-05 | H167: -3.056026904e-05 | J167: -0.001585871596 | K167: -0.04191767903 | L167: -0.003101890877 | M167: -0.08100869561 | N167: 0.0002093191307
A168: =IF('DF raw data'!A173="","",'DF raw data'!A173) -> -247 | B168: =IF('DF raw data'!B173="","",'DF raw data'!B173) -> -3.82443e-05 | C168: =IF('DF raw data'!C173="","",'DF raw data'!C173) -> -6.23606e-05 | D168: =IF('DF raw data'!D173="","",'DF raw data'!D173) -> -3.81829e-05 | F168: -3.843972837e-05 | G168: -6.267926267e-05 | H168: -3.837801462e-05 | J168: -0.00160509146 | K168: -0.04272022476 | L168: -0.003133230509 | M168: -0.08257531086 | N168: 0.0002155158567
A169: =IF('DF raw data'!A174="","",'DF raw data'!A174) -> -246.5 | B169: =IF('DF raw data'!B174="","",'DF raw data'!B174) -> -3.09318e-05 | C169: =IF('DF raw data'!C174="","",'DF raw data'!C174) -> -5.73835e-05 | D169: =IF('DF raw data'!D174="","",'DF raw data'!D174) -> -4.22902e-05 | F169: -3.10898615e-05 | G169: -5.767672968e-05 | H169: -4.250630292e-05 | J169: -0.001620636391 | K169: -0.04353054295 | L169: -0.003162068873 | M169: -0.0841563453 | N169: 0.0002218284277
A170: =IF('DF raw data'!A175="","",'DF raw data'!A175) -> -246 | B170: =IF('DF raw data'!B175="","",'DF raw data'!B175) -> -4.18398e-05 | C170: =IF('DF raw data'!C175="","",'DF raw data'!C175) -> -6.00917e-05 | D170: =IF('DF raw data'!D175="","",'DF raw data'!D175) -> -3.11534e-05 | F170: -4.205360138e-05 | G170: -6.039876859e-05 | H170: -3.131259387e-05 | J170: -0.001641663192 | K170: -0.04435137455 | L170: -0.003192268258 | M170: -0.08575247943 | N170: 0.000228271245
A171: =IF('DF raw data'!A176="","",'DF raw data'!A176) -> -245.5 | B171: =IF('DF raw data'!B176="","",'DF raw data'!B176) -> -2.70856e-05 | C171: =IF('DF raw data'!C176="","",'DF raw data'!C176) -> -6.39869e-05 | D171: =IF('DF raw data'!D176="","",'DF raw data'!D176) -> -4.07595e-05 | F171: -2.722400742e-05 | G171: -6.431387306e-05 | H171: -4.096778104e-05 | J171: -0.001655275195 | K171: -0.04517901214 | L171: -0.003224425194 | M171: -0.08736469202 | N171: 0.0002348396719
A172: =IF('DF raw data'!A177="","",'DF raw data'!A177) -> -245 | B172: =IF('DF raw data'!B177="","",'DF raw data'!B177) -> -3.36285e-05 | C172: =IF('DF raw data'!C177="","",'DF raw data'!C177) -> -6.93588e-05 | D172: =IF('DF raw data'!D177="","",'DF raw data'!D177) -> -3.7059e-05 | F172: -3.380034163e-05 | G172: -6.971322347e-05 | H172: -3.724837149e-05 | J172: -0.001672175366 | K172: -0.04601509983 | L172: -0.003259281806 | M172: -0.08899433293 | N172: 0.0002415492161
A173: =IF('DF raw data'!A178="","",'DF raw data'!A178) -> -244.5 | B173: =IF('DF raw data'!B178="","",'DF raw data'!B178) -> -3.2596e-05 | C173: =IF('DF raw data'!C178="","",'DF raw data'!C178) -> -6.40049e-05 | D173: =IF('DF raw data'!D178="","",'DF raw data'!D178) -> -4.70775e-05 | F173: -3.276256556e-05 | G173: -6.433196504e-05 | H173: -4.731806602e-05 | J173: -0.001688556649 | K173: -0.04685937815 | L173: -0.003291447789 | M173: -0.09064005682 | N173: 0.0002483916421
A174: =IF('DF raw data'!A179="","",'DF raw data'!A179) -> -244 | B174: =IF('DF raw data'!B179="","",'DF raw data'!B179) -> -2.89411e-05 | C174: =IF('DF raw data'!C179="","",'DF raw data'!C179) -> -6.81323e-05 | D174: =IF('DF raw data'!D179="","",'DF raw data'!D179) -> -4.70786e-05 | F174: -2.908898902e-05 | G174: -6.848045605e-05 | H174: -4.731917165e-05 | J174: -0.001703101143 | K174: -0.04771092872 | L174: -0.003325688017 | M174: -0.09230290083 | N174: 0.0002553720193
A175: =IF('DF raw data'!A180="","",'DF raw data'!A180) -> -243.5 | B175: =IF('DF raw data'!B180="","",'DF raw data'!B180) -> -3.36882e-05 | C175: =IF('DF raw data'!C180="","",'DF raw data'!C180) -> -6.21486e-05 | D175: =IF('DF raw data'!D180="","",'DF raw data'!D180) -> -4.35955e-05 | F175: -3.38603467e-05 | G175: -6.246617935e-05 | H175: -4.3818273e-05 | J175: -0.001720031317 | K175: -0.04857094438 | L175: -0.003356921106 | M175: -0.09398136138 | N175: 0.0002624857328
A176: =IF('DF raw data'!A181="","",'DF raw data'!A181) -> -243 | B176: =IF('DF raw data'!B181="","",'DF raw data'!B181) -> -2.78566e-05 | C176: =IF('DF raw data'!C181="","",'DF raw data'!C181) -> -6.2001e-05 | D176: =IF('DF raw data'!D181="","",'DF raw data'!D181) -> -3.83362e-05 | F176: -2.799894723e-05 | G176: -6.231782511e-05 | H176: -3.853209798e-05 | J176: -0.00173403079 | K176: -0.04943795978 | L176: -0.003388080019 | M176: -0.09567540139 | N176: 0.0002697287073
A177: =IF('DF raw data'!A182="","",'DF raw data'!A182) -> -242.5 | B177: =IF('DF raw data'!B182="","",'DF raw data'!B182) -> -3.29285e-05 | C177: =IF('DF raw data'!C182="","",'DF raw data'!C182) -> -6.96282e-05 | D177: =IF('DF raw data'!D182="","",'DF raw data'!D182) -> -2.86675e-05 | F177: -3.309676464e-05 | G177: -6.99840001e-05 | H177: -2.881399092e-05 | J177: -0.001750579173 | K177: -0.05031324936 | L177: -0.003423072019 | M177: -0.0973869374 | N177: 0.000277119682
A178: =IF('DF raw data'!A183="","",'DF raw data'!A183) -> -242 | B178: =IF('DF raw data'!B183="","",'DF raw data'!B183) -> -2.2991e-05 | C178: =IF('DF raw data'!C183="","",'DF raw data'!C183) -> -7.26972e-05 | D178: =IF('DF raw data'!D183="","",'DF raw data'!D183) -> -2.69135e-05 | F178: -2.310848401e-05 | G178: -7.306868269e-05 | H178: -2.705102798e-05 | J178: -0.001762133415 | K178: -0.05119431607 | L178: -0.00345960636 | M178: -0.09911674058 | N178: 0.0002846566772
A179: =IF('DF raw data'!A184="","",'DF raw data'!A184) -> -241.5 | B179: =IF('DF raw data'!B184="","",'DF raw data'!B184) -> -2.61302e-05 | C179: =IF('DF raw data'!C184="","",'DF raw data'!C184) -> -6.88692e-05 | D179: =IF('DF raw data'!D184="","",'DF raw data'!D184) -> -3.06515e-05 | F179: -2.626372532e-05 | G179: -6.922112161e-05 | H179: -3.080812916e-05 | J179: -0.001775265277 | K179: -0.05208194871 | L179: -0.003494216921 | M179: -0.100863849 | N179: 0.0002923372365
A180: =IF('DF raw data'!A185="","",'DF raw data'!A185) -> -241 | B180: =IF('DF raw data'!B185="","",'DF raw data'!B185) -> -2.33038e-05 | C180: =IF('DF raw data'!C185="","",'DF raw data'!C185) -> -5.74929e-05 | D180: =IF('DF raw data'!D185="","",'DF raw data'!D185) -> -3.87214e-05 | F180: -2.342288242e-05 | G180: -5.778668872e-05 | H180: -3.891926635e-05 | J180: -0.001786976719 | K180: -0.05297543707 | L180: -0.003523110265 | M180: -0.1026254042 | N180: 0.0003001400324
A181: =IF('DF raw data'!A186="","",'DF raw data'!A186) -> -240.5 | B181: =IF('DF raw data'!B186="","",'DF raw data'!B186) -> -3.17702e-05 | C181: =IF('DF raw data'!C186="","",'DF raw data'!C186) -> -5.82822e-05 | D181: =IF('DF raw data'!D186="","",'DF raw data'!D186) -> -3.50024e-05 | F181: -3.193254572e-05 | G181: -5.858002204e-05 | H181: -3.518126226e-05 | J181: -0.001802942991 | K181: -0.05387690857 | L181: -0.003552400276 | M181: -0.1044016043 | N181: 0.000308075108
A182: =IF('DF raw data'!A187="","",'DF raw data'!A187) -> -240 | B182: =IF('DF raw data'!B187="","",'DF raw data'!B187) -> -2.65181e-05 | C182: =IF('DF raw data'!C187="","",'DF raw data'!C187) -> -6.59173e-05 | D182: =IF('DF raw data'!D187="","",'DF raw data'!D187) -> -2.5775e-05 | F182: -2.665360749e-05 | G182: -6.62541374e-05 | H182: -2.590671025e-05 | J182: -0.001816269795 | K182: -0.05478504346 | L182: -0.003585527345 | M182: -0.106194368 | N182: 0.0003161525291
A183: =IF('DF raw data'!A188="","",'DF raw data'!A188) -> -239.5 | B183: =IF('DF raw data'!B188="","",'DF raw data'!B188) -> -3.86917e-05 | C183: =IF('DF raw data'!C188="","",'DF raw data'!C188) -> -6.14903e-05 | D183: =IF('DF raw data'!D188="","",'DF raw data'!D188) -> -4.06344e-05 | F183: -3.888941459e-05 | G183: -6.180451543e-05 | H183: -4.084204178e-05 | J183: -0.001835714503 | K183: -0.05570290071 | L183: -0.003616429603 | M183: -0.1080025828 | N183: 0.0003243767345
A184: =IF('DF raw data'!A189="","",'DF raw data'!A189) -> -239 | B184: =IF('DF raw data'!B189="","",'DF raw data'!B189) -> -3.53603e-05 | C184: =IF('DF raw data'!C189="","",'DF raw data'!C189) -> -6.19189e-05 | D184: =IF('DF raw data'!D189="","",'DF raw data'!D189) -> -3.58983e-05 | F184: -3.554099113e-05 | G184: -6.223530558e-05 | H184: -3.608174031e-05 | J184: -0.001853484998 | K184: -0.05662964321 | L184: -0.003647547256 | M184: -0.1098263564 | N184: 0.0003327467384
A185: =IF('DF raw data'!A190="","",'DF raw data'!A190) -> -238.5 | B185: =IF('DF raw data'!B190="","",'DF raw data'!B190) -> -2.83718e-05 | C185: =IF('DF raw data'!C190="","",'DF raw data'!C190) -> -6.56614e-05 | D185: =IF('DF raw data'!D190="","",'DF raw data'!D190) -> -3.49644e-05 | F185: -2.85167799e-05 | G185: -6.599692975e-05 | H185: -3.514306808e-05 | J185: -0.001867743388 | K185: -0.05756351491 | L185: -0.00368054572 | M185: -0.1116666293 | N185: 0.0003412641794
A186: =IF('DF raw data'!A191="","",'DF raw data'!A191) -> -238 | B186: =IF('DF raw data'!B191="","",'DF raw data'!B191) -> -3.95932e-05 | C186: =IF('DF raw data'!C191="","",'DF raw data'!C191) -> -6.52143e-05 | D186: =IF('DF raw data'!D191="","",'DF raw data'!D191) -> -3.47146e-05 | F186: -3.979552125e-05 | G186: -6.554754507e-05 | H186: -3.489199161e-05 | J186: -0.001887641149 | K186: -0.05850733548 | L186: -0.003713319493 | M186: -0.113523289 | N186: 0.0003499401448
A187: =IF('DF raw data'!A192="","",'DF raw data'!A192) -> -237.5 | B187: =IF('DF raw data'!B192="","",'DF raw data'!B192) -> -2.09957e-05 | C187: =IF('DF raw data'!C192="","",'DF raw data'!C192) -> -7.08976e-05 | D187: =IF('DF raw data'!D192="","",'DF raw data'!D192) -> -3.83349e-05 | F187: -2.110298803e-05 | G187: -7.125988674e-05 | H187: -3.853079134e-05 | J187: -0.001898192643 | K187: -0.0594564318 | L187: -0.003748949436 | M187: -0.1153977637 | N187: 0.0003587690234
A188: =IF('DF raw data'!A193="","",'DF raw data'!A193) -> -237 | B188: =IF('DF raw data'!B193="","",'DF raw data'!B193) -> -4.74804e-05 | C188: =IF('DF raw data'!C193="","",'DF raw data'!C193) -> -7.15246e-05 | D188: =IF('DF raw data'!D193="","",'DF raw data'!D193) -> -3.41779e-05 | F188: -4.772302484e-05 | G188: -7.189009071e-05 | H188: -3.435254907e-05 | J188: -0.001922054155 | K188: -0.06041745888 | L188: -0.003784894482 | M188: -0.117290211 | N188: 0.0003677788826
A189: =IF('DF raw data'!A194="","",'DF raw data'!A194) -> -236.5 | B189: =IF('DF raw data'!B194="","",'DF raw data'!B194) -> -2.63181e-05 | C189: =IF('DF raw data'!C194="","",'DF raw data'!C194) -> -6.93026e-05 | D189: =IF('DF raw data'!D194="","",'DF raw data'!D194) -> -3.77472e-05 | F189: -2.645258549e-05 | G189: -6.965673629e-05 | H189: -3.794008819e-05 | J189: -0.001935280448 | K189: -0.0613850991 | L189: -0.00381972285 | M189: -0.1192000724 | N189: 0.0003769466792
A190: =IF('DF raw data'!A195="","",'DF raw data'!A195) -> -236 | B190: =IF('DF raw data'!B195="","",'DF raw data'!B195) -> -2.95282e-05 | C190: =IF('DF raw data'!C195="","",'DF raw data'!C195) -> -7.19741e-05 | D190: =IF('DF raw data'!D195="","",'DF raw data'!D195) -> -3.14774e-05 | F190: -2.96790891e-05 | G190: -7.234188765e-05 | H190: -3.163824951e-05 | J190: -0.001950119992 | K190: -0.0623601591 | L190: -0.003855893794 | M190: -0.1211280193 | N190: 0.0003862821216
A191: =IF('DF raw data'!A196="","",'DF raw data'!A196) -> -235.5 | B191: =IF('DF raw data'!B196="","",'DF raw data'!B196) -> -3.47782e-05 | C191: =IF('DF raw data'!C196="","",'DF raw data'!C196) -> -7.70635e-05 | D191: =IF('DF raw data'!D196="","",'DF raw data'!D196) -> -4.39244e-05 | F191: -3.49559166e-05 | G191: -7.745729448e-05 | H191: -4.414885368e-05 | J191: -0.001967597951 | K191: -0.06334395808 | L191: -0.003894622441 | M191: -0.1230753305 | N191: 0.0003958018844
A192: =IF('DF raw data'!A197="","",'DF raw data'!A197) -> -235 | B192: =IF('DF raw data'!B197="","",'DF raw data'!B197) -> -2.97751e-05 | C192: =IF('DF raw data'!C197="","",'DF raw data'!C197) -> -7.36783e-05 | D192: =IF('DF raw data'!D197="","",'DF raw data'!D197) -> -4.62765e-05 | F192: =(1-$G$1*($B$49-$G$2))*B192 -> -2.992725076e-05 | G192: -7.405479611e-05 | H192: -4.651297291e-05 | J192: =F192*$G$3+J191 -> -0.001982561576 | K192: =J192*$G$3+K191 -> -0.06433523886 | L192: =G192*$G$3+L191 -> -0.003931649839 | M192: =L192*$G$3+M191 -> -0.1250411554 | N192: =(J192^2+L192^2)*$G$3+N191 -> 0.0004054960949
A193: =IF('DF raw data'!A198="","",'DF raw data'!A198) -> -234.5 | B193: =IF('DF raw data'!B198="","",'DF raw data'!B198) -> -3.42727e-05 | C193: =IF('DF raw data'!C198="","",'DF raw data'!C198) -> -7.51977e-05 | D193: =IF('DF raw data'!D198="","",'DF raw data'!D198) -> -3.23217e-05 | F193: -3.44478335e-05 | G193: -7.558196025e-05 | H193: -3.248686389e-05 | J193: -0.001999785493 | K193: -0.06533513161 | L193: -0.003969440819 | M193: -0.1270258759 | N193: 0.0004153738961
A194: =IF('DF raw data'!A199="","",'DF raw data'!A199) -> -234 | B194: =IF('DF raw data'!B199="","",'DF raw data'!B199) -> -4.13206e-05 | C194: =IF('DF raw data'!C199="","",'DF raw data'!C199) -> -8.22874e-05 | D194: =IF('DF raw data'!D199="","",'DF raw data'!D199) -> -4.08226e-05 | F194: -4.153174827e-05 | G194: -8.270788861e-05 | H194: -4.103120349e-05 | J194: -0.002020551367 | K194: -0.06634540729 | L194: -0.004010794763 | M194: -0.1290312732 | N194: 0.0004254584473
A195: =IF('DF raw data'!A200="","",'DF raw data'!A200) -> -233.5 | B195: =IF('DF raw data'!B200="","",'DF raw data'!B200) -> -3.3879e-05 | C195: =IF('DF raw data'!C200="","",'DF raw data'!C200) -> -7.29888e-05 | D195: =IF('DF raw data'!D200="","",'DF raw data'!D200) -> -4.62961e-05 | F195: -3.405212169e-05 | G195: -7.336177277e-05 | H195: -4.653267307e-05 | J195: -0.002037577428 | K195: -0.06736419601 | L195: -0.00404747565 | M195: -0.1310550111 | N195: 0.0004357253378
A196: =IF('DF raw data'!A201="","",'DF raw data'!A201) -> -233 | B196: =IF('DF raw data'!B201="","",'DF raw data'!B201) -> -4.52309e-05 | C196: =IF('DF raw data'!C201="","",'DF raw data'!C201) -> -6.7427e-05 | D196: =IF('DF raw data'!D201="","",'DF raw data'!D201) -> -4.26349e-05 | F196: -4.54620299e-05 | G196: -6.777155197e-05 | H196: -4.285276434e-05 | J196: -0.002060308443 | K196: -0.06839435023 | L196: -0.004081361426 | M196: -0.1330956918 | N196: 0.0004461765288
A197: =IF('DF raw data'!A202="","",'DF raw data'!A202) -> -232.5 | B197: =IF('DF raw data'!B202="","",'DF raw data'!B202) -> -3.56837e-05 | C197: =IF('DF raw data'!C202="","",'DF raw data'!C202) -> -6.69872e-05 | D197: =IF('DF raw data'!D202="","",'DF raw data'!D202) -> -3.1838e-05 | F197: -3.586604371e-05 | G197: -6.732950459e-05 | H197: -3.200069218e-05 | J197: -0.002078241465 | K197: -0.06943347096 | L197: -0.004115026178 | M197: -0.1351532049 | N197: 0.0004568027928
A198: =IF('DF raw data'!A203="","",'DF raw data'!A203) -> -232 | B198: =IF('DF raw data'!B203="","",'DF raw data'!B203) -> -3.65785e-05 | C198: =IF('DF raw data'!C203="","",'DF raw data'!C203) -> -7.50482e-05 | D198: =IF('DF raw data'!D203="","",'DF raw data'!D203) -> -3.62626e-05 | F198: -3.676541613e-05 | G198: -7.54316963e-05 | H198: -3.644790189e-05 | J198: -0.002096624173 | K198: -0.07048178305 | L198: -0.004152742026 | M198: -0.1372295759 | N198: 0.0004676233424
A199: =IF('DF raw data'!A204="","",'DF raw data'!A204) -> -231.5 | B199: =IF('DF raw data'!B204="","",'DF raw data'!B204) -> -2.98407e-05 | C199: =IF('DF raw data'!C204="","",'DF raw data'!C204) -> -5.95896e-05 | D199: =IF('DF raw data'!D204="","",'DF raw data'!D204) -> -4.40948e-05 | F199: -2.999318598e-05 | G199: -5.989410286e-05 | H199: -4.432012443e-05 | J199: -0.002111620766 | K199: -0.07153759343 | L199: -0.004182689078 | M199: -0.1393209204 | N199: 0.0004786002575
A200: =IF('DF raw data'!A205="","",'DF raw data'!A205) -> -231 | B200: =IF('DF raw data'!B205="","",'DF raw data'!B205) -> -3.90083e-05 | C200: =IF('DF raw data'!C205="","",'DF raw data'!C205) -> -6.05925e-05 | D200: =IF('DF raw data'!D205="","",'DF raw data'!D205) -> -4.66635e-05 | F200: -3.920763241e-05 | G200: -6.090212767e-05 | H200: -4.690195048e-05 | J200: -0.002131224582 | K200: -0.07260320572 | L200: -0.004213140141 | M200: -0.1414274905 | N200: 0.0004897465915
A201: =IF('DF raw data'!A206="","",'DF raw data'!A206) -> -230.5 | B201: =IF('DF raw data'!B206="","",'DF raw data'!B206) -> -4.11984e-05 | C201: =IF('DF raw data'!C206="","",'DF raw data'!C206) -> -6.42755e-05 | D201: =IF('DF raw data'!D206="","",'DF raw data'!D206) -> -3.14875e-05 | F201: -4.140892382e-05 | G201: -6.46039478e-05 | H201: -3.164840112e-05 | J201: -0.002151929044 | K201: -0.07367917024 | L201: -0.004245442115 | M201: -0.1435502115 | N201: 0.0005010738802
... 1061 more rows

Sheet 10 x=-1
A1: =IF('DF raw data'!E1="","",'DF raw data'!E1) -> Number of header lines | B1: =IF('DF raw data'!F1="","",'DF raw data'!F1) -> 54 | C1: =IF('DF raw data'!G1="","",'DF raw data'!G1) ->  | D1: =IF('DF raw data'!H1="","",'DF raw data'!H1) ->  | F1: T_coeff | G1: -0.00073 | H1: /degC | J1: IBy total | K1: =J1262*1000 -> -2.77171803 | L1: muTm | M1: =L1262*1000 -> -83.88008395 | R1: DF ref | S1: ='10 x=-2'!S1 -> 1
A2: =IF('DF raw data'!E2="","",'DF raw data'!E2) -> Measured by | B2: =IF('DF raw data'!F2="","",'DF raw data'!F2) -> Danfysik | C2: =IF('DF raw data'!G2="","",'DF raw data'!G2) ->  | D2: =IF('DF raw data'!H2="","",'DF raw data'!H2) ->  | F2: Tcorr | G2: 20 | H2: degC | J2: JBy total | K2: =K1262 -> -1.456270786 | L2: muTm^2 | M2: =M1262 -> -22.12634355
A3: =IF('DF raw data'!E3="","",'DF raw data'!E3) -> Operator | B3: =IF('DF raw data'!F3="","",'DF raw data'!F3) -> PMHA | C3: =IF('DF raw data'!G3="","",'DF raw data'!G3) ->  | D3: =IF('DF raw data'!H3="","",'DF raw data'!H3) ->  | F3: Step | G3: =A63-A62 -> 0.5 | H3: mm | J3: PI total | K3: =N1262 -> 10614.15644 | L3: T^2mm^3
A4: =IF('DF raw data'!E4="","",'DF raw data'!E4) -> Data-time | B4: =IF('DF raw data'!F4="","",'DF raw data'!F4) -> 01-08-2024, 10:59:37 | C4: =IF('DF raw data'!G4="","",'DF raw data'!G4) ->  | D4: =IF('DF raw data'!H4="","",'DF raw data'!H4) -> 
A5: =IF('DF raw data'!E5="","",'DF raw data'!E5) -> Project | B5: =IF('DF raw data'!F5="","",'DF raw data'!F5) -> 504314 | C5: =IF('DF raw data'!G5="","",'DF raw data'!G5) ->  | D5: =IF('DF raw data'!H5="","",'DF raw data'!H5) -> 
A6: =IF('DF raw data'!E6="","",'DF raw data'!E6) -> Magnet type | B6: =IF('DF raw data'!F6="","",'DF raw data'!F6) -> Dipole | C6: =IF('DF raw data'!G6="","",'DF raw data'!G6) ->  | D6: =IF('DF raw data'!H6="","",'DF raw data'!H6) -> 
A7: =IF('DF raw data'!E7="","",'DF raw data'!E7) -> Magnet nr. | B7: =IF('DF raw data'!F7="","",'DF raw data'!F7) -> 2410091 | C7: =IF('DF raw data'!G7="","",'DF raw data'!G7) ->  | D7: =IF('DF raw data'!H7="","",'DF raw data'!H7) -> 
A8: =IF('DF raw data'!E8="","",'DF raw data'!E8) -> Meas. number | B8: =IF('DF raw data'!F8="","",'DF raw data'!F8) -> 167 | C8: =IF('DF raw data'!G8="","",'DF raw data'!G8) ->  | D8: =IF('DF raw data'!H8="","",'DF raw data'!H8) -> 
A9: =IF('DF raw data'!E9="","",'DF raw data'!E9) -> Add. info | B9: =IF('DF raw data'!F9="","",'DF raw data'!F9) -> X-alignment scan 2) | C9: =IF('DF raw data'!G9="","",'DF raw data'!G9) ->  | D9: =IF('DF raw data'!H9="","",'DF raw data'!H9) -> 
A10: =IF('DF raw data'!E10="","",'DF raw data'!E10) -> Device | B10: =IF('DF raw data'!F10="","",'DF raw data'!F10) -> (HAL) HALL-PROBE | C10: =IF('DF raw data'!G10="","",'DF raw data'!G10) ->  | D10: =IF('DF raw data'!H10="","",'DF raw data'!H10) -> 
A11: =IF('DF raw data'!E11="","",'DF raw data'!E11) -> Goal | B11: =IF('DF raw data'!F11="","",'DF raw data'!F11) -> (AXI) AXis Integral (Line, EFB) | C11: =IF('DF raw data'!G11="","",'DF raw data'!G11) ->  | D11: =IF('DF raw data'!H11="","",'DF raw data'!H11) -> 
A12: =IF('DF raw data'!E12="","",'DF raw data'!E12) -> Power supply mode | B12: =IF('DF raw data'!F12="","",'DF raw data'!F12) -> (PM) Permanent Magnet (no MPS in use) | C12: =IF('DF raw data'!G12="","",'DF raw data'!G12) ->  | D12: =IF('DF raw data'!H12="","",'DF raw data'!H12) -> 
A13: =IF('DF raw data'!E13="","",'DF raw data'!E13) -> Data format | B13: =IF('DF raw data'!F13="","",'DF raw data'!F13) -> Raw data text file | C13: =IF('DF raw data'!G13="","",'DF raw data'!G13) ->  | D13: =IF('DF raw data'!H13="","",'DF raw data'!H13) -> 
A14: =IF('DF raw data'!E14="","",'DF raw data'!E14) -> Direction of the pos. x-axis | B14: =IF('DF raw data'!F14="","",'DF raw data'!F14) -> See test program | C14: =IF('DF raw data'!G14="","",'DF raw data'!G14) ->  | D14: =IF('DF raw data'!H14="","",'DF raw data'!H14) -> 
A15: =IF('DF raw data'!E15="","",'DF raw data'!E15) -> Direction of the pos. y-axis | B15: =IF('DF raw data'!F15="","",'DF raw data'!F15) -> Vertical up | C15: =IF('DF raw data'!G15="","",'DF raw data'!G15) ->  | D15: =IF('DF raw data'!H15="","",'DF raw data'!H15) -> 
A16: =IF('DF raw data'!E16="","",'DF raw data'!E16) -> Direction of the pos. z-axis | B16: =IF('DF raw data'!F16="","",'DF raw data'!F16) -> See test program | C16: =IF('DF raw data'!G16="","",'DF raw data'!G16) ->  | D16: =IF('DF raw data'!H16="","",'DF raw data'!H16) -> 
A17: =IF('DF raw data'!E17="","",'DF raw data'!E17) -> Mapper type | B17: =IF('DF raw data'!F17="","",'DF raw data'!F17) -> Precision Hall Mapper | C17: =IF('DF raw data'!G17="","",'DF raw data'!G17) ->  | D17: =IF('DF raw data'!H17="","",'DF raw data'!H17) -> 
A18: =IF('DF raw data'!E18="","",'DF raw data'!E18) -> Mapper Danfysik Reg. Number | B18: =IF('DF raw data'!F18="","",'DF raw data'!F18) -> 2033-D (mapper 1) | C18: =IF('DF raw data'!G18="","",'DF raw data'!G18) ->  | D18: =IF('DF raw data'!H18="","",'DF raw data'!H18) -> 
A19: =IF('DF raw data'!E19="","",'DF raw data'!E19) -> Measurement consept | B19: =IF('DF raw data'!F19="","",'DF raw data'!F19) -> Square line grid | C19: =IF('DF raw data'!G19="","",'DF raw data'!G19) ->  | D19: =IF('DF raw data'!H19="","",'DF raw data'!H19) -> 
A20: =IF('DF raw data'!E20="","",'DF raw data'!E20) -> Mode | B20: =IF('DF raw data'!F20="","",'DF raw data'!F20) -> On-the-fly measurement | C20: =IF('DF raw data'!G20="","",'DF raw data'!G20) ->  | D20: =IF('DF raw data'!H20="","",'DF raw data'!H20) -> 
A21: =IF('DF raw data'!E21="","",'DF raw data'!E21) ->  | B21: =IF('DF raw data'!F21="","",'DF raw data'!F21) ->  | C21: =IF('DF raw data'!G21="","",'DF raw data'!G21) ->  | D21: =IF('DF raw data'!H21="","",'DF raw data'!H21) -> 
A22: =IF('DF raw data'!E22="","",'DF raw data'!E22) -> Probe Name | B22: =IF('DF raw data'!F22="","",'DF raw data'!F22) -> ID12_By | C22: =IF('DF raw data'!G22="","",'DF raw data'!G22) ->  | D22: =IF('DF raw data'!H22="","",'DF raw data'!H22) -> 
A23: =IF('DF raw data'!E23="","",'DF raw data'!E23) -> Probe Type | B23: =IF('DF raw data'!F23="","",'DF raw data'!F23) -> DF_ID_3D_Bxyz | C23: =IF('DF raw data'!G23="","",'DF raw data'!G23) ->  | D23: =IF('DF raw data'!H23="","",'DF raw data'!H23) -> 
A24: =IF('DF raw data'!E24="","",'DF raw data'!E24) -> Probe Danfysik Reg. Number | B24: =IF('DF raw data'!F24="","",'DF raw data'!F24) -> 2277 | C24: =IF('DF raw data'!G24="","",'DF raw data'!G24) ->  | D24: =IF('DF raw data'!H24="","",'DF raw data'!H24) -> 
A25: =IF('DF raw data'!E25="","",'DF raw data'!E25) -> Probe Axis | B25: =IF('DF raw data'!F25="","",'DF raw data'!F25) -> By | C25: =IF('DF raw data'!G25="","",'DF raw data'!G25) ->  | D25: =IF('DF raw data'!H25="","",'DF raw data'!H25) -> 
A26: =IF('DF raw data'!E26="","",'DF raw data'!E26) -> Probe Current Supply | B26: =IF('DF raw data'!F26="","",'DF raw data'!F26) -> 1825-D | C26: =IF('DF raw data'!G26="","",'DF raw data'!G26) ->  | D26: =IF('DF raw data'!H26="","",'DF raw data'!H26) -> 
A27: =IF('DF raw data'!E27="","",'DF raw data'!E27) -> Probe Gain Correction | B27: =IF('DF raw data'!F27="","",'DF raw data'!F27) -> 0.99613 | C27: =IF('DF raw data'!G27="","",'DF raw data'!G27) ->  | D27: =IF('DF raw data'!H27="","",'DF raw data'!H27) -> 
A28: =IF('DF raw data'!E28="","",'DF raw data'!E28) -> Probe Offset Correction | B28: =IF('DF raw data'!F28="","",'DF raw data'!F28) -> 0.0027562 | C28: =IF('DF raw data'!G28="","",'DF raw data'!G28) ->  | D28: =IF('DF raw data'!H28="","",'DF raw data'!H28) -> 
A29: =IF('DF raw data'!E29="","",'DF raw data'!E29) -> DVM Number | B29: =IF('DF raw data'!F29="","",'DF raw data'!F29) -> 2 | C29: =IF('DF raw data'!G29="","",'DF raw data'!G29) ->  | D29: =IF('DF raw data'!H29="","",'DF raw data'!H29) -> 
A30: =IF('DF raw data'!E30="","",'DF raw data'!E30) -> DVM Type | B30: =IF('DF raw data'!F30="","",'DF raw data'!F30) -> K2701 | C30: =IF('DF raw data'!G30="","",'DF raw data'!G30) ->  | D30: =IF('DF raw data'!H30="","",'DF raw data'!H30) -> 
A31: =IF('DF raw data'!E31="","",'DF raw data'!E31) -> DVM Danfysik Reg. Number | B31: =IF('DF raw data'!F31="","",'DF raw data'!F31) -> 1743-D | C31: =IF('DF raw data'!G31="","",'DF raw data'!G31) ->  | D31: =IF('DF raw data'!H31="","",'DF raw data'!H31) -> 
A32: =IF('DF raw data'!E32="","",'DF raw data'!E32) -> Probe Name | B32: =IF('DF raw data'!F32="","",'DF raw data'!F32) -> ID12_Bx | C32: =IF('DF raw data'!G32="","",'DF raw data'!G32) ->  | D32: =IF('DF raw data'!H32="","",'DF raw data'!H32) -> 
A33: =IF('DF raw data'!E33="","",'DF raw data'!E33) -> Probe Type | B33: =IF('DF raw data'!F33="","",'DF raw data'!F33) -> DF_ID_3D_Bxyz | C33: =IF('DF raw data'!G33="","",'DF raw data'!G33) ->  | D33: =IF('DF raw data'!H33="","",'DF raw data'!H33) -> 
A34: =IF('DF raw data'!E34="","",'DF raw data'!E34) -> Probe Danfysik Reg. Number | B34: =IF('DF raw data'!F34="","",'DF raw data'!F34) -> 2277 | C34: =IF('DF raw data'!G34="","",'DF raw data'!G34) ->  | D34: =IF('DF raw data'!H34="","",'DF raw data'!H34) -> 
A35: =IF('DF raw data'!E35="","",'DF raw data'!E35) -> Probe Axis | B35: =IF('DF raw data'!F35="","",'DF raw data'!F35) -> Bx | C35: =IF('DF raw data'!G35="","",'DF raw data'!G35) ->  | D35: =IF('DF raw data'!H35="","",'DF raw data'!H35) -> 
A36: =IF('DF raw data'!E36="","",'DF raw data'!E36) -> Probe Current Supply | B36: =IF('DF raw data'!F36="","",'DF raw data'!F36) -> 1825-D | C36: =IF('DF raw data'!G36="","",'DF raw data'!G36) ->  | D36: =IF('DF raw data'!H36="","",'DF raw data'!H36) -> 
A37: =IF('DF raw data'!E37="","",'DF raw data'!E37) -> Probe Gain Correction | B37: =IF('DF raw data'!F37="","",'DF raw data'!F37) -> 1 | C37: =IF('DF raw data'!G37="","",'DF raw data'!G37) ->  | D37: =IF('DF raw data'!H37="","",'DF raw data'!H37) -> 
A38: =IF('DF raw data'!E38="","",'DF raw data'!E38) -> Probe Offset Correction | B38: =IF('DF raw data'!F38="","",'DF raw data'!F38) -> -0.17564 | C38: =IF('DF raw data'!G38="","",'DF raw data'!G38) ->  | D38: =IF('DF raw data'!H38="","",'DF raw data'!H38) -> 
A39: =IF('DF raw data'!E39="","",'DF raw data'!E39) -> DVM Number | B39: =IF('DF raw data'!F39="","",'DF raw data'!F39) -> 3 | C39: =IF('DF raw data'!G39="","",'DF raw data'!G39) ->  | D39: =IF('DF raw data'!H39="","",'DF raw data'!H39) -> 
A40: =IF('DF raw data'!E40="","",'DF raw data'!E40) -> DVM Type | B40: =IF('DF raw data'!F40="","",'DF raw data'!F40) -> K2701 | C40: =IF('DF raw data'!G40="","",'DF raw data'!G40) ->  | D40: =IF('DF raw data'!H40="","",'DF raw data'!H40) -> 
A41: =IF('DF raw data'!E41="","",'DF raw data'!E41) -> DVM Danfysik Reg. Number | B41: =IF('DF raw data'!F41="","",'DF raw data'!F41) -> 1744-D | C41: =IF('DF raw data'!G41="","",'DF raw data'!G41) ->  | D41: =IF('DF raw data'!H41="","",'DF raw data'!H41) -> 
A42: =IF('DF raw data'!E42="","",'DF raw data'!E42) -> Probe Name | B42: =IF('DF raw data'!F42="","",'DF raw data'!F42) -> ID12_Bz | C42: =IF('DF raw data'!G42="","",'DF raw data'!G42) ->  | D42: =IF('DF raw data'!H42="","",'DF raw data'!H42) -> 
A43: =IF('DF raw data'!E43="","",'DF raw data'!E43) -> Probe Type | B43: =IF('DF raw data'!F43="","",'DF raw data'!F43) -> DF_ID_3D_Bxyz | C43: =IF('DF raw data'!G43="","",'DF raw data'!G43) ->  | D43: =IF('DF raw data'!H43="","",'DF raw data'!H43) -> 
A44: =IF('DF raw data'!E44="","",'DF raw data'!E44) -> Probe Danfysik Reg. Number | B44: =IF('DF raw data'!F44="","",'DF raw data'!F44) -> 2277 | C44: =IF('DF raw data'!G44="","",'DF raw data'!G44) ->  | D44: =IF('DF raw data'!H44="","",'DF raw data'!H44) -> 
A45: =IF('DF raw data'!E45="","",'DF raw data'!E45) -> Probe Axis | B45: =IF('DF raw data'!F45="","",'DF raw data'!F45) -> Bz | C45: =IF('DF raw data'!G45="","",'DF raw data'!G45) ->  | D45: =IF('DF raw data'!H45="","",'DF raw data'!H45) -> 
A46: =IF('DF raw data'!E46="","",'DF raw data'!E46) -> Probe Current Supply | B46: =IF('DF raw data'!F46="","",'DF raw data'!F46) -> 1825-D | C46: =IF('DF raw data'!G46="","",'DF raw data'!G46) ->  | D46: =IF('DF raw data'!H46="","",'DF raw data'!H46) -> 
A47: =IF('DF raw data'!E47="","",'DF raw data'!E47) -> Probe Gain Correction | B47: =IF('DF raw data'!F47="","",'DF raw data'!F47) -> 1 | C47: =IF('DF raw data'!G47="","",'DF raw data'!G47) ->  | D47: =IF('DF raw data'!H47="","",'DF raw data'!H47) -> 
A48: =IF('DF raw data'!E53="","",'DF raw data'!E53) -> PS-Gap: | B48: =IF('DF raw data'!F53="","",'DF raw data'!F53) -> 10 | C48: =IF('DF raw data'!G53="","",'DF raw data'!G53) ->  | D48: =IF('DF raw data'!H53="","",'DF raw data'!H53) -> 
A49: =IF('DF raw data'!E54="","",'DF raw data'!E54) -> PS-Temperature: | B49: =IF('DF raw data'!F54="","",'DF raw data'!F54) -> 27 | C49: =IF('DF raw data'!G54="","",'DF raw data'!G54) ->  | D49: =IF('DF raw data'!H54="","",'DF raw data'!H54) -> 
A50: =IF('DF raw data'!E55="","",'DF raw data'!E55) -> PS-Encoder: | B50: =IF('DF raw data'!F55="","",'DF raw data'!F55) -> 19.9648 | C50: =IF('DF raw data'!G55="","",'DF raw data'!G55) ->  | D50: =IF('DF raw data'!H55="","",'DF raw data'!H55) -> 
A51: =IF('DF raw data'!E56="","",'DF raw data'!E56) ->  | B51: =IF('DF raw data'!F56="","",'DF raw data'!F56) ->  | C51: =IF('DF raw data'!G56="","",'DF raw data'!G56) ->  | D51: =IF('DF raw data'!H56="","",'DF raw data'!H56) -> 
A52: =IF('DF raw data'!E57="","",'DF raw data'!E57) -> Monitor-Index | B52: =IF('DF raw data'!F57="","",'DF raw data'!F57) -> [1,1,4] | C52: =IF('DF raw data'!G57="","",'DF raw data'!G57) ->  | D52: =IF('DF raw data'!H57="","",'DF raw data'!H57) -> 
A53: =IF('DF raw data'!E58="","",'DF raw data'!E58) ->  | B53: =IF('DF raw data'!F58="","",'DF raw data'!F58) ->  | C53: =IF('DF raw data'!G58="","",'DF raw data'!G58) ->  | D53: =IF('DF raw data'!H58="","",'DF raw data'!H58) -> 
A54: =IF('DF raw data'!E59="","",'DF raw data'!E59) -> Time [s] | B54: =IF('DF raw data'!F59="","",'DF raw data'!F59) -> Y [mm] | C54: =IF('DF raw data'!G59="","",'DF raw data'!G59) -> X [mm] | D54: =IF('DF raw data'!H59="","",'DF raw data'!H59) -> Nominal current [A]
A55: =IF('DF raw data'!E60="","",'DF raw data'!E60) ->  | B55: =IF('DF raw data'!F60="","",'DF raw data'!F60) ->  | C55: =IF('DF raw data'!G60="","",'DF raw data'!G60) ->  | D55: =IF('DF raw data'!H60="","",'DF raw data'!H60) -> 
A56: =IF('DF raw data'!E61="","",'DF raw data'!E61) -> 208.5 | B56: =IF('DF raw data'!F61="","",'DF raw data'!F61) -> 31.16 | C56: =IF('DF raw data'!G61="","",'DF raw data'!G61) -> 300.8 | D56: =IF('DF raw data'!H61="","",'DF raw data'!H61) -> 0
A57: =IF('DF raw data'!E62="","",'DF raw data'!E62) ->  | B57: =IF('DF raw data'!F62="","",'DF raw data'!F62) ->  | C57: =IF('DF raw data'!G62="","",'DF raw data'!G62) ->  | D57: =IF('DF raw data'!H62="","",'DF raw data'!H62) -> 
A58: =IF('DF raw data'!E63="","",'DF raw data'!E63) -> Measurement-Index | B58: =IF('DF raw data'!F63="","",'DF raw data'!F63) -> [1,1,1201,2] | C58: =IF('DF raw data'!G63="","",'DF raw data'!G63) ->  | D58: =IF('DF raw data'!H63="","",'DF raw data'!H63) -> 
A59: =IF('DF raw data'!E64="","",'DF raw data'!E64) ->  | B59: =IF('DF raw data'!F64="","",'DF raw data'!F64) ->  | C59: =IF('DF raw data'!G64="","",'DF raw data'!G64) ->  | D59: =IF('DF raw data'!H64="","",'DF raw data'!H64) -> 
A60: =IF('DF raw data'!E65="","",'DF raw data'!E65) -> Z [mm] | B60: By [T] | C60: Bx [T] | D60: Bz [T] | F60: By_corr | G60: Bx_corr | H60: Bz_corr | J60: Iy | K60: Jy | L60: Ix | M60: Jx | N60: PI
A62: =IF('DF raw data'!E67="","",'DF raw data'!E67) -> -300 | B62: =IF('DF raw data'!F67="","",'DF raw data'!F67) -> -1.79824e-05 | C62: =IF('DF raw data'!G67="","",'DF raw data'!G67) -> -0.000108992 | D62: =IF('DF raw data'!H67="","",'DF raw data'!H67) -> -4.35931e-05 | F62: =(1-$G$1*($B$49))*B62 -> -1.83368331e-05 | G62: =(1-$G$1*($B$49-$G$2))*C62 -> -0.0001095489491 | H62: =(1-$G$1*($B$49-$G$2))*D62 -> -4.381586074e-05 | J62: =F62*$G$3 -> -9.168416552e-06 | K62: =J62*$G$3 -> -4.584208276e-06 | L62: =G62*$G$3 -> -5.477447456e-05 | M62: =L62*$G$3 -> -2.738723728e-05 | N62: =(J62^2+L62^2)*$G$3 -> 1.542151463e-09
A63: =IF('DF raw data'!E68="","",'DF raw data'!E68) -> -299.5 | B63: =IF('DF raw data'!F68="","",'DF raw data'!F68) -> -2.25996e-05 | C63: =IF('DF raw data'!G68="","",'DF raw data'!G68) -> -0.000112371 | D63: =IF('DF raw data'!H68="","",'DF raw data'!H68) -> -4.30626e-05 | F63: =(1-$G$1*($B$49-$G$2))*B63 -> -2.271508396e-05 | G63: =(1-$G$1*($B$49-$G$2))*C63 -> -0.0001129452158 | H63: -4.328264989e-05 | J63: =F63*$G$3+J62 -> -2.052595853e-05 | K63: =J63*$G$3+K62 -> -1.484718754e-05 | L63: =G63*$G$3+L62 -> -0.0001112470825 | M63: =L63*$G$3+M62 -> -8.301077851e-05 | N63: =(J63^2+L63^2)*$G$3+N62 -> 7.940765628e-09
A64: =IF('DF raw data'!E69="","",'DF raw data'!E69) -> -299 | B64: =IF('DF raw data'!F69="","",'DF raw data'!F69) -> -3.62592e-05 | C64: =IF('DF raw data'!G69="","",'DF raw data'!G69) -> -0.000115451 | D64: =IF('DF raw data'!H69="","",'DF raw data'!H69) -> -4.15453e-05 | F64: =(1-$G$1*($B$49-$G$2))*B64 -> -3.644448451e-05 | G64: -0.0001160409546 | H64: -4.175759648e-05 | J64: =F64*$G$3+J63 -> -3.874820079e-05 | K64: =J64*$G$3+K63 -> -3.422128793e-05 | L64: =G64*$G$3+L63 -> -0.0001692675598 | M64: =L64*$G$3+M63 -> -0.0001676445584 | N64: =(J64^2+L64^2)*$G$3+N63 -> 2.301723056e-08
A65: =IF('DF raw data'!E70="","",'DF raw data'!E70) -> -298.5 | B65: =IF('DF raw data'!F70="","",'DF raw data'!F70) -> -2.60001e-05 | C65: =IF('DF raw data'!G70="","",'DF raw data'!G70) -> -0.000109246 | D65: =IF('DF raw data'!H70="","",'DF raw data'!H70) -> -4.0309e-05 | F65: -2.613296051e-05 | G65: -0.0001098042471 | H65: -4.051497899e-05 | J65: -5.181468104e-05 | K65: -6.012862845e-05 | L65: -0.0002241696833 | M65: -0.0002797294 | N65: 4.94856346e-08
A66: =IF('DF raw data'!E71="","",'DF raw data'!E71) -> -298 | B66: =IF('DF raw data'!F71="","",'DF raw data'!F71) -> -1.49062e-05 | C66: =IF('DF raw data'!G71="","",'DF raw data'!G71) -> -0.000109874 | D66: =IF('DF raw data'!H71="","",'DF raw data'!H71) -> -4.06003e-05 | F66: -1.498237068e-05 | G66: -0.0001104354561 | H66: -4.080776753e-05 | J66: -5.930586638e-05 | K66: -8.978156165e-05 | L66: -0.0002793874114 | M66: -0.0004194231057 | N66: 9.027289031e-08
A67: =IF('DF raw data'!E72="","",'DF raw data'!E72) -> -297.5 | B67: =IF('DF raw data'!F72="","",'DF raw data'!F72) -> -1.92019e-05 | C67: =IF('DF raw data'!G72="","",'DF raw data'!G72) -> -0.000106928 | D67: =IF('DF raw data'!H72="","",'DF raw data'!H72) -> -4.15998e-05 | F67: -1.930002171e-05 | G67: -0.0001074744021 | H67: -4.181237498e-05 | J67: -6.895587724e-05 | K67: -0.0001242595003 | L67: -0.0003331246124 | M67: -0.0005859854119 | N67: 1.481363505e-07
A68: =IF('DF raw data'!E73="","",'DF raw data'!E73) -> -297 | B68: =IF('DF raw data'!F73="","",'DF raw data'!F73) -> -2.27928e-05 | C68: =IF('DF raw data'!G73="","",'DF raw data'!G73) -> -0.000105887 | D68: =IF('DF raw data'!H73="","",'DF raw data'!H73) -> -4.20647e-05 | F68: -2.290927121e-05 | G68: -0.0001064280826 | H68: -4.227965062e-05 | J68: -8.041051284e-05 | K68: -0.0001644647567 | L68: -0.0003863386537 | M68: -0.0007791547388 | N68: 2.259980535e-07
A69: =IF('DF raw data'!E74="","",'DF raw data'!E74) -> -296.5 | B69: =IF('DF raw data'!F74="","",'DF raw data'!F74) -> -2.04202e-05 | C69: =IF('DF raw data'!G74="","",'DF raw data'!G74) -> -0.000108481 | D69: =IF('DF raw data'!H74="","",'DF raw data'!H74) -> -4.18759e-05 | F69: -2.052454722e-05 | G69: -0.0001090353379 | H69: -4.208988585e-05 | J69: -9.067278645e-05 | K69: -0.0002098011499 | L69: -0.0004408563226 | M69: -0.0009995829001 | N69: 3.272859792e-07
A70: =IF('DF raw data'!E75="","",'DF raw data'!E75) -> -296 | B70: =IF('DF raw data'!F75="","",'DF raw data'!F75) -> -2.97828e-05 | C70: =IF('DF raw data'!G75="","",'DF raw data'!G75) -> -0.000107609 | D70: =IF('DF raw data'!H75="","",'DF raw data'!H75) -> -4.13074e-05 | F70: -2.993499011e-05 | G70: -0.000108158882 | H70: -4.151848081e-05 | J70: -0.0001056402815 | K70: -0.0002626212907 | L70: -0.0004949357636 | M70: -0.001247050782 | N70: 4.553466188e-07
A71: =IF('DF raw data'!E76="","",'DF raw data'!E76) -> -295.5 | B71: =IF('DF raw data'!F76="","",'DF raw data'!F76) -> -1.83689e-05 | C71: =IF('DF raw data'!G76="","",'DF raw data'!G76) -> -0.000102958 | D71: =IF('DF raw data'!H76="","",'DF raw data'!H76) -> -4.09876e-05 | F71: -1.846276508e-05 | G71: -0.0001034841154 | H71: -4.119704664e-05 | J71: -0.000114871664 | K71: -0.0003200571227 | L71: -0.0005466778213 | M71: -0.001520389693 | N71: 6.113726886e-07
A72: =IF('DF raw data'!E77="","",'DF raw data'!E77) -> -295 | B72: =IF('DF raw data'!F77="","",'DF raw data'!F77) -> -2.17674e-05 | C72: =IF('DF raw data'!G77="","",'DF raw data'!G77) -> -0.000103663 | D72: =IF('DF raw data'!H77="","",'DF raw data'!H77) -> -4.11221e-05 | F72: -2.187863141e-05 | G72: -0.0001041927179 | H72: -4.133223393e-05 | J72: -0.0001258109798 | K72: -0.0003829626126 | L72: -0.0005987741803 | M72: -0.001819776783 | N72: 7.985521494e-07
A73: =IF('DF raw data'!E78="","",'DF raw data'!E78) -> -294.5 | B73: =IF('DF raw data'!F78="","",'DF raw data'!F78) -> -1.84326e-05 | C73: =IF('DF raw data'!G78="","",'DF raw data'!G78) -> -0.000101496 | D73: =IF('DF raw data'!H78="","",'DF raw data'!H78) -> -4.14667e-05 | F73: -1.852679059e-05 | G73: -0.0001020146446 | H73: -4.167859484e-05 | J73: -0.000135074375 | K73: -0.0004504998001 | L73: -0.0006497815026 | M73: -0.002144667534 | N73: 1.018782693e-06
A74: =IF('DF raw data'!E79="","",'DF raw data'!E79) -> -294 | B74: =IF('DF raw data'!F79="","",'DF raw data'!F79) -> -2.03565e-05 | C74: =IF('DF raw data'!G79="","",'DF raw data'!G79) -> -0.000102204 | D74: =IF('DF raw data'!H79="","",'DF raw data'!H79) -> -4.15336e-05 | F74: -2.046052171e-05 | G74: -0.0001027262624 | H74: -4.17458367e-05 | J74: -0.0001453046359 | K74: -0.000523152118 | L74: -0.0007011446338 | M74: -0.002495239851 | N74: 1.275141311e-06
A75: =IF('DF raw data'!E80="","",'DF raw data'!E80) -> -293.5 | B75: =IF('DF raw data'!F80="","",'DF raw data'!F80) -> -2.17674e-05 | C75: =IF('DF raw data'!G80="","",'DF raw data'!G80) -> -0.000106439 | D75: =IF('DF raw data'!H80="","",'DF raw data'!H80) -> -4.11737e-05 | F75: -2.187863141e-05 | G75: -0.0001069829033 | H75: -4.138409761e-05 | J75: -0.0001562439516 | K75: -0.0006012740938 | L75: -0.0007546360854 | M75: -0.002872557894 | N75: 1.572085208e-06
A76: =IF('DF raw data'!E81="","",'DF raw data'!E81) -> -293 | B76: =IF('DF raw data'!F81="","",'DF raw data'!F81) -> -2.04209e-05 | C76: =IF('DF raw data'!G81="","",'DF raw data'!G81) -> -0.000101938 | D76: =IF('DF raw data'!H81="","",'DF raw data'!H81) -> -4.08837e-05 | F76: -2.05252508e-05 | G76: -0.0001024589032 | H76: -4.109261571e-05 | J76: -0.000166506577 | K76: -0.0006845273823 | L76: -0.000805865537 | M76: -0.003275490662 | N76: 1.91065706e-06
A77: =IF('DF raw data'!E82="","",'DF raw data'!E82) -> -292.5 | B77: =IF('DF raw data'!F82="","",'DF raw data'!F82) -> -1.15074e-05 | C77: =IF('DF raw data'!G82="","",'DF raw data'!G82) -> -0.000100558 | D77: =IF('DF raw data'!H82="","",'DF raw data'!H82) -> -4.13238e-05 | F77: -1.156620281e-05 | G77: -0.0001010718514 | H77: -4.153496462e-05 | J77: -0.0001722896784 | K77: -0.0007706722216 | L77: -0.0008564014627 | M77: -0.003703691394 | N77: 2.292210659e-06
A78: =IF('DF raw data'!E83="","",'DF raw data'!E83) -> -292 | B78: =IF('DF raw data'!F83="","",'DF raw data'!F83) -> -1.82399e-05 | C78: =IF('DF raw data'!G83="","",'DF raw data'!G83) -> -0.000100407 | D78: =IF('DF raw data'!H83="","",'DF raw data'!H83) -> -4.21279e-05 | F78: -1.833310589e-05 | G78: -0.0001009200798 | H78: -4.234317357e-05 | J78: -0.0001814562314 | K78: -0.0008614003372 | L78: -0.0009068615026 | M78: -0.004157122145 | N78: 2.719872733e-06
A79: =IF('DF raw data'!E84="","",'DF raw data'!E84) -> -291.5 | B79: =IF('DF raw data'!F84="","",'DF raw data'!F84) -> -1.80453e-05 | C79: =IF('DF raw data'!G84="","",'DF raw data'!G84) -> -0.000104424 | D79: =IF('DF raw data'!H84="","",'DF raw data'!H84) -> -4.54145e-05 | F79: -1.813751148e-05 | G79: -0.0001049576066 | H79: -4.564656809e-05 | J79: -0.0001905249871 | K79: -0.0009566628308 | L79: -0.0009593403059 | M79: -0.004636792298 | N79: 3.19818953e-06
A80: =IF('DF raw data'!E85="","",'DF raw data'!E85) -> -291 | B80: =IF('DF raw data'!F85="","",'DF raw data'!F85) -> -2.69589e-05 | C80: =IF('DF raw data'!G85="","",'DF raw data'!G85) -> -0.000108281 | D80: =IF('DF raw data'!H85="","",'DF raw data'!H85) -> -4.51424e-05 | F80: -2.709665998e-05 | G80: -0.0001088343159 | H80: -4.537307766e-05 | J80: -0.0002040733171 | K80: -0.001058699489 | L80: -0.001013757464 | M80: -0.00514367103 | N80: 3.732864587e-06
A81: =IF('DF raw data'!E86="","",'DF raw data'!E86) -> -290.5 | B81: =IF('DF raw data'!F86="","",'DF raw data'!F86) -> -2.57401e-05 | C81: =IF('DF raw data'!G86="","",'DF raw data'!G86) -> -0.000112149 | D81: =IF('DF raw data'!H86="","",'DF raw data'!H86) -> -4.57138e-05 | F81: -2.587163191e-05 | G81: -0.0001127220814 | H81: -4.594739752e-05 | J81: -0.000217009133 | K81: -0.001167204056 | L81: -0.001070118505 | M81: -0.005678730282 | N81: 4.328987876e-06
A82: =IF('DF raw data'!E87="","",'DF raw data'!E87) -> -290 | B82: =IF('DF raw data'!F87="","",'DF raw data'!F87) -> -3.04891e-05 | C82: =IF('DF raw data'!G87="","",'DF raw data'!G87) -> -0.000110106 | D82: =IF('DF raw data'!H87="","",'DF raw data'!H87) -> -4.01021e-05 | F82: -3.06448993e-05 | G82: -0.0001106686417 | H82: -4.030702173e-05 | J82: -0.0002323315827 | K82: -0.001283369847 | L82: -0.001125452825 | M82: -0.006241456695 | N82: 4.989298889e-06
A83: =IF('DF raw data'!E88="","",'DF raw data'!E88) -> -289.5 | B83: =IF('DF raw data'!F88="","",'DF raw data'!F88) -> -3.19634e-05 | C83: =IF('DF raw data'!G88="","",'DF raw data'!G88) -> -0.000110163 | D83: =IF('DF raw data'!H88="","",'DF raw data'!H88) -> -4.0673e-05 | F83: -3.212673297e-05 | G83: -0.0001107259329 | H83: -4.088083903e-05 | J83: -0.0002483949492 | K83: -0.001407567322 | L83: -0.001180815792 | M83: -0.006831864591 | N83: 5.717311882e-06
A84: =IF('DF raw data'!E89="","",'DF raw data'!E89) -> -289 | B84: =IF('DF raw data'!F89="","",'DF raw data'!F89) -> -3.07543e-05 | C84: =IF('DF raw data'!G89="","",'DF raw data'!G89) -> -0.000114192 | D84: =IF('DF raw data'!H89="","",'DF raw data'!H89) -> -2.67126e-05 | F84: -3.091145447e-05 | G84: -0.0001147755211 | H84: -2.684910139e-05 | J84: -0.0002638506764 | K84: -0.00153949266 | L84: -0.001238203552 | M84: -0.007450966367 | N84: 6.51869449e-06
A85: =IF('DF raw data'!E90="","",'DF raw data'!E90) -> -288.5 | B85: =IF('DF raw data'!F90="","",'DF raw data'!F90) -> -2.43995e-05 | C85: =IF('DF raw data'!G90="","",'DF raw data'!G90) -> -0.000114895 | D85: =IF('DF raw data'!H90="","",'DF raw data'!H90) -> -3.6685e-05 | F85: -2.452418144e-05 | G85: -0.0001154821134 | H85: -3.687246035e-05 | J85: -0.0002761127671 | K85: -0.001677549044 | L85: -0.001295944609 | M85: -0.008098938671 | N85: 7.396549835e-06
A86: =IF('DF raw data'!E91="","",'DF raw data'!E91) -> -288 | B86: =IF('DF raw data'!F91="","",'DF raw data'!F91) -> -2.59325e-05 | C86: =IF('DF raw data'!G91="","",'DF raw data'!G91) -> -0.000108537 | D86: =IF('DF raw data'!H91="","",'DF raw data'!H91) -> -4.58322e-05 | F86: -2.606501507e-05 | G86: -0.0001090916241 | H86: -4.606640254e-05 | J86: -0.0002891452747 | K86: -0.001822121681 | L86: -0.001350490421 | M86: -0.008774183882 | N86: 8.350264519e-06
A87: =IF('DF raw data'!E92="","",'DF raw data'!E92) -> -287.5 | B87: =IF('DF raw data'!F92="","",'DF raw data'!F92) -> -3.19681e-05 | C87: =IF('DF raw data'!G92="","",'DF raw data'!G92) -> -0.000111315 | D87: =IF('DF raw data'!H92="","",'DF raw data'!H92) -> -3.34208e-05 | F87: -3.213145699e-05 | G87: -0.0001118838196 | H87: -3.359158029e-05 | J87: -0.0003052110032 | K87: -0.001974727183 | L87: -0.001406432331 | M87: -0.009477400048 | N87: 9.385867348e-06
A88: =IF('DF raw data'!E93="","",'DF raw data'!E93) -> -287 | B88: =IF('DF raw data'!F93="","",'DF raw data'!F93) -> -2.92037e-05 | C88: =IF('DF raw data'!G93="","",'DF raw data'!G93) -> -0.000112058 | D88: =IF('DF raw data'!H93="","",'DF raw data'!H93) -> -4.46501e-05 | F88: -2.935293091e-05 | G88: -0.0001126306164 | H88: -4.487826201e-05 | J88: -0.0003198874686 | K88: -0.002134670917 | L88: -0.001462747639 | M88: -0.01020877387 | N88: 1.050684667e-05
A89: =IF('DF raw data'!E94="","",'DF raw data'!E94) -> -286.5 | B89: =IF('DF raw data'!F94="","",'DF raw data'!F94) -> -2.22153e-05 | C89: =IF('DF raw data'!G94="","",'DF raw data'!G94) -> -0.000115547 | D89: =IF('DF raw data'!H94="","",'DF raw data'!H94) -> -4.25177e-05 | F89: -2.232882018e-05 | G89: -0.0001161374452 | H89: -4.273496545e-05 | J89: -0.0003310518787 | K89: -0.002300196856 | L89: -0.001520816362 | M89: -0.01096918205 | N89: 1.171808555e-05
A90: =IF('DF raw data'!E95="","",'DF raw data'!E95) -> -286 | B90: =IF('DF raw data'!F95="","",'DF raw data'!F95) -> -2.57479e-05 | C90: =IF('DF raw data'!G95="","",'DF raw data'!G95) -> -0.000109939 | D90: =IF('DF raw data'!H95="","",'DF raw data'!H95) -> -3.36046e-05 | F90: -2.587947177e-05 | G90: -0.0001105007883 | H90: -3.377631951e-05 | J90: -0.0003439916146 | K90: -0.002472192663 | L90: -0.001576066756 | M90: -0.01175721543 | N90: 1.301924387e-05
A91: =IF('DF raw data'!E96="","",'DF raw data'!E96) -> -285.5 | B91: =IF('DF raw data'!F96="","",'DF raw data'!F96) -> -2.93971e-05 | C91: =IF('DF raw data'!G96="","",'DF raw data'!G96) -> -0.000107442 | D91: =IF('DF raw data'!H96="","",'DF raw data'!H96) -> -4.28619e-05 | F91: -2.954731918e-05 | G91: -0.0001079910286 | H91: -4.308092431e-05 | J91: -0.0003587652742 | K91: -0.002651575301 | L91: -0.00163006227 | M91: -0.01257224656 | N91: 1.441215164e-05
A92: =IF('DF raw data'!E97="","",'DF raw data'!E97) -> -285 | B92: =IF('DF raw data'!F97="","",'DF raw data'!F97) -> -2.31828e-05 | C92: =IF('DF raw data'!G97="","",'DF raw data'!G97) -> -0.000120495 | D92: =IF('DF raw data'!H97="","",'DF raw data'!H97) -> -3.40249e-05 | F92: -2.330126411e-05 | G92: -0.0001211107294 | H92: -3.419876724e-05 | J92: -0.0003704159063 | K92: -0.002836783254 | L92: -0.001690617635 | M92: -0.01341755538 | N92: 1.59098496e-05
A93: =IF('DF raw data'!E98="","",'DF raw data'!E98) -> -284.5 | B93: =IF('DF raw data'!F98="","",'DF raw data'!F98) -> -2.11245e-05 | C93: =IF('DF raw data'!G98="","",'DF raw data'!G98) -> -0.00011676 | D93: =IF('DF raw data'!H98="","",'DF raw data'!H98) -> -4.37073e-05 | F93: -2.12324462e-05 | G93: -0.0001173566436 | H93: -4.39306443e-05 | J93: -0.0003810321293 | K93: -0.003027299318 | L93: -0.001749295957 | M93: -0.01429220336 | N93: 1.751246052e-05
A94: =IF('DF raw data'!E99="","",'DF raw data'!E99) -> -284 | B94: =IF('DF raw data'!F99="","",'DF raw data'!F99) -> -2.47118e-05 | C94: =IF('DF raw data'!G99="","",'DF raw data'!G99) -> -0.000107321 | D94: =IF('DF raw data'!H99="","",'DF raw data'!H99) -> -4.9265e-05 | F94: -2.48380773e-05 | G94: -0.0001078694103 | H94: -4.951674415e-05 | J94: -0.000393451168 | K94: -0.003224024902 | L94: -0.001803230662 | M94: -0.01519381869 | N94: 1.921568284e-05
A95: =IF('DF raw data'!E100="","",'DF raw data'!E100) -> -283.5 | B95: =IF('DF raw data'!F100="","",'DF raw data'!F100) -> -2.65076e-05 | C95: =IF('DF raw data'!G100="","",'DF raw data'!G100) -> -0.000103513 | D95: =IF('DF raw data'!H100="","",'DF raw data'!H100) -> -4.86883e-05 | F95: -2.664305384e-05 | G95: -0.0001040419514 | H95: -4.893709721e-05 | J95: -0.0004067726949 | K95: -0.00342741125 | L95: -0.001855251638 | M95: -0.01612144451 | N95: 2.101939417e-05
A96: =IF('DF raw data'!E101="","",'DF raw data'!E101) -> -283 | B96: =IF('DF raw data'!F101="","",'DF raw data'!F101) -> -2.61296e-05 | C96: =IF('DF raw data'!G101="","",'DF raw data'!G101) -> -0.000108411 | D96: =IF('DF raw data'!H101="","",'DF raw data'!H101) -> -3.83996e-05 | F96: -2.626312226e-05 | G96: -0.0001089649802 | H96: -3.859582196e-05 | J96: -0.000419904256 | K96: -0.003637363378 | L96: -0.001909734128 | M96: -0.01707631157 | N96: 2.293109618e-05
A97: =IF('DF raw data'!E102="","",'DF raw data'!E102) -> -282.5 | B97: =IF('DF raw data'!F102="","",'DF raw data'!F102) -> -2.58678e-05 | C97: =IF('DF raw data'!G102="","",'DF raw data'!G102) -> -0.000111699 | D97: =IF('DF raw data'!H102="","",'DF raw data'!H102) -> -4.6605e-05 | F97: -2.599998446e-05 | G97: -0.0001122697819 | H97: -4.684315155e-05 | J97: -0.0004329042483 | K97: -0.003853815502 | L97: -0.001965869019 | M97: -0.01805924608 | N97: 2.495711972e-05
A98: =IF('DF raw data'!E103="","",'DF raw data'!E103) -> -282 | B98: =IF('DF raw data'!F103="","",'DF raw data'!F103) -> -2.05444e-05 | C98: =IF('DF raw data'!G103="","",'DF raw data'!G103) -> -0.000112837 | D98: =IF('DF raw data'!H103="","",'DF raw data'!H103) -> -4.81718e-05 | F98: -2.064938188e-05 | G98: -0.0001134135971 | H98: -4.84179579e-05 | J98: -0.0004432289392 | K98: -0.004075429972 | L98: -0.002022575817 | M98: -0.01907053399 | N98: 2.710075214e-05
A99: =IF('DF raw data'!E104="","",'DF raw data'!E104) -> -281.5 | B99: =IF('DF raw data'!F104="","",'DF raw data'!F104) -> -2.27986e-05 | C99: =IF('DF raw data'!G104="","",'DF raw data'!G104) -> -0.000111007 | D99: =IF('DF raw data'!H104="","",'DF raw data'!H104) -> -3.31331e-05 | F99: -2.291510085e-05 | G99: -0.0001115742458 | H99: -3.330241014e-05 | J99: -0.0004546864896 | K99: -0.004302773216 | L99: -0.00207836294 | M99: -0.02010971546 | N99: 2.93639183e-05
A100: =IF('DF raw data'!E105="","",'DF raw data'!E105) -> -281 | B100: =IF('DF raw data'!F105="","",'DF raw data'!F105) -> -3.6836e-05 | C100: =IF('DF raw data'!G105="","",'DF raw data'!G105) -> -0.00011133 | D100: =IF('DF raw data'!H105="","",'DF raw data'!H105) -> -4.22649e-05 | F100: -3.702423196e-05 | G100: -0.0001118988963 | H100: -4.248087364e-05 | J100: -0.0004731986056 | K100: -0.004539372519 | L100: -0.002134312388 | M100: -0.02117687165 | N100: 3.175352144e-05
A101: =IF('DF raw data'!E106="","",'DF raw data'!E106) -> -280.5 | B101: =IF('DF raw data'!F106="","",'DF raw data'!F106) -> -3.22788e-05 | C101: =IF('DF raw data'!G106="","",'DF raw data'!G106) -> -0.000115889 | D101: =IF('DF raw data'!H106="","",'DF raw data'!H106) -> -4.89223e-05 | F101: -3.244374467e-05 | G101: -0.0001164811928 | H101: -4.917229295e-05 | J101: -0.000489420478 | K101: -0.004784082758 | L101: -0.002192552985 | M101: -0.02227314815 | N101: 3.427693194e-05
A102: =IF('DF raw data'!E107="","",'DF raw data'!E107) -> -280 | B102: =IF('DF raw data'!F107="","",'DF raw data'!F107) -> -2.47127e-05 | C102: =IF('DF raw data'!G107="","",'DF raw data'!G107) -> -0.000120602 | D102: =IF('DF raw data'!H107="","",'DF raw data'!H107) -> -4.78942e-05 | F102: -2.48389819e-05 | G102: -0.0001212182762 | H102: -4.813893936e-05 | J102: -0.0005018399689 | K102: -0.005035002743 | L102: -0.002253162123 | M102: -0.02339972921 | N102: 3.694122339e-05
A103: =IF('DF raw data'!E108="","",'DF raw data'!E108) -> -279.5 | B103: =IF('DF raw data'!F108="","",'DF raw data'!F108) -> -1.19525e-05 | C103: =IF('DF raw data'!G108="","",'DF raw data'!G108) -> -0.000110666 | D103: =IF('DF raw data'!H108="","",'DF raw data'!H108) -> -4.69739e-05 | F103: -1.201357727e-05 | G103: -0.0001112315033 | H103: -4.721393663e-05 | J103: -0.0005078467575 | K103: -0.005288926121 | L103: -0.002308777874 | M103: -0.02455411814 | N103: 3.973540519e-05
A104: =IF('DF raw data'!E109="","",'DF raw data'!E109) -> -279 | B104: =IF('DF raw data'!F109="","",'DF raw data'!F109) -> -1.79235e-05 | C104: =IF('DF raw data'!G109="","",'DF raw data'!G109) -> -0.000113455 | D104: =IF('DF raw data'!H109="","",'DF raw data'!H109) -> -3.53908e-05 | F104: -1.801508908e-05 | G104: -0.000114034755 | H104: -3.557164699e-05 | J104: -0.0005168543021 | K104: -0.005547353272 | L104: -0.002365795252 | M104: -0.02573701577 | N104: 4.266746797e-05
A105: =IF('DF raw data'!E110="","",'DF raw data'!E110) -> -278.5 | B105: =IF('DF raw data'!F110="","",'DF raw data'!F110) -> -1.94592e-05 | C105: =IF('DF raw data'!G110="","",'DF raw data'!G110) -> -0.000108473 | D105: =IF('DF raw data'!H110="","",'DF raw data'!H110) -> -4.03959e-05 | F105: -1.955863651e-05 | G105: -0.000109027297 | H105: -4.060232305e-05 | J105: -0.0005266336203 | K105: -0.005810670083 | L105: -0.0024203089 | M105: -0.02694717022 | N105: 4.573508704e-05
A106: =IF('DF raw data'!E111="","",'DF raw data'!E111) -> -278 | B106: =IF('DF raw data'!F111="","",'DF raw data'!F111) -> -2.01018e-05 | C106: =IF('DF raw data'!G111="","",'DF raw data'!G111) -> -0.000111796 | D106: =IF('DF raw data'!H111="","",'DF raw data'!H111) -> -3.8805e-05 | F106: -2.02045202e-05 | G106: -0.0001123672776 | H106: -3.900329355e-05 | J106: -0.0005367358804 | K106: -0.006079038023 | L106: -0.002476492539 | M106: -0.02818541649 | N106: 4.894563739e-05
A107: =IF('DF raw data'!E112="","",'DF raw data'!E112) -> -277.5 | B107: =IF('DF raw data'!F112="","",'DF raw data'!F112) -> -2.81225e-05 | C107: =IF('DF raw data'!G112="","",'DF raw data'!G112) -> -0.000112644 | D107: =IF('DF raw data'!H112="","",'DF raw data'!H112) -> -3.07464e-05 | F107: -2.826620597e-05 | G107: -0.0001132196108 | H107: -3.09035141e-05 | J107: -0.0005508689834 | K107: -0.006354472515 | L107: -0.002533102345 | M107: -0.02945196766 | N107: 5.230566945e-05
A108: =IF('DF raw data'!E113="","",'DF raw data'!E113) -> -277 | B108: =IF('DF raw data'!F113="","",'DF raw data'!F113) -> -2.49762e-05 | C108: =IF('DF raw data'!G113="","",'DF raw data'!G113) -> -0.000114413 | D108: =IF('DF raw data'!H113="","",'DF raw data'!H113) -> -3.70576e-05 | F108: -2.510382838e-05 | G108: -0.0001149976504 | H108: -3.724696434e-05 | J108: -0.0005634208976 | K108: -0.006636182963 | L108: -0.00259060117 | M108: -0.03074726825 | N108: 5.581999822e-05
A109: =IF('DF raw data'!E114="","",'DF raw data'!E114) -> -276.5 | B109: =IF('DF raw data'!F114="","",'DF raw data'!F114) -> -2.00978e-05 | C109: =IF('DF raw data'!G114="","",'DF raw data'!G114) -> -0.000111817 | D109: =IF('DF raw data'!H114="","",'DF raw data'!H114) -> -4.48978e-05 | F109: -2.020049976e-05 | G109: -0.0001123883849 | H109: -4.512722776e-05 | J109: -0.0005735211475 | K109: -0.006922943537 | L109: -0.002646795362 | M109: -0.03207066593 | N109: 5.948722431e-05
A110: =IF('DF raw data'!E115="","",'DF raw data'!E115) -> -276 | B110: =IF('DF raw data'!F115="","",'DF raw data'!F115) -> -2.34291e-05 | C110: =IF('DF raw data'!G115="","",'DF raw data'!G115) -> -0.000114139 | D110: =IF('DF raw data'!H115="","",'DF raw data'!H115) -> -4.96657e-05 | F110: -2.35488227e-05 | G110: -0.0001147222503 | H110: -4.991949173e-05 | J110: -0.0005852955588 | K110: -0.007215591317 | L110: -0.002704156487 | M110: -0.03342274417 | N110: 6.331474091e-05
A111: =IF('DF raw data'!E116="","",'DF raw data'!E116) -> -275.5 | B111: =IF('DF raw data'!F116="","",'DF raw data'!F116) -> -2.34301e-05 | C111: =IF('DF raw data'!G116="","",'DF raw data'!G116) -> -0.000120408 | D111: =IF('DF raw data'!H116="","",'DF raw data'!H116) -> -4.81388e-05 | F111: -2.354982781e-05 | G111: -0.0001210232849 | H111: -4.838478927e-05 | J111: -0.0005970704727 | K111: -0.007514126553 | L111: -0.00276466813 | M111: -0.03480507824 | N111: 6.731468242e-05
A112: =IF('DF raw data'!E117="","",'DF raw data'!E117) -> -275 | B112: =IF('DF raw data'!F117="","",'DF raw data'!F117) -> -2.5295e-05 | C112: =IF('DF raw data'!G117="","",'DF raw data'!G117) -> -0.000119183 | D112: =IF('DF raw data'!H117="","",'DF raw data'!H117) -> -4.01197e-05 | F112: -2.542425745e-05 | G112: -0.0001197920251 | H112: -4.032471167e-05 | J112: -0.0006097826015 | K112: -0.007819017854 | L112: -0.002824564142 | M112: -0.03621736031 | N112: 7.148968113e-05
A113: =IF('DF raw data'!E118="","",'DF raw data'!E118) -> -274.5 | B113: =IF('DF raw data'!F118="","",'DF raw data'!F118) -> -2.4975e-05 | C113: =IF('DF raw data'!G118="","",'DF raw data'!G118) -> -0.000119266 | D113: =IF('DF raw data'!H118="","",'DF raw data'!H118) -> -3.89425e-05 | F113: -2.510262225e-05 | G113: -0.0001198754493 | H113: -3.914149618e-05 | J113: -0.0006223339126 | K113: -0.00813018481 | L113: -0.002884501867 | M113: -0.03765961124 | N113: 7.584350639e-05
A114: =IF('DF raw data'!E119="","",'DF raw data'!E119) -> -274 | B114: =IF('DF raw data'!F119="","",'DF raw data'!F119) -> -2.43375e-05 | C114: =IF('DF raw data'!G119="","",'DF raw data'!G119) -> -0.00011975 | D114: =IF('DF raw data'!H119="","",'DF raw data'!H119) -> -3.31588e-05 | F114: -2.446186462e-05 | G114: -0.0001203619225 | H114: -3.332824147e-05 | J114: -0.0006345648449 | K114: -0.008447467232 | L114: -0.002944682828 | M114: -0.03913195266 | N114: 8.038042114e-05
A115: =IF('DF raw data'!E120="","",'DF raw data'!E120) -> -273.5 | B115: =IF('DF raw data'!F120="","",'DF raw data'!F120) -> -2.04247e-05 | C115: =IF('DF raw data'!G120="","",'DF raw data'!G120) -> -0.000120614 | D115: =IF('DF raw data'!H120="","",'DF raw data'!H120) -> -3.49631e-05 | F115: -2.052907022e-05 | G115: -0.0001212303375 | H115: -3.514176144e-05 | J115: -0.00064482938 | K115: -0.008769881922 | L115: -0.003005297997 | M115: -0.04063460165 | N115: 8.510423163e-05
A116: =IF('DF raw data'!E121="","",'DF raw data'!E121) -> -273 | B116: =IF('DF raw data'!F121="","",'DF raw data'!F121) -> -2.20852e-05 | C116: =IF('DF raw data'!G121="","",'DF raw data'!G121) -> -0.000116248 | D116: =IF('DF raw data'!H121="","",'DF raw data'!H121) -> -4.52989e-05 | F116: -2.219805537e-05 | G116: -0.0001168420273 | H116: -4.553037738e-05 | J116: -0.0006559284077 | K116: -0.009097846126 | L116: -0.003063719011 | M116: -0.04216646116 | N116: 9.001253976e-05
A117: =IF('DF raw data'!E122="","",'DF raw data'!E122) -> -272.5 | B117: =IF('DF raw data'!F122="","",'DF raw data'!F122) -> -2.58042e-05 | C117: =IF('DF raw data'!G122="","",'DF raw data'!G122) -> -0.000124667 | D117: =IF('DF raw data'!H122="","",'DF raw data'!H122) -> -4.60037e-05 | F117: -2.593605946e-05 | G117: -0.0001253040484 | H117: -4.623877891e-05 | J117: -0.0006688964374 | K117: -0.009432294345 | L117: -0.003126371035 | M117: -0.04372964668 | N117: 9.51233489e-05
A118: =IF('DF raw data'!E123="","",'DF raw data'!E123) -> -272 | B118: =IF('DF raw data'!F123="","",'DF raw data'!F123) -> -3.0354e-05 | C118: =IF('DF raw data'!G123="","",'DF raw data'!G123) -> -0.000114927 | D118: =IF('DF raw data'!H123="","",'DF raw data'!H123) -> -5.07262e-05 | F118: -3.050910894e-05 | G118: -0.000115514277 | H118: -5.098541088e-05 | J118: -0.0006841509919 | K118: -0.009774369841 | L118: -0.003184128173 | M118: -0.04532171076 | N118: 0.0001004267163
A119: =IF('DF raw data'!E124="","",'DF raw data'!E124) -> -271.5 | B119: =IF('DF raw data'!F124="","",'DF raw data'!F124) -> -3.35027e-05 | C119: =IF('DF raw data'!G124="","",'DF raw data'!G124) -> -0.000115531 | D119: =IF('DF raw data'!H124="","",'DF raw data'!H124) -> -4.06696e-05 | F119: -3.36738988e-05 | G119: -0.0001161213634 | H119: -4.087742166e-05 | J119: -0.0007009879413 | K119: -0.01012486381 | L119: -0.003242188855 | M119: -0.04694280519 | N119: 0.0001059283026
A120: =IF('DF raw data'!E125="","",'DF raw data'!E125) -> -271 | B120: =IF('DF raw data'!F125="","",'DF raw data'!F125) -> -3.11237e-05 | C120: =IF('DF raw data'!G125="","",'DF raw data'!G125) -> -0.00011885 | D120: =IF('DF raw data'!H125="","",'DF raw data'!H125) -> -5.04173e-05 | F120: -3.128274211e-05 | G120: -0.0001194573235 | H120: -5.06749324e-05 | J120: -0.0007166293124 | K120: -0.01048317847 | L120: -0.003301917517 | M120: -0.04859376395 | N120: 0.0001116364111
A121: =IF('DF raw data'!E126="","",'DF raw data'!E126) -> -270.5 | B121: =IF('DF raw data'!F126="","",'DF raw data'!F126) -> -1.98435e-05 | C121: =IF('DF raw data'!G126="","",'DF raw data'!G126) -> -0.000112181 | D121: =IF('DF raw data'!H126="","",'DF raw data'!H126) -> -4.14972e-05 | F121: -1.994490028e-05 | G121: -0.0001127542449 | H121: -4.170925069e-05 | J121: -0.0007266017625 | K121: -0.01084647935 | L121: -0.003358294639 | M121: -0.05027291127 | N121: 0.0001175394576
A122: =IF('DF raw data'!E127="","",'DF raw data'!E127) -> -270 | B122: =IF('DF raw data'!F127="","",'DF raw data'!F127) -> -2.4519e-05 | C122: =IF('DF raw data'!G127="","",'DF raw data'!G127) -> -0.000112381 | D122: =IF('DF raw data'!H127="","",'DF raw data'!H127) -> -5.01782e-05 | F122: -2.464429209e-05 | G122: -0.0001129552669 | H122: -5.04346106e-05 | J122: -0.0007389239085 | K122: -0.0112159413 | L122: -0.003414772273 | M122: -0.05198029741 | N122: 0.0001236427967
A123: =IF('DF raw data'!E128="","",'DF raw data'!E128) -> -269.5 | B123: =IF('DF raw data'!F128="","",'DF raw data'!F128) -> -2.27228e-05 | C123: =IF('DF raw data'!G128="","",'DF raw data'!G128) -> -0.000112853 | D123: =IF('DF raw data'!H128="","",'DF raw data'!H128) -> -5.09557e-05 | F123: -2.283891351e-05 | G123: -0.0001134296788 | H123: -5.121608363e-05 | J123: -0.0007503433653 | K123: -0.01159111299 | L123: -0.003471487112 | M123: -0.05371604096 | N123: 0.0001299499156
A124: =IF('DF raw data'!E129="","",'DF raw data'!E129) -> -269 | B124: =IF('DF raw data'!F129="","",'DF raw data'!F129) -> -2.17692e-05 | C124: =IF('DF raw data'!G129="","",'DF raw data'!G129) -> -0.000111224 | D124: =IF('DF raw data'!H129="","",'DF raw data'!H129) -> -3.84034e-05 | F124: -2.188044061e-05 | G124: -0.0001117923546 | H124: -3.859964137e-05 | J124: -0.0007612835856 | K124: -0.01197175478 | L124: -0.00352738329 | M124: -0.05547973261 | N124: 0.0001364609084
A125: =IF('DF raw data'!E130="","",'DF raw data'!E130) -> -268.5 | B125: =IF('DF raw data'!F130="","",'DF raw data'!F130) -> -1.98422e-05 | C125: =IF('DF raw data'!G130="","",'DF raw data'!G130) -> -0.00011758 | D125: =IF('DF raw data'!H130="","",'DF raw data'!H130) -> -4.35668e-05 | F125: -1.994359364e-05 | G125: -0.0001181808338 | H125: -4.378942635e-05 | J125: -0.0007712553824 | K125: -0.01235738247 | L125: -0.003586473706 | M125: -0.05727296946 | N125: 0.0001431897227
A126: =IF('DF raw data'!E131="","",'DF raw data'!E131) -> -268 | B126: =IF('DF raw data'!F131="","",'DF raw data'!F131) -> -2.45879e-05 | C126: =IF('DF raw data'!G131="","",'DF raw data'!G131) -> -0.000127787 | D126: =IF('DF raw data'!H131="","",'DF raw data'!H131) -> -4.27146e-05 | F126: -2.471354417e-05 | G126: -0.0001284399916 | H126: -4.293287161e-05 | J126: -0.0007836121545 | K126: -0.01274918855 | L126: -0.003650693702 | M126: -0.05909831631 | N126: 0.0001501605289
A127: =IF('DF raw data'!E132="","",'DF raw data'!E132) -> -267.5 | B127: =IF('DF raw data'!F132="","",'DF raw data'!F132) -> -2.63833e-05 | C127: =IF('DF raw data'!G132="","",'DF raw data'!G132) -> -0.00012694 | D127: =IF('DF raw data'!H132="","",'DF raw data'!H132) -> -4.27493e-05 | F127: -2.651811866e-05 | G127: -0.0001275886634 | H127: -4.296774892e-05 | J127: -0.0007968712138 | K127: -0.01314762415 | L127: -0.003714488034 | M127: -0.06095556033 | N127: 0.0001573767415
A128: =IF('DF raw data'!E133="","",'DF raw data'!E133) -> -267 | B128: =IF('DF raw data'!F133="","",'DF raw data'!F133) -> -1.18273e-05 | C128: =IF('DF raw data'!G133="","",'DF raw data'!G133) -> -0.000119488 | D128: =IF('DF raw data'!H133="","",'DF raw data'!H133) -> -4.22117e-05 | F128: =(1-$G$1*($B$49-$G$2))*B128 -> -1.18877375e-05 | G128: -0.0001200985837 | H128: -4.242740179e-05 | J128: =F128*$G$3+J127 -> -0.0008028150826 | K128: =J128*$G$3+K127 -> -0.0135490317 | L128: =G128*$G$3+L127 -> -0.003774537326 | M128: =L128*$G$3+M127 -> -0.06284282899 | N128: =(J128^2+L128^2)*$G$3+N127 -> 0.0001648225635
A129: =IF('DF raw data'!E134="","",'DF raw data'!E134) -> -266.5 | B129: =IF('DF raw data'!F134="","",'DF raw data'!F134) -> -1.04175e-05 | C129: =IF('DF raw data'!G134="","",'DF raw data'!G134) -> -0.000112377 | D129: =IF('DF raw data'!H134="","",'DF raw data'!H134) -> -4.07946e-05 | F129: -1.047073342e-05 | G129: -0.0001129512465 | H129: -4.100306041e-05 | J129: -0.0008080504493 | K129: -0.01395305692 | L129: -0.003831012949 | M129: -0.06475833547 | N129: 0.0001724873664
A130: =IF('DF raw data'!E135="","",'DF raw data'!E135) -> -266 | B130: =IF('DF raw data'!F135="","",'DF raw data'!F135) -> -2.67039e-05 | C130: =IF('DF raw data'!G135="","",'DF raw data'!G135) -> -0.000107177 | D130: =IF('DF raw data'!H135="","",'DF raw data'!H135) -> -4.29638e-05 | F130: -2.684035693e-05 | G130: -0.0001077246745 | H130: -4.318334502e-05 | J130: -0.0008214706278 | K130: -0.01436379223 | L130: -0.003884875286 | M130: -0.06670077311 | N130: 0.0001803709014
A131: =IF('DF raw data'!E136="","",'DF raw data'!E136) -> -265.5 | B131: =IF('DF raw data'!F136="","",'DF raw data'!F136) -> -2.9521e-05 | C131: =IF('DF raw data'!G136="","",'DF raw data'!G136) -> -0.000113453 | D131: =IF('DF raw data'!H136="","",'DF raw data'!H136) -> -4.96412e-05 | F131: -2.967185231e-05 | G131: -0.0001140327448 | H131: -4.989486653e-05 | J131: -0.0008363065539 | K131: -0.01478194551 | L131: -0.003941891659 | M131: -0.06867171894 | N131: 0.0001884898606
A132: =IF('DF raw data'!E137="","",'DF raw data'!E137) -> -265 | B132: =IF('DF raw data'!F137="","",'DF raw data'!F137) -> -2.60663e-05 | C132: =IF('DF raw data'!G137="","",'DF raw data'!G137) -> -0.000118069 | D132: =IF('DF raw data'!H137="","",'DF raw data'!H137) -> -3.7303e-05 | F132: -2.619949879e-05 | G132: -0.0001186723326 | H132: -3.749361833e-05 | J132: -0.0008494063033 | K132: -0.01520664866 | L132: -0.004001227825 | M132: -0.07067233285 | N132: 0.0001968555182
A133: =IF('DF raw data'!E138="","",'DF raw data'!E138) -> -264.5 | B133: =IF('DF raw data'!F138="","",'DF raw data'!F138) -> -2.23386e-05 | C133: =IF('DF raw data'!G138="","",'DF raw data'!G138) -> -0.000116371 | D133: =IF('DF raw data'!H138="","",'DF raw data'!H138) -> -5.01892e-05 | F133: -2.245275025e-05 | G133: -0.0001169656558 | H133: -5.044566681e-05 | J133: -0.0008606326784 | K133: -0.015636965 | L133: -0.004059710653 | M133: -0.07270218818 | N133: 0.0002054664878
A134: =IF('DF raw data'!E139="","",'DF raw data'!E139) -> -264 | B134: =IF('DF raw data'!F139="","",'DF raw data'!F139) -> -1.86264e-05 | C134: =IF('DF raw data'!G139="","",'DF raw data'!G139) -> -0.000120199 | D134: =IF('DF raw data'!H139="","",'DF raw data'!H139) -> -3.94934e-05 | F134: -1.87215809e-05 | G134: -0.0001208132169 | H134: -3.969521127e-05 | J134: -0.0008699934689 | K134: -0.01607196174 | L134: -0.004120117261 | M134: -0.07476224681 | N134: 0.0002143326153
A135: =IF('DF raw data'!E140="","",'DF raw data'!E140) -> -263.5 | B135: =IF('DF raw data'!F140="","",'DF raw data'!F140) -> -2.47757e-05 | C135: =IF('DF raw data'!G140="","",'DF raw data'!G140) -> -0.000122713 | D135: =IF('DF raw data'!H140="","",'DF raw data'!H140) -> -4.99372e-05 | F135: -2.490230383e-05 | G135: -0.0001233400634 | H135: -5.019237909e-05 | J135: -0.0008824446208 | K135: -0.01651318405 | L135: -0.004181787293 | M135: -0.07685314045 | N135: 0.000223465642
A136: =IF('DF raw data'!E141="","",'DF raw data'!E141) -> -263 | B136: =IF('DF raw data'!F141="","",'DF raw data'!F141) -> -2.36905e-05 | C136: =IF('DF raw data'!G141="","",'DF raw data'!G141) -> -0.000115525 | D136: =IF('DF raw data'!H141="","",'DF raw data'!H141) -> -4.20938e-05 | F136: -2.381155845e-05 | G136: -0.0001161153327 | H136: -4.230889932e-05 | J136: -0.0008943504 | K136: -0.01696035925 | L136: -0.004239844959 | M136: -0.07897306293 | N136: 0.000232853716
A137: =IF('DF raw data'!E142="","",'DF raw data'!E142) -> -262.5 | B137: =IF('DF raw data'!F142="","",'DF raw data'!F142) -> -2.42023e-05 | C137: =IF('DF raw data'!G142="","",'DF raw data'!G142) -> -0.000108623 | D137: =IF('DF raw data'!H142="","",'DF raw data'!H142) -> -4.39784e-05 | F137: -2.432597375e-05 | G137: -0.0001091780635 | H137: -4.420312962e-05 | J137: -0.0009065133869 | K137: -0.01741361594 | L137: -0.004294433991 | M137: -0.08112027993 | N137: 0.0002424856809
A138: =IF('DF raw data'!E143="","",'DF raw data'!E143) -> -262 | B138: =IF('DF raw data'!F143="","",'DF raw data'!F143) -> -2.15058e-05 | C138: =IF('DF raw data'!G143="","",'DF raw data'!G143) -> -0.000115578 | D138: =IF('DF raw data'!H143="","",'DF raw data'!H143) -> -4.91686e-05 | F138: -2.161569464e-05 | G138: -0.0001161686036 | H138: -4.941985155e-05 | J138: -0.0009173212342 | K138: -0.01787227656 | L138: -0.004352518293 | M138: -0.08329653908 | N138: 0.0002523786277
A139: =IF('DF raw data'!E144="","",'DF raw data'!E144) -> -261.5 | B139: =IF('DF raw data'!F144="","",'DF raw data'!F144) -> -1.22114e-05 | C139: =IF('DF raw data'!G144="","",'DF raw data'!G144) -> -0.0001174 | D139: =IF('DF raw data'!H144="","",'DF raw data'!H144) -> -4.32167e-05 | F139: -1.227380025e-05 | G139: -0.000117999914 | H139: -4.343753734e-05 | J139: -0.0009234581344 | K139: -0.01833400562 | L139: -0.00441151825 | M139: -0.0855022982 | N139: 0.0002625357618
A140: =IF('DF raw data'!E145="","",'DF raw data'!E145) -> -261 | B140: =IF('DF raw data'!F145="","",'DF raw data'!F145) -> -2.59321e-05 | C140: =IF('DF raw data'!G145="","",'DF raw data'!G145) -> -0.000115234 | D140: =IF('DF raw data'!H145="","",'DF raw data'!H145) -> -4.64762e-05 | F140: -2.606461303e-05 | G140: -0.0001158228457 | H140: -4.671369338e-05 | J140: -0.0009364904409 | K140: -0.01880225084 | L140: -0.004469429673 | M140: -0.08773701304 | N140: 0.0002729621698
A141: =IF('DF raw data'!E146="","",'DF raw data'!E146) -> -260.5 | B141: =IF('DF raw data'!F146="","",'DF raw data'!F146) -> -2.86869e-05 | C141: =IF('DF raw data'!G146="","",'DF raw data'!G146) -> -0.000106681 | D141: =IF('DF raw data'!H146="","",'DF raw data'!H146) -> -5.01514e-05 | F141: -2.883349006e-05 | G141: -0.0001072261399 | H141: -5.040767365e-05 | J141: -0.0009509071859 | K141: -0.01927770444 | L141: -0.004523042743 | M141: -0.08999853441 | N141: 0.0002836432399
A142: =IF('DF raw data'!E147="","",'DF raw data'!E147) -> -260 | B142: =IF('DF raw data'!F147="","",'DF raw data'!F147) -> -2.90753e-05 | C142: =IF('DF raw data'!G147="","",'DF raw data'!G147) -> -0.000116663 | D142: =IF('DF raw data'!H147="","",'DF raw data'!H147) -> -4.49219e-05 | F142: -2.922387478e-05 | G142: -0.0001172591479 | H142: -4.515145091e-05 | J142: -0.0009655191233 | K142: -0.019760464 | L142: -0.004581672317 | M142: -0.09228937057 | N142: 0.0002946052141
A143: =IF('DF raw data'!E148="","",'DF raw data'!E148) -> -259.5 | B143: =IF('DF raw data'!F148="","",'DF raw data'!F148) -> -3.24208e-05 | C143: =IF('DF raw data'!G148="","",'DF raw data'!G148) -> -0.000124532 | D143: =IF('DF raw data'!H148="","",'DF raw data'!H148) -> -2.78009e-05 | F143: -3.258647029e-05 | G143: -0.0001251683585 | H143: -2.79429626e-05 | J143: -0.0009818123584 | K143: -0.02025137018 | L143: -0.004644256496 | M143: -0.09461149881 | N143: 0.000305871751
A144: =IF('DF raw data'!E149="","",'DF raw data'!E149) -> -259 | B144: =IF('DF raw data'!F149="","",'DF raw data'!F149) -> -2.53604e-05 | C144: =IF('DF raw data'!G149="","",'DF raw data'!G149) -> -0.00011485 | D144: =IF('DF raw data'!H149="","",'DF raw data'!H149) -> -3.80389e-05 | F144: -2.548999164e-05 | G144: -0.0001154368835 | H144: -3.823327878e-05 | J144: -0.0009945573543 | K144: -0.02074864886 | L144: -0.004701974938 | M144: -0.09696248628 | N144: 0.0003174206074
A145: =IF('DF raw data'!E150="","",'DF raw data'!E150) -> -258.5 | B145: =IF('DF raw data'!F150="","",'DF raw data'!F150) -> -2.21585e-05 | C145: =IF('DF raw data'!G150="","",'DF raw data'!G150) -> -0.000116472 | D145: =IF('DF raw data'!H150="","",'DF raw data'!H150) -> -3.14742e-05 | F145: -2.227172994e-05 | G145: -0.0001170671719 | H145: -3.163503316e-05 | J145: -0.001005693219 | K145: -0.02125149547 | L145: -0.004760508524 | M145: -0.09934274054 | N145: 0.0003292575375
A146: =IF('DF raw data'!E151="","",'DF raw data'!E151) -> -258 | B146: =IF('DF raw data'!F151="","",'DF raw data'!F151) -> -2.59981e-05 | C146: =IF('DF raw data'!G151="","",'DF raw data'!G151) -> -0.000125345 | D146: =IF('DF raw data'!H151="","",'DF raw data'!H151) -> -4.33683e-05 | F146: -2.613095029e-05 | G146: -0.0001259855129 | H146: -4.358991201e-05 | J146: -0.001018758694 | K146: -0.02176087481 | L146: -0.00482350128 | M146: -0.1017544912 | N146: 0.0003414095544
A147: =IF('DF raw data'!E152="","",'DF raw data'!E152) -> -257.5 | B147: =IF('DF raw data'!F152="","",'DF raw data'!F152) -> -2.77922e-05 | C147: =IF('DF raw data'!G152="","",'DF raw data'!G152) -> -0.000114903 | D147: =IF('DF raw data'!H152="","",'DF raw data'!H152) -> -4.55401e-05 | F147: -2.793421814e-05 | G147: -0.0001154901543 | H147: -4.577280991e-05 | J147: -0.001032725803 | K147: -0.02227723771 | L147: -0.004881246357 | M147: -0.1041951144 | N147: 0.0003538560987
A148: =IF('DF raw data'!E153="","",'DF raw data'!E153) -> -257 | B148: =IF('DF raw data'!F153="","",'DF raw data'!F153) -> -3.23412e-05 | C148: =IF('DF raw data'!G153="","",'DF raw data'!G153) -> -0.000115694 | D148: =IF('DF raw data'!H153="","",'DF raw data'!H153) -> -5.15203e-05 | F148: -3.250646353e-05 | G148: -0.0001162851963 | H148: -5.178356873e-05 | J148: -0.001048979035 | K148: -0.02280172723 | L148: -0.004939388955 | M148: -0.1066648088 | N148: 0.0003666050588
A149: =IF('DF raw data'!E154="","",'DF raw data'!E154) -> -256.5 | B149: =IF('DF raw data'!F154="","",'DF raw data'!F154) -> -2.19579e-05 | C149: =IF('DF raw data'!G154="","",'DF raw data'!G154) -> -0.000119889 | D149: =IF('DF raw data'!H154="","",'DF raw data'!H154) -> -4.38569e-05 | F149: -2.207010487e-05 | G149: -0.0001205016328 | H149: -4.408100876e-05 | J149: -0.001060014088 | K149: -0.02333173428 | L149: -0.004999639772 | M149: -0.1091646287 | N149: 0.0003796650727
A150: =IF('DF raw data'!E155="","",'DF raw data'!E155) -> -256 | B150: =IF('DF raw data'!F155="","",'DF raw data'!F155) -> -3.06838e-05 | C150: =IF('DF raw data'!G155="","",'DF raw data'!G155) -> -0.00011988 | D150: =IF('DF raw data'!H155="","",'DF raw data'!H155) -> -3.62994e-05 | F150: -3.084059422e-05 | G150: -0.0001204925868 | H150: -3.648488993e-05 | J150: -0.001075434385 | K150: -0.02386945147 | L150: -0.005059886065 | M150: -0.1116945718 | N150: 0.0003930445758
A151: =IF('DF raw data'!E156="","",'DF raw data'!E156) -> -255.5 | B151: =IF('DF raw data'!F156="","",'DF raw data'!F156) -> -2.7342e-05 | C151: =IF('DF raw data'!G156="","",'DF raw data'!G156) -> -0.00011478 | D151: =IF('DF raw data'!H156="","",'DF raw data'!H156) -> -4.78437e-05 | F151: -2.748171762e-05 | G151: -0.0001153665258 | H151: -4.808818131e-05 | J151: -0.001089175244 | K151: -0.02441403909 | L151: -0.005117569328 | M151: -0.1142533564 | N151: 0.000406732485
A152: =IF('DF raw data'!E157="","",'DF raw data'!E157) -> -255 | B152: =IF('DF raw data'!F157="","",'DF raw data'!F157) -> -2.47828e-05 | C152: =IF('DF raw data'!G157="","",'DF raw data'!G157) -> -0.000107459 | D152: =IF('DF raw data'!H157="","",'DF raw data'!H157) -> -3.90118e-05 | F152: -2.490944011e-05 | G152: -0.0001080081155 | H152: -3.92111503e-05 | J152: -0.001101629964 | K152: -0.02496485407 | L152: -0.005171573386 | M152: -0.1168391431 | N152: 0.000420711865
A153: =IF('DF raw data'!E158="","",'DF raw data'!E158) -> -254.5 | B153: =IF('DF raw data'!F158="","",'DF raw data'!F158) -> -1.74008e-05 | C153: =IF('DF raw data'!G158="","",'DF raw data'!G158) -> -0.000103386 | D153: =IF('DF raw data'!H158="","",'DF raw data'!H158) -> -5.0411e-05 | F153: -1.748971809e-05 | G153: -0.0001039143025 | H153: -5.066860021e-05 | J153: -0.001110374823 | K153: -0.02552004148 | L153: -0.005223530537 | M153: -0.1194509084 | N153: 0.0004349709667
A154: =IF('DF raw data'!E159="","",'DF raw data'!E159) -> -254 | B154: =IF('DF raw data'!F159="","",'DF raw data'!F159) -> -2.25942e-05 | C154: =IF('DF raw data'!G159="","",'DF raw data'!G159) -> -0.000106113 | D154: =IF('DF raw data'!H159="","",'DF raw data'!H159) -> -5.14853e-05 | F154: -2.270965636e-05 | G154: -0.0001066552374 | H154: -5.174838988e-05 | J154: -0.001121729651 | K154: -0.02608090631 | L154: -0.005276858156 | M154: -0.1220893375 | N154: 0.0004495227214
A155: =IF('DF raw data'!E160="","",'DF raw data'!E160) -> -253.5 | B155: =IF('DF raw data'!F160="","",'DF raw data'!F160) -> -1.27853e-05 | C155: =IF('DF raw data'!G160="","",'DF raw data'!G160) -> -0.000111356 | D155: =IF('DF raw data'!H160="","",'DF raw data'!H160) -> -4.8424e-05 | F155: -1.285063288e-05 | G155: -0.0001119250292 | H155: -4.867144664e-05 | J155: -0.001128154967 | K155: -0.02664498379 | L155: -0.00533282067 | M155: -0.1247557478 | N155: 0.0004643785764
A156: =IF('DF raw data'!E161="","",'DF raw data'!E161) -> -253 | B156: =IF('DF raw data'!F161="","",'DF raw data'!F161) -> -1.77932e-05 | C156: =IF('DF raw data'!G161="","",'DF raw data'!G161) -> -0.000110979 | D156: =IF('DF raw data'!H161="","",'DF raw data'!H161) -> -3.87084e-05 | F156: -1.788412325e-05 | G156: -0.0001115461027 | H156: -3.890619992e-05 | J156: -0.001137097029 | K156: -0.02721353231 | L156: -0.005388593722 | M156: -0.1274500447 | N156: 0.0004795435424
A157: =IF('DF raw data'!E162="","",'DF raw data'!E162) -> -252.5 | B157: =IF('DF raw data'!F162="","",'DF raw data'!F162) -> -1.7917e-05 | C157: =IF('DF raw data'!G162="","",'DF raw data'!G162) -> -0.000113468 | D157: =IF('DF raw data'!H162="","",'DF raw data'!H162) -> -4.54721e-05 | F157: -1.800855587e-05 | G157: -0.0001140478215 | H157: -4.570446243e-05 | J157: -0.001146101307 | K157: -0.02778658296 | L157: -0.005445617633 | M157: -0.1301728535 | N157: 0.0004950276922
A158: =IF('DF raw data'!E163="","",'DF raw data'!E163) -> -252 | B158: =IF('DF raw data'!F163="","",'DF raw data'!F163) -> -3.29881e-05 | C158: =IF('DF raw data'!G163="","",'DF raw data'!G163) -> -0.000117192 | D158: =IF('DF raw data'!H163="","",'DF raw data'!H163) -> -4.27286e-05 | F158: -3.315666919e-05 | G158: -0.0001177908511 | H158: -4.294694315e-05 | J158: -0.001162679641 | K158: -0.02836792278 | L158: -0.005504513058 | M158: -0.13292511 | N158: 0.0005108534361
A159: =IF('DF raw data'!E164="","",'DF raw data'!E164) -> -251.5 | B159: =IF('DF raw data'!F164="","",'DF raw data'!F164) -> -2.47827e-05 | C159: =IF('DF raw data'!G164="","",'DF raw data'!G164) -> -0.000113476 | D159: =IF('DF raw data'!H164="","",'DF raw data'!H164) -> -3.91222e-05 | F159: -2.49093396e-05 | G159: -0.0001140558624 | H159: -3.932211444e-05 | J159: -0.001175134311 | K159: -0.02895548994 | L159: -0.005561540989 | M159: -0.1357058805 | N159: 0.0005270092756
A160: =IF('DF raw data'!E165="","",'DF raw data'!E165) -> -251 | B160: =IF('DF raw data'!F165="","",'DF raw data'!F165) -> -2.45243e-05 | C160: =IF('DF raw data'!G165="","",'DF raw data'!G165) -> -0.000119525 | D160: =IF('DF raw data'!H165="","",'DF raw data'!H165) -> -4.20731e-05 | F160: -2.464961917e-05 | G160: -0.0001201357728 | H160: -4.228809354e-05 | J160: -0.001187459121 | K160: -0.0295492195 | L160: -0.005621608876 | M160: -0.1385166849 | N160: 0.0005435155483
A161: =IF('DF raw data'!E166="","",'DF raw data'!E166) -> -250.5 | B161: =IF('DF raw data'!F166="","",'DF raw data'!F166) -> -3.51648e-05 | C161: =IF('DF raw data'!G166="","",'DF raw data'!G166) -> -0.000124632 | D161: =IF('DF raw data'!H166="","",'DF raw data'!H166) -> -4.8448e-05 | F161: -3.534449213e-05 | G161: -0.0001252688695 | H161: -4.869556928e-05 | J161: -0.001205131367 | K161: -0.03015178518 | L161: -0.00568424331 | M161: -0.1413588066 | N161: 0.0005603970301
A162: =IF('DF raw data'!E167="","",'DF raw data'!E167) -> -250 | B162: =IF('DF raw data'!F167="","",'DF raw data'!F167) -> -2.28566e-05 | C162: =IF('DF raw data'!G167="","",'DF raw data'!G167) -> -0.000114465 | D162: =IF('DF raw data'!H167="","",'DF raw data'!H167) -> -4.23638e-05 | F162: -2.297339723e-05 | G162: -0.0001150499161 | H162: -4.258027902e-05 | J162: -0.001216618066 | K162: -0.03076009421 | L162: -0.005741768268 | M162: -0.1442296907 | N162: 0.0005776210613
A163: =IF('DF raw data'!E168="","",'DF raw data'!E168) -> -249.5 | B163: =IF('DF raw data'!F168="","",'DF raw data'!F168) -> -3.18322e-05 | C163: =IF('DF raw data'!G168="","",'DF raw data'!G168) -> -0.000111407 | D163: =IF('DF raw data'!H168="","",'DF raw data'!H168) -> -4.53757e-05 | F163: -3.199486254e-05 | G163: -0.0001119762898 | H163: -4.560756983e-05 | J163: -0.001232615497 | K163: -0.03137640196 | L163: -0.005797756413 | M163: -0.1471285689 | N163: 0.0005951877215
A164: =IF('DF raw data'!E169="","",'DF raw data'!E169) -> -249 | B164: =IF('DF raw data'!F169="","",'DF raw data'!F169) -> -3.18989e-05 | C164: =IF('DF raw data'!G169="","",'DF raw data'!G169) -> -0.000104983 | D164: =IF('DF raw data'!H169="","",'DF raw data'!H169) -> -4.15556e-05 | F164: -3.206190338e-05 | G164: -0.0001055194631 | H164: -4.176794912e-05 | J164: -0.001248646448 | K164: -0.03200072519 | L164: -0.005850516145 | M164: -0.150053827 | N164: 0.0006130815501
A165: =IF('DF raw data'!E170="","",'DF raw data'!E170) -> -248.5 | B165: =IF('DF raw data'!F170="","",'DF raw data'!F170) -> -3.03588e-05 | C165: =IF('DF raw data'!G170="","",'DF raw data'!G170) -> -0.000100045 | D165: =IF('DF raw data'!H170="","",'DF raw data'!H170) -> -4.32867e-05 | F165: -3.051393347e-05 | G165: -0.0001005562299 | H165: -4.350789504e-05 | J165: -0.001263903415 | K165: -0.03263267689 | L165: -0.00590079426 | M165: -0.1530042241 | N165: 0.0006312899624
A166: =IF('DF raw data'!E171="","",'DF raw data'!E171) -> -248 | B166: =IF('DF raw data'!F171="","",'DF raw data'!F171) -> -3.24787e-05 | C166: =IF('DF raw data'!G171="","",'DF raw data'!G171) -> -0.000102116 | D166: =IF('DF raw data'!H171="","",'DF raw data'!H171) -> -3.72812e-05 | F166: -3.264466616e-05 | G166: -0.0001026378128 | H166: -3.747170693e-05 | J166: -0.001280225748 | K166: -0.03327278977 | L166: -0.005952113166 | M166: -0.1559802807 | N166: 0.000649823277
A167: =IF('DF raw data'!E172="","",'DF raw data'!E172) -> -247.5 | B167: =IF('DF raw data'!F172="","",'DF raw data'!F172) -> -3.06713e-05 | C167: =IF('DF raw data'!G172="","",'DF raw data'!G172) -> -0.000110093 | D167: =IF('DF raw data'!H172="","",'DF raw data'!H172) -> -5.56047e-05 | F167: -3.082803034e-05 | G167: -0.0001106555752 | H167: -5.588884002e-05 | J167: -0.001295639763 | K167: -0.03392060965 | L167: -0.006007440954 | M167: -0.1589840012 | N167: 0.0006687072916
A168: =IF('DF raw data'!E173="","",'DF raw data'!E173) -> -247 | B168: =IF('DF raw data'!F173="","",'DF raw data'!F173) -> -2.90751e-05 | C168: =IF('DF raw data'!G173="","",'DF raw data'!G173) -> -0.0001128 | D168: =IF('DF raw data'!H173="","",'DF raw data'!H173) -> -4.53061e-05 | F168: -2.922367376e-05 | G168: -0.000113376408 | H168: -4.553761417e-05 | J168: -0.0013102516 | K168: -0.03457573545 | L168: -0.006064129158 | M168: -0.1620160658 | N168: 0.0006879525024
A169: =IF('DF raw data'!E174="","",'DF raw data'!E174) -> -246.5 | B169: =IF('DF raw data'!F174="","",'DF raw data'!F174) -> -2.13812e-05 | C169: =IF('DF raw data'!G174="","",'DF raw data'!G174) -> -0.000108743 | D169: =IF('DF raw data'!H174="","",'DF raw data'!H174) -> -4.35057e-05 | F169: -2.149045793e-05 | G169: -0.0001092986767 | H169: -4.372801413e-05 | J169: -0.001320996829 | K169: -0.03523623386 | L169: -0.006118778496 | M169: -0.165075455 | N169: 0.0007075447439
A170: =IF('DF raw data'!E175="","",'DF raw data'!E175) -> -246 | B170: =IF('DF raw data'!F175="","",'DF raw data'!F175) -> -2.58011e-05 | C170: =IF('DF raw data'!G175="","",'DF raw data'!G175) -> -0.000104016 | D170: =IF('DF raw data'!H175="","",'DF raw data'!H175) -> -5.0747e-05 | F170: -2.593294362e-05 | G170: -0.0001045475218 | H170: -5.100631717e-05 | J170: -0.001333963301 | K170: -0.03590321551 | L170: -0.006171052257 | M170: -0.1681609812 | N170: 0.0007274754159
A171: =IF('DF raw data'!E176="","",'DF raw data'!E176) -> -245.5 | B171: =IF('DF raw data'!F176="","",'DF raw data'!F176) -> -3.49772e-05 | C171: =IF('DF raw data'!G176="","",'DF raw data'!G176) -> -0.000101364 | D171: =IF('DF raw data'!H176="","",'DF raw data'!H176) -> -4.09218e-05 | F171: -3.515593349e-05 | G171: -0.00010188197 | H171: -4.11309104e-05 | J171: -0.001351541268 | K171: -0.03657898615 | L171: -0.006221993242 | M171: -0.1712719778 | N171: 0.0007477453478
A172: =IF('DF raw data'!E177="","",'DF raw data'!E177) -> -245 | B172: =IF('DF raw data'!F177="","",'DF raw data'!F177) -> -2.85039e-05 | C172: =IF('DF raw data'!G177="","",'DF raw data'!G177) -> -0.000105767 | D172: =IF('DF raw data'!H177="","",'DF raw data'!H177) -> -3.59654e-05 | F172: -2.864955493e-05 | G172: -0.0001063074694 | H172: -3.614918319e-05 | J172: -0.001365866045 | K172: -0.03726191917 | L172: -0.006275146977 | M172: -0.1744095513 | N172: 0.0007683668776
A173: =IF('DF raw data'!E178="","",'DF raw data'!E178) -> -244.5 | B173: =IF('DF raw data'!F178="","",'DF raw data'!F178) -> -2.0615e-05 | C173: =IF('DF raw data'!G178="","",'DF raw data'!G178) -> -0.000109441 | D173: =IF('DF raw data'!H178="","",'DF raw data'!H178) -> -3.84458e-05 | F173: -2.072034265e-05 | G173: -0.0001100002435 | H173: -3.864225804e-05 | J173: -0.001376226217 | K173: -0.03795003228 | L173: -0.006330147099 | M173: -0.1775746248 | N173: 0.000789349258
A174: =IF('DF raw data'!E179="","",'DF raw data'!E179) -> -244 | B174: =IF('DF raw data'!F179="","",'DF raw data'!F179) -> -2.4653e-05 | C174: =IF('DF raw data'!G179="","",'DF raw data'!G179) -> -0.000110388 | D174: =IF('DF raw data'!H179="","",'DF raw data'!H179) -> -4.13826e-05 | F174: -2.477897683e-05 | G174: -0.0001109520827 | H174: -4.159406509e-05 | J174: -0.001388615705 | K174: -0.03864434013 | L174: -0.00638562314 | M174: -0.1807674364 | N174: 0.0008107014763
A175: =IF('DF raw data'!E180="","",'DF raw data'!E180) -> -243.5 | B175: =IF('DF raw data'!F180="","",'DF raw data'!F180) -> -2.40101e-05 | C175: =IF('DF raw data'!G180="","",'DF raw data'!G180) -> -0.000112361 | D175: =IF('DF raw data'!H180="","",'DF raw data'!H180) -> -4.35839e-05 | F175: -2.413279161e-05 | G175: -0.0001129351647 | H175: -4.380661373e-05 | J175: -0.001400682101 | K175: -0.03934468118 | L175: -0.006442090722 | M175: -0.1839884817 | N175: 0.0008324326979
A176: =IF('DF raw data'!E181="","",'DF raw data'!E181) -> -243 | B176: =IF('DF raw data'!F181="","",'DF raw data'!F181) -> -2.74095e-05 | C176: =IF('DF raw data'!G181="","",'DF raw data'!G181) -> -0.000112839 | D176: =IF('DF raw data'!H181="","",'DF raw data'!H181) -> -4.23948e-05 | F176: -2.754956254e-05 | G176: -0.0001134156073 | H176: -4.261143743e-05 | J176: -0.001414456882 | K176: -0.04005190962 | L176: -0.006498798526 | M176: -0.187237881 | N176: 0.0008545502332
A177: =IF('DF raw data'!E182="","",'DF raw data'!E182) -> -242.5 | B177: =IF('DF raw data'!F182="","",'DF raw data'!F182) -> -2.15777e-05 | C177: =IF('DF raw data'!G182="","",'DF raw data'!G182) -> -0.000106481 | D177: =IF('DF raw data'!H182="","",'DF raw data'!H182) -> -3.69488e-05 | F177: -2.168796205e-05 | G177: -0.0001070251179 | H177: -3.713760837e-05 | J177: -0.001425300863 | K177: -0.04076456005 | L177: -0.006552311085 | M177: -0.1905140365 | N177: 0.0008770323647
A178: =IF('DF raw data'!E183="","",'DF raw data'!E183) -> -242 | B178: =IF('DF raw data'!F183="","",'DF raw data'!F183) -> -2.22788e-05 | C178: =IF('DF raw data'!G183="","",'DF raw data'!G183) -> -0.000115746 | D178: =IF('DF raw data'!H183="","",'DF raw data'!H183) -> -4.3684e-05 | F178: -2.239264467e-05 | G178: -0.0001163374621 | H178: -4.390722524e-05 | J178: -0.001436497185 | K178: -0.04148280865 | L178: -0.006610479816 | M178: -0.1938192765 | N178: 0.0008999133485
A179: =IF('DF raw data'!E184="","",'DF raw data'!E184) -> -241.5 | B179: =IF('DF raw data'!F184="","",'DF raw data'!F184) -> -2.80474e-05 | C179: =IF('DF raw data'!G184="","",'DF raw data'!G184) -> -0.000117525 | D179: =IF('DF raw data'!H184="","",'DF raw data'!H184) -> -4.75115e-05 | F179: -2.819072221e-05 | G179: -0.0001181255527 | H179: -4.775428376e-05 | J179: -0.001450592547 | K179: -0.04220810492 | L179: -0.006669542592 | M179: -0.1971540478 | N179: 0.000923206857
A180: =IF('DF raw data'!E185="","",'DF raw data'!E185) -> -241 | B180: =IF('DF raw data'!F185="","",'DF raw data'!F185) -> -2.42003e-05 | C180: =IF('DF raw data'!G185="","",'DF raw data'!G185) -> -0.00010794 | D180: =IF('DF raw data'!H185="","",'DF raw data'!H185) -> -4.70258e-05 | F180: -2.432396353e-05 | G180: -0.0001084915734 | H180: -4.726610184e-05 | J180: -0.001462754528 | K180: -0.04293948219 | L180: -0.006723788379 | M180: -0.2005159419 | N180: 0.0009468813475
A181: =IF('DF raw data'!E186="","",'DF raw data'!E186) -> -240.5 | B181: =IF('DF raw data'!F186="","",'DF raw data'!F186) -> -2.72111e-05 | C181: =IF('DF raw data'!G186="","",'DF raw data'!G186) -> -0.000107415 | D181: =IF('DF raw data'!H186="","",'DF raw data'!H186) -> -5.19354e-05 | F181: -2.735014872e-05 | G181: -0.0001079638906 | H181: -5.220078989e-05 | J181: -0.001476429603 | K181: -0.04367769699 | L181: -0.006777770324 | M181: -0.2039048271 | N181: 0.000970940355
A182: =IF('DF raw data'!E187="","",'DF raw data'!E187) -> -240 | B182: =IF('DF raw data'!F187="","",'DF raw data'!F187) -> -2.88157e-05 | C182: =IF('DF raw data'!G187="","",'DF raw data'!G187) -> -0.00010808 | D182: =IF('DF raw data'!H187="","",'DF raw data'!H187) -> -4.93516e-05 | F182: -2.896294823e-05 | G182: -0.0001086322888 | H182: -4.960378668e-05 | J182: -0.001490911077 | K182: -0.04442315253 | L182: -0.006832086469 | M182: -0.2073208703 | N182: 0.0009953904657
A183: =IF('DF raw data'!E188="","",'DF raw data'!E188) -> -239.5 | B183: =IF('DF raw data'!F188="","",'DF raw data'!F188) -> -2.53489e-05 | C183: =IF('DF raw data'!G188="","",'DF raw data'!G188) -> -0.000113878 | D183: =IF('DF raw data'!H188="","",'DF raw data'!H188) -> -5.5743e-05 | F183: -2.547843288e-05 | G183: -0.0001144599166 | H183: -5.602784673e-05 | J183: -0.001503650293 | K183: -0.04517497767 | L183: -0.006889316427 | M183: -0.2107655286 | N183: 0.001020252288
A184: =IF('DF raw data'!E189="","",'DF raw data'!E189) -> -239 | B184: =IF('DF raw data'!F189="","",'DF raw data'!F189) -> -2.36235e-05 | C184: =IF('DF raw data'!G189="","",'DF raw data'!G189) -> -0.000110101 | D184: =IF('DF raw data'!H189="","",'DF raw data'!H189) -> -4.63255e-05 | F184: -2.374421608e-05 | G184: -0.0001106636161 | H184: -4.65622233e-05 | J184: -0.001515522401 | K184: -0.04593273887 | L184: -0.006944648235 | M184: -0.2142378527 | N184: 0.001045514762
A185: =IF('DF raw data'!E190="","",'DF raw data'!E190) -> -238.5 | B185: =IF('DF raw data'!F190="","",'DF raw data'!F190) -> -1.80479e-05 | C185: =IF('DF raw data'!G190="","",'DF raw data'!G190) -> -0.000102626 | D185: =IF('DF raw data'!H190="","",'DF raw data'!H190) -> -4.13594e-05 | F185: -1.814012477e-05 | G185: -0.0001031504189 | H185: -4.157074653e-05 | J185: -0.001524592464 | K185: -0.0466950351 | L185: -0.006996223444 | M185: -0.2177359644 | N185: 0.001071150524
A186: =IF('DF raw data'!E191="","",'DF raw data'!E191) -> -238 | B186: =IF('DF raw data'!F191="","",'DF raw data'!F191) -> -1.97714e-05 | C186: =IF('DF raw data'!G191="","",'DF raw data'!G191) -> -0.000108608 | D186: =IF('DF raw data'!H191="","",'DF raw data'!H191) -> -5.37218e-05 | F186: -1.987243185e-05 | G186: -0.0001091629869 | H186: -5.39963184e-05 | J186: -0.00153452868 | K186: -0.04746229944 | L186: -0.007050804938 | M186: -0.2212613669 | N186: 0.001097184838
A187: =IF('DF raw data'!E192="","",'DF raw data'!E192) -> -237.5 | B187: =IF('DF raw data'!F192="","",'DF raw data'!F192) -> -2.4579e-05 | C187: =IF('DF raw data'!G192="","",'DF raw data'!G192) -> -0.000115593 | D187: =IF('DF raw data'!H192="","",'DF raw data'!H192) -> -5.63203e-05 | F187: -2.470459869e-05 | G187: -0.0001161836802 | H187: -5.660809673e-05 | J187: -0.001546880979 | K187: -0.04823573993 | L187: -0.007108896778 | M187: -0.2248158152 | N187: 0.001123649466
A188: =IF('DF raw data'!E193="","",'DF raw data'!E193) -> -237 | B188: =IF('DF raw data'!F193="","",'DF raw data'!F193) -> -2.35579e-05 | C188: =IF('DF raw data'!G193="","",'DF raw data'!G193) -> -0.000114653 | D188: =IF('DF raw data'!H193="","",'DF raw data'!H193) -> -4.88015e-05 | F188: -2.367828087e-05 | G188: -0.0001152388768 | H188: -4.905087566e-05 | J188: -0.001558720119 | K188: -0.04901509999 | L188: -0.007166516216 | M188: -0.2283990734 | N188: 0.001150543747
A189: =IF('DF raw data'!E194="","",'DF raw data'!E194) -> -236.5 | B189: =IF('DF raw data'!F194="","",'DF raw data'!F194) -> -2.46461e-05 | C189: =IF('DF raw data'!G194="","",'DF raw data'!G194) -> -0.000114405 | D189: =IF('DF raw data'!H194="","",'DF raw data'!H194) -> -5.20204e-05 | F189: -2.477204157e-05 | G189: -0.0001149896095 | H189: -5.228622424e-05 | J189: -0.00157110614 | K189: -0.04980065306 | L189: -0.007224011021 | M189: -0.2320110789 | N189: 0.001177871102
A190: =IF('DF raw data'!E195="","",'DF raw data'!E195) -> -236 | B190: =IF('DF raw data'!F195="","",'DF raw data'!F195) -> -1.91361e-05 | C190: =IF('DF raw data'!G195="","",'DF raw data'!G195) -> -0.000113663 | D190: =IF('DF raw data'!H195="","",'DF raw data'!H195) -> -4.45667e-05 | F190: -1.923388547e-05 | G190: -0.0001142438179 | H190: -4.479443584e-05 | J190: -0.001580723083 | K190: -0.0505910146 | L190: -0.00728113293 | M190: -0.2356516453 | N190: 0.001205627893
A191: =IF('DF raw data'!E196="","",'DF raw data'!E196) -> -235.5 | B191: =IF('DF raw data'!F196="","",'DF raw data'!F196) -> -2.23384e-05 | C191: =IF('DF raw data'!G196="","",'DF raw data'!G196) -> -0.00011121 | D191: =IF('DF raw data'!H196="","",'DF raw data'!H196) -> -5.04078e-05 | F191: -2.245254922e-05 | G191: -0.0001117782831 | H191: -5.066538386e-05 | J191: -0.001591949358 | K191: -0.05138698928 | L191: -0.007337022072 | M191: -0.2393201564 | N191: 0.001233810991
A192: =IF('DF raw data'!E197="","",'DF raw data'!E197) -> -235 | B192: =IF('DF raw data'!F197="","",'DF raw data'!F197) -> -2.74072e-05 | C192: =IF('DF raw data'!G197="","",'DF raw data'!G197) -> -0.000102103 | D192: =IF('DF raw data'!H197="","",'DF raw data'!H197) -> -4.58591e-05 | F192: =(1-$G$1*($B$49-$G$2))*B192 -> -2.754725079e-05 | G192: -0.0001026247463 | H192: -4.609344e-05 | J192: =F192*$G$3+J191 -> -0.001605722983 | K192: =J192*$G$3+K191 -> -0.05218985077 | L192: =G192*$G$3+L191 -> -0.007388334445 | M192: =L192*$G$3+M191 -> -0.2430143236 | N192: =(J192^2+L192^2)*$G$3+N191 -> 0.001262393907
A193: =IF('DF raw data'!E198="","",'DF raw data'!E198) -> -234.5 | B193: =IF('DF raw data'!F198="","",'DF raw data'!F198) -> -2.35618e-05 | C193: =IF('DF raw data'!G198="","",'DF raw data'!G198) -> -9.80131e-05 | D193: =IF('DF raw data'!H198="","",'DF raw data'!H198) -> -4.2898e-05 | F193: -2.36822008e-05 | G193: -9.851394694e-05 | H193: -4.311720878e-05 | J193: -0.001617564083 | K193: -0.05299863282 | L193: -0.007437591418 | M193: -0.2467331193 | N193: 0.001291361047
A194: =IF('DF raw data'!E199="","",'DF raw data'!E199) -> -234 | B194: =IF('DF raw data'!F199="","",'DF raw data'!F199) -> -2.70249e-05 | C194: =IF('DF raw data'!G199="","",'DF raw data'!G199) -> -9.63068e-05 | D194: =IF('DF raw data'!H199="","",'DF raw data'!H199) -> -4.21236e-05 | F194: -2.716299724e-05 | G194: -9.679892775e-05 | H194: -4.23388516e-05 | J194: -0.001631145582 | K194: -0.05381420561 | L194: -0.007485990882 | M194: -0.2504761147 | N194: 0.001320711394
A195: =IF('DF raw data'!E200="","",'DF raw data'!E200) -> -233.5 | B195: =IF('DF raw data'!F200="","",'DF raw data'!F200) -> -2.40116e-05 | C195: =IF('DF raw data'!G200="","",'DF raw data'!G200) -> -9.69423e-05 | D195: =IF('DF raw data'!H200="","",'DF raw data'!H200) -> -4.12421e-05 | F195: -2.413429928e-05 | G195: -9.743767515e-05 | H195: -4.145284713e-05 | J195: -0.001643212732 | K195: -0.05463581197 | L195: -0.00753470972 | M195: -0.2542434696 | N195: 0.001350447394
A196: =IF('DF raw data'!E201="","",'DF raw data'!E201) -> -233 | B196: =IF('DF raw data'!F201="","",'DF raw data'!F201) -> -3.32373e-05 | C196: =IF('DF raw data'!G201="","",'DF raw data'!G201) -> -0.00010669 | D196: =IF('DF raw data'!H201="","",'DF raw data'!H201) -> -5.40421e-05 | F196: -3.34071426e-05 | G196: -0.0001072351859 | H196: -5.431825513e-05 | J196: -0.001659916303 | K196: -0.05546577012 | L196: -0.007588327313 | M196: -0.2580376333 | N196: 0.001380616411
A197: =IF('DF raw data'!E202="","",'DF raw data'!E202) -> -232.5 | B197: =IF('DF raw data'!F202="","",'DF raw data'!F202) -> -3.18968e-05 | C197: =IF('DF raw data'!G202="","",'DF raw data'!G202) -> -0.000106376 | D197: =IF('DF raw data'!H202="","",'DF raw data'!H202) -> -4.47341e-05 | F197: -3.205979265e-05 | G197: -0.0001069195814 | H197: -4.496269125e-05 | J197: -0.001675946199 | K197: -0.05630374322 | L197: -0.007641787103 | M197: -0.2618585268 | N197: 0.001411219263
A198: =IF('DF raw data'!E203="","",'DF raw data'!E203) -> -232 | B198: =IF('DF raw data'!F203="","",'DF raw data'!F203) -> -3.09407e-05 | C198: =IF('DF raw data'!G203="","",'DF raw data'!G203) -> -0.000107583 | D198: =IF('DF raw data'!H203="","",'DF raw data'!H203) -> -3.57321e-05 | F198: -3.109880698e-05 | G198: -0.0001081327491 | H198: -3.591469103e-05 | J198: -0.001691495603 | K198: -0.05714949103 | L198: -0.007695853478 | M198: -0.2657064535 | N198: 0.001442262923
A199: =IF('DF raw data'!E204="","",'DF raw data'!E204) -> -231.5 | B199: =IF('DF raw data'!F204="","",'DF raw data'!F204) -> -2.9782e-05 | C199: =IF('DF raw data'!G204="","",'DF raw data'!G204) -> -0.000108325 | D199: =IF('DF raw data'!H204="","",'DF raw data'!H204) -> -4.26865e-05 | F199: -2.993418602e-05 | G199: -0.0001088785408 | H199: -4.290462801e-05 | J199: -0.001706462696 | K199: -0.05800272237 | L199: -0.007750292748 | M199: -0.2695815999 | N199: 0.001473752449
A200: =IF('DF raw data'!E205="","",'DF raw data'!E205) -> -231 | B200: =IF('DF raw data'!F205="","",'DF raw data'!F205) -> -2.15689e-05 | C200: =IF('DF raw data'!G205="","",'DF raw data'!G205) -> -9.7183e-05 | D200: =IF('DF raw data'!H205="","",'DF raw data'!H205) -> -5.047e-05 | F200: -2.167911708e-05 | G200: -9.767960513e-05 | H200: -5.07279017e-05 | J200: -0.001717302254 | K200: -0.0588613735 | L200: -0.007799132551 | M200: -0.2734811662 | N200: 0.001505640247
A201: =IF('DF raw data'!E206="","",'DF raw data'!E206) -> -230.5 | B201: =IF('DF raw data'!F206="","",'DF raw data'!F206) -> -1.88804e-05 | C201: =IF('DF raw data'!G206="","",'DF raw data'!G206) -> -9.63333e-05 | D201: =IF('DF raw data'!H206="","",'DF raw data'!H206) -> -4.33225e-05 | F201: -1.897687884e-05 | G201: -9.682556316e-05 | H201: -4.354387797e-05 | J201: -0.001726790694 | K201: -0.05972476885 | L201: -0.007847545333 | M201: -0.2774049389 | N201: 0.001537923134
... 1061 more rows

Sheet 10 x=0
A1: =IF('DF raw data'!I1="","",'DF raw data'!I1) -> Number of header lines | B1: =IF('DF raw data'!J1="","",'DF raw data'!J1) -> 54 | C1: =IF('DF raw data'!K1="","",'DF raw data'!K1) ->  | D1: =IF('DF raw data'!L1="","",'DF raw data'!L1) ->  | F1: T_coeff | G1: -0.00073 | H1: /degC | J1: IBy total | K1: =J1262*1000 -> -5.064734222 | L1: muTm | M1: =L1262*1000 -> -104.3962316 | R1: DF ref | S1: ='10 x=-2'!S1 -> 1
A2: =IF('DF raw data'!I2="","",'DF raw data'!I2) -> Measured by | B2: =IF('DF raw data'!J2="","",'DF raw data'!J2) -> Danfysik | C2: =IF('DF raw data'!K2="","",'DF raw data'!K2) ->  | D2: =IF('DF raw data'!L2="","",'DF raw data'!L2) ->  | F2: Tcorr | G2: 20 | H2: degC | J2: JBy total | K2: =K1262 -> -2.151707774 | L2: muTm^2 | M2: =M1262 -> -28.90085671
A3: =IF('DF raw data'!I3="","",'DF raw data'!I3) -> Operator | B3: =IF('DF raw data'!J3="","",'DF raw data'!J3) -> PMHA | C3: =IF('DF raw data'!K3="","",'DF raw data'!K3) ->  | D3: =IF('DF raw data'!L3="","",'DF raw data'!L3) ->  | F3: Step | G3: =A63-A62 -> 0.5 | H3: mm | J3: PI total | K3: =N1262 -> 10617.52899 | L3: T^2mm^3
A4: =IF('DF raw data'!I4="","",'DF raw data'!I4) -> Data-time | B4: =IF('DF raw data'!J4="","",'DF raw data'!J4) -> 01-08-2024, 11:03:05 | C4: =IF('DF raw data'!K4="","",'DF raw data'!K4) ->  | D4: =IF('DF raw data'!L4="","",'DF raw data'!L4) -> 
A5: =IF('DF raw data'!I5="","",'DF raw data'!I5) -> Project | B5: =IF('DF raw data'!J5="","",'DF raw data'!J5) -> 504314 | C5: =IF('DF raw data'!K5="","",'DF raw data'!K5) ->  | D5: =IF('DF raw data'!L5="","",'DF raw data'!L5) -> 
A6: =IF('DF raw data'!I6="","",'DF raw data'!I6) -> Magnet type | B6: =IF('DF raw data'!J6="","",'DF raw data'!J6) -> Dipole | C6: =IF('DF raw data'!K6="","",'DF raw data'!K6) ->  | D6: =IF('DF raw data'!L6="","",'DF raw data'!L6) -> 
A7: =IF('DF raw data'!I7="","",'DF raw data'!I7) -> Magnet nr. | B7: =IF('DF raw data'!J7="","",'DF raw data'!J7) -> 2410091 | C7: =IF('DF raw data'!K7="","",'DF raw data'!K7) ->  | D7: =IF('DF raw data'!L7="","",'DF raw data'!L7) -> 
A8: =IF('DF raw data'!I8="","",'DF raw data'!I8) -> Meas. number | B8: =IF('DF raw data'!J8="","",'DF raw data'!J8) -> 168 | C8: =IF('DF raw data'!K8="","",'DF raw data'!K8) ->  | D8: =IF('DF raw data'!L8="","",'DF raw data'!L8) -> 
A9: =IF('DF raw data'!I9="","",'DF raw data'!I9) -> Add. info | B9: =IF('DF raw data'!J9="","",'DF raw data'!J9) -> X-alignment scan 3) | C9: =IF('DF raw data'!K9="","",'DF raw data'!K9) ->  | D9: =IF('DF raw data'!L9="","",'DF raw data'!L9) -> 
A10: =IF('DF raw data'!I10="","",'DF raw data'!I10) -> Device | B10: =IF('DF raw data'!J10="","",'DF raw data'!J10) -> (HAL) HALL-PROBE | C10: =IF('DF raw data'!K10="","",'DF raw data'!K10) ->  | D10: =IF('DF raw data'!L10="","",'DF raw data'!L10) -> 
A11: =IF('DF raw data'!I11="","",'DF raw data'!I11) -> Goal | B11: =IF('DF raw data'!J11="","",'DF raw data'!J11) -> (AXI) AXis Integral (Line, EFB) | C11: =IF('DF raw data'!K11="","",'DF raw data'!K11) ->  | D11: =IF('DF raw data'!L11="","",'DF raw data'!L11) -> 
A12: =IF('DF raw data'!I12="","",'DF raw data'!I12) -> Power supply mode | B12: =IF('DF raw data'!J12="","",'DF raw data'!J12) -> (PM) Permanent Magnet (no MPS in use) | C12: =IF('DF raw data'!K12="","",'DF raw data'!K12) ->  | D12: =IF('DF raw data'!L12="","",'DF raw data'!L12) -> 
A13: =IF('DF raw data'!I13="","",'DF raw data'!I13) -> Data format | B13: =IF('DF raw data'!J13="","",'DF raw data'!J13) -> Raw data text file | C13: =IF('DF raw data'!K13="","",'DF raw data'!K13) ->  | D13: =IF('DF raw data'!L13="","",'DF raw data'!L13) -> 
A14: =IF('DF raw data'!I14="","",'DF raw data'!I14) -> Direction of the pos. x-axis | B14: =IF('DF raw data'!J14="","",'DF raw data'!J14) -> See test program | C14: =IF('DF raw data'!K14="","",'DF raw data'!K14) ->  | D14: =IF('DF raw data'!L14="","",'DF raw data'!L14) -> 
A15: =IF('DF raw data'!I15="","",'DF raw data'!I15) -> Direction of the pos. y-axis | B15: =IF('DF raw data'!J15="","",'DF raw data'!J15) -> Vertical up | C15: =IF('DF raw data'!K15="","",'DF raw data'!K15) ->  | D15: =IF('DF raw data'!L15="","",'DF raw data'!L15) -> 
A16: =IF('DF raw data'!I16="","",'DF raw data'!I16) -> Direction of the pos. z-axis | B16: =IF('DF raw data'!J16="","",'DF raw data'!J16) -> See test program | C16: =IF('DF raw data'!K16="","",'DF raw data'!K16) ->  | D16: =IF('DF raw data'!L16="","",'DF raw data'!L16) -> 
A17: =IF('DF raw data'!I17="","",'DF raw data'!I17) -> Mapper type | B17: =IF('DF raw data'!J17="","",'DF raw data'!J17) -> Precision Hall Mapper | C17: =IF('DF raw data'!K17="","",'DF raw data'!K17) ->  | D17: =IF('DF raw data'!L17="","",'DF raw data'!L17) -> 
A18: =IF('DF raw data'!I18="","",'DF raw data'!I18) -> Mapper Danfysik Reg. Number | B18: =IF('DF raw data'!J18="","",'DF raw data'!J18) -> 2033-D (mapper 1) | C18: =IF('DF raw data'!K18="","",'DF raw data'!K18) ->  | D18: =IF('DF raw data'!L18="","",'DF raw data'!L18) -> 
A19: =IF('DF raw data'!I19="","",'DF raw data'!I19) -> Measurement consept | B19: =IF('DF raw data'!J19="","",'DF raw data'!J19) -> Square line grid | C19: =IF('DF raw data'!K19="","",'DF raw data'!K19) ->  | D19: =IF('DF raw data'!L19="","",'DF raw data'!L19) -> 
A20: =IF('DF raw data'!I20="","",'DF raw data'!I20) -> Mode | B20: =IF('DF raw data'!J20="","",'DF raw data'!J20) -> On-the-fly measurement | C20: =IF('DF raw data'!K20="","",'DF raw data'!K20) ->  | D20: =IF('DF raw data'!L20="","",'DF raw data'!L20) -> 
A21: =IF('DF raw data'!I21="","",'DF raw data'!I21) ->  | B21: =IF('DF raw data'!J21="","",'DF raw data'!J21) ->  | C21: =IF('DF raw data'!K21="","",'DF raw data'!K21) ->  | D21: =IF('DF raw data'!L21="","",'DF raw data'!L21) -> 
A22: =IF('DF raw data'!I22="","",'DF raw data'!I22) -> Probe Name | B22: =IF('DF raw data'!J22="","",'DF raw data'!J22) -> ID12_By | C22: =IF('DF raw data'!K22="","",'DF raw data'!K22) ->  | D22: =IF('DF raw data'!L22="","",'DF raw data'!L22) -> 
A23: =IF('DF raw data'!I23="","",'DF raw data'!I23) -> Probe Type | B23: =IF('DF raw data'!J23="","",'DF raw data'!J23) -> DF_ID_3D_Bxyz | C23: =IF('DF raw data'!K23="","",'DF raw data'!K23) ->  | D23: =IF('DF raw data'!L23="","",'DF raw data'!L23) -> 
A24: =IF('DF raw data'!I24="","",'DF raw data'!I24) -> Probe Danfysik Reg. Number | B24: =IF('DF raw data'!J24="","",'DF raw data'!J24) -> 2277 | C24: =IF('DF raw data'!K24="","",'DF raw data'!K24) ->  | D24: =IF('DF raw data'!L24="","",'DF raw data'!L24) -> 
A25: =IF('DF raw data'!I25="","",'DF raw data'!I25) -> Probe Axis | B25: =IF('DF raw data'!J25="","",'DF raw data'!J25) -> By | C25: =IF('DF raw data'!K25="","",'DF raw data'!K25) ->  | D25: =IF('DF raw data'!L25="","",'DF raw data'!L25) -> 
A26: =IF('DF raw data'!I26="","",'DF raw data'!I26) -> Probe Current Supply | B26: =IF('DF raw data'!J26="","",'DF raw data'!J26) -> 1825-D | C26: =IF('DF raw data'!K26="","",'DF raw data'!K26) ->  | D26: =IF('DF raw data'!L26="","",'DF raw data'!L26) -> 
A27: =IF('DF raw data'!I27="","",'DF raw data'!I27) -> Probe Gain Correction | B27: =IF('DF raw data'!J27="","",'DF raw data'!J27) -> 0.99613 | C27: =IF('DF raw data'!K27="","",'DF raw data'!K27) ->  | D27: =IF('DF raw data'!L27="","",'DF raw data'!L27) -> 
A28: =IF('DF raw data'!I28="","",'DF raw data'!I28) -> Probe Offset Correction | B28: =IF('DF raw data'!J28="","",'DF raw data'!J28) -> 0.0027562 | C28: =IF('DF raw data'!K28="","",'DF raw data'!K28) ->  | D28: =IF('DF raw data'!L28="","",'DF raw data'!L28) -> 
A29: =IF('DF raw data'!I29="","",'DF raw data'!I29) -> DVM Number | B29: =IF('DF raw data'!J29="","",'DF raw data'!J29) -> 2 | C29: =IF('DF raw data'!K29="","",'DF raw data'!K29) ->  | D29: =IF('DF raw data'!L29="","",'DF raw data'!L29) -> 
A30: =IF('DF raw data'!I30="","",'DF raw data'!I30) -> DVM Type | B30: =IF('DF raw data'!J30="","",'DF raw data'!J30) -> K2701 | C30: =IF('DF raw data'!K30="","",'DF raw data'!K30) ->  | D30: =IF('DF raw data'!L30="","",'DF raw data'!L30) -> 
A31: =IF('DF raw data'!I31="","",'DF raw data'!I31) -> DVM Danfysik Reg. Number | B31: =IF('DF raw data'!J31="","",'DF raw data'!J31) -> 1743-D | C31: =IF('DF raw data'!K31="","",'DF raw data'!K31) ->  | D31: =IF('DF raw data'!L31="","",'DF raw data'!L31) -> 
A32: =IF('DF raw data'!I32="","",'DF raw data'!I32) -> Probe Name | B32: =IF('DF raw data'!J32="","",'DF raw data'!J32) -> ID12_Bx | C32: =IF('DF raw data'!K32="","",'DF raw data'!K32) ->  | D32: =IF('DF raw data'!L32="","",'DF raw data'!L32) -> 
A33: =IF('DF raw data'!I33="","",'DF raw data'!I33) -> Probe Type | B33: =IF('DF raw data'!J33="","",'DF raw data'!J33) -> DF_ID_3D_Bxyz | C33: =IF('DF raw data'!K33="","",'DF raw data'!K33) ->  | D33: =IF('DF raw data'!L33="","",'DF raw data'!L33) -> 
A34: =IF('DF raw data'!I34="","",'DF raw data'!I34) -> Probe Danfysik Reg. Number | B34: =IF('DF raw data'!J34="","",'DF raw data'!J34) -> 2277 | C34: =IF('DF raw data'!K34="","",'DF raw data'!K34) ->  | D34: =IF('DF raw data'!L34="","",'DF raw data'!L34) -> 
A35: =IF('DF raw data'!I35="","",'DF raw data'!I35) -> Probe Axis | B35: =IF('DF raw data'!J35="","",'DF raw data'!J35) -> Bx | C35: =IF('DF raw data'!K35="","",'DF raw data'!K35) ->  | D35: =IF('DF raw data'!L35="","",'DF raw data'!L35) -> 
A36: =IF('DF raw data'!I36="","",'DF raw data'!I36) -> Probe Current Supply | B36: =IF('DF raw data'!J36="","",'DF raw data'!J36) -> 1825-D | C36: =IF('DF raw data'!K36="","",'DF raw data'!K36) ->  | D36: =IF('DF raw data'!L36="","",'DF raw data'!L36) -> 
A37: =IF('DF raw data'!I37="","",'DF raw data'!I37) -> Probe Gain Correction | B37: =IF('DF raw data'!J37="","",'DF raw data'!J37) -> 1 | C37: =IF('DF raw data'!K37="","",'DF raw data'!K37) ->  | D37: =IF('DF raw data'!L37="","",'DF raw data'!L37) -> 
A38: =IF('DF raw data'!I38="","",'DF raw data'!I38) -> Probe Offset Correction | B38: =IF('DF raw data'!J38="","",'DF raw data'!J38) -> -0.17564 | C38: =IF('DF raw data'!K38="","",'DF raw data'!K38) ->  | D38: =IF('DF raw data'!L38="","",'DF raw data'!L38) -> 
A39: =IF('DF raw data'!I39="","",'DF raw data'!I39) -> DVM Number | B39: =IF('DF raw data'!J39="","",'DF raw data'!J39) -> 3 | C39: =IF('DF raw data'!K39="","",'DF raw data'!K39) ->  | D39: =IF('DF raw data'!L39="","",'DF raw data'!L39) -> 
A40: =IF('DF raw data'!I40="","",'DF raw data'!I40) -> DVM Type | B40: =IF('DF raw data'!J40="","",'DF raw data'!J40) -> K2701 | C40: =IF('DF raw data'!K40="","",'DF raw data'!K40) ->  | D40: =IF('DF raw data'!L40="","",'DF raw data'!L40) -> 
A41: =IF('DF raw data'!I41="","",'DF raw data'!I41) -> DVM Danfysik Reg. Number | B41: =IF('DF raw data'!J41="","",'DF raw data'!J41) -> 1744-D | C41: =IF('DF raw data'!K41="","",'DF raw data'!K41) ->  | D41: =IF('DF raw data'!L41="","",'DF raw data'!L41) -> 
A42: =IF('DF raw data'!I42="","",'DF raw data'!I42) -> Probe Name | B42: =IF('DF raw data'!J42="","",'DF raw data'!J42) -> ID12_Bz | C42: =IF('DF raw data'!K42="","",'DF raw data'!K42) ->  | D42: =IF('DF raw data'!L42="","",'DF raw data'!L42) -> 
A43: =IF('DF raw data'!I43="","",'DF raw data'!I43) -> Probe Type | B43: =IF('DF raw data'!J43="","",'DF raw data'!J43) -> DF_ID_3D_Bxyz | C43: =IF('DF raw data'!K43="","",'DF raw data'!K43) ->  | D43: =IF('DF raw data'!L43="","",'DF raw data'!L43) -> 
A44: =IF('DF raw data'!I44="","",'DF raw data'!I44) -> Probe Danfysik Reg. Number | B44: =IF('DF raw data'!J44="","",'DF raw data'!J44) -> 2277 | C44: =IF('DF raw data'!K44="","",'DF raw data'!K44) ->  | D44: =IF('DF raw data'!L44="","",'DF raw data'!L44) -> 
A45: =IF('DF raw data'!I45="","",'DF raw data'!I45) -> Probe Axis | B45: =IF('DF raw data'!J45="","",'DF raw data'!J45) -> Bz | C45: =IF('DF raw data'!K45="","",'DF raw data'!K45) ->  | D45: =IF('DF raw data'!L45="","",'DF raw data'!L45) -> 
A46: =IF('DF raw data'!I46="","",'DF raw data'!I46) -> Probe Current Supply | B46: =IF('DF raw data'!J46="","",'DF raw data'!J46) -> 1825-D | C46: =IF('DF raw data'!K46="","",'DF raw data'!K46) ->  | D46: =IF('DF raw data'!L46="","",'DF raw data'!L46) -> 
A47: =IF('DF raw data'!I47="","",'DF raw data'!I47) -> Probe Gain Correction | B47: =IF('DF raw data'!J47="","",'DF raw data'!J47) -> 1 | C47: =IF('DF raw data'!K47="","",'DF raw data'!K47) ->  | D47: =IF('DF raw data'!L47="","",'DF raw data'!L47) -> 
A48: =IF('DF raw data'!I53="","",'DF raw data'!I53) -> PS-Gap: | B48: =IF('DF raw data'!J53="","",'DF raw data'!J53) -> 10 | C48: =IF('DF raw data'!K53="","",'DF raw data'!K53) ->  | D48: =IF('DF raw data'!L53="","",'DF raw data'!L53) -> 
A49: =IF('DF raw data'!I54="","",'DF raw data'!I54) -> PS-Temperature: | B49: =IF('DF raw data'!J54="","",'DF raw data'!J54) -> 27 | C49: =IF('DF raw data'!K54="","",'DF raw data'!K54) ->  | D49: =IF('DF raw data'!L54="","",'DF raw data'!L54) -> 
A50: =IF('DF raw data'!I55="","",'DF raw data'!I55) -> PS-Encoder: | B50: =IF('DF raw data'!J55="","",'DF raw data'!J55) -> 19.9648 | C50: =IF('DF raw data'!K55="","",'DF raw data'!K55) ->  | D50: =IF('DF raw data'!L55="","",'DF raw data'!L55) -> 
A51: =IF('DF raw data'!I56="","",'DF raw data'!I56) ->  | B51: =IF('DF raw data'!J56="","",'DF raw data'!J56) ->  | C51: =IF('DF raw data'!K56="","",'DF raw data'!K56) ->  | D51: =IF('DF raw data'!L56="","",'DF raw data'!L56) -> 
A52: =IF('DF raw data'!I57="","",'DF raw data'!I57) -> Monitor-Index | B52: =IF('DF raw data'!J57="","",'DF raw data'!J57) -> [1,1,4] | C52: =IF('DF raw data'!K57="","",'DF raw data'!K57) ->  | D52: =IF('DF raw data'!L57="","",'DF raw data'!L57) -> 
A53: =IF('DF raw data'!I58="","",'DF raw data'!I58) ->  | B53: =IF('DF raw data'!J58="","",'DF raw data'!J58) ->  | C53: =IF('DF raw data'!K58="","",'DF raw data'!K58) ->  | D53: =IF('DF raw data'!L58="","",'DF raw data'!L58) -> 
A54: =IF('DF raw data'!I59="","",'DF raw data'!I59) -> Time [s] | B54: =IF('DF raw data'!J59="","",'DF raw data'!J59) -> Y [mm] | C54: =IF('DF raw data'!K59="","",'DF raw data'!K59) -> X [mm] | D54: =IF('DF raw data'!L59="","",'DF raw data'!L59) -> Nominal current [A]
A55: =IF('DF raw data'!I60="","",'DF raw data'!I60) ->  | B55: =IF('DF raw data'!J60="","",'DF raw data'!J60) ->  | C55: =IF('DF raw data'!K60="","",'DF raw data'!K60) ->  | D55: =IF('DF raw data'!L60="","",'DF raw data'!L60) -> 
A56: =IF('DF raw data'!I61="","",'DF raw data'!I61) -> 207.7 | B56: =IF('DF raw data'!J61="","",'DF raw data'!J61) -> 31.16 | C56: =IF('DF raw data'!K61="","",'DF raw data'!K61) -> 301.8 | D56: =IF('DF raw data'!L61="","",'DF raw data'!L61) -> 0
A57: =IF('DF raw data'!I62="","",'DF raw data'!I62) ->  | B57: =IF('DF raw data'!J62="","",'DF raw data'!J62) ->  | C57: =IF('DF raw data'!K62="","",'DF raw data'!K62) ->  | D57: =IF('DF raw data'!L62="","",'DF raw data'!L62) -> 
A58: =IF('DF raw data'!I63="","",'DF raw data'!I63) -> Measurement-Index | B58: =IF('DF raw data'!J63="","",'DF raw data'!J63) -> [1,1,1201,2] | C58: =IF('DF raw data'!K63="","",'DF raw data'!K63) ->  | D58: =IF('DF raw data'!L63="","",'DF raw data'!L63) -> 
A59: =IF('DF raw data'!I64="","",'DF raw data'!I64) ->  | B59: =IF('DF raw data'!J64="","",'DF raw data'!J64) ->  | C59: =IF('DF raw data'!K64="","",'DF raw data'!K64) ->  | D59: =IF('DF raw data'!L64="","",'DF raw data'!L64) -> 
A60: =IF('DF raw data'!I65="","",'DF raw data'!I65) -> Z [mm] | B60: By [T] | C60: Bx [T] | D60: Bz [T] | F60: By_corr | G60: Bx_corr | H60: Bz_corr | J60: Iy | K60: Jy | L60: Ix | M60: Jx | N60: PI
A62: =IF('DF raw data'!I67="","",'DF raw data'!I67) -> -300 | B62: =IF('DF raw data'!J67="","",'DF raw data'!J67) -> -1.60228e-05 | C62: =IF('DF raw data'!K67="","",'DF raw data'!K67) -> -0.00015805 | D62: =IF('DF raw data'!L67="","",'DF raw data'!L67) -> -3.54765e-05 | F62: =(1-$G$1*($B$49))*B62 -> -1.633860939e-05 | G62: =(1-$G$1*($B$49-$G$2))*C62 -> -0.0001588576355 | H62: =(1-$G$1*($B$49-$G$2))*D62 -> -3.565778491e-05 | J62: =F62*$G$3 -> -8.169304694e-06 | K62: =J62*$G$3 -> -4.084652347e-06 | L62: =G62*$G$3 -> -7.942881775e-05 | M62: =L62*$G$3 -> -3.971440887e-05 | N62: =(J62^2+L62^2)*$G$3 -> 3.187837314e-09
A63: =IF('DF raw data'!I68="","",'DF raw data'!I68) -> -299.5 | B63: =IF('DF raw data'!J68="","",'DF raw data'!J68) -> -1.94858e-05 | C63: =IF('DF raw data'!K68="","",'DF raw data'!K68) -> -0.00016004 | D63: =IF('DF raw data'!L68="","",'DF raw data'!L68) -> -3.52206e-05 | F63: =(1-$G$1*($B$49-$G$2))*B63 -> -1.958537244e-05 | G63: =(1-$G$1*($B$49-$G$2))*C63 -> -0.0001608578044 | H63: -3.540057727e-05 | J63: =F63*$G$3+J62 -> -1.796199091e-05 | K63: =J63*$G$3+K62 -> -1.30656478e-05 | L63: =G63*$G$3+L62 -> -0.0001598577199 | M63: =L63*$G$3+M62 -> -0.0001196432688 | N63: =(J63^2+L63^2)*$G$3+N62 -> 1.612639919e-08
A64: =IF('DF raw data'!I69="","",'DF raw data'!I69) -> -299 | B64: =IF('DF raw data'!J69="","",'DF raw data'!J69) -> -1.92295e-05 | C64: =IF('DF raw data'!K69="","",'DF raw data'!K69) -> -0.000162058 | D64: =IF('DF raw data'!L69="","",'DF raw data'!L69) -> -3.48833e-05 | F64: =(1-$G$1*($B$49-$G$2))*B64 -> -1.932776274e-05 | G64: -0.0001628861164 | H64: -3.506155366e-05 | J64: =F64*$G$3+J63 -> -2.762587229e-05 | K64: =J64*$G$3+K63 -> -2.687858395e-05 | L64: =G64*$G$3+L63 -> -0.0002413007781 | M64: =L64*$G$3+M63 -> -0.0002402936579 | N64: =(J64^2+L64^2)*$G$3+N63 -> 4.562102636e-08
A65: =IF('DF raw data'!I70="","",'DF raw data'!I70) -> -298.5 | B65: =IF('DF raw data'!J70="","",'DF raw data'!J70) -> -1.58309e-05 | C65: =IF('DF raw data'!K70="","",'DF raw data'!K70) -> -0.000150597 | D65: =IF('DF raw data'!L70="","",'DF raw data'!L70) -> -3.49352e-05 | F65: -1.59117959e-05 | G65: -0.0001513665507 | H65: -3.511371887e-05 | J65: -3.558177023e-05 | K65: -4.466946906e-05 | L65: -0.0003169840535 | M65: -0.0003987856847 | N65: 9.649350263e-08
A66: =IF('DF raw data'!I71="","",'DF raw data'!I71) -> -298 | B66: =IF('DF raw data'!J71="","",'DF raw data'!J71) -> -1.92293e-05 | C66: =IF('DF raw data'!K71="","",'DF raw data'!K71) -> -0.000145352 | D66: =IF('DF raw data'!L71="","",'DF raw data'!L71) -> -3.52504e-05 | F66: -1.932756172e-05 | G66: -0.0001460947487 | H66: -3.543052954e-05 | J66: -4.52455511e-05 | K66: -6.729224461e-05 | L66: -0.0003900314278 | M66: -0.0005938013986 | N66: 1.735793399e-07
A67: =IF('DF raw data'!I72="","",'DF raw data'!I72) -> -297.5 | B67: =IF('DF raw data'!J72="","",'DF raw data'!J72) -> -1.99343e-05 | C67: =IF('DF raw data'!K72="","",'DF raw data'!K72) -> -0.000144007 | D67: =IF('DF raw data'!L72="","",'DF raw data'!L72) -> -3.56004e-05 | F67: -2.003616427e-05 | G67: -0.0001447428758 | H67: -3.578231804e-05 | J67: -5.526363323e-05 | K67: -9.492406123e-05 | L67: -0.0004624028657 | M67: -0.0008250028314 | N67: 2.820145796e-07
A68: =IF('DF raw data'!I73="","",'DF raw data'!I73) -> -297 | B68: =IF('DF raw data'!J73="","",'DF raw data'!J73) -> -2.0255e-05 | C68: =IF('DF raw data'!K73="","",'DF raw data'!K73) -> -0.000150543 | D68: =IF('DF raw data'!L73="","",'DF raw data'!L73) -> -3.56233e-05 | F68: -2.035850305e-05 | G68: -0.0001513122747 | H68: -3.580533506e-05 | J68: -6.544288476e-05 | K68: -0.0001276455036 | L68: -0.0005380590031 | M68: -0.001094032333 | N68: 4.289097106e-07
A69: =IF('DF raw data'!I74="","",'DF raw data'!I74) -> -296.5 | B69: =IF('DF raw data'!J74="","",'DF raw data'!J74) -> -3.32724e-05 | C69: =IF('DF raw data'!K74="","",'DF raw data'!K74) -> -0.000151255 | D69: =IF('DF raw data'!L74="","",'DF raw data'!L74) -> -3.51943e-05 | F69: -3.344242196e-05 | G69: -0.000152027913 | H69: -3.537414287e-05 | J69: -8.216409574e-05 | K69: -0.0001687275515 | L69: -0.0006140729596 | M69: -0.001401068813 | N69: 6.208279798e-07
A70: =IF('DF raw data'!I75="","",'DF raw data'!I75) -> -296 | B70: =IF('DF raw data'!J75="","",'DF raw data'!J75) -> -1.77545e-05 | C70: =IF('DF raw data'!K75="","",'DF raw data'!K75) -> -0.000138349 | D70: =IF('DF raw data'!L75="","",'DF raw data'!L75) -> -3.50627e-05 | F70: -1.78452255e-05 | G70: -0.0001390559634 | H70: -3.52418704e-05 | J70: -9.108670849e-05 | K70: -0.0002142709057 | L70: -0.0006836009413 | M70: -0.001742869283 | N70: 8.586314975e-07
A71: =IF('DF raw data'!I76="","",'DF raw data'!I76) -> -295.5 | B71: =IF('DF raw data'!J76="","",'DF raw data'!J76) -> -3.08357e-05 | C71: =IF('DF raw data'!K76="","",'DF raw data'!K76) -> -0.000144104 | D71: =IF('DF raw data'!L76="","",'DF raw data'!L76) -> -3.51961e-05 | F71: -3.099327043e-05 | G71: -0.0001448403714 | H71: -3.537595207e-05 | J71: -0.0001065833437 | K71: -0.0002675625776 | L71: -0.000756021127 | M71: -0.002120879847 | N71: 1.150095474e-06
A72: =IF('DF raw data'!I77="","",'DF raw data'!I77) -> -295 | B72: =IF('DF raw data'!J77="","",'DF raw data'!J77) -> -2.53212e-05 | C72: =IF('DF raw data'!K77="","",'DF raw data'!K77) -> -0.000142095 | D72: =IF('DF raw data'!L77="","",'DF raw data'!L77) -> -3.51004e-05 | F72: -2.545059133e-05 | G72: -0.0001428211054 | H72: -3.527976304e-05 | J72: -0.0001193086394 | K72: -0.0003272168973 | L72: -0.0008274316797 | M72: -0.002534595687 | N72: 1.499534342e-06
A73: =IF('DF raw data'!I78="","",'DF raw data'!I78) -> -294.5 | B73: =IF('DF raw data'!J78="","",'DF raw data'!J78) -> -3.1157e-05 | C73: =IF('DF raw data'!K78="","",'DF raw data'!K78) -> -0.000143135 | D73: =IF('DF raw data'!L78="","",'DF raw data'!L78) -> -3.44358e-05 | F73: -3.131621227e-05 | G73: -0.0001438664198 | H73: -3.461176694e-05 | J73: -0.0001349667455 | K73: -0.00039470027 | L73: -0.0008993648897 | M73: -0.002984278132 | N73: 1.913070956e-06
A74: =IF('DF raw data'!I79="","",'DF raw data'!I79) -> -294 | B74: =IF('DF raw data'!J79="","",'DF raw data'!J79) -> -2.75022e-05 | C74: =IF('DF raw data'!K79="","",'DF raw data'!K79) -> -0.000144935 | D74: =IF('DF raw data'!L79="","",'DF raw data'!L79) -> -3.38847e-05 | F74: -2.764273624e-05 | G74: -0.0001456756179 | H74: -3.405785082e-05 | J74: -0.0001487881136 | K74: -0.0004690943268 | L74: -0.0009722026986 | M74: -0.003470379481 | N74: 2.396728951e-06
A75: =IF('DF raw data'!I80="","",'DF raw data'!I80) -> -293.5 | B75: =IF('DF raw data'!J80="","",'DF raw data'!J80) -> -1.80755e-05 | C75: =IF('DF raw data'!K80="","",'DF raw data'!K80) -> -0.000145583 | D75: =IF('DF raw data'!L80="","",'DF raw data'!L80) -> -3.42308e-05 | F75: -1.81678658e-05 | G75: -0.0001463269291 | H75: -3.440571939e-05 | J75: -0.0001578720465 | K75: -0.0005480303501 | L75: -0.001045366163 | M75: -0.003993062563 | N75: 2.95558595e-06
A76: =IF('DF raw data'!I81="","",'DF raw data'!I81) -> -293 | B76: =IF('DF raw data'!J81="","",'DF raw data'!J81) -> -1.9037e-05 | C76: =IF('DF raw data'!K81="","",'DF raw data'!K81) -> -0.000145741 | D76: =IF('DF raw data'!L81="","",'DF raw data'!L81) -> -3.49742e-05 | F76: -1.913427907e-05 | G76: -0.0001464857365 | H76: -3.515291816e-05 | J76: -0.0001674391861 | K76: -0.0006317499431 | L76: -0.001118609031 | M76: -0.004552367078 | N76: 3.595246973e-06
A77: =IF('DF raw data'!I82="","",'DF raw data'!I82) -> -292.5 | B77: =IF('DF raw data'!J82="","",'DF raw data'!J82) -> -2.66037e-05 | C77: =IF('DF raw data'!K82="","",'DF raw data'!K82) -> -0.000146409 | D77: =IF('DF raw data'!L82="","",'DF raw data'!L82) -> -3.50861e-05 | F77: -2.673964491e-05 | G77: -0.00014715715 | H77: -3.526538997e-05 | J77: -0.0001808090085 | K77: -0.0007221544474 | L77: -0.001192187606 | M77: -0.005148460881 | N77: 4.322248566e-06
A78: =IF('DF raw data'!I83="","",'DF raw data'!I83) -> -292 | B78: =IF('DF raw data'!J83="","",'DF raw data'!J83) -> -2.25639e-05 | C78: =IF('DF raw data'!K83="","",'DF raw data'!K83) -> -0.000142919 | D78: =IF('DF raw data'!L83="","",'DF raw data'!L83) -> -3.48735e-05 | F78: -2.267920153e-05 | G78: -0.0001436493161 | H78: -3.505170358e-05 | J78: -0.0001921486093 | K78: -0.000818228752 | L78: -0.001264012264 | M78: -0.005780467014 | N78: 5.139572613e-06
A79: =IF('DF raw data'!I84="","",'DF raw data'!I84) -> -291.5 | B79: =IF('DF raw data'!J84="","",'DF raw data'!J84) -> -1.91605e-05 | C79: =IF('DF raw data'!K84="","",'DF raw data'!K84) -> -0.000137569 | D79: =IF('DF raw data'!L84="","",'DF raw data'!L84) -> -4.22671e-05 | F79: -1.925841015e-05 | G79: -0.0001382719776 | H79: -4.248308488e-05 | J79: -0.0002017778144 | K79: -0.0009191176592 | L79: -0.001333148253 | M79: -0.00644704114 | N79: 6.048571888e-06
A80: =IF('DF raw data'!I85="","",'DF raw data'!I85) -> -291 | B80: =IF('DF raw data'!J85="","",'DF raw data'!J85) -> -2.98732e-05 | C80: =IF('DF raw data'!K85="","",'DF raw data'!K85) -> -0.000151693 | D80: =IF('DF raw data'!L85="","",'DF raw data'!L85) -> -3.60828e-05 | F80: -3.002585205e-05 | G80: -0.0001524681512 | H80: -3.626718311e-05 | J80: -0.0002167907404 | K80: -0.001027513029 | L80: -0.001409382329 | M80: -0.007151732305 | N80: 7.065250275e-06
A81: =IF('DF raw data'!I86="","",'DF raw data'!I86) -> -290.5 | B81: =IF('DF raw data'!J86="","",'DF raw data'!J86) -> -1.39024e-05 | C81: =IF('DF raw data'!K86="","",'DF raw data'!K86) -> -0.000154858 | D81: =IF('DF raw data'!L86="","",'DF raw data'!L86) -> -4.2355e-05 | F81: -1.397344126e-05 | G81: -0.0001556493244 | H81: -4.257143405e-05 | J81: -0.000223777461 | K81: -0.00113940176 | L81: -0.001487206991 | M81: -0.0078953358 | N81: 8.196180769e-06
A82: =IF('DF raw data'!I87="","",'DF raw data'!I87) -> -290 | B82: =IF('DF raw data'!J87="","",'DF raw data'!J87) -> -1.96733e-05 | C82: =IF('DF raw data'!K87="","",'DF raw data'!K87) -> -0.000151076 | D82: =IF('DF raw data'!L87="","",'DF raw data'!L87) -> -4.25501e-05 | F82: -1.977383056e-05 | G82: -0.0001518479984 | H82: -4.276753101e-05 | J82: -0.0002336643763 | K82: -0.001256233948 | L82: -0.00156313099 | M82: -0.008676901295 | N82: 9.445169535e-06
A83: =IF('DF raw data'!I88="","",'DF raw data'!I88) -> -289.5 | B83: =IF('DF raw data'!J88="","",'DF raw data'!J88) -> -2.14749e-05 | C83: =IF('DF raw data'!K88="","",'DF raw data'!K88) -> -0.000149785 | D83: =IF('DF raw data'!L88="","",'DF raw data'!L88) -> -3.30239e-05 | F83: -2.158463674e-05 | G83: -0.0001505504013 | H83: -3.319265213e-05 | J83: -0.0002444566947 | K83: -0.001378462295 | L83: -0.001638406191 | M83: -0.009496104391 | N83: 1.08172365e-05
A84: =IF('DF raw data'!I89="","",'DF raw data'!I89) -> -289 | B84: =IF('DF raw data'!J89="","",'DF raw data'!J89) -> -2.08287e-05 | C84: =IF('DF raw data'!K89="","",'DF raw data'!K89) -> -0.000147253 | D84: =IF('DF raw data'!L89="","",'DF raw data'!L89) -> -4.07028e-05 | F84: -2.093513466e-05 | G84: -0.0001480054628 | H84: -4.091079131e-05 | J84: -0.000254924262 | K84: -0.001505924426 | L84: -0.001712408922 | M84: -0.01035230885 | N84: 1.231590184e-05
A85: =IF('DF raw data'!I90="","",'DF raw data'!I90) -> -288.5 | B85: =IF('DF raw data'!J90="","",'DF raw data'!J90) -> -3.12912e-05 | C85: =IF('DF raw data'!K90="","",'DF raw data'!K90) -> -0.000146116 | D85: =IF('DF raw data'!L90="","",'DF raw data'!L90) -> -2.51328e-05 | F85: -3.145109803e-05 | G85: -0.0001468626528 | H85: -2.526122861e-05 | J85: -0.000270649811 | K85: -0.001641249332 | L85: -0.001785840249 | M85: -0.01124522898 | N85: 1.39471402e-05
A86: =IF('DF raw data'!I91="","",'DF raw data'!I91) -> -288 | B86: =IF('DF raw data'!J91="","",'DF raw data'!J91) -> -2.68543e-05 | C86: =IF('DF raw data'!K91="","",'DF raw data'!K91) -> -0.000146867 | D86: =IF('DF raw data'!L91="","",'DF raw data'!L91) -> -4.41164e-05 | F86: -2.699152547e-05 | G86: -0.0001476174904 | H86: -4.43418348e-05 | J86: -0.0002841455737 | K86: -0.001783322119 | L86: -0.001859648994 | M86: -0.01217505347 | N86: 1.571665675e-05
A87: =IF('DF raw data'!I92="","",'DF raw data'!I92) -> -287.5 | B87: =IF('DF raw data'!J92="","",'DF raw data'!J92) -> -2.64062e-05 | C87: =IF('DF raw data'!K92="","",'DF raw data'!K92) -> -0.000147013 | D87: =IF('DF raw data'!L92="","",'DF raw data'!L92) -> -4.277e-05 | F87: -2.654113568e-05 | G87: -0.0001477642364 | H87: -4.29885547e-05 | J87: -0.0002974161416 | K87: -0.00193203019 | L87: -0.001933531112 | M87: -0.01314181903 | N87: 1.763015621e-05
A88: =IF('DF raw data'!I93="","",'DF raw data'!I93) -> -287 | B88: =IF('DF raw data'!J93="","",'DF raw data'!J93) -> -1.12136e-05 | C88: =IF('DF raw data'!K93="","",'DF raw data'!K93) -> -0.000148426 | D88: =IF('DF raw data'!L93="","",'DF raw data'!L93) -> -3.52732e-05 | F88: -1.12709015e-05 | G88: -0.0001491844569 | H88: -3.545344605e-05 | J88: -0.0003030515923 | K88: -0.002083555986 | L88: -0.002008123341 | M88: -0.0141458807 | N88: 1.969235602e-05
A89: =IF('DF raw data'!I94="","",'DF raw data'!I94) -> -286.5 | B89: =IF('DF raw data'!J94="","",'DF raw data'!J94) -> -2.01259e-05 | C89: =IF('DF raw data'!K94="","",'DF raw data'!K94) -> -0.000149457 | D89: =IF('DF raw data'!L94="","",'DF raw data'!L94) -> -3.70813e-05 | F89: -2.022874335e-05 | G89: -0.0001502207253 | H89: -3.727078544e-05 | J89: -0.000313165964 | K89: -0.002240138968 | L89: -0.002083233703 | M89: -0.01518749755 | N89: 2.191132381e-05
A90: =IF('DF raw data'!I95="","",'DF raw data'!I95) -> -286 | B90: =IF('DF raw data'!J95="","",'DF raw data'!J95) -> -2.87205e-05 | C90: =IF('DF raw data'!K95="","",'DF raw data'!K95) -> -0.00014476 | D90: =IF('DF raw data'!L95="","",'DF raw data'!L95) -> -3.3723e-05 | F90: -2.886726175e-05 | G90: -0.0001454997236 | H90: -3.389532453e-05 | J90: -0.0003275995949 | K90: -0.002403938765 | L90: -0.002155983565 | M90: -0.01626548933 | N90: 2.428911712e-05
A91: =IF('DF raw data'!I96="","",'DF raw data'!I96) -> -285.5 | B91: =IF('DF raw data'!J96="","",'DF raw data'!J96) -> -1.92355e-05 | C91: =IF('DF raw data'!K96="","",'DF raw data'!K96) -> -0.000149028 | D91: =IF('DF raw data'!L96="","",'DF raw data'!L96) -> -2.57196e-05 | F91: -1.93337934e-05 | G91: -0.0001497895331 | H91: -2.585102716e-05 | J91: -0.0003372664916 | K91: -0.002572572011 | L91: -0.002230878332 | M91: -0.0173809285 | N91: 2.683440053e-05
A92: =IF('DF raw data'!I97="","",'DF raw data'!I97) -> -285 | B92: =IF('DF raw data'!J97="","",'DF raw data'!J97) -> -1.90979e-05 | C92: =IF('DF raw data'!K97="","",'DF raw data'!K97) -> -0.000142859 | D92: =IF('DF raw data'!L97="","",'DF raw data'!L97) -> -4.01286e-05 | F92: -1.919549027e-05 | G92: -0.0001435890095 | H92: -4.033365715e-05 | J92: -0.0003468642367 | K92: -0.002746004129 | L92: -0.002302672836 | M92: -0.01853226492 | N92: 2.954570902e-05
A93: =IF('DF raw data'!I98="","",'DF raw data'!I98) -> -284.5 | B93: =IF('DF raw data'!J98="","",'DF raw data'!J98) -> -2.26295e-05 | C93: =IF('DF raw data'!K98="","",'DF raw data'!K98) -> -0.000152146 | D93: =IF('DF raw data'!L98="","",'DF raw data'!L98) -> -3.24722e-05 | F93: -2.274513675e-05 | G93: -0.0001529234661 | H93: -3.263813294e-05 | J93: -0.0003582368051 | K93: -0.002925122532 | L93: -0.002379134569 | M93: -0.0197218322 | N93: 3.244001648e-05
A94: =IF('DF raw data'!I99="","",'DF raw data'!I99) -> -284 | B94: =IF('DF raw data'!J99="","",'DF raw data'!J99) -> -2.75726e-05 | C94: =IF('DF raw data'!K99="","",'DF raw data'!K99) -> -0.000151595 | D94: =IF('DF raw data'!L99="","",'DF raw data'!L99) -> -2.40478e-05 | F94: -2.771349599e-05 | G94: -0.0001523696505 | H94: -2.417068426e-05 | J94: -0.0003720935531 | K94: -0.003111169308 | L94: -0.002455319395 | M94: -0.0209494919 | N94: 3.552353995e-05
A95: =IF('DF raw data'!I100="","",'DF raw data'!I100) -> -283.5 | B95: =IF('DF raw data'!J100="","",'DF raw data'!J100) -> -2.1663e-05 | C95: =IF('DF raw data'!K100="","",'DF raw data'!K100) -> -0.000144644 | D95: =IF('DF raw data'!L100="","",'DF raw data'!L100) -> -3.99414e-05 | F95: -2.177369793e-05 | G95: -0.0001453831308 | H95: -4.014550055e-05 | J95: -0.0003829804021 | K95: -0.003302659509 | L95: -0.00252801096 | M95: -0.02221349738 | N95: 3.879229665e-05
A96: =IF('DF raw data'!I101="","",'DF raw data'!I101) -> -283 | B96: =IF('DF raw data'!J101="","",'DF raw data'!J101) -> -2.64103e-05 | C96: =IF('DF raw data'!K101="","",'DF raw data'!K101) -> -0.000140264 | D96: =IF('DF raw data'!L101="","",'DF raw data'!L101) -> -3.65369e-05 | F96: -2.654525663e-05 | G96: -0.000140980749 | H96: -3.672360356e-05 | J96: -0.0003962530304 | K96: -0.003500786025 | L96: -0.002598501334 | M96: -0.02351274805 | N96: 4.224690947e-05
A97: =IF('DF raw data'!I102="","",'DF raw data'!I102) -> -282.5 | B97: =IF('DF raw data'!J102="","",'DF raw data'!J102) -> -2.51254e-05 | C97: =IF('DF raw data'!K102="","",'DF raw data'!K102) -> -0.000150292 | D97: =IF('DF raw data'!L102="","",'DF raw data'!L102) -> -4.03221e-05 | F97: -2.525379079e-05 | G97: -0.0001510599921 | H97: -4.052814593e-05 | J97: -0.0004088799258 | K97: -0.003705225987 | L97: -0.002674031331 | M97: -0.02484976371 | N97: 4.590572265e-05
A98: =IF('DF raw data'!I103="","",'DF raw data'!I103) -> -282 | B98: =IF('DF raw data'!J103="","",'DF raw data'!J103) -> -2.48673e-05 | C98: =IF('DF raw data'!K103="","",'DF raw data'!K103) -> -0.00015281 | D98: =IF('DF raw data'!L103="","",'DF raw data'!L103) -> -4.27464e-05 | F98: -2.49943719e-05 | G98: -0.0001535908591 | H98: -4.29648341e-05 | J98: -0.0004213771117 | K98: -0.003915914543 | L98: -0.00275082676 | M98: -0.02622517709 | N98: 4.977802592e-05
A99: =IF('DF raw data'!I104="","",'DF raw data'!I104) -> -281.5 | B99: =IF('DF raw data'!J104="","",'DF raw data'!J104) -> -1.78713e-05 | C99: =IF('DF raw data'!K104="","",'DF raw data'!K104) -> -0.000149968 | D99: =IF('DF raw data'!L104="","",'DF raw data'!L104) -> -5.26732e-05 | F99: -1.796262234e-05 | G99: -0.0001507343365 | H99: -5.294236005e-05 | J99: -0.0004303584229 | K99: -0.004131093755 | L99: -0.002826193928 | M99: -0.02763827406 | N99: 5.386431616e-05
A100: =IF('DF raw data'!I105="","",'DF raw data'!I105) -> -281 | B100: =IF('DF raw data'!J105="","",'DF raw data'!J105) -> -2.24909e-05 | C100: =IF('DF raw data'!K105="","",'DF raw data'!K105) -> -0.000153704 | D100: =IF('DF raw data'!L105="","",'DF raw data'!L105) -> -4.84326e-05 | F100: -2.26058285e-05 | G100: -0.0001544894274 | H100: -4.868009059e-05 | J100: -0.0004416613371 | K100: -0.004351924423 | L100: -0.002903438642 | M100: -0.02908999338 | N100: 5.81768265e-05
A101: =IF('DF raw data'!I106="","",'DF raw data'!I106) -> -280.5 | B101: =IF('DF raw data'!J106="","",'DF raw data'!J106) -> -2.4355e-05 | C101: =IF('DF raw data'!K106="","",'DF raw data'!K106) -> -0.000156208 | D101: =IF('DF raw data'!L106="","",'DF raw data'!L106) -> -4.17414e-05 | F101: -2.447945405e-05 | G101: -0.0001570062229 | H101: -4.195469855e-05 | J101: -0.0004539010642 | K101: -0.004578874955 | L101: -0.002981941753 | M101: -0.03058096425 | N101: 6.27258279e-05
A102: =IF('DF raw data'!I107="","",'DF raw data'!I107) -> -280 | B102: =IF('DF raw data'!J107="","",'DF raw data'!J107) -> -2.55061e-05 | C102: =IF('DF raw data'!K107="","",'DF raw data'!K107) -> -0.000154458 | D102: =IF('DF raw data'!L107="","",'DF raw data'!L107) -> -4.65184e-05 | F102: -2.563643617e-05 | G102: -0.0001552472804 | H102: -4.675610902e-05 | J102: -0.0004667192823 | K102: -0.004812234597 | L102: -0.003059565394 | M102: -0.03211074695 | N102: 6.751521155e-05
A103: =IF('DF raw data'!I108="","",'DF raw data'!I108) -> -279.5 | B103: =IF('DF raw data'!J108="","",'DF raw data'!J108) -> -1.897e-05 | C103: =IF('DF raw data'!K108="","",'DF raw data'!K108) -> -0.000146795 | D103: =IF('DF raw data'!L108="","",'DF raw data'!L108) -> -3.9681e-05 | F103: -1.90669367e-05 | G103: -0.0001475451224 | H103: -3.988376991e-05 | J103: -0.0004762527506 | K103: -0.005050360972 | L103: -0.003133337955 | M103: -0.03367741593 | N103: 7.253752326e-05
A104: =IF('DF raw data'!I109="","",'DF raw data'!I109) -> -279 | B104: =IF('DF raw data'!J109="","",'DF raw data'!J109) -> -3.3264e-05 | C104: =IF('DF raw data'!K109="","",'DF raw data'!K109) -> -0.000145015 | D104: =IF('DF raw data'!L109="","",'DF raw data'!L109) -> -4.82561e-05 | F104: -3.343397904e-05 | G104: -0.0001457560266 | H104: -4.850268867e-05 | J104: -0.0004929697401 | K104: -0.005296845842 | L104: -0.003206215968 | M104: -0.03528052391 | N104: 7.779894326e-05
A105: =IF('DF raw data'!I110="","",'DF raw data'!I110) -> -278.5 | B105: =IF('DF raw data'!J110="","",'DF raw data'!J110) -> -1.89638e-05 | C105: =IF('DF raw data'!K110="","",'DF raw data'!K110) -> -0.000147243 | D105: =IF('DF raw data'!L110="","",'DF raw data'!L110) -> -4.92764e-05 | F105: -1.906070502e-05 | G105: -0.0001479954117 | H105: -4.95282024e-05 | J105: -0.0005025000926 | K105: -0.005548095888 | L105: -0.003280213674 | M105: -0.03692063075 | N105: 8.33050973e-05
A106: =IF('DF raw data'!I111="","",'DF raw data'!I111) -> -278 | B106: =IF('DF raw data'!J111="","",'DF raw data'!J111) -> -3.08899e-05 | C106: =IF('DF raw data'!K111="","",'DF raw data'!K111) -> -0.00014798 | D106: =IF('DF raw data'!L111="","",'DF raw data'!L111) -> -5.07533e-05 | F106: -3.104774739e-05 | G106: -0.0001487361778 | H106: -5.101264936e-05 | J106: -0.0005180239663 | K106: -0.005807107871 | L106: -0.003354581763 | M106: -0.03859792163 | N106: 8.906588112e-05
A107: =IF('DF raw data'!I112="","",'DF raw data'!I112) -> -277.5 | B107: =IF('DF raw data'!J112="","",'DF raw data'!J112) -> -2.85838e-05 | C107: =IF('DF raw data'!K112="","",'DF raw data'!K112) -> -0.000145697 | D107: =IF('DF raw data'!L112="","",'DF raw data'!L112) -> -4.68233e-05 | F107: -2.872986322e-05 | G107: -0.0001464415117 | H107: -4.706256706e-05 | J107: -0.0005323888979 | K107: -0.00607330232 | L107: -0.003427802519 | M107: -0.04031182289 | N107: 9.508251514e-05
A108: =IF('DF raw data'!I113="","",'DF raw data'!I113) -> -277 | B108: =IF('DF raw data'!J113="","",'DF raw data'!J113) -> -1.90285e-05 | C108: =IF('DF raw data'!K113="","",'DF raw data'!K113) -> -0.000148841 | D108: =IF('DF raw data'!L113="","",'DF raw data'!L113) -> -4.81887e-05 | F108: -1.912573563e-05 | G108: -0.0001496015775 | H108: -4.843494426e-05 | J108: -0.0005419517658 | K108: -0.006344278203 | L108: -0.003502603308 | M108: -0.04206312454 | N108: 0.000101363486
A109: =IF('DF raw data'!I114="","",'DF raw data'!I114) -> -276.5 | B109: =IF('DF raw data'!J114="","",'DF raw data'!J114) -> -2.71844e-05 | C109: =IF('DF raw data'!K114="","",'DF raw data'!K114) -> -0.000155856 | D109: =IF('DF raw data'!L114="","",'DF raw data'!L114) -> -2.94511e-05 | F109: -2.732331228e-05 | G109: -0.0001566524242 | H109: -2.960159512e-05 | J109: -0.0005556134219 | K109: -0.006622084914 | L109: -0.00358092952 | M109: -0.0438535893 | N109: 0.0001079293672
A110: =IF('DF raw data'!I115="","",'DF raw data'!I115) -> -276 | B110: =IF('DF raw data'!J115="","",'DF raw data'!J115) -> -2.80727e-05 | C110: =IF('DF raw data'!K115="","",'DF raw data'!K115) -> -0.00015906 | D110: =IF('DF raw data'!L115="","",'DF raw data'!L115) -> -4.38555e-05 | F110: -2.82161515e-05 | G110: -0.0001598727966 | H110: -4.40796016e-05 | J110: -0.0005697214976 | K110: -0.006906945663 | L110: -0.003660865918 | M110: -0.04568402226 | N110: 0.0001147926281
A111: =IF('DF raw data'!I116="","",'DF raw data'!I116) -> -275.5 | B111: =IF('DF raw data'!J116="","",'DF raw data'!J116) -> -1.27546e-05 | C111: =IF('DF raw data'!K116="","",'DF raw data'!K116) -> -0.000160203 | D111: =IF('DF raw data'!L116="","",'DF raw data'!L116) -> -3.25236e-05 | F111: -1.281977601e-05 | G111: -0.0001610216373 | H111: -3.26897956e-05 | J111: -0.0005761313856 | K111: -0.007195011356 | L111: -0.003741376737 | M111: -0.04755471063 | N111: 0.0001219575418
A112: =IF('DF raw data'!I117="","",'DF raw data'!I117) -> -275 | B112: =IF('DF raw data'!J117="","",'DF raw data'!J117) -> -3.07074e-05 | C112: =IF('DF raw data'!K117="","",'DF raw data'!K117) -> -0.000150908 | D112: =IF('DF raw data'!L117="","",'DF raw data'!L117) -> -3.53802e-05 | F112: -3.086431481e-05 | G112: -0.0001516791399 | H112: -3.556099282e-05 | J112: -0.0005915635431 | K112: -0.007490793127 | L112: -0.003817216307 | M112: -0.04946331878 | N112: 0.0001294180857
A113: =IF('DF raw data'!I118="","",'DF raw data'!I118) -> -274.5 | B113: =IF('DF raw data'!J118="","",'DF raw data'!J118) -> -1.58315e-05 | C113: =IF('DF raw data'!K118="","",'DF raw data'!K118) -> -0.000141242 | D113: =IF('DF raw data'!L118="","",'DF raw data'!L118) -> -3.40572e-05 | F113: -1.591239896e-05 | G113: -0.0001419637466 | H113: -3.423123229e-05 | J113: -0.0005995197425 | K113: -0.007790552999 | L113: -0.00388819818 | M113: -0.05140741787 | N113: 0.0001371568402
A114: =IF('DF raw data'!I119="","",'DF raw data'!I119) -> -274 | B114: =IF('DF raw data'!J119="","",'DF raw data'!J119) -> -1.1338e-05 | C114: =IF('DF raw data'!K119="","",'DF raw data'!K119) -> -0.000147945 | D114: =IF('DF raw data'!L119="","",'DF raw data'!L119) -> -4.10906e-05 | F114: -1.139593718e-05 | G114: -0.0001487009989 | H114: -4.130057297e-05 | J114: -0.0006052177111 | K114: -0.008093161854 | L114: -0.003962548679 | M114: -0.05338869221 | N114: 0.0001451908804
A115: =IF('DF raw data'!I120="","",'DF raw data'!I120) -> -273.5 | B115: =IF('DF raw data'!J120="","",'DF raw data'!J120) -> -1.78796e-05 | C115: =IF('DF raw data'!K120="","",'DF raw data'!K120) -> -0.000160136 | D115: =IF('DF raw data'!L120="","",'DF raw data'!L120) -> -3.99747e-05 | F115: -1.797096476e-05 | G115: -0.000160954295 | H115: -4.017897072e-05 | J115: -0.0006142031935 | K115: -0.008400263451 | L115: -0.004043025827 | M115: -0.05541020513 | N115: 0.0001535525321
A116: =IF('DF raw data'!I121="","",'DF raw data'!I121) -> -273 | B116: =IF('DF raw data'!J121="","",'DF raw data'!J121) -> -1.98033e-05 | C116: =IF('DF raw data'!K121="","",'DF raw data'!K121) -> -0.000156032 | D116: =IF('DF raw data'!L121="","",'DF raw data'!L121) -> -3.99394e-05 | F116: -1.990449486e-05 | G116: -0.0001568293235 | H116: -4.014349033e-05 | J116: -0.0006241554409 | K116: -0.008712341171 | L116: -0.004121440489 | M116: -0.05747092537 | N116: 0.000162240453
A117: =IF('DF raw data'!I122="","",'DF raw data'!I122) -> -272.5 | B117: =IF('DF raw data'!J122="","",'DF raw data'!J122) -> -2.97407e-05 | C117: =IF('DF raw data'!K122="","",'DF raw data'!K122) -> -0.0001557 | D117: =IF('DF raw data'!L122="","",'DF raw data'!L122) -> -4.27352e-05 | F117: -2.989267498e-05 | G117: -0.000156495627 | H117: -4.295357687e-05 | J117: -0.0006391017784 | K117: -0.009031892061 | L117: -0.004199688302 | M117: -0.05957076952 | N117: 0.0001712633694
A118: =IF('DF raw data'!I123="","",'DF raw data'!I123) -> -272 | B118: =IF('DF raw data'!J123="","",'DF raw data'!J123) -> -3.10236e-05 | C118: =IF('DF raw data'!K123="","",'DF raw data'!K123) -> -0.000162436 | D118: =IF('DF raw data'!L123="","",'DF raw data'!L123) -> -4.23923e-05 | F118: -3.11821306e-05 | G118: -0.000163266048 | H118: -4.260892465e-05 | J118: -0.0006546928437 | K118: -0.009359238482 | L118: -0.004281321326 | M118: -0.06171143019 | N118: 0.0001806425369
A119: =IF('DF raw data'!I124="","",'DF raw data'!I124) -> -271.5 | B119: =IF('DF raw data'!J124="","",'DF raw data'!J124) -> -2.6278e-05 | C119: =IF('DF raw data'!K124="","",'DF raw data'!K124) -> -0.000159163 | D119: =IF('DF raw data'!L124="","",'DF raw data'!L124) -> -4.27799e-05 | F119: -2.641228058e-05 | G119: -0.0001599763229 | H119: -4.299850529e-05 | J119: -0.000667898984 | K119: -0.009693187974 | L119: -0.004361309488 | M119: -0.06389208493 | N119: 0.0001903760917
A120: =IF('DF raw data'!I125="","",'DF raw data'!I125) -> -271 | B120: =IF('DF raw data'!J125="","",'DF raw data'!J125) -> -2.23745e-05 | C120: =IF('DF raw data'!K125="","",'DF raw data'!K125) -> -0.000148149 | D120: =IF('DF raw data'!L125="","",'DF raw data'!L125) -> -3.02457e-05 | F120: -2.24888337e-05 | G120: -0.0001489060414 | H120: -3.040025553e-05 | J120: -0.0006791434009 | K120: -0.01003275967 | L120: -0.004435762508 | M120: -0.06610996618 | N120: 0.0002004447041
A121: =IF('DF raw data'!I126="","",'DF raw data'!I126) -> -270.5 | B121: =IF('DF raw data'!J126="","",'DF raw data'!J126) -> -2.28835e-05 | C121: =IF('DF raw data'!K126="","",'DF raw data'!K126) -> -0.000146825 | D121: =IF('DF raw data'!L126="","",'DF raw data'!L126) -> -3.6474e-05 | F121: -2.300043468e-05 | G121: -0.0001475752758 | H121: -3.666038214e-05 | J121: -0.0006906436182 | K121: -0.01037808148 | L121: -0.004509550146 | M121: -0.06836474126 | N121: 0.0002108512196
A122: =IF('DF raw data'!I127="","",'DF raw data'!I127) -> -270 | B122: =IF('DF raw data'!J127="","",'DF raw data'!J127) -> -1.7755e-05 | C122: =IF('DF raw data'!K127="","",'DF raw data'!K127) -> -0.000151042 | D122: =IF('DF raw data'!L127="","",'DF raw data'!L127) -> -3.42682e-05 | F122: -1.784572805e-05 | G122: -0.0001518138246 | H122: -3.44433105e-05 | J122: -0.0006995664822 | K122: -0.01072786473 | L122: -0.004585457058 | M122: -0.07065746979 | N122: 0.0002216091245
A123: =IF('DF raw data'!I128="","",'DF raw data'!I128) -> -269.5 | B123: =IF('DF raw data'!J128="","",'DF raw data'!J128) -> -1.02406e-05 | C123: =IF('DF raw data'!K128="","",'DF raw data'!K128) -> -0.000159902 | D123: =IF('DF raw data'!L128="","",'DF raw data'!L128) -> -5.26412e-05 | F123: -1.029292947e-05 | G123: -0.0001607190992 | H123: -5.291019653e-05 | J123: -0.000704712947 | K123: -0.0110802212 | L123: -0.004665816608 | M123: -0.07299037809 | N123: 0.000232742357
A124: =IF('DF raw data'!I129="","",'DF raw data'!I129) -> -269 | B124: =IF('DF raw data'!J129="","",'DF raw data'!J129) -> -1.20954e-05 | C124: =IF('DF raw data'!K129="","",'DF raw data'!K129) -> -0.00016075 | D124: =IF('DF raw data'!L129="","",'DF raw data'!L129) -> -6.01932e-05 | F124: -1.215720749e-05 | G124: -0.0001615714325 | H124: -6.050078725e-05 | J124: -0.0007107915507 | K124: -0.01143561697 | L124: -0.004746602324 | M124: -0.07536367925 | N124: 0.0002442600861
A125: =IF('DF raw data'!I130="","",'DF raw data'!I130) -> -268.5 | B125: =IF('DF raw data'!J130="","",'DF raw data'!J130) -> -2.73039e-05 | C125: =IF('DF raw data'!K130="","",'DF raw data'!K130) -> -0.000166128 | D125: =IF('DF raw data'!L130="","",'DF raw data'!L130) -> -4.28534e-05 | F125: -2.744342293e-05 | G125: -0.0001669769141 | H125: -4.307238087e-05 | J125: -0.0007245132622 | K125: -0.01179787361 | L125: -0.004830090781 | M125: -0.07777872464 | N125: 0.0002561874343
A126: =IF('DF raw data'!I131="","",'DF raw data'!I131) -> -268 | B126: =IF('DF raw data'!J131="","",'DF raw data'!J131) -> -2.94221e-05 | C126: =IF('DF raw data'!K131="","",'DF raw data'!K131) -> -0.000161396 | D126: =IF('DF raw data'!L131="","",'DF raw data'!L131) -> -3.98532e-05 | F126: -2.957244693e-05 | G126: -0.0001622207336 | H126: -4.005684985e-05 | J126: -0.0007392994856 | K126: -0.01216752335 | L126: -0.004911201148 | M126: -0.08023432522 | N126: 0.0002685206645
A127: =IF('DF raw data'!I132="","",'DF raw data'!I132) -> -267.5 | B127: =IF('DF raw data'!J132="","",'DF raw data'!J132) -> -2.57116e-05 | C127: =IF('DF raw data'!K132="","",'DF raw data'!K132) -> -0.000156444 | D127: =IF('DF raw data'!L132="","",'DF raw data'!L132) -> -2.64548e-05 | F127: -2.584298628e-05 | G127: -0.0001572434288 | H127: -2.658998403e-05 | J127: -0.0007522209788 | K127: -0.01254363384 | L127: -0.004989822862 | M127: -0.08272923665 | N127: 0.0002812527488
A128: =IF('DF raw data'!I133="","",'DF raw data'!I133) -> -267 | B128: =IF('DF raw data'!J133="","",'DF raw data'!J133) -> -1.18556e-05 | C128: =IF('DF raw data'!K133="","",'DF raw data'!K133) -> -0.000150319 | D128: =IF('DF raw data'!L133="","",'DF raw data'!L133) -> -3.40941e-05 | F128: =(1-$G$1*($B$49-$G$2))*B128 -> -1.191618212e-05 | G128: -0.0001510871301 | H128: -3.426832085e-05 | J128: =F128*$G$3+J127 -> -0.0007581790698 | K128: =J128*$G$3+K127 -> -0.01292272337 | L128: =G128*$G$3+L127 -> -0.005065366428 | M128: =L128*$G$3+M127 -> -0.08526191986 | N128: =(J128^2+L128^2)*$G$3+N127 -> 0.0002943691351
A129: =IF('DF raw data'!I134="","",'DF raw data'!I134) -> -266.5 | B129: =IF('DF raw data'!J134="","",'DF raw data'!J134) -> -1.94885e-05 | C129: =IF('DF raw data'!K134="","",'DF raw data'!K134) -> -0.000156227 | D129: =IF('DF raw data'!L134="","",'DF raw data'!L134) -> -3.11976e-05 | F129: -1.958808623e-05 | G129: -0.00015702532 | H129: -3.135701974e-05 | J129: -0.0007679731129 | K129: -0.01330670993 | L129: -0.005143879088 | M129: -0.08783385941 | N129: 0.0003078937725
A130: =IF('DF raw data'!I135="","",'DF raw data'!I135) -> -266 | B130: =IF('DF raw data'!J135="","",'DF raw data'!J135) -> -1.50483e-05 | C130: =IF('DF raw data'!K135="","",'DF raw data'!K135) -> -0.000159332 | D130: =IF('DF raw data'!L135="","",'DF raw data'!L135) -> -5.51562e-05 | F130: -1.512519681e-05 | G130: -0.0001601461865 | H130: -5.543804818e-05 | J130: -0.0007755357114 | K130: -0.01369447778 | L130: -0.005223952181 | M130: -0.0904458355 | N130: 0.0003218393385
A131: =IF('DF raw data'!I136="","",'DF raw data'!I136) -> -265.5 | B131: =IF('DF raw data'!J136="","",'DF raw data'!J136) -> -1.85818e-05 | C131: =IF('DF raw data'!K136="","",'DF raw data'!K136) -> -0.000162188 | D131: =IF('DF raw data'!L136="","",'DF raw data'!L136) -> -4.50649e-05 | F131: -1.8676753e-05 | G131: -0.0001630167807 | H131: -4.529518164e-05 | J131: -0.0007848740879 | K131: -0.01408691483 | L131: -0.005305460571 | M131: -0.09309856578 | N131: 0.0003362213081
A132: =IF('DF raw data'!I137="","",'DF raw data'!I137) -> -265 | B132: =IF('DF raw data'!J137="","",'DF raw data'!J137) -> -2.13401e-05 | C132: =IF('DF raw data'!K137="","",'DF raw data'!K137) -> -0.000164002 | D132: =IF('DF raw data'!L137="","",'DF raw data'!L137) -> -4.33003e-05 | F132: -2.144914791e-05 | G132: -0.0001648400502 | H132: -4.352156453e-05 | J132: -0.0007955986618 | K132: -0.01448471416 | L132: -0.005387880596 | M132: -0.09579250608 | N132: 0.0003510524254
A133: =IF('DF raw data'!I138="","",'DF raw data'!I138) -> -264.5 | B133: =IF('DF raw data'!J138="","",'DF raw data'!J138) -> -2.16689e-05 | C133: =IF('DF raw data'!K138="","",'DF raw data'!K138) -> -0.000167674 | D133: =IF('DF raw data'!L138="","",'DF raw data'!L138) -> -3.08543e-05 | F133: -2.177962808e-05 | G133: -0.0001685308141 | H133: -3.101196547e-05 | J133: -0.0008064884758 | K133: -0.0148879584 | L133: -0.005472146003 | M133: -0.09852857908 | N133: 0.0003663498282
A134: =IF('DF raw data'!I139="","",'DF raw data'!I139) -> -264 | B134: =IF('DF raw data'!J139="","",'DF raw data'!J139) -> -2.30806e-05 | C134: =IF('DF raw data'!K139="","",'DF raw data'!K139) -> -0.000168672 | D134: =IF('DF raw data'!L139="","",'DF raw data'!L139) -> -2.93864e-05 | F134: -2.319854187e-05 | G134: -0.0001695339139 | H134: -2.95365645e-05 | J134: -0.0008180877468 | K134: -0.01529700227 | L134: -0.00555691296 | M134: -0.1013070356 | N134: 0.0003821241028
A135: =IF('DF raw data'!I140="","",'DF raw data'!I140) -> -263.5 | B135: =IF('DF raw data'!J140="","",'DF raw data'!J140) -> -3.4485e-05 | C135: =IF('DF raw data'!K140="","",'DF raw data'!K140) -> -0.000161476 | D135: =IF('DF raw data'!L140="","",'DF raw data'!L140) -> -4.44042e-05 | F135: -3.466121835e-05 | G135: -0.0001623011424 | H135: -4.463110546e-05 | J135: -0.000835418356 | K135: -0.01571471145 | L135: -0.005638063531 | M135: -0.1041260673 | N135: 0.0003983669449
A136: =IF('DF raw data'!I141="","",'DF raw data'!I141) -> -263 | B136: =IF('DF raw data'!J141="","",'DF raw data'!J141) -> -1.85827e-05 | C136: =IF('DF raw data'!K141="","",'DF raw data'!K141) -> -0.000142369 | D136: =IF('DF raw data'!L141="","",'DF raw data'!L141) -> -4.35924e-05 | F136: -1.86776576e-05 | G136: -0.0001430965056 | H136: -4.381515716e-05 | J136: -0.0008447571848 | K136: -0.01613709004 | L136: -0.005709611784 | M136: -0.1069808732 | N136: 0.0004150235856
A137: =IF('DF raw data'!I142="","",'DF raw data'!I142) -> -262.5 | B137: =IF('DF raw data'!J142="","",'DF raw data'!J142) -> -2.15345e-05 | C137: =IF('DF raw data'!K142="","",'DF raw data'!K142) -> -0.000142898 | D137: =IF('DF raw data'!L142="","",'DF raw data'!L142) -> -4.04223e-05 | F137: -2.164454129e-05 | G137: -0.0001436282088 | H137: -4.062885795e-05 | J137: -0.0008555794554 | K137: -0.01656487977 | L137: -0.005781425889 | M137: -0.1098715862 | N137: 0.0004321020363
A138: =IF('DF raw data'!I143="","",'DF raw data'!I143) -> -262 | B138: =IF('DF raw data'!J143="","",'DF raw data'!J143) -> -1.91645e-05 | C138: =IF('DF raw data'!K143="","",'DF raw data'!K143) -> -0.000149426 | D138: =IF('DF raw data'!L143="","",'DF raw data'!L143) -> -3.61528e-05 | F138: -1.926243059e-05 | G138: -0.0001501895669 | H138: -3.633754081e-05 | J138: -0.0008652106707 | K138: -0.0169974851 | L138: -0.005856520672 | M138: -0.1127998465 | N138: 0.0004496257483
A139: =IF('DF raw data'!I144="","",'DF raw data'!I144) -> -261.5 | B139: =IF('DF raw data'!J144="","",'DF raw data'!J144) -> -2.85227e-05 | C139: =IF('DF raw data'!K144="","",'DF raw data'!K144) -> -0.000159746 | D139: =IF('DF raw data'!L144="","",'DF raw data'!L144) -> -4.24764e-05 | F139: -2.8668451e-05 | G139: -0.0001605623021 | H139: -4.26934544e-05 | J139: -0.0008795448962 | K139: -0.01743725755 | L139: -0.005936801823 | M139: -0.1157682474 | N139: 0.0004676353558
A140: =IF('DF raw data'!I145="","",'DF raw data'!I145) -> -261 | B140: =IF('DF raw data'!J145="","",'DF raw data'!J145) -> -2.64087e-05 | C140: =IF('DF raw data'!K145="","",'DF raw data'!K145) -> -0.000156912 | D140: =IF('DF raw data'!L145="","",'DF raw data'!L145) -> -3.90577e-05 | F140: -2.654364846e-05 | G140: -0.0001577138203 | H140: -3.925728485e-05 | J140: -0.0008928167204 | K140: -0.01788366591 | L140: -0.006015658733 | M140: -0.1187760768 | N140: 0.0004861279917
A141: =IF('DF raw data'!I146="","",'DF raw data'!I146) -> -260.5 | B141: =IF('DF raw data'!J146="","",'DF raw data'!J146) -> -9.10286e-06 | C141: =IF('DF raw data'!K146="","",'DF raw data'!K146) -> -0.000152876 | D141: =IF('DF raw data'!L146="","",'DF raw data'!L146) -> -2.72645e-05 | F141: -9.149375615e-06 | G141: -0.0001536571964 | H141: -2.740382159e-05 | J141: -0.0008973914082 | K141: -0.01833236162 | L141: -0.006092487331 | M141: -0.1218223204 | N141: 0.0005050898483
A142: =IF('DF raw data'!I147="","",'DF raw data'!I147) -> -260 | B142: =IF('DF raw data'!J147="","",'DF raw data'!J147) -> -2.12148e-05 | C142: =IF('DF raw data'!K147="","",'DF raw data'!K147) -> -0.000159793 | D142: =IF('DF raw data'!L147="","",'DF raw data'!L147) -> -3.86736e-05 | F142: -2.132320763e-05 | G142: -0.0001606095422 | H142: -3.88712221e-05 | J142: -0.000908053012 | K142: -0.01878638812 | L142: -0.006172792103 | M142: -0.1249087165 | N142: 0.0005245538096
A143: =IF('DF raw data'!I148="","",'DF raw data'!I148) -> -259.5 | B143: =IF('DF raw data'!J148="","",'DF raw data'!J148) -> -2.98129e-05 | C143: =IF('DF raw data'!K148="","",'DF raw data'!K148) -> -0.0001623 | D143: =IF('DF raw data'!L148="","",'DF raw data'!L148) -> -3.05179e-05 | F143: -2.996524392e-05 | G143: -0.000163129353 | H143: -3.067384647e-05 | J143: -0.000923035634 | K143: -0.01924790594 | L143: -0.006254356779 | M143: -0.1280358949 | N143: 0.0005445382963
A144: =IF('DF raw data'!I149="","",'DF raw data'!I149) -> -259 | B144: =IF('DF raw data'!J149="","",'DF raw data'!J149) -> -1.77585e-05 | C144: =IF('DF raw data'!K149="","",'DF raw data'!K149) -> -0.000153272 | D144: =IF('DF raw data'!L149="","",'DF raw data'!L149) -> -2.89871e-05 | F144: -1.784924593e-05 | G144: -0.0001540552199 | H144: -2.913522408e-05 | J144: -0.000931960257 | K144: -0.01971388607 | L144: -0.006331384389 | M144: -0.1312015871 | N144: 0.0005650157854
A145: =IF('DF raw data'!I150="","",'DF raw data'!I150) -> -258.5 | B145: =IF('DF raw data'!J150="","",'DF raw data'!J150) -> -2.53193e-05 | C145: =IF('DF raw data'!K150="","",'DF raw data'!K150) -> -0.000146828 | D145: =IF('DF raw data'!L150="","",'DF raw data'!L150) -> -3.82848e-05 | F145: -2.544868162e-05 | G145: -0.0001475782911 | H145: -3.848043533e-05 | J145: -0.0009446845978 | K145: -0.02018622837 | L145: -0.006405173535 | M145: -0.1344041738 | N145: 0.0005859751239
A146: =IF('DF raw data'!I151="","",'DF raw data'!I151) -> -258 | B146: =IF('DF raw data'!J151="","",'DF raw data'!J151) -> -3.05124e-05 | C146: =IF('DF raw data'!K151="","",'DF raw data'!K151) -> -0.000153591 | D146: =IF('DF raw data'!L151="","",'DF raw data'!L151) -> -3.93901e-05 | F146: -3.066831836e-05 | G146: -0.00015437585 | H146: -3.959138341e-05 | J146: -0.000960018757 | K146: -0.02066623775 | L146: -0.00648236146 | M146: -0.1376453546 | N146: 0.000607446447
A147: =IF('DF raw data'!I152="","",'DF raw data'!I152) -> -257.5 | B147: =IF('DF raw data'!J152="","",'DF raw data'!J152) -> -3.10896e-05 | C147: =IF('DF raw data'!K152="","",'DF raw data'!K152) -> -0.000160667 | D147: =IF('DF raw data'!L152="","",'DF raw data'!L152) -> -3.94626e-05 | F147: -3.124846786e-05 | G147: -0.0001614880084 | H147: -3.966425389e-05 | J147: -0.0009756429909 | K147: -0.02115405924 | L147: -0.006563105464 | M147: -0.1409269073 | N147: 0.0006294595633
A148: =IF('DF raw data'!I153="","",'DF raw data'!I153) -> -257 | B148: =IF('DF raw data'!J153="","",'DF raw data'!J153) -> -2.64099e-05 | C148: =IF('DF raw data'!K153="","",'DF raw data'!K153) -> -0.000168888 | D148: =IF('DF raw data'!L153="","",'DF raw data'!L153) -> -3.71468e-05 | F148: -2.654485459e-05 | G148: -0.0001697510177 | H148: -3.733662015e-05 | J148: -0.0009889154182 | K148: -0.02164851695 | L148: -0.006647980973 | M148: -0.1442508978 | N148: 0.0006520463656
A149: =IF('DF raw data'!I154="","",'DF raw data'!I154) -> -256.5 | B149: =IF('DF raw data'!J154="","",'DF raw data'!J154) -> -2.68576e-05 | C149: =IF('DF raw data'!K154="","",'DF raw data'!K154) -> -0.00017101 | D149: =IF('DF raw data'!L154="","",'DF raw data'!L154) -> -3.92494e-05 | F149: -2.699484234e-05 | G149: -0.0001718838611 | H149: -3.944996443e-05 | J149: -0.001002412839 | K149: -0.02214972337 | L149: -0.006733922903 | M149: -0.1476178592 | N149: 0.0006752216402
A150: =IF('DF raw data'!I155="","",'DF raw data'!I155) -> -256 | B150: =IF('DF raw data'!J155="","",'DF raw data'!J155) -> -2.59609e-05 | C150: =IF('DF raw data'!K155="","",'DF raw data'!K155) -> -0.000169936 | D150: =IF('DF raw data'!L155="","",'DF raw data'!L155) -> -3.76516e-05 | F150: -2.60935602e-05 | G150: -0.000170804373 | H150: -3.784399968e-05 | J150: -0.001015459619 | K150: -0.02265745318 | L150: -0.00681932509 | M150: -0.1510275218 | N150: 0.0006989888167
A151: =IF('DF raw data'!I156="","",'DF raw data'!I156) -> -255.5 | B151: =IF('DF raw data'!J156="","",'DF raw data'!J156) -> -3.70499e-05 | C151: =IF('DF raw data'!K156="","",'DF raw data'!K156) -> -0.000162104 | D151: =IF('DF raw data'!L156="","",'DF raw data'!L156) -> -4.44673e-05 | F151: -3.723922499e-05 | G151: -0.0001629323514 | H151: -4.46945279e-05 | J151: -0.001034079232 | K151: -0.0231744928 | L151: -0.006900791265 | M151: -0.1544779174 | N151: 0.0007233339367
A152: =IF('DF raw data'!I157="","",'DF raw data'!I157) -> -255 | B152: =IF('DF raw data'!J157="","",'DF raw data'!J157) -> -3.08313e-05 | C152: =IF('DF raw data'!K157="","",'DF raw data'!K157) -> -0.000158126 | D152: =IF('DF raw data'!L157="","",'DF raw data'!L157) -> -4.2134e-05 | F152: -3.098884794e-05 | G152: -0.0001589340239 | H152: -4.234930474e-05 | J152: -0.001049573656 | K152: -0.02369927962 | L152: -0.006980258277 | M152: -0.1579680466 | N152: 0.0007482467419
A153: =IF('DF raw data'!I158="","",'DF raw data'!I158) -> -254.5 | B153: =IF('DF raw data'!J158="","",'DF raw data'!J158) -> -3.41098e-05 | C153: =IF('DF raw data'!K158="","",'DF raw data'!K158) -> -0.000155167 | D153: =IF('DF raw data'!L158="","",'DF raw data'!L158) -> -2.9718e-05 | F153: -3.428410108e-05 | G153: -0.0001559599034 | H153: -2.986985898e-05 | J153: -0.001066715706 | K153: -0.02423263748 | L153: -0.007058238229 | M153: -0.1614971657 | N153: 0.0007737250465
A154: =IF('DF raw data'!I159="","",'DF raw data'!I159) -> -254 | B154: =IF('DF raw data'!J159="","",'DF raw data'!J159) -> -1.45387e-05 | C154: =IF('DF raw data'!K159="","",'DF raw data'!K159) -> -0.000153143 | D154: =IF('DF raw data'!L159="","",'DF raw data'!L159) -> -5.0005e-05 | F154: -1.461299276e-05 | G154: -0.0001539255607 | H154: -5.026052555e-05 | J154: -0.001074022203 | K154: -0.02476964858 | L154: -0.007135201009 | M154: -0.1650647662 | N154: 0.0007997573551
A155: =IF('DF raw data'!I160="","",'DF raw data'!I160) -> -253.5 | B155: =IF('DF raw data'!J160="","",'DF raw data'!J160) -> -7.87605e-06 | C155: =IF('DF raw data'!K160="","",'DF raw data'!K160) -> -0.000159183 | D155: =IF('DF raw data'!L160="","",'DF raw data'!L160) -> -4.01374e-05 | F155: -7.916296616e-06 | G155: -0.0001599964251 | H155: -4.034250211e-05 | J155: -0.001077980351 | K155: -0.02530863875 | L155: -0.007215199222 | M155: -0.1686723658 | N155: 0.0008263679258
A156: =IF('DF raw data'!I161="","",'DF raw data'!I161) -> -253 | B156: =IF('DF raw data'!J161="","",'DF raw data'!J161) -> -2.07643e-05 | C156: =IF('DF raw data'!K161="","",'DF raw data'!K161) -> -0.000156624 | D156: =IF('DF raw data'!L161="","",'DF raw data'!L161) -> -4.1464e-05 | F156: -2.087040557e-05 | G156: -0.0001574243486 | H156: -4.167588104e-05 | J156: -0.001088415554 | K156: -0.02585284653 | L156: -0.007293911396 | M156: -0.1723193215 | N156: 0.0008535608218
A157: =IF('DF raw data'!I162="","",'DF raw data'!I162) -> -252.5 | B157: =IF('DF raw data'!J162="","",'DF raw data'!J162) -> -2.24388e-05 | C157: =IF('DF raw data'!K162="","",'DF raw data'!K162) -> -0.000155039 | D157: =IF('DF raw data'!L162="","",'DF raw data'!L162) -> -3.02391e-05 | F157: -2.255346227e-05 | G157: -0.0001558312493 | H157: -3.03936218e-05 | J157: -0.001099692285 | K157: -0.02640269267 | L157: -0.007371827021 | M157: -0.176005235 | N157: 0.0008813374001
A158: =IF('DF raw data'!I163="","",'DF raw data'!I163) -> -252 | B158: =IF('DF raw data'!J163="","",'DF raw data'!J163) -> -1.99901e-05 | C158: =IF('DF raw data'!K163="","",'DF raw data'!K163) -> -0.000155881 | D158: =IF('DF raw data'!L163="","",'DF raw data'!L163) -> -4.876e-05 | F158: -2.009224941e-05 | G158: -0.0001566775519 | H158: -4.90091636e-05 | J158: -0.00110973841 | K158: -0.02695756188 | L158: -0.007450165797 | M158: -0.1797303179 | N158: 0.000909705645
A159: =IF('DF raw data'!I164="","",'DF raw data'!I164) -> -251.5 | B159: =IF('DF raw data'!J164="","",'DF raw data'!J164) -> -2.63458e-05 | C159: =IF('DF raw data'!K164="","",'DF raw data'!K164) -> -0.000157459 | D159: =IF('DF raw data'!L164="","",'DF raw data'!L164) -> -3.74452e-05 | F159: -2.648042704e-05 | G159: -0.0001582636155 | H159: -3.763654497e-05 | J159: -0.001122978623 | K159: -0.02751905119 | L159: -0.007529297605 | M159: -0.1834949667 | N159: 0.0009386813467
A160: =IF('DF raw data'!I165="","",'DF raw data'!I165) -> -251 | B160: =IF('DF raw data'!J165="","",'DF raw data'!J165) -> -2.4033e-05 | C160: =IF('DF raw data'!K165="","",'DF raw data'!K165) -> -0.000160766 | D160: =IF('DF raw data'!L165="","",'DF raw data'!L165) -> -4.38074e-05 | F160: -2.415580863e-05 | G160: -0.0001615875143 | H160: -4.403125581e-05 | J160: -0.001135056528 | K160: -0.02808657945 | L160: -0.007610091362 | M160: -0.1873000124 | N160: 0.0009682822686
A161: =IF('DF raw data'!I166="","",'DF raw data'!I166) -> -250.5 | B161: =IF('DF raw data'!J166="","",'DF raw data'!J166) -> -2.5013e-05 | C161: =IF('DF raw data'!K166="","",'DF raw data'!K166) -> -0.000159629 | D161: =IF('DF raw data'!L166="","",'DF raw data'!L166) -> -1.60058e-05 | F161: -2.514081643e-05 | G161: -0.0001604447042 | H161: -1.608758964e-05 | J161: -0.001147626936 | K161: -0.02866039292 | L161: -0.007690313714 | M161: -0.1911451692 | N161: 0.0009985112549
A162: =IF('DF raw data'!I167="","",'DF raw data'!I167) -> -250 | B162: =IF('DF raw data'!J167="","",'DF raw data'!J167) -> -2.17347e-05 | C162: =IF('DF raw data'!K167="","",'DF raw data'!K167) -> -0.000152379 | D162: =IF('DF raw data'!L167="","",'DF raw data'!L167) -> -2.81864e-05 | F162: -2.184576432e-05 | G162: -0.0001531576567 | H162: -2.83304325e-05 | J162: -0.001158549818 | K162: -0.02923966783 | L162: -0.007766892542 | M162: -0.1950286155 | N162: 0.001029344684
A163: =IF('DF raw data'!I168="","",'DF raw data'!I168) -> -249.5 | B163: =IF('DF raw data'!J168="","",'DF raw data'!J168) -> -2.05078e-05 | C163: =IF('DF raw data'!K168="","",'DF raw data'!K168) -> -0.000161508 | D163: =IF('DF raw data'!L168="","",'DF raw data'!L168) -> -4.15409e-05 | F163: -2.061259486e-05 | G163: -0.0001623333059 | H163: -4.1753174e-05 | J163: -0.001168856115 | K163: -0.02982409589 | L163: -0.007848059195 | M163: -0.1989526451 | N163: 0.001060823813
A164: =IF('DF raw data'!I169="","",'DF raw data'!I169) -> -249 | B164: =IF('DF raw data'!J169="","",'DF raw data'!J169) -> -2.73674e-05 | C164: =IF('DF raw data'!K169="","",'DF raw data'!K169) -> -0.000164656 | D164: =IF('DF raw data'!L169="","",'DF raw data'!L169) -> -4.42117e-05 | F164: -2.750724741e-05 | G164: -0.0001654973922 | H164: -4.443762179e-05 | J164: -0.001182609739 | K164: -0.03041540076 | L164: -0.007930807891 | M164: -0.2029180491 | N164: 0.001092971952
A165: =IF('DF raw data'!I170="","",'DF raw data'!I170) -> -248.5 | B165: =IF('DF raw data'!J170="","",'DF raw data'!J170) -> -3.72482e-05 | C165: =IF('DF raw data'!K170="","",'DF raw data'!K170) -> -0.00015446 | D165: =IF('DF raw data'!L170="","",'DF raw data'!L170) -> -3.55435e-05 | F165: -3.74385383e-05 | G165: -0.0001552492906 | H165: -3.572512728e-05 | J165: -0.001201329008 | K165: -0.03101606526 | L165: -0.008008432536 | M165: -0.2069222653 | N165: 0.001125761044
A166: =IF('DF raw data'!I171="","",'DF raw data'!I171) -> -248 | B166: =IF('DF raw data'!J171="","",'DF raw data'!J171) -> -2.58347e-05 | C166: =IF('DF raw data'!K171="","",'DF raw data'!K171) -> -0.000150677 | D166: =IF('DF raw data'!L171="","",'DF raw data'!L171) -> -3.44821e-05 | F166: -2.596671532e-05 | G166: -0.0001514469595 | H166: -3.465830353e-05 | J166: -0.001214312366 | K166: -0.03162322144 | L166: -0.008084156016 | M166: -0.2109643433 | N166: 0.00115917511
A167: =IF('DF raw data'!I172="","",'DF raw data'!I172) -> -247.5 | B167: =IF('DF raw data'!J172="","",'DF raw data'!J172) -> -3.55813e-05 | C167: =IF('DF raw data'!K172="","",'DF raw data'!K172) -> -0.000144062 | D167: =IF('DF raw data'!L172="","",'DF raw data'!L172) -> -3.4787e-05 | F167: -3.576312044e-05 | G167: -0.0001447981568 | H167: -3.496476157e-05 | J167: -0.001232193926 | K167: -0.03223931841 | L167: -0.008156555095 | M167: -0.2150426209 | N167: 0.001193198957
A168: =IF('DF raw data'!I173="","",'DF raw data'!I173) -> -247 | B168: =IF('DF raw data'!J173="","",'DF raw data'!J173) -> -2.97372e-05 | C168: =IF('DF raw data'!K173="","",'DF raw data'!K173) -> -0.000135944 | D168: =IF('DF raw data'!L173="","",'DF raw data'!L173) -> -4.82705e-05 | F168: -2.988915709e-05 | G168: -0.0001366386738 | H168: -4.851716225e-05 | J168: -0.001247138505 | K168: -0.03286288766 | L168: -0.008224874431 | M168: -0.2191550581 | N168: 0.001227800914
A169: =IF('DF raw data'!I174="","",'DF raw data'!I174) -> -246.5 | B169: =IF('DF raw data'!J174="","",'DF raw data'!J174) -> -2.69171e-05 | C169: =IF('DF raw data'!K174="","",'DF raw data'!K174) -> -0.000142984 | D169: =IF('DF raw data'!L174="","",'DF raw data'!L174) -> -4.62374e-05 | F169: -2.705464638e-05 | G169: -0.0001437146482 | H169: -4.647367311e-05 | J169: -0.001260665828 | K169: -0.03349322057 | L169: -0.008296731756 | M169: -0.223303424 | N169: 0.001263013432
A170: =IF('DF raw data'!I175="","",'DF raw data'!I175) -> -246 | B170: =IF('DF raw data'!J175="","",'DF raw data'!J175) -> -2.02512e-05 | C170: =IF('DF raw data'!K175="","",'DF raw data'!K175) -> -0.00015062 | D170: =IF('DF raw data'!L175="","",'DF raw data'!L175) -> -4.16462e-05 | F170: -2.035468363e-05 | G170: -0.0001513896682 | H170: -4.185901208e-05 | J170: -0.00127084317 | K170: -0.03412864216 | L170: -0.00837242659 | M170: -0.2274896373 | N170: 0.001298869717
A171: =IF('DF raw data'!I176="","",'DF raw data'!I176) -> -245.5 | B171: =IF('DF raw data'!J176="","",'DF raw data'!J176) -> -3.66087e-05 | C171: =IF('DF raw data'!K176="","",'DF raw data'!K176) -> -0.000153643 | D171: =IF('DF raw data'!L176="","",'DF raw data'!L176) -> -3.25614e-05 | F171: -3.679577046e-05 | G171: -0.0001544281157 | H171: -3.272778875e-05 | J171: -0.001289241055 | K171: -0.03477326269 | L171: -0.008449640648 | M171: -0.2317144576 | N171: 0.001335399001
A172: =IF('DF raw data'!I177="","",'DF raw data'!I177) -> -245 | B172: =IF('DF raw data'!J177="","",'DF raw data'!J177) -> -1.99385e-05 | C172: =IF('DF raw data'!K177="","",'DF raw data'!K177) -> -0.000145633 | D172: =IF('DF raw data'!L177="","",'DF raw data'!L177) -> -2.93395e-05 | F172: -2.004038573e-05 | G172: -0.0001463771846 | H172: -2.948942484e-05 | J172: -0.001299261248 | K172: -0.03542289331 | L172: -0.00852282924 | M172: -0.2359758722 | N172: 0.00137256235
A173: =IF('DF raw data'!I178="","",'DF raw data'!I178) -> -244.5 | B173: =IF('DF raw data'!J178="","",'DF raw data'!J178) -> -2.8209e-05 | C173: =IF('DF raw data'!K178="","",'DF raw data'!K178) -> -0.000153742 | D173: =IF('DF raw data'!L178="","",'DF raw data'!L178) -> -3.16309e-05 | F173: -2.835314799e-05 | G173: -0.0001545276216 | H173: -3.17925339e-05 | J173: -0.001313437822 | K173: -0.03607961222 | L173: -0.008600093051 | M173: -0.2402759187 | N173: 0.00141040571
A174: =IF('DF raw data'!I179="","",'DF raw data'!I179) -> -244 | B174: =IF('DF raw data'!J179="","",'DF raw data'!J179) -> -2.90357e-05 | C174: =IF('DF raw data'!K179="","",'DF raw data'!K179) -> -0.000153369 | D174: =IF('DF raw data'!L179="","",'DF raw data'!L179) -> -4.24647e-05 | F174: -2.918407243e-05 | G174: -0.0001541527156 | H174: -4.268169462e-05 | J174: -0.001328029858 | K174: -0.03674362715 | L174: -0.008677169408 | M174: -0.2446145034 | N174: 0.001448934176
A175: =IF('DF raw data'!I180="","",'DF raw data'!I180) -> -243.5 | B175: =IF('DF raw data'!J180="","",'DF raw data'!J180) -> -2.01895e-05 | C175: =IF('DF raw data'!K180="","",'DF raw data'!K180) -> -0.000145111 | D175: =IF('DF raw data'!L180="","",'DF raw data'!L180) -> -3.78348e-05 | F175: -2.029266834e-05 | G175: -0.0001458525172 | H175: -3.802813583e-05 | J175: -0.001338176192 | K175: -0.03741271525 | L175: -0.008750095667 | M175: -0.2489895513 | N175: 0.001488111621
A176: =IF('DF raw data'!I181="","",'DF raw data'!I181) -> -243 | B176: =IF('DF raw data'!J181="","",'DF raw data'!J181) -> -3.01866e-05 | C176: =IF('DF raw data'!K181="","",'DF raw data'!K181) -> -0.00014047 | D176: =IF('DF raw data'!L181="","",'DF raw data'!L181) -> -4.76337e-05 | F176: -3.034085353e-05 | G176: -0.0001411878017 | H176: -4.787710821e-05 | J176: -0.001353346619 | K176: -0.03808938856 | L176: -0.008820689568 | M176: -0.2533998961 | N176: 0.001527929677
A177: =IF('DF raw data'!I182="","",'DF raw data'!I182) -> -242.5 | B177: =IF('DF raw data'!J182="","",'DF raw data'!J182) -> -3.4356e-05 | C177: =IF('DF raw data'!K182="","",'DF raw data'!K182) -> -0.000134908 | D177: =IF('DF raw data'!L182="","",'DF raw data'!L182) -> -4.56919e-05 | F177: -3.453155916e-05 | G177: -0.0001355973799 | H177: -4.592538561e-05 | J177: -0.001370612399 | K177: -0.03877469475 | L177: -0.008888488258 | M177: -0.2578441402 | N177: 0.001568371578
A178: =IF('DF raw data'!I183="","",'DF raw data'!I183) -> -242 | B178: =IF('DF raw data'!J183="","",'DF raw data'!J183) -> -2.85838e-05 | C178: =IF('DF raw data'!K183="","",'DF raw data'!K183) -> -0.000135927 | D178: =IF('DF raw data'!L183="","",'DF raw data'!L183) -> -4.69726e-05 | F178: -2.872986322e-05 | G178: -0.000136621587 | H178: -4.721262999e-05 | J178: -0.00138497733 | K178: -0.03946718342 | L178: -0.008956799051 | M178: -0.2623225397 | N178: 0.001609442783
A179: =IF('DF raw data'!I184="","",'DF raw data'!I184) -> -241.5 | B179: =IF('DF raw data'!J184="","",'DF raw data'!J184) -> -2.69811e-05 | C179: =IF('DF raw data'!K184="","",'DF raw data'!K184) -> -0.000145791 | D179: =IF('DF raw data'!L184="","",'DF raw data'!L184) -> -4.66516e-05 | F179: -2.711897342e-05 | G179: -0.000146535992 | H179: -4.688998968e-05 | J179: -0.001398536817 | K179: -0.04016645183 | L179: -0.009030067047 | M179: -0.2668375732 | N179: 0.001651191791
A180: =IF('DF raw data'!I185="","",'DF raw data'!I185) -> -241 | B180: =IF('DF raw data'!J185="","",'DF raw data'!J185) -> -2.75654e-05 | C180: =IF('DF raw data'!K185="","",'DF raw data'!K185) -> -0.000142093 | D180: =IF('DF raw data'!L185="","",'DF raw data'!L185) -> -3.53971e-05 | F180: -2.770625919e-05 | G180: -0.0001428190952 | H180: -3.557797918e-05 | J180: -0.001412389946 | K180: -0.0408726468 | L180: -0.009101476595 | M180: -0.2713883115 | N180: 0.001693607652
A181: =IF('DF raw data'!I186="","",'DF raw data'!I186) -> -240.5 | B181: =IF('DF raw data'!J186="","",'DF raw data'!J186) -> -3.3395e-05 | C181: =IF('DF raw data'!K186="","",'DF raw data'!K186) -> -0.000151416 | D181: =IF('DF raw data'!L186="","",'DF raw data'!L186) -> -4.42767e-05 | F181: -3.356564845e-05 | G181: -0.0001521897358 | H181: -4.450295394e-05 | J181: -0.001429172771 | K181: -0.04158723319 | L181: -0.009177571463 | M181: -0.2759770973 | N181: 0.001736742829
A182: =IF('DF raw data'!I187="","",'DF raw data'!I187) -> -240 | B182: =IF('DF raw data'!J187="","",'DF raw data'!J187) -> -4.66047e-05 | C182: =IF('DF raw data'!K187="","",'DF raw data'!K187) -> -0.000149612 | D182: =IF('DF raw data'!L187="","",'DF raw data'!L187) -> -4.40556e-05 | F182: -4.684285002e-05 | G182: -0.0001503765173 | H182: -4.428072412e-05 | J182: -0.001452594196 | K182: -0.04231353028 | L182: -0.009252759722 | M182: -0.2806034771 | N182: 0.001780604625
A183: =IF('DF raw data'!I188="","",'DF raw data'!I188) -> -239.5 | B183: =IF('DF raw data'!J188="","",'DF raw data'!J188) -> -3.35259e-05 | C183: =IF('DF raw data'!K188="","",'DF raw data'!K188) -> -0.000147199 | D183: =IF('DF raw data'!L188="","",'DF raw data'!L188) -> -4.01492e-05 | F183: -3.369721735e-05 | G183: -0.0001479511869 | H183: -4.035436241e-05 | J183: -0.001469442804 | K183: -0.04304825169 | L183: -0.009326735315 | M183: -0.2852668448 | N183: 0.001825178252
A184: =IF('DF raw data'!I189="","",'DF raw data'!I189) -> -239 | B184: =IF('DF raw data'!J189="","",'DF raw data'!J189) -> -3.05677e-05 | C184: =IF('DF raw data'!K189="","",'DF raw data'!K189) -> -0.000140686 | D184: =IF('DF raw data'!L189="","",'DF raw data'!L189) -> -5.33324e-05 | F184: -3.072390095e-05 | G184: -0.0001414049055 | H184: -5.360492856e-05 | J184: -0.001484804755 | K184: -0.04379065406 | L184: -0.009397437768 | M184: -0.2899655637 | N184: 0.001870436493
A185: =IF('DF raw data'!I190="","",'DF raw data'!I190) -> -238.5 | B185: =IF('DF raw data'!J190="","",'DF raw data'!J190) -> -2.01856e-05 | C185: =IF('DF raw data'!K190="","",'DF raw data'!K190) -> -0.000138921 | D185: =IF('DF raw data'!L190="","",'DF raw data'!L190) -> -4.38482e-05 | F185: -2.028874842e-05 | G185: -0.0001396308863 | H185: -4.40722643e-05 | J185: -0.001494949129 | K185: -0.04453812863 | L185: -0.009467253211 | M185: -0.2946991903 | N185: 0.001916368371
A186: =IF('DF raw data'!I191="","",'DF raw data'!I191) -> -238 | B186: =IF('DF raw data'!J191="","",'DF raw data'!J191) -> -2.15308e-05 | C186: =IF('DF raw data'!K191="","",'DF raw data'!K191) -> -0.000146439 | D186: =IF('DF raw data'!L191="","",'DF raw data'!L191) -> -4.61296e-05 | F186: -2.164082239e-05 | G186: -0.0001471873033 | H186: -4.636532226e-05 | J186: -0.00150576954 | K186: -0.0452910134 | L186: -0.009540846863 | M186: -0.2994696137 | N186: 0.001963015921
A187: =IF('DF raw data'!I192="","",'DF raw data'!I192) -> -237.5 | B187: =IF('DF raw data'!J192="","",'DF raw data'!J192) -> -3.42986e-05 | C187: =IF('DF raw data'!K192="","",'DF raw data'!K192) -> -0.000158249 | D187: =IF('DF raw data'!L192="","",'DF raw data'!L192) -> -3.51904e-05 | F187: -3.447386585e-05 | G187: -0.0001590576524 | H187: -3.537022294e-05 | J187: -0.001523006473 | K187: -0.04605251664 | L187: -0.009620375689 | M187: -0.3042798015 | N187: 0.00201045151
A188: =IF('DF raw data'!I193="","",'DF raw data'!I193) -> -237 | B188: =IF('DF raw data'!J193="","",'DF raw data'!J193) -> -2.2818e-05 | C188: =IF('DF raw data'!K193="","",'DF raw data'!K193) -> -0.000158128 | D188: =IF('DF raw data'!L193="","",'DF raw data'!L193) -> -3.89081e-05 | F188: -2.293459998e-05 | G188: -0.0001589360341 | H188: -3.910692039e-05 | J188: -0.001534473773 | K188: -0.04681975352 | L188: -0.009699843706 | M188: -0.3091297234 | N188: 0.002058672298
A189: =IF('DF raw data'!I194="","",'DF raw data'!I194) -> -236.5 | B189: =IF('DF raw data'!J194="","",'DF raw data'!J194) -> -2.98076e-05 | C189: =IF('DF raw data'!K194="","",'DF raw data'!K194) -> -0.000155224 | D189: =IF('DF raw data'!L194="","",'DF raw data'!L194) -> -3.8866e-05 | F189: -2.995991684e-05 | G189: -0.0001560171946 | H189: -3.906460526e-05 | J189: -0.001549453732 | K189: -0.04759448039 | L189: -0.009777852303 | M189: -0.3140186496 | N189: 0.0021076759
A190: =IF('DF raw data'!I195="","",'DF raw data'!I195) -> -236 | B190: =IF('DF raw data'!J195="","",'DF raw data'!J195) -> -3.38435e-05 | C190: =IF('DF raw data'!K195="","",'DF raw data'!K195) -> -0.000160122 | D190: =IF('DF raw data'!L195="","",'DF raw data'!L195) -> -4.50493e-05 | F190: -3.401644029e-05 | G190: -0.0001609402234 | H190: -4.527950192e-05 | J190: -0.001566461952 | K190: -0.04837771136 | L190: -0.009858322415 | M190: -0.3189478108 | N190: 0.002157496062
A191: =IF('DF raw data'!I196="","",'DF raw data'!I196) -> -235.5 | B191: =IF('DF raw data'!J196="","",'DF raw data'!J196) -> -2.44115e-05 | C191: =IF('DF raw data'!K196="","",'DF raw data'!K196) -> -0.000162937 | D191: =IF('DF raw data'!L196="","",'DF raw data'!L196) -> -5.35083e-05 | F191: -2.453624277e-05 | G191: -0.0001637696081 | H191: -5.378172741e-05 | J191: -0.001578730073 | K191: -0.0491670764 | L191: -0.009940207219 | M191: -0.3239179144 | N191: 0.002208146116
A192: =IF('DF raw data'!I197="","",'DF raw data'!I197) -> -235 | B192: =IF('DF raw data'!J197="","",'DF raw data'!J197) -> -3.25568e-05 | C192: =IF('DF raw data'!K197="","",'DF raw data'!K197) -> -0.000162268 | D192: =IF('DF raw data'!L197="","",'DF raw data'!L197) -> -5.1505e-05 | F192: =(1-$G$1*($B$49-$G$2))*B192 -> -3.272316525e-05 | G192: -0.0001630971895 | H192: -5.176819055e-05 | J192: =F192*$G$3+J191 -> -0.001595091656 | K192: =J192*$G$3+K191 -> -0.04996462223 | L192: =G192*$G$3+L191 -> -0.01002175581 | M192: =L192*$G$3+M191 -> -0.3289287923 | N192: =(J192^2+L192^2)*$G$3+N191 -> 0.002259636069
A193: =IF('DF raw data'!I198="","",'DF raw data'!I198) -> -234.5 | B193: =IF('DF raw data'!J198="","",'DF raw data'!J198) -> -2.76807e-05 | C193: =IF('DF raw data'!K198="","",'DF raw data'!K198) -> -0.000152228 | D193: =IF('DF raw data'!L198="","",'DF raw data'!L198) -> -5.52471e-05 | F193: -2.782214838e-05 | G193: -0.0001530058851 | H193: -5.552941268e-05 | J193: -0.00160900273 | K193: -0.05076912359 | L193: -0.01009825876 | M193: -0.3339779217 | N193: 0.002311917929
A194: =IF('DF raw data'!I199="","",'DF raw data'!I199) -> -234 | B194: =IF('DF raw data'!J199="","",'DF raw data'!J199) -> -2.98028e-05 | C194: =IF('DF raw data'!K199="","",'DF raw data'!K199) -> -0.000150851 | D194: =IF('DF raw data'!L199="","",'DF raw data'!L199) -> -4.63063e-05 | F194: -2.995509231e-05 | G194: -0.0001516218486 | H194: -4.654292519e-05 | J194: -0.001623980276 | K194: -0.05158111373 | L194: -0.01017406968 | M194: -0.3390649565 | N194: 0.002364992432
A195: =IF('DF raw data'!I200="","",'DF raw data'!I200) -> -233.5 | B195: =IF('DF raw data'!J200="","",'DF raw data'!J200) -> -3.13371e-05 | C195: =IF('DF raw data'!K200="","",'DF raw data'!K200) -> -0.000149794 | D195: =IF('DF raw data'!L200="","",'DF raw data'!L200) -> -5.34906e-05 | F195: -3.149723258e-05 | G195: -0.0001505594473 | H195: -5.376393697e-05 | J195: -0.001639728892 | K195: -0.05240097818 | L195: -0.0102493494 | M195: -0.3441896312 | N195: 0.002418861369
A196: =IF('DF raw data'!I201="","",'DF raw data'!I201) -> -233 | B196: =IF('DF raw data'!J201="","",'DF raw data'!J201) -> -2.07602e-05 | C196: =IF('DF raw data'!K201="","",'DF raw data'!K201) -> -0.000151277 | D196: =IF('DF raw data'!L201="","",'DF raw data'!L201) -> -4.79703e-05 | F196: -2.086628462e-05 | G196: -0.0001520500255 | H196: -4.821542823e-05 | J196: -0.001650162035 | K196: -0.05322605919 | L196: -0.01032537442 | M196: -0.3493523184 | N196: 0.002473529565
A197: =IF('DF raw data'!I202="","",'DF raw data'!I202) -> -232.5 | B197: =IF('DF raw data'!J202="","",'DF raw data'!J202) -> -3.4169e-05 | C197: =IF('DF raw data'!K202="","",'DF raw data'!K202) -> -0.000150518 | D197: =IF('DF raw data'!L202="","",'DF raw data'!L202) -> -3.72599e-05 | F197: -3.434360359e-05 | G197: -0.000151287147 | H197: -3.745029809e-05 | J197: -0.001667333836 | K197: -0.05405972611 | L197: -0.01040101799 | M197: -0.3545528274 | N197: 0.002529010154
A198: =IF('DF raw data'!I203="","",'DF raw data'!I203) -> -232 | B198: =IF('DF raw data'!J203="","",'DF raw data'!J203) -> -2.41571e-05 | C198: =IF('DF raw data'!K203="","",'DF raw data'!K203) -> -0.000147132 | D198: =IF('DF raw data'!L203="","",'DF raw data'!L203) -> -5.02995e-05 | F198: -2.428054278e-05 | G198: -0.0001478838445 | H198: -5.055653044e-05 | J198: -0.001679474108 | K198: -0.05489946317 | L198: -0.01047495991 | M198: -0.3597903074 | N198: 0.002585282863
A199: =IF('DF raw data'!I204="","",'DF raw data'!I204) -> -231.5 | B199: =IF('DF raw data'!J204="","",'DF raw data'!J204) -> -2.44791e-05 | C199: =IF('DF raw data'!K204="","",'DF raw data'!K204) -> -0.000155552 | D199: =IF('DF raw data'!L204="","",'DF raw data'!L204) -> -4.83366e-05 | F199: -2.46041882e-05 | G199: -0.0001563468707 | H199: -4.858360003e-05 | J199: -0.001691776202 | K199: -0.05574535127 | L199: -0.01055313335 | M199: -0.365066874 | N199: 0.002642398228
A200: =IF('DF raw data'!I205="","",'DF raw data'!I205) -> -231 | B200: =IF('DF raw data'!J205="","",'DF raw data'!J205) -> -3.31399e-05 | C200: =IF('DF raw data'!K205="","",'DF raw data'!K205) -> -0.000165998 | D200: =IF('DF raw data'!L205="","",'DF raw data'!L205) -> -4.21314e-05 | F200: -3.330924489e-05 | G200: -0.0001668462498 | H200: -4.234669145e-05 | J200: -0.001708430824 | K200: -0.05659956668 | L200: -0.01063655647 | M200: -0.3703851523 | N200: 0.002700425763
A201: =IF('DF raw data'!I206="","",'DF raw data'!I206) -> -230.5 | B201: =IF('DF raw data'!J206="","",'DF raw data'!J206) -> -3.82016e-05 | C201: =IF('DF raw data'!K206="","",'DF raw data'!K206) -> -0.000170458 | D201: =IF('DF raw data'!L206="","",'DF raw data'!L206) -> -4.85107e-05 | F201: -3.839681018e-05 | G201: -0.0001713290404 | H201: -4.875858968e-05 | J201: -0.001727629229 | K201: -0.05746338129 | L201: -0.01072222099 | M201: -0.3757462628 | N201: 0.002759401125
... 1061 more rows

Sheet 10 x=1
A1: =IF('DF raw data'!M1="","",'DF raw data'!M1) -> Number of header lines | B1: =IF('DF raw data'!N1="","",'DF raw data'!N1) -> 54 | C1: =IF('DF raw data'!O1="","",'DF raw data'!O1) ->  | D1: =IF('DF raw data'!P1="","",'DF raw data'!P1) ->  | F1: T_coeff | G1: -0.00073 | H1: /degC | J1: ='10 x=-2'!J1 -> IBy total | K1: ='10 x=-2'!K1 -> -3.506040056 | L1: ='10 x=-2'!L1 -> muTm | R1: ='10 x=-2'!R1 -> DF ref | S1: ='10 x=-2'!S1 -> 1
A2: =IF('DF raw data'!M2="","",'DF raw data'!M2) -> Measured by | B2: =IF('DF raw data'!N2="","",'DF raw data'!N2) -> Danfysik | C2: =IF('DF raw data'!O2="","",'DF raw data'!O2) ->  | D2: =IF('DF raw data'!P2="","",'DF raw data'!P2) ->  | F2: Tcorr | G2: 20 | H2: degC | J2: JBy total | K2: =K1262 -> -2.823799675 | L2: muTm^2 | M2: =M1262 -> -27.84374299
A3: =IF('DF raw data'!M3="","",'DF raw data'!M3) -> Operator | B3: =IF('DF raw data'!N3="","",'DF raw data'!N3) -> PMHA | C3: =IF('DF raw data'!O3="","",'DF raw data'!O3) ->  | D3: =IF('DF raw data'!P3="","",'DF raw data'!P3) ->  | F3: Step | G3: =A63-A62 -> 0.5 | H3: mm | J3: PI total | K3: =N1262 -> 10616.62514 | L3: T^2mm^3
A4: =IF('DF raw data'!M4="","",'DF raw data'!M4) -> Data-time | B4: =IF('DF raw data'!N4="","",'DF raw data'!N4) -> 01-08-2024, 11:06:34 | C4: =IF('DF raw data'!O4="","",'DF raw data'!O4) ->  | D4: =IF('DF raw data'!P4="","",'DF raw data'!P4) -> 
A5: =IF('DF raw data'!M5="","",'DF raw data'!M5) -> Project | B5: =IF('DF raw data'!N5="","",'DF raw data'!N5) -> 504314 | C5: =IF('DF raw data'!O5="","",'DF raw data'!O5) ->  | D5: =IF('DF raw data'!P5="","",'DF raw data'!P5) -> 
A6: =IF('DF raw data'!M6="","",'DF raw data'!M6) -> Magnet type | B6: =IF('DF raw data'!N6="","",'DF raw data'!N6) -> Dipole | C6: =IF('DF raw data'!O6="","",'DF raw data'!O6) ->  | D6: =IF('DF raw data'!P6="","",'DF raw data'!P6) -> 
A7: =IF('DF raw data'!M7="","",'DF raw data'!M7) -> Magnet nr. | B7: =IF('DF raw data'!N7="","",'DF raw data'!N7) -> 2410091 | C7: =IF('DF raw data'!O7="","",'DF raw data'!O7) ->  | D7: =IF('DF raw data'!P7="","",'DF raw data'!P7) -> 
A8: =IF('DF raw data'!M8="","",'DF raw data'!M8) -> Meas. number | B8: =IF('DF raw data'!N8="","",'DF raw data'!N8) -> 169 | C8: =IF('DF raw data'!O8="","",'DF raw data'!O8) ->  | D8: =IF('DF raw data'!P8="","",'DF raw data'!P8) -> 
A9: =IF('DF raw data'!M9="","",'DF raw data'!M9) -> Add. info | B9: =IF('DF raw data'!N9="","",'DF raw data'!N9) -> X-alignment scan 4) | C9: =IF('DF raw data'!O9="","",'DF raw data'!O9) ->  | D9: =IF('DF raw data'!P9="","",'DF raw data'!P9) -> 
A10: =IF('DF raw data'!M10="","",'DF raw data'!M10) -> Device | B10: =IF('DF raw data'!N10="","",'DF raw data'!N10) -> (HAL) HALL-PROBE | C10: =IF('DF raw data'!O10="","",'DF raw data'!O10) ->  | D10: =IF('DF raw data'!P10="","",'DF raw data'!P10) -> 
A11: =IF('DF raw data'!M11="","",'DF raw data'!M11) -> Goal | B11: =IF('DF raw data'!N11="","",'DF raw data'!N11) -> (AXI) AXis Integral (Line, EFB) | C11: =IF('DF raw data'!O11="","",'DF raw data'!O11) ->  | D11: =IF('DF raw data'!P11="","",'DF raw data'!P11) -> 
A12: =IF('DF raw data'!M12="","",'DF raw data'!M12) -> Power supply mode | B12: =IF('DF raw data'!N12="","",'DF raw data'!N12) -> (PM) Permanent Magnet (no MPS in use) | C12: =IF('DF raw data'!O12="","",'DF raw data'!O12) ->  | D12: =IF('DF raw data'!P12="","",'DF raw data'!P12) -> 
A13: =IF('DF raw data'!M13="","",'DF raw data'!M13) -> Data format | B13: =IF('DF raw data'!N13="","",'DF raw data'!N13) -> Raw data text file | C13: =IF('DF raw data'!O13="","",'DF raw data'!O13) ->  | D13: =IF('DF raw data'!P13="","",'DF raw data'!P13) -> 
A14: =IF('DF raw data'!M14="","",'DF raw data'!M14) -> Direction of the pos. x-axis | B14: =IF('DF raw data'!N14="","",'DF raw data'!N14) -> See test program | C14: =IF('DF raw data'!O14="","",'DF raw data'!O14) ->  | D14: =IF('DF raw data'!P14="","",'DF raw data'!P14) -> 
A15: =IF('DF raw data'!M15="","",'DF raw data'!M15) -> Direction of the pos. y-axis | B15: =IF('DF raw data'!N15="","",'DF raw data'!N15) -> Vertical up | C15: =IF('DF raw data'!O15="","",'DF raw data'!O15) ->  | D15: =IF('DF raw data'!P15="","",'DF raw data'!P15) -> 
A16: =IF('DF raw data'!M16="","",'DF raw data'!M16) -> Direction of the pos. z-axis | B16: =IF('DF raw data'!N16="","",'DF raw data'!N16) -> See test program | C16: =IF('DF raw data'!O16="","",'DF raw data'!O16) ->  | D16: =IF('DF raw data'!P16="","",'DF raw data'!P16) -> 
A17: =IF('DF raw data'!M17="","",'DF raw data'!M17) -> Mapper type | B17: =IF('DF raw data'!N17="","",'DF raw data'!N17) -> Precision Hall Mapper | C17: =IF('DF raw data'!O17="","",'DF raw data'!O17) ->  | D17: =IF('DF raw data'!P17="","",'DF raw data'!P17) -> 
A18: =IF('DF raw data'!M18="","",'DF raw data'!M18) -> Mapper Danfysik Reg. Number | B18: =IF('DF raw data'!N18="","",'DF raw data'!N18) -> 2033-D (mapper 1) | C18: =IF('DF raw data'!O18="","",'DF raw data'!O18) ->  | D18: =IF('DF raw data'!P18="","",'DF raw data'!P18) -> 
A19: =IF('DF raw data'!M19="","",'DF raw data'!M19) -> Measurement consept | B19: =IF('DF raw data'!N19="","",'DF raw data'!N19) -> Square line grid | C19: =IF('DF raw data'!O19="","",'DF raw data'!O19) ->  | D19: =IF('DF raw data'!P19="","",'DF raw data'!P19) -> 
A20: =IF('DF raw data'!M20="","",'DF raw data'!M20) -> Mode | B20: =IF('DF raw data'!N20="","",'DF raw data'!N20) -> On-the-fly measurement | C20: =IF('DF raw data'!O20="","",'DF raw data'!O20) ->  | D20: =IF('DF raw data'!P20="","",'DF raw data'!P20) -> 
A21: =IF('DF raw data'!M21="","",'DF raw data'!M21) ->  | B21: =IF('DF raw data'!N21="","",'DF raw data'!N21) ->  | C21: =IF('DF raw data'!O21="","",'DF raw data'!O21) ->  | D21: =IF('DF raw data'!P21="","",'DF raw data'!P21) -> 
A22: =IF('DF raw data'!M22="","",'DF raw data'!M22) -> Probe Name | B22: =IF('DF raw data'!N22="","",'DF raw data'!N22) -> ID12_By | C22: =IF('DF raw data'!O22="","",'DF raw data'!O22) ->  | D22: =IF('DF raw data'!P22="","",'DF raw data'!P22) -> 
A23: =IF('DF raw data'!M23="","",'DF raw data'!M23) -> Probe Type | B23: =IF('DF raw data'!N23="","",'DF raw data'!N23) -> DF_ID_3D_Bxyz | C23: =IF('DF raw data'!O23="","",'DF raw data'!O23) ->  | D23: =IF('DF raw data'!P23="","",'DF raw data'!P23) -> 
A24: =IF('DF raw data'!M24="","",'DF raw data'!M24) -> Probe Danfysik Reg. Number | B24: =IF('DF raw data'!N24="","",'DF raw data'!N24) -> 2277 | C24: =IF('DF raw data'!O24="","",'DF raw data'!O24) ->  | D24: =IF('DF raw data'!P24="","",'DF raw data'!P24) -> 
A25: =IF('DF raw data'!M25="","",'DF raw data'!M25) -> Probe Axis | B25: =IF('DF raw data'!N25="","",'DF raw data'!N25) -> By | C25: =IF('DF raw data'!O25="","",'DF raw data'!O25) ->  | D25: =IF('DF raw data'!P25="","",'DF raw data'!P25) -> 
A26: =IF('DF raw data'!M26="","",'DF raw data'!M26) -> Probe Current Supply | B26: =IF('DF raw data'!N26="","",'DF raw data'!N26) -> 1825-D | C26: =IF('DF raw data'!O26="","",'DF raw data'!O26) ->  | D26: =IF('DF raw data'!P26="","",'DF raw data'!P26) -> 
A27: =IF('DF raw data'!M27="","",'DF raw data'!M27) -> Probe Gain Correction | B27: =IF('DF raw data'!N27="","",'DF raw data'!N27) -> 0.99613 | C27: =IF('DF raw data'!O27="","",'DF raw data'!O27) ->  | D27: =IF('DF raw data'!P27="","",'DF raw data'!P27) -> 
A28: =IF('DF raw data'!M28="","",'DF raw data'!M28) -> Probe Offset Correction | B28: =IF('DF raw data'!N28="","",'DF raw data'!N28) -> 0.0027562 | C28: =IF('DF raw data'!O28="","",'DF raw data'!O28) ->  | D28: =IF('DF raw data'!P28="","",'DF raw data'!P28) -> 
A29: =IF('DF raw data'!M29="","",'DF raw data'!M29) -> DVM Number | B29: =IF('DF raw data'!N29="","",'DF raw data'!N29) -> 2 | C29: =IF('DF raw data'!O29="","",'DF raw data'!O29) ->  | D29: =IF('DF raw data'!P29="","",'DF raw data'!P29) -> 
A30: =IF('DF raw data'!M30="","",'DF raw data'!M30) -> DVM Type | B30: =IF('DF raw data'!N30="","",'DF raw data'!N30) -> K2701 | C30: =IF('DF raw data'!O30="","",'DF raw data'!O30) ->  | D30: =IF('DF raw data'!P30="","",'DF raw data'!P30) -> 
A31: =IF('DF raw data'!M31="","",'DF raw data'!M31) -> DVM Danfysik Reg. Number | B31: =IF('DF raw data'!N31="","",'DF raw data'!N31) -> 1743-D | C31: =IF('DF raw data'!O31="","",'DF raw data'!O31) ->  | D31: =IF('DF raw data'!P31="","",'DF raw data'!P31) -> 
A32: =IF('DF raw data'!M32="","",'DF raw data'!M32) -> Probe Name | B32: =IF('DF raw data'!N32="","",'DF raw data'!N32) -> ID12_Bx | C32: =IF('DF raw data'!O32="","",'DF raw data'!O32) ->  | D32: =IF('DF raw data'!P32="","",'DF raw data'!P32) -> 
A33: =IF('DF raw data'!M33="","",'DF raw data'!M33) -> Probe Type | B33: =IF('DF raw data'!N33="","",'DF raw data'!N33) -> DF_ID_3D_Bxyz | C33: =IF('DF raw data'!O33="","",'DF raw data'!O33) ->  | D33: =IF('DF raw data'!P33="","",'DF raw data'!P33) -> 
A34: =IF('DF raw data'!M34="","",'DF raw data'!M34) -> Probe Danfysik Reg. Number | B34: =IF('DF raw data'!N34="","",'DF raw data'!N34) -> 2277 | C34: =IF('DF raw data'!O34="","",'DF raw data'!O34) ->  | D34: =IF('DF raw data'!P34="","",'DF raw data'!P34) -> 
A35: =IF('DF raw data'!M35="","",'DF raw data'!M35) -> Probe Axis | B35: =IF('DF raw data'!N35="","",'DF raw data'!N35) -> Bx | C35: =IF('DF raw data'!O35="","",'DF raw data'!O35) ->  | D35: =IF('DF raw data'!P35="","",'DF raw data'!P35) -> 
A36: =IF('DF raw data'!M36="","",'DF raw data'!M36) -> Probe Current Supply | B36: =IF('DF raw data'!N36="","",'DF raw data'!N36) -> 1825-D | C36: =IF('DF raw data'!O36="","",'DF raw data'!O36) ->  | D36: =IF('DF raw data'!P36="","",'DF raw data'!P36) -> 
A37: =IF('DF raw data'!M37="","",'DF raw data'!M37) -> Probe Gain Correction | B37: =IF('DF raw data'!N37="","",'DF raw data'!N37) -> 1 | C37: =IF('DF raw data'!O37="","",'DF raw data'!O37) ->  | D37: =IF('DF raw data'!P37="","",'DF raw data'!P37) -> 
A38: =IF('DF raw data'!M38="","",'DF raw data'!M38) -> Probe Offset Correction | B38: =IF('DF raw data'!N38="","",'DF raw data'!N38) -> -0.17564 | C38: =IF('DF raw data'!O38="","",'DF raw data'!O38) ->  | D38: =IF('DF raw data'!P38="","",'DF raw data'!P38) -> 
A39: =IF('DF raw data'!M39="","",'DF raw data'!M39) -> DVM Number | B39: =IF('DF raw data'!N39="","",'DF raw data'!N39) -> 3 | C39: =IF('DF raw data'!O39="","",'DF raw data'!O39) ->  | D39: =IF('DF raw data'!P39="","",'DF raw data'!P39) -> 
A40: =IF('DF raw data'!M40="","",'DF raw data'!M40) -> DVM Type | B40: =IF('DF raw data'!N40="","",'DF raw data'!N40) -> K2701 | C40: =IF('DF raw data'!O40="","",'DF raw data'!O40) ->  | D40: =IF('DF raw data'!P40="","",'DF raw data'!P40) -> 
A41: =IF('DF raw data'!M41="","",'DF raw data'!M41) -> DVM Danfysik Reg. Number | B41: =IF('DF raw data'!N41="","",'DF raw data'!N41) -> 1744-D | C41: =IF('DF raw data'!O41="","",'DF raw data'!O41) ->  | D41: =IF('DF raw data'!P41="","",'DF raw data'!P41) -> 
A42: =IF('DF raw data'!M42="","",'DF raw data'!M42) -> Probe Name | B42: =IF('DF raw data'!N42="","",'DF raw data'!N42) -> ID12_Bz | C42: =IF('DF raw data'!O42="","",'DF raw data'!O42) ->  | D42: =IF('DF raw data'!P42="","",'DF raw data'!P42) -> 
A43: =IF('DF raw data'!M43="","",'DF raw data'!M43) -> Probe Type | B43: =IF('DF raw data'!N43="","",'DF raw data'!N43) -> DF_ID_3D_Bxyz | C43: =IF('DF raw data'!O43="","",'DF raw data'!O43) ->  | D43: =IF('DF raw data'!P43="","",'DF raw data'!P43) -> 
A44: =IF('DF raw data'!M44="","",'DF raw data'!M44) -> Probe Danfysik Reg. Number | B44: =IF('DF raw data'!N44="","",'DF raw data'!N44) -> 2277 | C44: =IF('DF raw data'!O44="","",'DF raw data'!O44) ->  | D44: =IF('DF raw data'!P44="","",'DF raw data'!P44) -> 
A45: =IF('DF raw data'!M45="","",'DF raw data'!M45) -> Probe Axis | B45: =IF('DF raw data'!N45="","",'DF raw data'!N45) -> Bz | C45: =IF('DF raw data'!O45="","",'DF raw data'!O45) ->  | D45: =IF('DF raw data'!P45="","",'DF raw data'!P45) -> 
A46: =IF('DF raw data'!M46="","",'DF raw data'!M46) -> Probe Current Supply | B46: =IF('DF raw data'!N46="","",'DF raw data'!N46) -> 1825-D | C46: =IF('DF raw data'!O46="","",'DF raw data'!O46) ->  | D46: =IF('DF raw data'!P46="","",'DF raw data'!P46) -> 
A47: =IF('DF raw data'!M47="","",'DF raw data'!M47) -> Probe Gain Correction | B47: =IF('DF raw data'!N47="","",'DF raw data'!N47) -> 1 | C47: =IF('DF raw data'!O47="","",'DF raw data'!O47) ->  | D47: =IF('DF raw data'!P47="","",'DF raw data'!P47) -> 
A48: =IF('DF raw data'!M53="","",'DF raw data'!M53) -> PS-Gap: | B48: =IF('DF raw data'!N53="","",'DF raw data'!N53) -> 10 | C48: =IF('DF raw data'!O53="","",'DF raw data'!O53) ->  | D48: =IF('DF raw data'!P53="","",'DF raw data'!P53) -> 
A49: =IF('DF raw data'!M54="","",'DF raw data'!M54) -> PS-Temperature: | B49: =IF('DF raw data'!N54="","",'DF raw data'!N54) -> 27 | C49: =IF('DF raw data'!O54="","",'DF raw data'!O54) ->  | D49: =IF('DF raw data'!P54="","",'DF raw data'!P54) -> 
A50: =IF('DF raw data'!M55="","",'DF raw data'!M55) -> PS-Encoder: | B50: =IF('DF raw data'!N55="","",'DF raw data'!N55) -> 19.9648 | C50: =IF('DF raw data'!O55="","",'DF raw data'!O55) ->  | D50: =IF('DF raw data'!P55="","",'DF raw data'!P55) -> 
A51: =IF('DF raw data'!M56="","",'DF raw data'!M56) ->  | B51: =IF('DF raw data'!N56="","",'DF raw data'!N56) ->  | C51: =IF('DF raw data'!O56="","",'DF raw data'!O56) ->  | D51: =IF('DF raw data'!P56="","",'DF raw data'!P56) -> 
A52: =IF('DF raw data'!M57="","",'DF raw data'!M57) -> Monitor-Index | B52: =IF('DF raw data'!N57="","",'DF raw data'!N57) -> [1,1,4] | C52: =IF('DF raw data'!O57="","",'DF raw data'!O57) ->  | D52: =IF('DF raw data'!P57="","",'DF raw data'!P57) -> 
A53: =IF('DF raw data'!M58="","",'DF raw data'!M58) ->  | B53: =IF('DF raw data'!N58="","",'DF raw data'!N58) ->  | C53: =IF('DF raw data'!O58="","",'DF raw data'!O58) ->  | D53: =IF('DF raw data'!P58="","",'DF raw data'!P58) -> 
A54: =IF('DF raw data'!M59="","",'DF raw data'!M59) -> Time [s] | B54: =IF('DF raw data'!N59="","",'DF raw data'!N59) -> Y [mm] | C54: =IF('DF raw data'!O59="","",'DF raw data'!O59) -> X [mm] | D54: =IF('DF raw data'!P59="","",'DF raw data'!P59) -> Nominal current [A]
A55: =IF('DF raw data'!M60="","",'DF raw data'!M60) ->  | B55: =IF('DF raw data'!N60="","",'DF raw data'!N60) ->  | C55: =IF('DF raw data'!O60="","",'DF raw data'!O60) ->  | D55: =IF('DF raw data'!P60="","",'DF raw data'!P60) -> 
A56: =IF('DF raw data'!M61="","",'DF raw data'!M61) -> 208 | B56: =IF('DF raw data'!N61="","",'DF raw data'!N61) -> 31.16 | C56: =IF('DF raw data'!O61="","",'DF raw data'!O61) -> 302.8 | D56: =IF('DF raw data'!P61="","",'DF raw data'!P61) -> 0
A57: =IF('DF raw data'!M62="","",'DF raw data'!M62) ->  | B57: =IF('DF raw data'!N62="","",'DF raw data'!N62) ->  | C57: =IF('DF raw data'!O62="","",'DF raw data'!O62) ->  | D57: =IF('DF raw data'!P62="","",'DF raw data'!P62) -> 
A58: =IF('DF raw data'!M63="","",'DF raw data'!M63) -> Measurement-Index | B58: =IF('DF raw data'!N63="","",'DF raw data'!N63) -> [1,1,1201,2] | C58: =IF('DF raw data'!O63="","",'DF raw data'!O63) ->  | D58: =IF('DF raw data'!P63="","",'DF raw data'!P63) -> 
A59: =IF('DF raw data'!M64="","",'DF raw data'!M64) ->  | B59: =IF('DF raw data'!N64="","",'DF raw data'!N64) ->  | C59: =IF('DF raw data'!O64="","",'DF raw data'!O64) ->  | D59: =IF('DF raw data'!P64="","",'DF raw data'!P64) -> 
A60: =IF('DF raw data'!M65="","",'DF raw data'!M65) -> Z [mm] | B60: By [T] | C60: Bx [T] | D60: Bz [T] | F60: By_corr | G60: Bx_corr | H60: Bz_corr | J60: Iy | K60: Jy | L60: Ix | M60: Jx | N60: PI
A62: =IF('DF raw data'!M67="","",'DF raw data'!M67) -> -300 | B62: =IF('DF raw data'!N67="","",'DF raw data'!N67) -> -2.98882e-05 | C62: =IF('DF raw data'!O67="","",'DF raw data'!O67) -> -0.000168292 | D62: =IF('DF raw data'!P67="","",'DF raw data'!P67) -> -3.21479e-05 | F62: =(1-$G$1*($B$49))*B62 -> -3.047729642e-05 | G62: =(1-$G$1*($B$49-$G$2))*C62 -> -0.0001691519721 | H62: =(1-$G$1*($B$49-$G$2))*D62 -> -3.231217577e-05 | J62: =F62*$G$3 -> -1.523864821e-05 | K62: =J62*$G$3 -> -7.619324105e-06 | L62: =G62*$G$3 -> -8.457598606e-05 | M62: =L62*$G$3 -> -4.228799303e-05 | N62: =(J62^2+L62^2)*$G$3 -> 3.692656909e-09
A63: =IF('DF raw data'!M68="","",'DF raw data'!M68) -> -299.5 | B63: =IF('DF raw data'!N68="","",'DF raw data'!N68) -> -1.94356e-05 | C63: =IF('DF raw data'!O68="","",'DF raw data'!O68) -> -0.000158545 | D63: =IF('DF raw data'!P68="","",'DF raw data'!P68) -> -3.27153e-05 | F63: =(1-$G$1*($B$49-$G$2))*B63 -> -1.953491592e-05 | G63: =(1-$G$1*($B$49-$G$2))*C63 -> -0.0001593551649 | H63: -3.288247518e-05 | J63: =F63*$G$3+J62 -> -2.500610617e-05 | K63: =J63*$G$3+K62 -> -2.012237719e-05 | L63: =G63*$G$3+L62 -> -0.0001642535685 | M63: =L63*$G$3+M62 -> -0.0001244147773 | N63: =(J63^2+L63^2)*$G$3+N62 -> 1.749492697e-08
A64: =IF('DF raw data'!M69="","",'DF raw data'!M69) -> -299 | B64: =IF('DF raw data'!N69="","",'DF raw data'!N69) -> -2.43085e-05 | C64: =IF('DF raw data'!O69="","",'DF raw data'!O69) -> -0.00015276 | D64: =IF('DF raw data'!P69="","",'DF raw data'!P69) -> -3.34536e-05 | F64: =(1-$G$1*($B$49-$G$2))*B64 -> -2.443271643e-05 | G64: -0.0001535406036 | H64: -3.36245479e-05 | J64: =F64*$G$3+J63 -> -3.722246439e-05 | K64: =J64*$G$3+K63 -> -3.873360938e-05 | L64: =G64*$G$3+L63 -> -0.0002410238703 | M64: =L64*$G$3+M63 -> -0.0002449267125 | N64: =(J64^2+L64^2)*$G$3+N63 -> 4.723393593e-08
A65: =IF('DF raw data'!M70="","",'DF raw data'!M70) -> -298.5 | B65: =IF('DF raw data'!N70="","",'DF raw data'!N70) -> -2.10381e-05 | C65: =IF('DF raw data'!O70="","",'DF raw data'!O70) -> -0.000150586 | D65: =IF('DF raw data'!P70="","",'DF raw data'!P70) -> -3.3347e-05 | F65: -2.114560469e-05 | G65: -0.0001513554945 | H65: -3.351740317e-05 | J65: -4.779526673e-05 | K65: -6.263124275e-05 | L65: -0.0003167016176 | M65: -0.0004032775212 | N65: 9.852608698e-08
A66: =IF('DF raw data'!M71="","",'DF raw data'!M71) -> -298 | B66: =IF('DF raw data'!N71="","",'DF raw data'!N71) -> -2.68737e-05 | C66: =IF('DF raw data'!O71="","",'DF raw data'!O71) -> -0.000148051 | D66: =IF('DF raw data'!P71="","",'DF raw data'!P71) -> -3.29437e-05 | F66: -2.701102461e-05 | G66: -0.0001488075406 | H66: -3.311204231e-05 | J66: -6.130077904e-05 | K66: -9.328163227e-05 | L66: -0.0003911053879 | M66: -0.0005988302152 | N66: 1.768866919e-07
A67: =IF('DF raw data'!M72="","",'DF raw data'!M72) -> -297.5 | B67: =IF('DF raw data'!N72="","",'DF raw data'!N72) -> -5.58416e-06 | C67: =IF('DF raw data'!O72="","",'DF raw data'!O72) -> -0.000149728 | D67: =IF('DF raw data'!P72="","",'DF raw data'!P72) -> -3.34268e-05 | F67: -5.612695058e-06 | G67: -0.0001504931101 | H67: -3.359761095e-05 | J67: -6.410712656e-05 | K67: -0.0001253351955 | L67: -0.0004663519429 | M67: -0.0008320061866 | N67: 2.876836211e-07
A68: =IF('DF raw data'!M73="","",'DF raw data'!M73) -> -297 | B68: =IF('DF raw data'!N73="","",'DF raw data'!N73) -> -2.20637e-05 | C68: =IF('DF raw data'!O73="","",'DF raw data'!O73) -> -0.000151221 | D68: =IF('DF raw data'!P73="","",'DF raw data'!P73) -> -3.39219e-05 | F68: -2.217644551e-05 | G68: -0.0001519937393 | H68: -3.409524091e-05 | J68: -7.519534932e-05 | K68: -0.0001629328702 | L68: -0.0005423488126 | M68: -0.001103180593 | N68: 4.375819086e-07
A69: =IF('DF raw data'!M74="","",'DF raw data'!M74) -> -296.5 | B69: =IF('DF raw data'!N74="","",'DF raw data'!N74) -> -1.6998e-05 | C69: =IF('DF raw data'!O74="","",'DF raw data'!O74) -> -0.000149629 | D69: =IF('DF raw data'!P74="","",'DF raw data'!P74) -> -3.37112e-05 | F69: -1.708485978e-05 | G69: -0.0001503936042 | H69: -3.388346423e-05 | J69: -8.373777921e-05 | K69: -0.0002048017598 | L69: -0.0006175456147 | M69: -0.0014119534 | N69: 6.317692096e-07
A70: =IF('DF raw data'!M75="","",'DF raw data'!M75) -> -296 | B70: =IF('DF raw data'!N75="","",'DF raw data'!N75) -> -1.72545e-05 | C70: =IF('DF raw data'!O75="","",'DF raw data'!O75) -> -0.000150261 | D70: =IF('DF raw data'!P75="","",'DF raw data'!P75) -> -3.35614e-05 | F70: -1.734267049e-05 | G70: -0.0001510288337 | H70: -3.373289875e-05 | J70: -9.240911446e-05 | K70: -0.000251006317 | L70: -0.0006930600315 | M70: -0.001758483416 | N70: 8.762050354e-07
A71: =IF('DF raw data'!M76="","",'DF raw data'!M76) -> -295.5 | B71: =IF('DF raw data'!N76="","",'DF raw data'!N76) -> -9.49507e-06 | C71: =IF('DF raw data'!O76="","",'DF raw data'!O76) -> -0.000144372 | D71: =IF('DF raw data'!P76="","",'DF raw data'!P76) -> -3.41856e-05 | F71: -9.543589808e-06 | G71: -0.0001451097409 | H71: -3.436028842e-05 | J71: -9.718090936e-05 | K71: -0.0002995967717 | L71: -0.000765614902 | M71: -0.002141290867 | N71: 1.174010189e-06
A72: =IF('DF raw data'!M77="","",'DF raw data'!M77) -> -295 | B72: =IF('DF raw data'!N77="","",'DF raw data'!N77) -> -1.9819e-05 | C72: =IF('DF raw data'!O77="","",'DF raw data'!O77) -> -0.000146221 | D72: =IF('DF raw data'!P77="","",'DF raw data'!P77) -> -3.47559e-05 | F72: -1.992027509e-05 | G72: -0.0001469681893 | H72: -3.493350265e-05 | J72: -0.0001071410469 | K72: -0.0003531672952 | L72: -0.0008390989966 | M72: -0.002560840365 | N72: 1.531793354e-06
A73: =IF('DF raw data'!M78="","",'DF raw data'!M78) -> -294.5 | B73: =IF('DF raw data'!N78="","",'DF raw data'!N78) -> -2.18065e-05 | C73: =IF('DF raw data'!O78="","",'DF raw data'!O78) -> -0.000145587 | D73: =IF('DF raw data'!P78="","",'DF raw data'!P78) -> -3.50129e-05 | F73: -2.191793121e-05 | G73: -0.0001463309496 | H73: -3.519181592e-05 | J73: -0.0001181000125 | K73: -0.0004122173014 | L73: -0.0009122644714 | M73: -0.003016972601 | N73: 1.954880393e-06
A74: =IF('DF raw data'!M79="","",'DF raw data'!M79) -> -294 | B74: =IF('DF raw data'!N79="","",'DF raw data'!N79) -> -1.93698e-05 | C74: =IF('DF raw data'!O79="","",'DF raw data'!O79) -> -0.000144025 | D74: =IF('DF raw data'!P79="","",'DF raw data'!P79) -> -3.50399e-05 | F74: -1.946877968e-05 | G74: -0.0001447609677 | H74: -3.521895389e-05 | J74: -0.0001278344024 | K74: -0.0004761345026 | L74: -0.0009846449553 | M74: -0.003509295079 | N74: 2.447814055e-06
A75: =IF('DF raw data'!M80="","",'DF raw data'!M80) -> -293.5 | B75: =IF('DF raw data'!N80="","",'DF raw data'!N80) -> -3.62352e-05 | C75: =IF('DF raw data'!O80="","",'DF raw data'!O80) -> -0.000155564 | D75: =IF('DF raw data'!P80="","",'DF raw data'!P80) -> -3.42777e-05 | F75: -3.642036187e-05 | G75: -0.000156358932 | H75: -3.445285905e-05 | J75: -0.0001460445833 | K75: -0.0005491567942 | L75: -0.001062824421 | M75: -0.004040707289 | N75: 3.02327644e-06
A76: =IF('DF raw data'!M81="","",'DF raw data'!M81) -> -293 | B76: =IF('DF raw data'!N81="","",'DF raw data'!N81) -> -2.79637e-05 | C76: =IF('DF raw data'!O81="","",'DF raw data'!O81) -> -0.00014202 | D76: =IF('DF raw data'!P81="","",'DF raw data'!P81) -> -3.33196e-05 | F76: -2.810659451e-05 | G76: -0.0001427457222 | H76: -3.348986316e-05 | J76: -0.0001600978805 | K76: -0.0006292057345 | L76: -0.001134197282 | M76: -0.004607805931 | N76: 3.679293843e-06
A77: =IF('DF raw data'!M82="","",'DF raw data'!M82) -> -292.5 | B77: =IF('DF raw data'!N82="","",'DF raw data'!N82) -> -2.21284e-05 | C77: =IF('DF raw data'!O82="","",'DF raw data'!O82) -> -0.000142243 | D77: =IF('DF raw data'!P82="","",'DF raw data'!P82) -> -3.33243e-05 | F77: -2.224147612e-05 | G77: -0.0001429698617 | H77: -3.349458717e-05 | J77: -0.0001712186186 | K77: -0.0007148150438 | L77: -0.001205682213 | M77: -0.005210647037 | N77: 4.420786551e-06
A78: =IF('DF raw data'!M83="","",'DF raw data'!M83) -> -292 | B78: =IF('DF raw data'!N83="","",'DF raw data'!N83) -> -2.23846e-05 | C78: =IF('DF raw data'!O83="","",'DF raw data'!O83) -> -0.000151443 | D78: =IF('DF raw data'!P83="","",'DF raw data'!P83) -> -3.38022e-05 | F78: -2.249898531e-05 | G78: -0.0001522168737 | H78: -3.397492924e-05 | J78: -0.0001824681113 | K78: -0.0008060490994 | L78: -0.00128179065 | M78: -0.005851542362 | N78: 5.258927492e-06
A79: =IF('DF raw data'!M84="","",'DF raw data'!M84) -> -291.5 | B79: =IF('DF raw data'!N84="","",'DF raw data'!N84) -> -2.93072e-05 | C79: =IF('DF raw data'!O84="","",'DF raw data'!O84) -> -0.000155438 | D79: =IF('DF raw data'!P84="","",'DF raw data'!P84) -> -3.79437e-05 | F79: -2.945695979e-05 | G79: -0.0001562322882 | H79: -3.813759231e-05 | J79: -0.0001971965912 | K79: -0.000904647395 | L79: -0.001359906794 | M79: -0.006531495759 | N79: 6.203043984e-06
A80: =IF('DF raw data'!M85="","",'DF raw data'!M85) -> -291 | B80: =IF('DF raw data'!N85="","",'DF raw data'!N85) -> -2.26379e-05 | C80: =IF('DF raw data'!O85="","",'DF raw data'!O85) -> -0.000157303 | D80: =IF('DF raw data'!P85="","",'DF raw data'!P85) -> -3.85947e-05 | F80: -2.275357967e-05 | G80: -0.0001581068183 | H80: -3.879191892e-05 | J80: -0.000208573381 | K80: -0.001008934086 | L80: -0.001438960203 | M80: -0.007250975861 | N80: 7.260098645e-06
A81: =IF('DF raw data'!M86="","",'DF raw data'!M86) -> -290.5 | B81: =IF('DF raw data'!N86="","",'DF raw data'!N86) -> -1.68658e-05 | C81: =IF('DF raw data'!O86="","",'DF raw data'!O86) -> -0.000161573 | D81: =IF('DF raw data'!P86="","",'DF raw data'!P86) -> -3.98295e-05 | F81: -1.695198424e-05 | G81: -0.000162398638 | H81: -4.003302874e-05 | J81: -0.0002170493731 | K81: -0.001117458772 | L81: -0.001520159522 | M81: -0.008011055622 | N81: 8.439096347e-06
A82: =IF('DF raw data'!M87="","",'DF raw data'!M87) -> -290 | B82: =IF('DF raw data'!N87="","",'DF raw data'!N87) -> -9.43487e-06 | C82: =IF('DF raw data'!O87="","",'DF raw data'!O87) -> -0.000159444 | D82: =IF('DF raw data'!P87="","",'DF raw data'!P87) -> -2.83547e-05 | F82: -9.483082186e-06 | G82: -0.0001602587588 | H82: -2.849959252e-05 | J82: -0.0002217909142 | K82: -0.001228354229 | L82: -0.001600288902 | M82: -0.008811200073 | N82: 9.744154237e-06
A83: =IF('DF raw data'!M88="","",'DF raw data'!M88) -> -289.5 | B83: =IF('DF raw data'!N88="","",'DF raw data'!N88) -> -1.95034e-05 | C83: =IF('DF raw data'!O88="","",'DF raw data'!O88) -> -0.00015791 | D83: =IF('DF raw data'!P88="","",'DF raw data'!P88) -> -2.68248e-05 | F83: -1.960306237e-05 | G83: -0.0001587169201 | H83: -2.696187473e-05 | J83: -0.0002315924454 | K83: -0.001344150452 | L83: -0.001679647362 | M83: -0.009651023754 | N83: 1.11815794e-05
A84: =IF('DF raw data'!M89="","",'DF raw data'!M89) -> -289 | B84: =IF('DF raw data'!N89="","",'DF raw data'!N89) -> -3.14911e-05 | C84: =IF('DF raw data'!O89="","",'DF raw data'!O89) -> -0.000153926 | D84: =IF('DF raw data'!P89="","",'DF raw data'!P89) -> -3.22454e-05 | F84: -3.165201952e-05 | G84: -0.0001547125619 | H84: -3.241017399e-05 | J84: -0.0002474184551 | K84: -0.001467859679 | L84: -0.001757003643 | M84: -0.01052952558 | N84: 1.275571824e-05
A85: =IF('DF raw data'!M90="","",'DF raw data'!M90) -> -288.5 | B85: =IF('DF raw data'!N90="","",'DF raw data'!N90) -> -2.50716e-05 | C85: =IF('DF raw data'!O90="","",'DF raw data'!O90) -> -0.000156514 | D85: =IF('DF raw data'!P90="","",'DF raw data'!P90) -> -4.3266e-05 | F85: -2.519971588e-05 | G85: -0.0001573137865 | H85: -4.348708926e-05 | J85: -0.0002600183131 | K85: -0.001597868836 | L85: -0.001835660536 | M85: -0.01144735584 | N85: 1.447434781e-05
A86: =IF('DF raw data'!M91="","",'DF raw data'!M91) -> -288 | B86: =IF('DF raw data'!N91="","",'DF raw data'!N91) -> -1.99433e-05 | C86: =IF('DF raw data'!O91="","",'DF raw data'!O91) -> -0.0001622 | D86: =IF('DF raw data'!P91="","",'DF raw data'!P91) -> -4.08068e-05 | F86: -2.004521026e-05 | G86: -0.000163028842 | H86: -4.101532275e-05 | J86: -0.0002700409182 | K86: -0.001732889295 | L86: -0.001917174957 | M86: -0.01240594332 | N86: 1.634858876e-05
A87: =IF('DF raw data'!M92="","",'DF raw data'!M92) -> -287.5 | B87: =IF('DF raw data'!N92="","",'DF raw data'!N92) -> -1.89142e-05 | C87: =IF('DF raw data'!O92="","",'DF raw data'!O92) -> -0.000154719 | D87: =IF('DF raw data'!P92="","",'DF raw data'!P92) -> -4.56862e-05 | F87: -1.901085156e-05 | G87: -0.0001555096141 | H87: -4.591965648e-05 | J87: -0.000279546344 | K87: -0.001872662467 | L87: -0.001994929764 | M87: -0.0134034082 | N87: 1.837753423e-05
A88: =IF('DF raw data'!M93="","",'DF raw data'!M93) -> -287 | B88: =IF('DF raw data'!N93="","",'DF raw data'!N93) -> -2.46875e-05 | C88: =IF('DF raw data'!O93="","",'DF raw data'!O93) -> -0.000150031 | D88: =IF('DF raw data'!P93="","",'DF raw data'!P93) -> -4.23065e-05 | F88: -2.481365313e-05 | G88: -0.0001507976584 | H88: -4.252268621e-05 | J88: -0.0002919531706 | K88: -0.002018639052 | L88: -0.002070328593 | M88: -0.0144385725 | N88: 2.056328279e-05
A89: =IF('DF raw data'!M94="","",'DF raw data'!M94) -> -286.5 | B89: =IF('DF raw data'!N94="","",'DF raw data'!N94) -> -2.63577e-05 | C89: =IF('DF raw data'!O94="","",'DF raw data'!O94) -> -0.000155613 | D89: =IF('DF raw data'!P94="","",'DF raw data'!P94) -> -3.77555e-05 | F89: -2.649238785e-05 | G89: -0.0001564081824 | H89: -3.79484306e-05 | J89: -0.0003051993645 | K89: -0.002171238735 | L89: -0.002148532685 | M89: -0.01551283884 | N89: 2.291795247e-05
A90: =IF('DF raw data'!M95="","",'DF raw data'!M95) -> -286 | B90: =IF('DF raw data'!N95="","",'DF raw data'!N95) -> -2.23241e-05 | C90: =IF('DF raw data'!O95="","",'DF raw data'!O95) -> -0.000145306 | D90: =IF('DF raw data'!P95="","",'DF raw data'!P95) -> -2.80003e-05 | F90: -2.243817615e-05 | G90: -0.0001460485137 | H90: -2.814338153e-05 | J90: -0.0003164184526 | K90: -0.002329447961 | L90: -0.002221556941 | M90: -0.01662361731 | N90: 2.543567041e-05
A91: =IF('DF raw data'!M96="","",'DF raw data'!M96) -> -285.5 | B91: =IF('DF raw data'!N96="","",'DF raw data'!N96) -> -2.34055e-05 | C91: =IF('DF raw data'!O96="","",'DF raw data'!O96) -> -0.000141594 | D91: =IF('DF raw data'!P96="","",'DF raw data'!P96) -> -4.1568e-05 | F91: -2.352510211e-05 | G91: -0.0001423175453 | H91: -4.178041248e-05 | J91: -0.0003281810036 | K91: -0.002493538463 | L91: -0.002292715714 | M91: -0.01776997517 | N91: 2.811779447e-05
A92: =IF('DF raw data'!M97="","",'DF raw data'!M97) -> -285 | B92: =IF('DF raw data'!N97="","",'DF raw data'!N97) -> -2.86631e-05 | C92: =IF('DF raw data'!O97="","",'DF raw data'!O97) -> -0.000145455 | D92: =IF('DF raw data'!P97="","",'DF raw data'!P97) -> -4.24063e-05 | F92: -2.880956844e-05 | G92: -0.000146198275 | H92: -4.262299619e-05 | J92: -0.0003425857878 | K92: -0.002664831357 | L92: -0.002365814852 | M92: -0.0189528826 | N92: 3.097501693e-05
A93: =IF('DF raw data'!M98="","",'DF raw data'!M98) -> -284.5 | B93: =IF('DF raw data'!N98="","",'DF raw data'!N98) -> -2.40535e-05 | C93: =IF('DF raw data'!O98="","",'DF raw data'!O98) -> -0.000140569 | D93: =IF('DF raw data'!P98="","",'DF raw data'!P98) -> -3.11345e-05 | F93: -2.417641338e-05 | G93: -0.0001412873076 | H93: -3.129359729e-05 | J93: -0.0003546739945 | K93: -0.002842168354 | L93: -0.002436458505 | M93: -0.02017111185 | N93: 3.400607878e-05
A94: =IF('DF raw data'!M99="","",'DF raw data'!M99) -> -284 | B94: =IF('DF raw data'!N99="","",'DF raw data'!N99) -> -2.12261e-05 | C94: =IF('DF raw data'!O99="","",'DF raw data'!O99) -> -0.000144853 | D94: =IF('DF raw data'!P99="","",'DF raw data'!P99) -> -4.03185e-05 | F94: -2.133456537e-05 | G94: -0.0001455931988 | H94: -4.052452753e-05 | J94: -0.0003653412772 | K94: -0.003024838992 | L94: -0.002509255105 | M94: -0.0214257394 | N94: 3.722099649e-05
A95: =IF('DF raw data'!M100="","",'DF raw data'!M100) -> -283.5 | B95: =IF('DF raw data'!N100="","",'DF raw data'!N100) -> -1.83345e-05 | C95: =IF('DF raw data'!O100="","",'DF raw data'!O100) -> -0.00014827 | D95: =IF('DF raw data'!P100="","",'DF raw data'!P100) -> -4.93904e-05 | F95: -1.842818929e-05 | G95: -0.0001490276597 | H95: -4.964278494e-05 | J95: -0.0003745553719 | K95: -0.003212116678 | L95: -0.002583768935 | M95: -0.02271762387 | N95: 4.062907331e-05
A96: =IF('DF raw data'!M101="","",'DF raw data'!M101) -> -283 | B96: =IF('DF raw data'!N101="","",'DF raw data'!N101) -> -3.98226e-05 | C96: =IF('DF raw data'!O101="","",'DF raw data'!O101) -> -0.0001522 | D96: =IF('DF raw data'!P101="","",'DF raw data'!P101) -> -3.9761e-05 | F96: -4.002609349e-05 | G96: -0.000152977742 | H96: -3.996417871e-05 | J96: -0.0003945684186 | K96: -0.003409400888 | L96: -0.002660257806 | M96: -0.02404775277 | N96: 4.424540123e-05
A97: =IF('DF raw data'!M102="","",'DF raw data'!M102) -> -282.5 | B97: =IF('DF raw data'!N102="","",'DF raw data'!N102) -> -2.44934e-05 | C97: =IF('DF raw data'!O102="","",'DF raw data'!O102) -> -0.000149869 | D97: =IF('DF raw data'!P102="","",'DF raw data'!P102) -> -4.4708e-05 | F97: -2.461856127e-05 | G97: -0.0001506348306 | H97: -4.493645788e-05 | J97: -0.0004068776992 | K97: -0.003612839737 | L97: -0.002735575221 | M97: -0.02541554038 | N97: 4.806986185e-05
A98: =IF('DF raw data'!M103="","",'DF raw data'!M103) -> -282 | B98: =IF('DF raw data'!N103="","",'DF raw data'!N103) -> -2.14826e-05 | C98: =IF('DF raw data'!O103="","",'DF raw data'!O103) -> -0.000149807 | D98: =IF('DF raw data'!P103="","",'DF raw data'!P103) -> -4.04123e-05 | F98: -2.159237609e-05 | G98: -0.0001505725138 | H98: -4.061880685e-05 | J98: -0.0004176738873 | K98: -0.003821676681 | L98: -0.002810861478 | M98: -0.02682097112 | N98: 5.210755871e-05
A99: =IF('DF raw data'!M104="","",'DF raw data'!M104) -> -281.5 | B99: =IF('DF raw data'!N104="","",'DF raw data'!N104) -> -1.80836e-05 | C99: =IF('DF raw data'!O104="","",'DF raw data'!O104) -> -0.000152421 | D99: =IF('DF raw data'!P104="","",'DF raw data'!P104) -> -4.08634e-05 | F99: -1.81760072e-05 | G99: -0.0001531998713 | H99: -4.107221197e-05 | J99: -0.0004267618909 | K99: -0.004035057626 | L99: -0.002887461413 | M99: -0.02826470183 | N99: 5.636733828e-05
A100: =IF('DF raw data'!M105="","",'DF raw data'!M105) -> -281 | B100: =IF('DF raw data'!N105="","",'DF raw data'!N105) -> -1.71814e-05 | C100: =IF('DF raw data'!O105="","",'DF raw data'!O105) -> -0.000156255 | D100: =IF('DF raw data'!P105="","",'DF raw data'!P105) -> -4.77018e-05 | F100: -1.726919695e-05 | G100: -0.000157053463 | H100: -4.79455562e-05 | J100: -0.0004353964894 | K100: -0.004252755871 | L100: -0.002965988145 | M100: -0.0297476959 | N100: 6.086066617e-05
A101: =IF('DF raw data'!M106="","",'DF raw data'!M106) -> -280.5 | B101: =IF('DF raw data'!N106="","",'DF raw data'!N106) -> -2.33439e-05 | C101: =IF('DF raw data'!O106="","",'DF raw data'!O106) -> -0.000149122 | D101: =IF('DF raw data'!P106="","",'DF raw data'!P106) -> -3.75453e-05 | F101: -2.346318733e-05 | G101: -0.0001498840134 | H101: -3.773715648e-05 | J101: -0.000447128083 | K101: -0.004476319913 | L101: -0.003040930152 | M101: -0.03126816098 | N101: 6.558425602e-05
A102: =IF('DF raw data'!M107="","",'DF raw data'!M107) -> -280 | B102: =IF('DF raw data'!N107="","",'DF raw data'!N107) -> -2.30857e-05 | C102: =IF('DF raw data'!O107="","",'DF raw data'!O107) -> -0.000146892 | D102: =IF('DF raw data'!P107="","",'DF raw data'!P107) -> -4.01304e-05 | F102: -2.320366793e-05 | G102: -0.0001476426181 | H102: -4.033546634e-05 | J102: -0.000458729917 | K102: -0.004705684871 | L102: -0.003114751461 | M102: -0.03282553671 | N102: 7.054031092e-05
A103: =IF('DF raw data'!M108="","",'DF raw data'!M108) -> -279.5 | B103: =IF('DF raw data'!N108="","",'DF raw data'!N108) -> -2.4176e-05 | C103: =IF('DF raw data'!O108="","",'DF raw data'!O108) -> -0.000154179 | D103: =IF('DF raw data'!P108="","",'DF raw data'!P108) -> -4.00537e-05 | F103: -2.429953936e-05 | G103: -0.0001549668547 | H103: -4.025837441e-05 | J103: -0.0004708796867 | K103: -0.004941124714 | L103: -0.003192234888 | M103: -0.03442165415 | N103: 7.574635655e-05
A104: =IF('DF raw data'!M109="","",'DF raw data'!M109) -> -279 | B104: =IF('DF raw data'!N109="","",'DF raw data'!N109) -> -3.16807e-05 | C104: =IF('DF raw data'!O109="","",'DF raw data'!O109) -> -0.000150891 | D104: =IF('DF raw data'!P109="","",'DF raw data'!P109) -> -3.68271e-05 | F104: -3.184258838e-05 | G104: -0.000151662053 | H104: -3.701528648e-05 | J104: -0.0004868009809 | K104: -0.005184525205 | L104: -0.003268065915 | M104: -0.03605568711 | N104: 8.120497156e-05
A105: =IF('DF raw data'!M110="","",'DF raw data'!M110) -> -278.5 | B105: =IF('DF raw data'!N110="","",'DF raw data'!N110) -> -2.53934e-05 | C105: =IF('DF raw data'!O110="","",'DF raw data'!O110) -> -0.000138844 | D105: =IF('DF raw data'!P110="","",'DF raw data'!P110) -> -4.17765e-05 | F105: -2.552316027e-05 | G105: -0.0001395534928 | H105: -4.198997792e-05 | J105: -0.000499562561 | K105: -0.005434306485 | L105: -0.003337842661 | M105: -0.03772460844 | N105: 8.690034975e-05
A106: =IF('DF raw data'!M111="","",'DF raw data'!M111) -> -278 | B106: =IF('DF raw data'!N111="","",'DF raw data'!N111) -> -1.17328e-05 | C106: =IF('DF raw data'!O111="","",'DF raw data'!O111) -> -0.000150767 | D106: =IF('DF raw data'!P111="","",'DF raw data'!P111) -> -4.45194e-05 | F106: -1.179275461e-05 | G106: -0.0001515374194 | H106: -4.474689413e-05 | J106: -0.0005054589383 | K106: -0.005687035954 | L106: -0.003413611371 | M106: -0.03943141412 | N106: 9.285446541e-05
A107: =IF('DF raw data'!M112="","",'DF raw data'!M112) -> -277.5 | B107: =IF('DF raw data'!N112="","",'DF raw data'!N112) -> -2.27616e-05 | C107: =IF('DF raw data'!O112="","",'DF raw data'!O112) -> -0.000151548 | D107: =IF('DF raw data'!P112="","",'DF raw data'!P112) -> -4.57753e-05 | F107: -2.287791178e-05 | G107: -0.0001523224103 | H107: -4.600921178e-05 | J107: -0.0005168978942 | K107: -0.005945484902 | L107: -0.003489772576 | M107: -0.04117630041 | N107: 9.907731345e-05
A108: =IF('DF raw data'!M113="","",'DF raw data'!M113) -> -277 | B108: =IF('DF raw data'!N113="","",'DF raw data'!N113) -> -2.51361e-05 | C108: =IF('DF raw data'!O113="","",'DF raw data'!O113) -> -0.000149208 | D108: =IF('DF raw data'!P113="","",'DF raw data'!P113) -> -4.25897e-05 | F108: -2.526454547e-05 | G108: -0.0001499704529 | H108: -4.280733337e-05 | J108: -0.0005295301669 | K108: -0.006210249985 | L108: -0.003564757802 | M108: -0.04295867931 | N108: 0.0001055712636
A109: =IF('DF raw data'!M114="","",'DF raw data'!M114) -> -276.5 | B109: =IF('DF raw data'!N114="","",'DF raw data'!N114) -> -2.11612e-05 | C109: =IF('DF raw data'!O114="","",'DF raw data'!O114) -> -0.000153609 | D109: =IF('DF raw data'!P114="","",'DF raw data'!P114) -> -4.14046e-05 | F109: -2.126933373e-05 | G109: -0.000154393942 | H109: -4.161617751e-05 | J109: -0.0005401648338 | K109: -0.006480332402 | L109: -0.003641954773 | M109: -0.0447796567 | N109: 0.0001123490699
A110: =IF('DF raw data'!M115="","",'DF raw data'!M115) -> -276 | B110: =IF('DF raw data'!N115="","",'DF raw data'!N115) -> -3.27604e-05 | C110: =IF('DF raw data'!O115="","",'DF raw data'!O115) -> -0.000150959 | D110: =IF('DF raw data'!P115="","",'DF raw data'!P115) -> -5.2654e-05 | F110: -3.292780564e-05 | G110: -0.0001517304005 | H110: -5.292306194e-05 | J110: -0.0005566287366 | K110: -0.00675864677 | L110: -0.003717819974 | M110: -0.04663856669 | N110: 0.0001194150804
A111: =IF('DF raw data'!M116="","",'DF raw data'!M116) -> -275.5 | B111: =IF('DF raw data'!N116="","",'DF raw data'!N116) -> -1.9948e-05 | C111: =IF('DF raw data'!O116="","",'DF raw data'!O116) -> -0.00015294 | D111: =IF('DF raw data'!P116="","",'DF raw data'!P116) -> -3.36115e-05 | F111: -2.004993428e-05 | G111: -0.0001537215234 | H111: -3.378325477e-05 | J111: -0.0005666537037 | K111: -0.007041973622 | L111: -0.003794680735 | M111: -0.04853590705 | N111: 0.0001267754296
A112: =IF('DF raw data'!M117="","",'DF raw data'!M117) -> -275 | B112: =IF('DF raw data'!N117="","",'DF raw data'!N117) -> -1.76335e-05 | C112: =IF('DF raw data'!O117="","",'DF raw data'!O117) -> -0.000149084 | D112: =IF('DF raw data'!P117="","",'DF raw data'!P117) -> -4.25272e-05 | F112: -1.772360718e-05 | G112: -0.0001498458192 | H112: -4.274451399e-05 | J112: -0.0005755155073 | K112: -0.007329731376 | L112: -0.003869603645 | M112: -0.05047070888 | N112: 0.0001344279548
A113: =IF('DF raw data'!M118="","",'DF raw data'!M118) -> -274.5 | B113: =IF('DF raw data'!N118="","",'DF raw data'!N118) -> -3.21858e-05 | C113: =IF('DF raw data'!O118="","",'DF raw data'!O118) -> -0.000146036 | D113: =IF('DF raw data'!P118="","",'DF raw data'!P118) -> -4.89406e-05 | F113: -3.235026944e-05 | G113: -0.000146782244 | H113: -4.919068647e-05 | J113: -0.0005916906421 | K113: -0.007625576697 | L113: -0.003942994767 | M113: -0.05244220626 | N113: 0.0001423766076
A114: =IF('DF raw data'!M119="","",'DF raw data'!M119) -> -274 | B114: =IF('DF raw data'!N119="","",'DF raw data'!N119) -> -2.16717e-05 | C114: =IF('DF raw data'!O119="","",'DF raw data'!O119) -> -0.000145053 | D114: =IF('DF raw data'!P119="","",'DF raw data'!P119) -> -4.51396e-05 | F114: -2.178244239e-05 | G114: -0.0001457942208 | H114: -4.537026336e-05 | J114: -0.0006025818632 | K114: -0.007926867628 | L114: -0.004015891877 | M114: -0.0544501522 | N114: 0.0001506218538
A115: =IF('DF raw data'!M120="","",'DF raw data'!M120) -> -273.5 | B115: =IF('DF raw data'!N120="","",'DF raw data'!N120) -> -3.08484e-05 | C115: =IF('DF raw data'!O120="","",'DF raw data'!O120) -> -0.000149682 | D115: =IF('DF raw data'!P120="","",'DF raw data'!P120) -> -3.45487e-05 | F115: -3.100603532e-05 | G115: -0.000150446875 | H115: -3.472524386e-05 | J115: -0.0006180848809 | K115: -0.008235910069 | L115: -0.004091115315 | M115: -0.05649570986 | N115: 0.0001591814805
A116: =IF('DF raw data'!M121="","",'DF raw data'!M121) -> -273 | B116: =IF('DF raw data'!N121="","",'DF raw data'!N121) -> -3.16775e-05 | C116: =IF('DF raw data'!O121="","",'DF raw data'!O121) -> -0.000149811 | D116: =IF('DF raw data'!P121="","",'DF raw data'!P121) -> -4.18107e-05 | F116: -3.183937203e-05 | G116: -0.0001505765342 | H116: -4.202435268e-05 | J116: -0.0006340045669 | K116: -0.008552912352 | L116: -0.004166403582 | M116: -0.05857891165 | N116: 0.0001680619208
A117: =IF('DF raw data'!M122="","",'DF raw data'!M122) -> -272.5 | B117: =IF('DF raw data'!N122="","",'DF raw data'!N122) -> -2.76999e-05 | C117: =IF('DF raw data'!O122="","",'DF raw data'!O122) -> -0.000142007 | D117: =IF('DF raw data'!P122="","",'DF raw data'!P122) -> -4.47475e-05 | F117: -2.784144649e-05 | G117: -0.0001427326558 | H117: -4.497615972e-05 | J117: -0.0006479252902 | K117: -0.008876874997 | L117: -0.00423776991 | M117: -0.0606977966 | N117: 0.0001772511713
A118: =IF('DF raw data'!M123="","",'DF raw data'!M123) -> -272 | B118: =IF('DF raw data'!N123="","",'DF raw data'!N123) -> -2.61616e-05 | C118: =IF('DF raw data'!O123="","",'DF raw data'!O123) -> -0.00014362 | D118: =IF('DF raw data'!P123="","",'DF raw data'!P123) -> -4.37276e-05 | F118: -2.629528578e-05 | G118: -0.0001443538982 | H118: -4.395104804e-05 | J118: -0.0006610729331 | K118: -0.009207411464 | L118: -0.004309946859 | M118: -0.06285277003 | N118: 0.000186757501
A119: =IF('DF raw data'!M124="","",'DF raw data'!M124) -> -271.5 | B119: =IF('DF raw data'!N124="","",'DF raw data'!N124) -> -1.89124e-05 | C119: =IF('DF raw data'!O124="","",'DF raw data'!O124) -> -0.000144489 | D119: =IF('DF raw data'!P124="","",'DF raw data'!P124) -> -4.85217e-05 | F119: -1.900904236e-05 | G119: -0.0001452273388 | H119: -4.876964589e-05 | J119: -0.0006705774542 | K119: -0.009542700191 | L119: -0.004382560528 | M119: -0.0650440503 | N119: 0.0001965857564
A120: =IF('DF raw data'!M125="","",'DF raw data'!M125) -> -271 | B120: =IF('DF raw data'!N125="","",'DF raw data'!N125) -> -2.85283e-05 | C120: =IF('DF raw data'!O125="","",'DF raw data'!O125) -> -0.000142411 | D120: =IF('DF raw data'!P125="","",'DF raw data'!P125) -> -5.25605e-05 | F120: -2.867407961e-05 | G120: -0.0001431387202 | H120: -5.282908415e-05 | J120: -0.000684914494 | K120: -0.009885157438 | L120: -0.004454129888 | M120: -0.06727111524 | N120: 0.0002067399469
A121: =IF('DF raw data'!M126="","",'DF raw data'!M126) -> -270.5 | B121: =IF('DF raw data'!N126="","",'DF raw data'!N126) -> -3.08366e-05 | C121: =IF('DF raw data'!O126="","",'DF raw data'!O126) -> -0.000144067 | D121: =IF('DF raw data'!P126="","",'DF raw data'!P126) -> -5.2807e-05 | F121: -3.099417503e-05 | G121: -0.0001448031824 | H121: -5.307684377e-05 | J121: -0.0007004115816 | K121: -0.01023536323 | L121: -0.00452653148 | M121: -0.06953438098 | N121: 0.0002172299787
A122: =IF('DF raw data'!M127="","",'DF raw data'!M127) -> -270 | B122: =IF('DF raw data'!N127="","",'DF raw data'!N127) -> -2.16792e-05 | C122: =IF('DF raw data'!O127="","",'DF raw data'!O127) -> -0.000138523 | D122: =IF('DF raw data'!P127="","",'DF raw data'!P127) -> -3.3716e-05 | F122: -2.178998071e-05 | G122: -0.0001392308525 | H122: -3.388828876e-05 | J122: -0.0007113065719 | K122: -0.01059101651 | L122: -0.004596146906 | M122: -0.07183245443 | N122: 0.0002280452404
A123: =IF('DF raw data'!M128="","",'DF raw data'!M128) -> -269.5 | B123: =IF('DF raw data'!N128="","",'DF raw data'!N128) -> -3.39218e-05 | C123: =IF('DF raw data'!O128="","",'DF raw data'!O128) -> -0.000139245 | D123: =IF('DF raw data'!P128="","",'DF raw data'!P128) -> -4.19387e-05 | F123: -3.40951404e-05 | G123: -0.0001399565419 | H123: -4.215300676e-05 | J123: -0.0007283541421 | K123: -0.01095519359 | L123: -0.004666125177 | M123: -0.07416551702 | N123: 0.0002391968524
A124: =IF('DF raw data'!M129="","",'DF raw data'!M129) -> -269 | B124: =IF('DF raw data'!N129="","",'DF raw data'!N129) -> -2.10308e-05 | C124: =IF('DF raw data'!O129="","",'DF raw data'!O129) -> -0.000139087 | D124: =IF('DF raw data'!P129="","",'DF raw data'!P129) -> -4.47488e-05 | F124: -2.113826739e-05 | G124: -0.0001397977346 | H124: -4.497746637e-05 | J124: -0.0007389232758 | K124: -0.01132465522 | L124: -0.004736024044 | M124: -0.07653352904 | N124: 0.0002506848181
A125: =IF('DF raw data'!M130="","",'DF raw data'!M130) -> -268.5 | B125: =IF('DF raw data'!N130="","",'DF raw data'!N130) -> -2.82189e-05 | C125: =IF('DF raw data'!O130="","",'DF raw data'!O130) -> -0.000134995 | D125: =IF('DF raw data'!P130="","",'DF raw data'!P130) -> -3.54114e-05 | F125: -2.836309858e-05 | G125: -0.0001356848245 | H125: -3.559235225e-05 | J125: -0.0007531048251 | K125: -0.01170120764 | L125: -0.004803866456 | M125: -0.07893546227 | N125: 0.000262506968
A126: =IF('DF raw data'!M131="","",'DF raw data'!M131) -> -268 | B126: =IF('DF raw data'!N131="","",'DF raw data'!N131) -> -2.77637e-05 | C126: =IF('DF raw data'!O131="","",'DF raw data'!O131) -> -0.000138133 | D126: =IF('DF raw data'!P131="","",'DF raw data'!P131) -> -4.49589e-05 | F126: -2.790557251e-05 | G126: -0.0001388388596 | H126: -4.518863998e-05 | J126: -0.0007670576113 | K126: -0.01208473644 | L126: -0.004873285886 | M126: -0.08137210521 | N126: 0.0002746756143
A127: =IF('DF raw data'!M132="","",'DF raw data'!M132) -> -267.5 | B127: =IF('DF raw data'!N132="","",'DF raw data'!N132) -> -3.27636e-05 | C127: =IF('DF raw data'!O132="","",'DF raw data'!O132) -> -0.000149246 | D127: =IF('DF raw data'!P132="","",'DF raw data'!P132) -> -4.76573e-05 | F127: -3.2931022e-05 | G127: -0.0001500086471 | H127: -4.79008288e-05 | J127: -0.0007835231223 | K127: -0.012476498 | L127: -0.00494829021 | M127: -0.08384625032 | N127: 0.0002872253566
A128: =IF('DF raw data'!M133="","",'DF raw data'!M133) -> -267 | B128: =IF('DF raw data'!N133="","",'DF raw data'!N133) -> -2.69946e-05 | C128: =IF('DF raw data'!O133="","",'DF raw data'!O133) -> -0.000154451 | D128: =IF('DF raw data'!P133="","",'DF raw data'!P133) -> -4.44907e-05 | F128: =(1-$G$1*($B$49-$G$2))*B128 -> -2.713254241e-05 | G128: -0.0001552402446 | H128: -4.471804748e-05 | J128: =F128*$G$3+J127 -> -0.0007970893935 | K128: =J128*$G$3+K127 -> -0.0128750427 | L128: =G128*$G$3+L127 -> -0.005025910332 | M128: =L128*$G$3+M127 -> -0.08635920548 | N128: =(J128^2+L128^2)*$G$3+N127 -> 0.0003001729196
A129: =IF('DF raw data'!M134="","",'DF raw data'!M134) -> -266.5 | B129: =IF('DF raw data'!N134="","",'DF raw data'!N134) -> -3.80246e-05 | C129: =IF('DF raw data'!O134="","",'DF raw data'!O134) -> -0.000156707 | D129: =IF('DF raw data'!P134="","",'DF raw data'!P134) -> -4.37225e-05 | F129: -3.821890571e-05 | G129: -0.0001575077728 | H129: -4.394592198e-05 | J129: -0.0008161988464 | K129: -0.01328314212 | L129: -0.005104664218 | M129: -0.08891153759 | N129: 0.0003135348083
A130: =IF('DF raw data'!M135="","",'DF raw data'!M135) -> -266 | B130: =IF('DF raw data'!N135="","",'DF raw data'!N135) -> -2.28247e-05 | C130: =IF('DF raw data'!O135="","",'DF raw data'!O135) -> -0.000156263 | D130: =IF('DF raw data'!P135="","",'DF raw data'!P135) -> -4.71664e-05 | F130: -2.294133422e-05 | G130: -0.0001570615039 | H130: -4.74074203e-05 | J130: -0.0008276695135 | K130: -0.01369697688 | L130: -0.00518319497 | M130: -0.09150313508 | N130: 0.0003273100818
A131: =IF('DF raw data'!M136="","",'DF raw data'!M136) -> -265.5 | B131: =IF('DF raw data'!N136="","",'DF raw data'!N136) -> -1.81366e-05 | C131: =IF('DF raw data'!O136="","",'DF raw data'!O136) -> -0.00015552 | D131: =IF('DF raw data'!P136="","",'DF raw data'!P136) -> -5.82566e-05 | F131: -1.822927803e-05 | G131: -0.0001563147072 | H131: -5.855429123e-05 | J131: -0.0008367841525 | K131: -0.01411536896 | L131: -0.005261352324 | M131: -0.09413381124 | N131: 0.0003415010998
A132: =IF('DF raw data'!M137="","",'DF raw data'!M137) -> -265 | B132: =IF('DF raw data'!N137="","",'DF raw data'!N137) -> -2.72452e-05 | C132: =IF('DF raw data'!O137="","",'DF raw data'!O137) -> -0.000150749 | D132: =IF('DF raw data'!P137="","",'DF raw data'!P137) -> -5.34871e-05 | F132: -2.738442297e-05 | G132: -0.0001515193274 | H132: -5.376041908e-05 | J132: -0.000850476364 | K132: -0.01454060714 | L132: -0.005337111988 | M132: -0.09680236723 | N132: 0.000356105137
A133: =IF('DF raw data'!M138="","",'DF raw data'!M138) -> -264.5 | B133: =IF('DF raw data'!N138="","",'DF raw data'!N138) -> -2.12858e-05 | C133: =IF('DF raw data'!O138="","",'DF raw data'!O138) -> -0.000148014 | D133: =IF('DF raw data'!P138="","",'DF raw data'!P138) -> -4.70741e-05 | F133: -2.139457044e-05 | G133: -0.0001487703515 | H133: -4.731464865e-05 | J133: -0.0008611736492 | K133: -0.01497119396 | L133: -0.005411497163 | M133: -0.09950811582 | N133: 0.0003711180978
A134: =IF('DF raw data'!M139="","",'DF raw data'!M139) -> -264 | B134: =IF('DF raw data'!N139="","",'DF raw data'!N139) -> -2.11518e-05 | C134: =IF('DF raw data'!O139="","",'DF raw data'!O139) -> -0.00013845 | D134: =IF('DF raw data'!P139="","",'DF raw data'!P139) -> -5.59006e-05 | F134: -2.12598857e-05 | G134: -0.0001391574795 | H134: -5.618625207e-05 | J134: -0.0008718035921 | K134: -0.01540709576 | L134: -0.005481075903 | M134: -0.1022486538 | N134: 0.0003865192151
A135: =IF('DF raw data'!M140="","",'DF raw data'!M140) -> -263.5 | B135: =IF('DF raw data'!N140="","",'DF raw data'!N140) -> -2.42987e-05 | C135: =IF('DF raw data'!O140="","",'DF raw data'!O140) -> -0.000135159 | D135: =IF('DF raw data'!P140="","",'DF raw data'!P140) -> -4.86682e-05 | F135: -2.442286636e-05 | G135: -0.0001358496625 | H135: -4.89168945e-05 | J135: -0.0008840150253 | K135: -0.01584910327 | L135: -0.005549000734 | M135: -0.1050231541 | N135: 0.0004023056609
A136: =IF('DF raw data'!M141="","",'DF raw data'!M141) -> -263 | B136: =IF('DF raw data'!N141="","",'DF raw data'!N141) -> -2.90366e-05 | C136: =IF('DF raw data'!O141="","",'DF raw data'!O141) -> -0.000135517 | D136: =IF('DF raw data'!P141="","",'DF raw data'!P141) -> -5.98763e-05 | F136: -2.918497703e-05 | G136: -0.0001362094919 | H136: -6.018226789e-05 | J136: -0.0008986075138 | K136: -0.01629840703 | L136: -0.00561710548 | M136: -0.1078317069 | N136: 0.0004184853456
A137: =IF('DF raw data'!M142="","",'DF raw data'!M142) -> -262.5 | B137: =IF('DF raw data'!N142="","",'DF raw data'!N142) -> -3.17946e-05 | C137: =IF('DF raw data'!O142="","",'DF raw data'!O142) -> -0.000143448 | D137: =IF('DF raw data'!P142="","",'DF raw data'!P142) -> -5.89129e-05 | F137: -3.195707041e-05 | G137: -0.0001441810193 | H137: -5.921394492e-05 | J137: -0.000914586049 | K137: -0.01675570005 | L137: -0.00568919599 | M137: -0.1106763049 | N137: 0.000435087055
A138: =IF('DF raw data'!M143="","",'DF raw data'!M143) -> -262 | B138: =IF('DF raw data'!N143="","",'DF raw data'!N143) -> -2.24989e-05 | C138: =IF('DF raw data'!O143="","",'DF raw data'!O143) -> -0.000140527 | D138: =IF('DF raw data'!P143="","",'DF raw data'!P143) -> -5.53852e-05 | F138: -2.261386938e-05 | G138: -0.000141245093 | H138: -5.566821837e-05 | J138: -0.0009258929837 | K138: -0.01721864654 | L138: -0.005759818536 | M138: -0.1135562141 | N138: 0.0004521034487
